Workbook

Sheet CV Rotina <2A - procedência
D1: AO NASCER | L1: MENOR DE 1 ANO | V1: 1 ANO | AB1: MENOR DE 2 ANOS | AE1: MENOR DE 1 ANO
A2: Regional | B2: Município | C2: ¹População < 1 ano e 1 ano | D2: Doses Aplicadas HB ≤30 dias | E2: Cobertura Vacinal HB até 30 dias | F2: Doses Aplicadas HB ≤2 dias | G2: Cobertura Vacinal HB até 2 dias | H2: Doses Aplicadas HB ≤1 dia | I2: Cobertura Vacinal HB até 1 dia | J2: Doses Aplicadas BCG | K2: Cobertura Vacinal BCG | L2: Doses Aplicadas Pentavalente | M2: Cobertura Vacinal Pentavalente | N2: Doses Aplicadas Poliomielite | O2: Cobertura Vacinal Poliomielite | P2: Doses Aplicadas Pneumo 10 | Q2: Cobertura Vacinal Pneumo 10 | R2: Doses Aplicadas Meningo C | S2: Cobertura Vacinal Meningo C | T2: Doses Aplicadas Febre Amarela | U2: Cobertura Vacinal Febre Amarela | V2: Doses Aplicadas Hepatite A | W2: Cobertura Vacinal Hepatite A | X2: Doses Aplicadas de Tríplice Viral | Y2: Cobertura Vacinal Tríplice Viral | Z2: Doses Aplicadas Varicela | AA2: Cobertura Varicela | AB2: Doses Aplicadas Rotavírus | AC2: Cobertura Vacinal Rotavírus | AE2: Doses Aplicadas COVID-19 | AF2: Cobertura Vacinal COVID-19 | AH2: VACINAS QUE ATINGIRAM A META DE CV | AI2: HOMOGENEIDADE ENTRE AS 10 VACINAS | AJ2: VACINAS DO PQA-VS QUE ATINGIRAM A META DE CV | AK2: HOMOGENEIDADE ENTRE AS VACINAS DO PQA-VS
A3: Metropolitana | B3: Afonso Cláudio | C3: 31 | D3: 20 | E3: =D3/C3 -> 0.6451612903 | F3: 15 | G3: =F3/C3 -> 0.4838709677 | H3: 10 | I3: =H3/C3 -> 0.3225806452 | J3: 22 | K3: =J3/C3 -> 0.7096774194 | L3: 24 | M3: =L3/C3 -> 0.7741935484 | N3: 24 | O3: =N3/C3 -> 0.7741935484 | P3: 19 | Q3: =P3/C3 -> 0.6129032258 | R3: 22 | S3: =R3/C3 -> 0.7096774194 | T3: 37 | U3: =T3/C3 -> 1.193548387 | V3: 23 | W3: =V3/C3 -> 0.7419354839 | X3: 20 | Y3: =X3/C3 -> 0.6451612903 | Z3: 17 | AA3: =Z3/C3 -> 0.5483870968 | AB3: 19 | AC3: =AB3/C3 -> 0.6129032258 | AE3: 0 | AF3: =AE3/C3 -> 0 | AH3: =cálculos1!O3 -> 1 | AI3: =AH3*0.1 -> 0.1 | AJ3: =cálculos1!P3 -> 0 | AK3: =AJ3*0.25 -> 0 | AM3: LEGENDA / HOMOGENEIDADE PQA-VS
A4: Norte | B4: Água Doce do Norte | C4: 11 | D4: 7 | E4: =D4/C4 -> 0.6363636364 | F4: 0 | G4: =F4/C4 -> 0 | H4: 0 | I4: =H4/C4 -> 0 | J4: 0 | K4: 0 | L4: 11 | M4: 1 | N4: 11 | O4: 1 | P4: 14 | Q4: 1.272727273 | R4: 9 | S4: 0.8181818182 | T4: 8 | U4: 0.7272727273 | V4: 12 | W4: 1.090909091 | X4: 11 | Y4: 1 | Z4: 12 | AA4: 1.090909091 | AB4: 15 | AC4: =AB4/C4 -> 1.363636364 | AE4: 0 | AF4: 0 | AH4: =cálculos1!O4 -> 6 | AI4: =AH4*0.1 -> 0.6 | AJ4: =cálculos1!P4 -> 4 | AK4: =AJ4*0.25 -> 1 | AM4: PERCENTUAL | AN4: Nº DE MUNICÍPIOS
A5: Central | B5: Águia Branca | C5: 14 | D5: 9 | E5: 0.6428571429 | F5: 1 | G5: 0.07142857143 | H5: 0 | I5: 0 | J5: 8 | K5: 0.5714285714 | L5: 16 | M5: 1.142857143 | N5: 16 | O5: 1.142857143 | P5: 18 | Q5: 1.285714286 | R5: 15 | S5: 1.071428571 | T5: 17 | U5: 1.214285714 | V5: 9 | W5: 0.6428571429 | X5: 10 | Y5: 0.7142857143 | Z5: 11 | AA5: 0.7857142857 | AB5: 18 | AC5: 1.285714286 | AE5: 2 | AF5: 0.1428571429 | AH5: =cálculos1!O5 -> 5 | AI5: 0.5 | AJ5: =cálculos1!P5 -> 3 | AK5: 0.75 | AM5: 0 | AN5: =COUNTIF($AK$3:$AK$80,"=0") -> 7
A6: Sul | B6: Alegre | C6: 24 | D6: 16 | E6: 0.6666666667 | F6: 1 | G6: 0.04166666667 | H6: 0 | I6: 0 | J6: 15 | K6: 0.625 | L6: 23 | M6: 0.9583333333 | N6: 22 | O6: 0.9166666667 | P6: 18 | Q6: 0.75 | R6: 20 | S6: 0.8333333333 | T6: 21 | U6: 0.875 | V6: 27 | W6: 1.125 | X6: 22 | Y6: 0.9166666667 | Z6: 26 | AA6: 1.083333333 | AB6: 17 | AC6: 0.7083333333 | AE6: 4 | AF6: 0.1666666667 | AH6: =cálculos1!O6 -> 3 | AI6: 0.3 | AJ6: =cálculos1!P6 -> 1 | AK6: 0.25 | AM6: 0.25 | AN6: =COUNTIF($AK$3:$AK$80,"=0,25") -> 21
A7: Sul | B7: Alfredo Chaves | C7: 11 | D7: 1 | E7: 0.09090909091 | F7: 0 | G7: 0 | H7: 0 | I7: 0 | J7: 7 | K7: 0.6363636364 | L7: 10 | M7: 0.9090909091 | N7: 9 | O7: 0.8181818182 | P7: 7 | Q7: 0.6363636364 | R7: 8 | S7: 0.7272727273 | T7: 11 | U7: 1 | V7: 12 | W7: 1.090909091 | X7: 14 | Y7: 1.272727273 | Z7: 14 | AA7: 1.272727273 | AB7: 8 | AC7: 0.7272727273 | AE7: 0 | AF7: 0 | AH7: =cálculos1!O7 -> 4 | AI7: 0.4 | AJ7: =cálculos1!P7 -> 1 | AK7: 0.25 | AM7: 0.5 | AN7: =COUNTIF($AK$3:$AK$80,"=0,5") -> 13
A8: Central | B8: Alto Rio Novo | C8: 7 | D8: 3 | E8: 0.4285714286 | F8: 0 | G8: 0 | H8: 0 | I8: 0 | J8: 0 | K8: 0 | L8: 10 | M8: 1.428571429 | N8: 10 | O8: 1.428571429 | P8: 5 | Q8: 0.7142857143 | R8: 12 | S8: 1.714285714 | T8: 5 | U8: 0.7142857143 | V8: 6 | W8: 0.8571428571 | X8: 5 | Y8: 0.7142857143 | Z8: 8 | AA8: 1.142857143 | AB8: 5 | AC8: 0.7142857143 | AE8: 0 | AF8: 0 | AH8: =cálculos1!O8 -> 4 | AI8: 0.4 | AJ8: =cálculos1!P8 -> 2 | AK8: 0.5 | AM8: 0.75 | AN8: =COUNTIF($AK$3:$AK$80,"=0,75") -> 15
A9: Sul | B9: Anchieta | C9: 24 | D9: 4 | E9: 0.1666666667 | F9: 0 | G9: 0 | H9: 0 | I9: 0 | J9: 13 | K9: 0.5416666667 | L9: 28 | M9: 1.166666667 | N9: 28 | O9: 1.166666667 | P9: 26 | Q9: 1.083333333 | R9: 21 | S9: 0.875 | T9: 26 | U9: 1.083333333 | V9: 41 | W9: 1.708333333 | X9: 35 | Y9: 1.458333333 | Z9: 48 | AA9: 2 | AB9: 28 | AC9: 1.166666667 | AE9: 0 | AF9: 0 | AH9: =cálculos1!O9 -> 7 | AI9: 0.7 | AJ9: =cálculos1!P9 -> 4 | AK9: 1 | AM9: 1 | AN9: =COUNTIF($AK$3:$AK$80,"=1,0") -> 22
A10: Sul | B10: Apiacá | C10: 4 | D10: 1 | E10: 0.25 | F10: 0 | G10: 0 | H10: 0 | I10: 0 | J10: 6 | K10: 1.5 | L10: 6 | M10: 1.5 | N10: 5 | O10: 1.25 | P10: 4 | Q10: 1 | R10: 7 | S10: 1.75 | T10: 6 | U10: 1.5 | V10: 7 | W10: 1.75 | X10: 9 | Y10: 2.25 | Z10: 7 | AA10: 1.75 | AB10: 4 | AC10: 1 | AE10: 0 | AF10: 0 | AH10: =cálculos1!O10 -> 9 | AI10: 0.9 | AJ10: =cálculos1!P10 -> 4 | AK10: 1
A11: Metropolitana | B11: Aracruz | C11: 125 | D11: 98 | E11: 0.784 | F11: 19 | G11: 0.152 | H11: 2 | I11: 0.016 | J11: 104 | K11: 0.832 | L11: 126 | M11: 1.008 | N11: 120 | O11: 0.96 | P11: 106 | Q11: 0.848 | R11: 101 | S11: 0.808 | T11: 114 | U11: 0.912 | V11: 127 | W11: 1.016 | X11: 128 | Y11: 1.024 | Z11: 126 | AA11: 1.008 | AB11: 107 | AC11: 0.856 | AE11: 4 | AF11: 0.032 | AH11: =cálculos1!O11 -> 5 | AI11: 0.5 | AJ11: =cálculos1!P11 -> 3 | AK11: 0.75
A12: Sul | B12: Atilio Vivacqua | C12: 17 | D12: 1 | E12: 0.05882352941 | F12: 0 | G12: 0 | H12: 0 | I12: 0 | J12: 1 | K12: 0.05882352941 | L12: 14 | M12: 0.8235294118 | N12: 13 | O12: 0.7647058824 | P12: 6 | Q12: 0.3529411765 | R12: 15 | S12: 0.8823529412 | T12: 18 | U12: 1.058823529 | V12: 24 | W12: 1.411764706 | X12: 17 | Y12: 1 | Z12: 17 | AA12: 1 | AB12: 6 | AC12: 0.3529411765 | AE12: 0 | AF12: 0 | AH12: =cálculos1!O12 -> 4 | AI12: 0.4 | AJ12: =cálculos1!P12 -> 1 | AK12: 0.25 | AM12: LEGENDA / HOMOGENEIDADE 10 VACINAS
A13: Central | B13: Baixo Guandu | C13: 32 | D13: 3 | E13: 0.09375 | F13: 0 | G13: 0 | H13: 0 | I13: 0 | J13: 13 | K13: 0.40625 | L13: 34 | M13: 1.0625 | N13: 33 | O13: 1.03125 | P13: 34 | Q13: 1.0625 | R13: 32 | S13: 1 | T13: 32 | U13: 1 | V13: 21 | W13: 0.65625 | X13: 35 | Y13: 1.09375 | Z13: 25 | AA13: 0.78125 | AB13: 34 | AC13: 1.0625 | AE13: 0 | AF13: 0 | AH13: =cálculos1!O13 -> 6 | AI13: 0.6 | AJ13: =cálculos1!P13 -> 4 | AK13: 1 | AM13: PERCENTUAL | AN13: Nº DE MUNICÍPIOS
A14: Norte | B14: Barra de São Francisco | C14: 54 | D14: 20 | E14: 0.3703703704 | F14: 1 | G14: 0.01851851852 | H14: 0 | I14: 0 | J14: 23 | K14: 0.4259259259 | L14: 53 | M14: 0.9814814815 | N14: 54 | O14: 1 | P14: 45 | Q14: 0.8333333333 | R14: 39 | S14: 0.7222222222 | T14: 52 | U14: 0.962962963 | V14: 41 | W14: 0.7592592593 | X14: 52 | Y14: 0.962962963 | Z14: 44 | AA14: 0.8148148148 | AB14: 46 | AC14: 0.8518518519 | AE14: 0 | AF14: 0 | AH14: =cálculos1!O14 -> 4 | AI14: 0.4 | AJ14: =cálculos1!P14 -> 3 | AK14: 0.75 | AM14: 0 | AN14: =COUNTIF($AI$3:$AI$80,"=0") -> 2
A15: Norte | B15: Boa Esperança | C15: 17 | D15: 1 | E15: 0.05882352941 | F15: 1 | G15: 0.05882352941 | H15: 1 | I15: 0.05882352941 | J15: 3 | K15: 0.1764705882 | L15: 23 | M15: 1.352941176 | N15: 20 | O15: 1.176470588 | P15: 16 | Q15: 0.9411764706 | R15: 20 | S15: 1.176470588 | T15: 16 | U15: 0.9411764706 | V15: 22 | W15: 1.294117647 | X15: 13 | Y15: 0.7647058824 | Z15: 20 | AA15: 1.176470588 | AB15: 18 | AC15: 1.058823529 | AE15: 0 | AF15: 0 | AH15: =cálculos1!O15 -> 5 | AI15: 0.5 | AJ15: =cálculos1!P15 -> 2 | AK15: 0.5 | AM15: 0.1 | AN15: =COUNTIFS($AI$3:$AI$80,">=0,10",$AI$3:$AI$80,"<0,20") -> 6
A16: Sul | B16: Bom Jesus do Norte | C16: 5 | D16: 3 | E16: 0.6 | F16: 0 | G16: 0 | H16: 0 | I16: 0 | J16: 8 | K16: 1.6 | L16: 4 | M16: 0.8 | N16: 4 | O16: 0.8 | P16: 13 | Q16: 2.6 | R16: 12 | S16: 2.4 | T16: 10 | U16: 2 | V16: 9 | W16: 1.8 | X16: 9 | Y16: 1.8 | Z16: 4 | AA16: 0.8 | AB16: 14 | AC16: 2.8 | AE16: 0 | AF16: 0 | AH16: =cálculos1!O16 -> 6 | AI16: 0.6 | AJ16: =cálculos1!P16 -> 2 | AK16: 0.5 | AM16: 0.2 | AN16: =COUNTIFS($AI$3:$AI$80,">=0,20",$AI$3:$AI$80,"<0,30") -> 8
A17: Metropolitana | B17: Brejetuba | C17: 18 | D17: 3 | E17: 0.1666666667 | F17: 0 | G17: 0 | H17: 0 | I17: 0 | J17: 7 | K17: 0.3888888889 | L17: 23 | M17: 1.277777778 | N17: 21 | O17: 1.166666667 | P17: 25 | Q17: 1.388888889 | R17: 25 | S17: 1.388888889 | T17: 17 | U17: 0.9444444444 | V17: 27 | W17: 1.5 | X17: 26 | Y17: 1.444444444 | Z17: 14 | AA17: 0.7777777778 | AB17: 30 | AC17: 1.666666667 | AE17: 0 | AF17: 0 | AH17: =cálculos1!O17 -> 6 | AI17: 0.6 | AJ17: =cálculos1!P17 -> 4 | AK17: 1 | AM17: 0.3 | AN17: =COUNTIFS($AI$3:$AI$80,">=0,30",$AI$3:$AI$80,"<0,40") -> 7
A18: Sul | B18: Cachoeiro de Itapemirim | C18: 204 | D18: 419 | E18: 2.053921569 | F18: 376 | G18: 1.843137255 | H18: 202 | I18: 0.9901960784 | J18: 409 | K18: 2.004901961 | L18: 240 | M18: 1.176470588 | N18: 237 | O18: 1.161764706 | P18: 199 | Q18: 0.9754901961 | R18: 202 | S18: 0.9901960784 | T18: 163 | U18: 0.7990196078 | V18: 175 | W18: 0.8578431373 | X18: 178 | Y18: 0.8725490196 | Z18: 185 | AA18: 0.9068627451 | AB18: 202 | AC18: 0.9901960784 | AE18: 7 | AF18: 0.03431372549 | AH18: =cálculos1!O18 -> 5 | AI18: 0.5 | AJ18: =cálculos1!P18 -> 3 | AK18: 0.75 | AM18: 0.4 | AN18: =COUNTIFS($AI$3:$AI$80,">=0,40",$AI$3:$AI$80,"<0,50") -> 13
A19: Metropolitana | B19: Cariacica | C19: 408 | D19: 158 | E19: 0.387254902 | F19: 5 | G19: 0.01225490196 | H19: 0 | I19: 0 | J19: 156 | K19: 0.3823529412 | L19: 360 | M19: 0.8823529412 | N19: 359 | O19: 0.8799019608 | P19: 344 | Q19: 0.8431372549 | R19: 378 | S19: 0.9264705882 | T19: 306 | U19: 0.75 | V19: 379 | W19: 0.9289215686 | X19: 461 | Y19: 1.129901961 | Z19: 392 | AA19: 0.9607843137 | AB19: 366 | AC19: 0.8970588235 | AE19: 10 | AF19: 0.02450980392 | AH19: =cálculos1!O19 -> 2 | AI19: 0.2 | AJ19: =cálculos1!P19 -> 1 | AK19: 0.25 | AM19: 0.5 | AN19: =COUNTIFS($AI$3:$AI$80,">=0,50",$AI$3:$AI$80,"<0,60") -> 11
A20: Sul | B20: Castelo | C20: 39 | D20: 29 | E20: 0.7435897436 | F20: 23 | G20: 0.5897435897 | H20: 14 | I20: 0.358974359 | J20: 32 | K20: 0.8205128205 | L20: 39 | M20: 1 | N20: 40 | O20: 1.025641026 | P20: 39 | Q20: 1 | R20: 36 | S20: 0.9230769231 | T20: 36 | U20: 0.9230769231 | V20: 42 | W20: 1.076923077 | X20: 32 | Y20: 0.8205128205 | Z20: 48 | AA20: 1.230769231 | AB20: 38 | AC20: 0.9743589744 | AE20: 0 | AF20: 0 | AH20: =cálculos1!O20 -> 5 | AI20: 0.5 | AJ20: =cálculos1!P20 -> 3 | AK20: 0.75 | AM20: 0.6 | AN20: =COUNTIFS($AI$3:$AI$80,">=0,60",$AI$3:$AI$80,"<0,70") -> 11
A21: Central | B21: Colatina | C21: 123 | D21: 333 | E21: 2.707317073 | F21: 245 | G21: 1.991869919 | H21: 189 | I21: 1.536585366 | J21: 327 | K21: 2.658536585 | L21: 134 | M21: 1.089430894 | N21: 134 | O21: 1.089430894 | P21: 132 | Q21: 1.073170732 | R21: 133 | S21: 1.081300813 | T21: 97 | U21: 0.7886178862 | V21: 126 | W21: 1.024390244 | X21: 120 | Y21: 0.9756097561 | Z21: 124 | AA21: 1.008130081 | AB21: 135 | AC21: 1.097560976 | AE21: 6 | AF21: 0.0487804878 | AH21: =cálculos1!O21 -> 8 | AI21: 0.8 | AJ21: =cálculos1!P21 -> 4 | AK21: 1 | AM21: 0.7 | AN21: =COUNTIFS($AI$3:$AI$80,">=0,70",$AI$3:$AI$80,"<0,80") -> 9
A22: Norte | B22: Conceição da Barra | C22: 32 | D22: 2 | E22: 0.0625 | F22: 0 | G22: 0 | H22: 0 | I22: 0 | J22: 4 | K22: 0.125 | L22: 29 | M22: 0.90625 | N22: 29 | O22: 0.90625 | P22: 32 | Q22: 1 | R22: 22 | S22: 0.6875 | T22: 29 | U22: 0.90625 | V22: 25 | W22: 0.78125 | X22: 23 | Y22: 0.71875 | Z22: 31 | AA22: 0.96875 | AB22: 32 | AC22: 1 | AE22: 0 | AF22: 0 | AH22: =cálculos1!O22 -> 2 | AI22: 0.2 | AJ22: =cálculos1!P22 -> 1 | AK22: 0.25 | AM22: 0.8 | AN22: =COUNTIFS($AI$3:$AI$80,">=0,80",$AI$3:$AI$80,"<0,90") -> 8
A23: Metropolitana | B23: Conceição do Castelo | C23: 12 | D23: 1 | E23: 0.08333333333 | F23: 0 | G23: 0 | H23: 0 | I23: 0 | J23: 14 | K23: 1.166666667 | L23: 14 | M23: 1.166666667 | N23: 14 | O23: 1.166666667 | P23: 12 | Q23: 1 | R23: 15 | S23: 1.25 | T23: 11 | U23: 0.9166666667 | V23: 9 | W23: 0.75 | X23: 14 | Y23: 1.166666667 | Z23: 9 | AA23: 0.75 | AB23: 14 | AC23: 1.166666667 | AE23: 0 | AF23: 0 | AH23: =cálculos1!O23 -> 6 | AI23: 0.6 | AJ23: =cálculos1!P23 -> 4 | AK23: 1 | AM23: 0.9 | AN23: =COUNTIFS($AI$3:$AI$80,">=0,90",$AI$3:$AI$80,"<1,0") -> 3
A24: Sul | B24: Divino de São Lourenço | C24: 6 | D24: 6 | E24: 1 | F24: 0 | G24: 0 | H24: 0 | I24: 0 | J24: 8 | K24: 1.333333333 | L24: 5 | M24: 0.8333333333 | N24: 5 | O24: 0.8333333333 | P24: 14 | Q24: 2.333333333 | R24: 4 | S24: 0.6666666667 | T24: 5 | U24: 0.8333333333 | V24: 2 | W24: 0.3333333333 | X24: 4 | Y24: 0.6666666667 | Z24: 3 | AA24: 0.5 | AB24: 12 | AC24: 2 | AE24: 0 | AF24: 0 | AH24: =cálculos1!O24 -> 2 | AI24: 0.2 | AJ24: =cálculos1!P24 -> 1 | AK24: 0.25 | AM24: 1 | AN24: =COUNTIF($AI$3:$AI$80,">=1,0") -> 0
A25: Metropolitana | B25: Domingos Martins | C25: 36 | D25: 6 | E25: 0.1666666667 | F25: 1 | G25: 0.02777777778 | H25: 0 | I25: 0 | J25: 7 | K25: 0.1944444444 | L25: 25 | M25: 0.6944444444 | N25: 23 | O25: 0.6388888889 | P25: 28 | Q25: 0.7777777778 | R25: 26 | S25: 0.7222222222 | T25: 35 | U25: 0.9722222222 | V25: 29 | W25: 0.8055555556 | X25: 24 | Y25: 0.6666666667 | Z25: 27 | AA25: 0.75 | AB25: 26 | AC25: 0.7222222222 | AE25: 3 | AF25: 0.08333333333 | AH25: =cálculos1!O25 -> 1 | AI25: 0.1 | AJ25: =cálculos1!P25 -> 0 | AK25: 0
A26: Sul | B26: Dores do Rio Preto | C26: 9 | D26: 1 | E26: 0.1111111111 | F26: 0 | G26: 0 | H26: 0 | I26: 0 | J26: 4 | K26: 0.4444444444 | L26: 9 | M26: 1 | N26: 8 | O26: 0.8888888889 | P26: 8 | Q26: 0.8888888889 | R26: 14 | S26: 1.555555556 | T26: 9 | U26: 1 | V26: 8 | W26: 0.8888888889 | X26: 9 | Y26: 1 | Z26: 9 | AA26: 1 | AB26: 8 | AC26: 0.8888888889 | AE26: 0 | AF26: 0 | AH26: =cálculos1!O26 -> 5 | AI26: 0.5 | AJ26: =cálculos1!P26 -> 2 | AK26: 0.5
A27: Norte | B27: Ecoporanga | C27: 18 | D27: 13 | E27: 0.7222222222 | F27: 0 | G27: 0 | H27: 0 | I27: 0 | J27: 7 | K27: 0.3888888889 | L27: 16 | M27: 0.8888888889 | N27: 17 | O27: 0.9444444444 | P27: 18 | Q27: 1 | R27: 17 | S27: 0.9444444444 | T27: 22 | U27: 1.222222222 | V27: 25 | W27: 1.388888889 | X27: 18 | Y27: 1 | Z27: 19 | AA27: 1.055555556 | AB27: 20 | AC27: 1.111111111 | AE27: 0 | AF27: 0 | AH27: =cálculos1!O27 -> 5 | AI27: 0.5 | AJ27: =cálculos1!P27 -> 2 | AK27: 0.5
A28: Metropolitana | B28: Fundão | C28: 22 | D28: 4 | E28: 0.1818181818 | F28: 0 | G28: 0 | H28: 0 | I28: 0 | J28: 2 | K28: 0.09090909091 | L28: 14 | M28: 0.6363636364 | N28: 13 | O28: 0.5909090909 | P28: 13 | Q28: 0.5909090909 | R28: 21 | S28: 0.9545454545 | T28: 13 | U28: 0.5909090909 | V28: 22 | W28: 1 | X28: 21 | Y28: 0.9545454545 | Z28: 21 | AA28: 0.9545454545 | AB28: 17 | AC28: 0.7727272727 | AE28: 4 | AF28: 0.1818181818 | AH28: =cálculos1!O28 -> 4 | AI28: 0.4 | AJ28: =cálculos1!P28 -> 1 | AK28: 0.25
A29: Central | B29: Governador Lindenberg | C29: 11 | D29: 4 | E29: 0.3636363636 | F29: 0 | G29: 0 | H29: 0 | I29: 0 | J29: 2 | K29: 0.1818181818 | L29: 11 | M29: 1 | N29: 11 | O29: 1 | P29: 10 | Q29: 0.9090909091 | R29: 17 | S29: 1.545454545 | T29: 3 | U29: 0.2727272727 | V29: 6 | W29: 0.5454545455 | X29: 9 | Y29: 0.8181818182 | Z29: 5 | AA29: 0.4545454545 | AB29: 12 | AC29: 1.090909091 | AE29: 0 | AF29: 0 | AH29: =cálculos1!O29 -> 3 | AI29: 0.3 | AJ29: =cálculos1!P29 -> 2 | AK29: 0.5
A30: Sul | B30: Guaçuí | C30: 25 | D30: 20 | E30: 0.8 | F30: 2 | G30: 0.08 | H30: 1 | I30: 0.04 | J30: 22 | K30: 0.88 | L30: 28 | M30: 1.12 | N30: 28 | O30: 1.12 | P30: 38 | Q30: 1.52 | R30: 40 | S30: 1.6 | T30: 26 | U30: 1.04 | V30: 21 | W30: 0.84 | X30: 29 | Y30: 1.16 | Z30: 31 | AA30: 1.24 | AB30: 39 | AC30: 1.56 | AE30: 0 | AF30: 0 | AH30: =cálculos1!O30 -> 7 | AI30: 0.7 | AJ30: =cálculos1!P30 -> 4 | AK30: 1
A31: Metropolitana | B31: Guarapari | C31: 129 | D31: 115 | E31: 0.8914728682 | F31: 104 | G31: 0.8062015504 | H31: 95 | I31: 0.7364341085 | J31: 66 | K31: 0.511627907 | L31: 144 | M31: 1.11627907 | N31: 143 | O31: 1.108527132 | P31: 126 | Q31: 0.976744186 | R31: 139 | S31: 1.07751938 | T31: 100 | U31: 0.7751937984 | V31: 130 | W31: 1.007751938 | X31: 157 | Y31: 1.217054264 | Z31: 105 | AA31: 0.8139534884 | AB31: 128 | AC31: 0.992248062 | AE31: 2 | AF31: 0.01550387597 | AH31: =cálculos1!O31 -> 6 | AI31: 0.6 | AJ31: =cálculos1!P31 -> 4 | AK31: 1
A32: Metropolitana | B32: Ibatiba | C32: 30 | D32: 20 | E32: 0.6666666667 | F32: 0 | G32: 0 | H32: 0 | I32: 0 | J32: 23 | K32: 0.7666666667 | L32: 42 | M32: 1.4 | N32: 41 | O32: 1.366666667 | P32: 46 | Q32: 1.533333333 | R32: 42 | S32: 1.4 | T32: 21 | U32: 0.7 | V32: 36 | W32: 1.2 | X32: 39 | Y32: 1.3 | Z32: 52 | AA32: 1.733333333 | AB32: 45 | AC32: 1.5 | AE32: 0 | AF32: 0 | AH32: =cálculos1!O32 -> 7 | AI32: 0.7 | AJ32: =cálculos1!P32 -> 4 | AK32: 1
A33: Metropolitana | B33: Ibiraçu | C33: 8 | D33: 3 | E33: 0.375 | F33: 0 | G33: 0 | H33: 0 | I33: 0 | J33: 4 | K33: 0.5 | L33: 10 | M33: 1.25 | N33: 10 | O33: 1.25 | P33: 13 | Q33: 1.625 | R33: 10 | S33: 1.25 | T33: 13 | U33: 1.625 | V33: 18 | W33: 2.25 | X33: 6 | Y33: 0.75 | Z33: 21 | AA33: 2.625 | AB33: 14 | AC33: 1.75 | AE33: 0 | AF33: 0 | AH33: =cálculos1!O33 -> 7 | AI33: 0.7 | AJ33: =cálculos1!P33 -> 3 | AK33: 0.75
A34: Sul | B34: Ibitirama | C34: 10 | D34: 8 | E34: 0.8 | F34: 1 | G34: 0.1 | H34: 0 | I34: 0 | J34: 10 | K34: 1 | L34: 12 | M34: 1.2 | N34: 12 | O34: 1.2 | P34: 14 | Q34: 1.4 | R34: 6 | S34: 0.6 | T34: 11 | U34: 1.1 | V34: 19 | W34: 1.9 | X34: 14 | Y34: 1.4 | Z34: 18 | AA34: 1.8 | AB34: 13 | AC34: 1.3 | AE34: 1 | AF34: 0.1 | AH34: =cálculos1!O34 -> 8 | AI34: 0.8 | AJ34: =cálculos1!P34 -> 4 | AK34: 1
A35: Sul | B35: Iconha | C35: 10 | D35: 3 | E35: 0.3 | F35: 0 | G35: 0 | H35: 0 | I35: 0 | J35: 4 | K35: =J35/C35 -> 0.4 | L35: 8 | M35: =L35/C35 -> 0.8 | N35: 8 | O35: =N35/C35 -> 0.8 | P35: 10 | Q35: =P35/C35 -> 1 | R35: 13 | S35: =R35/C35 -> 1.3 | T35: 11 | U35: =T35/C35 -> 1.1 | V35: 12 | W35: =V35/C35 -> 1.2 | X35: 11 | Y35: =X35/C35 -> 1.1 | Z35: 12 | AA35: =Z35/C35 -> 1.2 | AB35: 11 | AC35: 1.1 | AE35: 0 | AF35: =AE35/C35 -> 0 | AH35: =cálculos1!O35 -> 6 | AI35: 0.6 | AJ35: =cálculos1!P35 -> 2 | AK35: 0.5
A36: Sul | B36: Irupi | C36: 18 | D36: 9 | E36: 0.5 | F36: 2 | G36: 0.1111111111 | H36: 2 | I36: 0.1111111111 | J36: 10 | K36: 0.5555555556 | L36: 17 | M36: 0.9444444444 | N36: 17 | O36: 0.9444444444 | P36: 27 | Q36: 1.5 | R36: 20 | S36: 1.111111111 | T36: 20 | U36: 1.111111111 | V36: 11 | W36: 0.6111111111 | X36: 16 | Y36: 0.8888888889 | Z36: 12 | AA36: 0.6666666667 | AB36: 27 | AC36: 1.5 | AE36: 1 | AF36: 0.05555555556 | AH36: =cálculos1!O36 -> 3 | AI36: 0.3 | AJ36: =cálculos1!P36 -> 1 | AK36: 0.25
A37: Metropolitana | B37: Itaguaçu | C37: 13 | D37: 2 | E37: 0.1538461538 | F37: 0 | G37: 0 | H37: 0 | I37: 0 | J37: 3 | K37: 0.2307692308 | L37: 6 | M37: 0.4615384615 | N37: 6 | O37: 0.4615384615 | P37: 13 | Q37: 1 | R37: 6 | S37: 0.4615384615 | T37: 9 | U37: 0.6923076923 | V37: 16 | W37: 1.230769231 | X37: 8 | Y37: 0.6153846154 | Z37: 16 | AA37: 1.230769231 | AB37: 13 | AC37: 1 | AE37: 0 | AF37: 0 | AH37: =cálculos1!O37 -> 3 | AI37: 0.3 | AJ37: =cálculos1!P37 -> 1 | AK37: 0.25
A38: Sul | B38: Itapemirim | C38: 53 | D38: 73 | E38: 1.377358491 | F38: 71 | G38: 1.339622642 | H38: 71 | I38: 1.339622642 | J38: 16 | K38: 0.3018867925 | L38: 43 | M38: 0.8113207547 | N38: 39 | O38: 0.7358490566 | P38: 35 | Q38: 0.6603773585 | R38: 43 | S38: 0.8113207547 | T38: 36 | U38: 0.679245283 | V38: 48 | W38: 0.9056603774 | X38: 38 | Y38: 0.7169811321 | Z38: 19 | AA38: 0.358490566 | AB38: 37 | AC38: 0.6981132075 | AE38: 0 | AF38: 0 | AH38: =cálculos1!O38 -> 0 | AI38: 0 | AJ38: =cálculos1!P38 -> 0 | AK38: 0
A39: Metropolitana | B39: Itarana | C39: 8 | D39: 3 | E39: 0.375 | F39: 0 | G39: 0 | H39: 0 | I39: 0 | J39: 3 | K39: 0.375 | L39: 3 | M39: 0.375 | N39: 3 | O39: 0.375 | P39: 8 | Q39: 1 | R39: 11 | S39: 1.375 | T39: 7 | U39: 0.875 | V39: 10 | W39: 1.25 | X39: 5 | Y39: 0.625 | Z39: 12 | AA39: 1.5 | AB39: 9 | AC39: 1.125 | AE39: 0 | AF39: 0 | AH39: =cálculos1!O39 -> 4 | AI39: 0.4 | AJ39: =cálculos1!P39 -> 1 | AK39: 0.25
A40: Sul | B40: Iúna | C40: 34 | D40: 19 | E40: 0.5588235294 | F40: 2 | G40: 0.05882352941 | H40: 0 | I40: 0 | J40: 24 | K40: 0.7058823529 | L40: 33 | M40: 0.9705882353 | N40: 33 | O40: 0.9705882353 | P40: 28 | Q40: 0.8235294118 | R40: 46 | S40: 1.352941176 | T40: 42 | U40: 1.235294118 | V40: 29 | W40: 0.8529411765 | X40: 35 | Y40: 1.029411765 | Z40: 28 | AA40: 0.8235294118 | AB40: 31 | AC40: 0.9117647059 | AE40: 0 | AF40: 0 | AH40: =cálculos1!O40 -> 5 | AI40: 0.5 | AJ40: =cálculos1!P40 -> 3 | AK40: 0.75
A41: Norte | B41: Jaguaré | C41: 46 | D41: 34 | E41: 0.7391304348 | F41: 27 | G41: 0.5869565217 | H41: 27 | I41: 0.5869565217 | J41: 32 | K41: 0.6956521739 | L41: 46 | M41: 1 | N41: 46 | O41: 1 | P41: 36 | Q41: 0.7826086957 | R41: 28 | S41: 0.6086956522 | T41: 33 | U41: 0.7173913043 | V41: 36 | W41: 0.7826086957 | X41: 36 | Y41: 0.7826086957 | Z41: 39 | AA41: 0.847826087 | AB41: 38 | AC41: 0.8260869565 | AE41: 0 | AF41: 0 | AH41: =cálculos1!O41 -> 2 | AI41: 0.2 | AJ41: =cálculos1!P41 -> 2 | AK41: 0.5
A42: Sul | B42: Jerônimo Monteiro | C42: 12 | D42: 4 | E42: 0.3333333333 | F42: 0 | G42: 0 | H42: 0 | I42: 0 | J42: 3 | K42: 0.25 | L42: 12 | M42: 1 | N42: 12 | O42: 1 | P42: 9 | Q42: 0.75 | R42: 7 | S42: 0.5833333333 | T42: 8 | U42: 0.6666666667 | V42: 12 | W42: 1 | X42: 6 | Y42: 0.5 | Z42: 13 | AA42: 1.083333333 | AB42: 9 | AC42: 0.75 | AE42: 1 | AF42: 0.08333333333 | AH42: =cálculos1!O42 -> 4 | AI42: 0.4 | AJ42: =cálculos1!P42 -> 2 | AK42: 0.5
A43: Metropolitana | B43: João Neiva | C43: 5 | D43: 7 | E43: 1.4 | F43: 1 | G43: 0.2 | H43: 1 | I43: 0.2 | J43: 5 | K43: 1 | L43: 15 | M43: 3 | N43: 14 | O43: 2.8 | P43: 9 | Q43: 1.8 | R43: 12 | S43: 2.4 | T43: 14 | U43: 2.8 | V43: 12 | W43: 2.4 | X43: 9 | Y43: 1.8 | Z43: 12 | AA43: 2.4 | AB43: 10 | AC43: 2 | AE43: 0 | AF43: 0 | AH43: =cálculos1!O43 -> 9 | AI43: 0.9 | AJ43: =cálculos1!P43 -> 4 | AK43: 1
A44: Metropolitana | B44: Laranja da Terra | C44: 9 | D44: 0 | E44: 0 | F44: 0 | G44: 0 | H44: 0 | I44: 0 | J44: 1 | K44: 0.1111111111 | L44: 12 | M44: 1.333333333 | N44: 12 | O44: 1.333333333 | P44: 8 | Q44: 0.8888888889 | R44: 4 | S44: 0.4444444444 | T44: 8 | U44: 0.8888888889 | V44: 14 | W44: 1.555555556 | X44: 10 | Y44: 1.111111111 | Z44: 14 | AA44: 1.555555556 | AB44: 9 | AC44: 1 | AE44: 1 | AF44: 0.1111111111 | AH44: =cálculos1!O44 -> 5 | AI44: 0.5 | AJ44: =cálculos1!P44 -> 3 | AK44: 0.75
A45: Central | B45: Linhares | C45: 237 | D45: 283 | E45: 1.194092827 | F45: 190 | G45: 0.8016877637 | H45: 157 | I45: 0.6624472574 | J45: 280 | K45: 1.181434599 | L45: 231 | M45: 0.9746835443 | N45: 218 | O45: 0.9198312236 | P45: 223 | Q45: 0.94092827 | R45: 235 | S45: 0.9915611814 | T45: 133 | U45: 0.5611814346 | V45: 215 | W45: 0.9071729958 | X45: 207 | Y45: 0.8734177215 | Z45: 239 | AA45: 1.008438819 | AB45: 226 | AC45: 0.9535864979 | AE45: 2 | AF45: 0.008438818565 | AH45: =cálculos1!O45 -> 4 | AI45: 0.4 | AJ45: =cálculos1!P45 -> 1 | AK45: 0.25
A46: Central | B46: Mantenópolis | C46: 14 | D46: 5 | E46: 0.3571428571 | F46: 0 | G46: 0 | H46: 0 | I46: 0 | J46: 2 | K46: 0.1428571429 | L46: 11 | M46: 0.7857142857 | N46: 11 | O46: 0.7857142857 | P46: 14 | Q46: 1 | R46: 12 | S46: 0.8571428571 | T46: 13 | U46: 0.9285714286 | V46: 9 | W46: 0.6428571429 | X46: 8 | Y46: 0.5714285714 | Z46: 6 | AA46: 0.4285714286 | AB46: 14 | AC46: 1 | AE46: 0 | AF46: 0 | AH46: =cálculos1!O46 -> 1 | AI46: 0.1 | AJ46: =cálculos1!P46 -> 1 | AK46: 0.25
A47: Sul | B47: Marataízes | C47: 45 | D47: 6 | E47: 0.1333333333 | F47: 0 | G47: 0 | H47: 0 | I47: 0 | J47: 17 | K47: 0.3777777778 | L47: 45 | M47: 1 | N47: 47 | O47: 1.044444444 | P47: 56 | Q47: 1.244444444 | R47: 53 | S47: 1.177777778 | T47: 21 | U47: 0.4666666667 | V47: 43 | W47: 0.9555555556 | X47: 22 | Y47: 0.4888888889 | Z47: 47 | AA47: 1.044444444 | AB47: 57 | AC47: 1.266666667 | AE47: 0 | AF47: 0 | AH47: =cálculos1!O47 -> 6 | AI47: 0.6 | AJ47: =cálculos1!P47 -> 3 | AK47: 0.75
A48: Metropolitana | B48: Marechal Floriano | C48: 24 | D48: 1 | E48: 0.04166666667 | F48: 0 | G48: 0 | H48: 0 | I48: 0 | J48: 1 | K48: 0.04166666667 | L48: 16 | M48: 0.6666666667 | N48: 14 | O48: 0.5833333333 | P48: 14 | Q48: 0.5833333333 | R48: 20 | S48: 0.8333333333 | T48: 19 | U48: 0.7916666667 | V48: 8 | W48: 0.3333333333 | X48: 16 | Y48: 0.6666666667 | Z48: 10 | AA48: 0.4166666667 | AB48: 14 | AC48: 0.5833333333 | AE48: 1 | AF48: 0.04166666667 | AH48: =cálculos1!O48 -> 0 | AI48: 0 | AJ48: =cálculos1!P48 -> 0 | AK48: 0
A49: Central | B49: Marilândia | C49: 13 | D49: 4 | E49: 0.3076923077 | F49: 1 | G49: 0.07692307692 | H49: 0 | I49: 0 | J49: 4 | K49: 0.3076923077 | L49: 6 | M49: 0.4615384615 | N49: 7 | O49: 0.5384615385 | P49: 6 | Q49: 0.4615384615 | R49: 14 | S49: 1.076923077 | T49: 17 | U49: 1.307692308 | V49: 12 | W49: 0.9230769231 | X49: 12 | Y49: 0.9230769231 | Z49: 11 | AA49: 0.8461538462 | AB49: 8 | AC49: 0.6153846154 | AE49: 3 | AF49: 0.2307692308 | AH49: =cálculos1!O49 -> 2 | AI49: 0.2 | AJ49: =cálculos1!P49 -> 0 | AK49: 0
A50: Sul | B50: Mimoso do Sul | C50: 25 | D50: 4 | E50: 0.16 | F50: 1 | G50: 0.04 | H50: 0 | I50: 0 | J50: 4 | K50: 0.16 | L50: 18 | M50: 0.72 | N50: 19 | O50: 0.76 | P50: 16 | Q50: 0.64 | R50: 23 | S50: 0.92 | T50: 35 | U50: 1.4 | V50: 22 | W50: 0.88 | X50: 25 | Y50: 1 | Z50: 18 | AA50: 0.72 | AB50: 15 | AC50: 0.6 | AE50: 0 | AF50: 0 | AH50: =cálculos1!O50 -> 2 | AI50: 0.2 | AJ50: =cálculos1!P50 -> 1 | AK50: 0.25
A51: Norte | B51: Montanha | C51: 21 | D51: 5 | E51: 0.2380952381 | F51: 0 | G51: 0 | H51: 0 | I51: 0 | J51: 5 | K51: 0.2380952381 | L51: 29 | M51: 1.380952381 | N51: 29 | O51: 1.380952381 | P51: 29 | Q51: 1.380952381 | R51: 17 | S51: 0.8095238095 | T51: 24 | U51: 1.142857143 | V51: 24 | W51: 1.142857143 | X51: 24 | Y51: 1.142857143 | Z51: 26 | AA51: 1.238095238 | AB51: 29 | AC51: 1.380952381 | AE51: 0 | AF51: 0 | AH51: =cálculos1!O51 -> 7 | AI51: 0.7 | AJ51: =cálculos1!P51 -> 4 | AK51: 1
A52: Norte | B52: Mucurici | C52: 4 | D52: 1 | E52: 0.25 | F52: 1 | G52: 0.25 | H52: 0 | I52: 0 | J52: 0 | K52: 0 | L52: 3 | M52: 0.75 | N52: 3 | O52: 0.75 | P52: 5 | Q52: 1.25 | R52: 3 | S52: 0.75 | T52: 7 | U52: 1.75 | V52: 8 | W52: 2 | X52: 2 | Y52: 0.5 | Z52: 10 | AA52: 2.5 | AB52: 5 | AC52: 1.25 | AE52: 0 | AF52: 0 | AH52: =cálculos1!O52 -> 4 | AI52: 0.4 | AJ52: =cálculos1!P52 -> 1 | AK52: 0.25
A53: Sul | B53: Muniz Freire | C53: 19 | D53: 6 | E53: 0.3157894737 | F53: 0 | G53: 0 | H53: 0 | I53: 0 | J53: 10 | K53: 0.5263157895 | L53: 34 | M53: 1.789473684 | N53: 34 | O53: 1.789473684 | P53: 30 | Q53: 1.578947368 | R53: 31 | S53: 1.631578947 | T53: 20 | U53: 1.052631579 | V53: 19 | W53: 1 | X53: 20 | Y53: 1.052631579 | Z53: 34 | AA53: 1.789473684 | AB53: 30 | AC53: 1.578947368 | AE53: 0 | AF53: 0 | AH53: =cálculos1!O53 -> 8 | AI53: 0.8 | AJ53: =cálculos1!P53 -> 4 | AK53: 1
A54: Sul | B54: Muqui | C54: 9 | D54: 3 | E54: 0.3333333333 | F54: 0 | G54: 0 | H54: 0 | I54: 0 | J54: 3 | K54: 0.3333333333 | L54: 14 | M54: 1.555555556 | N54: 14 | O54: 1.555555556 | P54: 6 | Q54: 0.6666666667 | R54: 10 | S54: 1.111111111 | T54: 18 | U54: 2 | V54: 10 | W54: 1.111111111 | X54: 11 | Y54: 1.222222222 | Z54: 10 | AA54: 1.111111111 | AB54: 6 | AC54: 0.6666666667 | AE54: 1 | AF54: 0.1111111111 | AH54: =cálculos1!O54 -> 7 | AI54: 0.7 | AJ54: =cálculos1!P54 -> 3 | AK54: 0.75
A55: Norte | B55: Nova Venécia | C55: 55 | D55: 50 | E55: 0.9090909091 | F55: 42 | G55: 0.7636363636 | H55: 41 | I55: 0.7454545455 | J55: 29 | K55: 0.5272727273 | L55: 52 | M55: 0.9454545455 | N55: 50 | O55: 0.9090909091 | P55: 60 | Q55: 1.090909091 | R55: 58 | S55: 1.054545455 | T55: 48 | U55: 0.8727272727 | V55: 55 | W55: 1 | X55: 77 | Y55: 1.4 | Z55: 56 | AA55: 1.018181818 | AB55: 62 | AC55: 1.127272727 | AE55: 0 | AF55: 0 | AH55: =cálculos1!O55 -> 5 | AI55: 0.5 | AJ55: =cálculos1!P55 -> 2 | AK55: 0.5
A56: Central | B56: Pancas | C56: 20 | D56: 2 | E56: 0.1 | F56: 0 | G56: 0 | H56: 0 | I56: 0 | J56: 2 | K56: 0.1 | L56: 17 | M56: 0.85 | N56: 17 | O56: 0.85 | P56: 19 | Q56: 0.95 | R56: 12 | S56: 0.6 | T56: 31 | U56: 1.55 | V56: 14 | W56: 0.7 | X56: 16 | Y56: 0.8 | Z56: 16 | AA56: 0.8 | AB56: 19 | AC56: 0.95 | AE56: 1 | AF56: 0.05 | AH56: =cálculos1!O56 -> 2 | AI56: 0.2 | AJ56: =cálculos1!P56 -> 1 | AK56: 0.25
A57: Norte | B57: Pedro Canário | C57: 30 | D57: 0 | E57: 0 | F57: 0 | G57: 0 | H57: 0 | I57: 0 | J57: 0 | K57: 0 | L57: 36 | M57: 1.2 | N57: 30 | O57: 1 | P57: 25 | Q57: 0.8333333333 | R57: 21 | S57: 0.7 | T57: 17 | U57: 0.5666666667 | V57: 19 | W57: 0.6333333333 | X57: 28 | Y57: 0.9333333333 | Z57: 24 | AA57: 0.8 | AB57: 25 | AC57: 0.8333333333 | AE57: 0 | AF57: 0 | AH57: =cálculos1!O57 -> 2 | AI57: 0.2 | AJ57: =cálculos1!P57 -> 2 | AK57: 0.5
A58: Norte | B58: Pinheiros | C58: 26 | D58: 0 | E58: 0 | F58: 0 | G58: 0 | H58: 0 | I58: 0 | J58: 0 | K58: 0 | L58: 31 | M58: 1.192307692 | N58: 29 | O58: 1.115384615 | P58: 22 | Q58: 0.8461538462 | R58: 34 | S58: 1.307692308 | T58: 12 | U58: 0.4615384615 | V58: 21 | W58: 0.8076923077 | X58: 15 | Y58: 0.5769230769 | Z58: 17 | AA58: 0.6538461538 | AB58: 24 | AC58: 0.9230769231 | AE58: 1 | AF58: 0.03846153846 | AH58: =cálculos1!O58 -> 3 | AI58: 0.3 | AJ58: =cálculos1!P58 -> 2 | AK58: 0.5
A59: Sul | B59: Piúma | C59: 29 | D59: 3 | E59: 0.1034482759 | F59: 0 | G59: 0 | H59: 0 | I59: 0 | J59: 6 | K59: 0.2068965517 | L59: 20 | M59: 0.6896551724 | N59: 20 | O59: 0.6896551724 | P59: 20 | Q59: 0.6896551724 | R59: 27 | S59: 0.9310344828 | T59: 21 | U59: 0.724137931 | V59: 26 | W59: 0.8965517241 | X59: 28 | Y59: 0.9655172414 | Z59: 27 | AA59: 0.9310344828 | AB59: 17 | AC59: 0.5862068966 | AE59: 6 | AF59: 0.2068965517 | AH59: =cálculos1!O59 -> 1 | AI59: 0.1 | AJ59: =cálculos1!P59 -> 1 | AK59: 0.25
A60: Norte | B60: Ponto Belo | C60: 6 | D60: 1 | E60: 0.1666666667 | F60: 0 | G60: 0 | H60: 0 | I60: 0 | J60: 2 | K60: 0.3333333333 | L60: 8 | M60: 1.333333333 | N60: 7 | O60: 1.166666667 | P60: 7 | Q60: 1.166666667 | R60: 4 | S60: 0.6666666667 | T60: 5 | U60: 0.8333333333 | V60: 7 | W60: 1.166666667 | X60: 3 | Y60: 0.5 | Z60: 0 | AA60: 0 | AB60: 8 | AC60: 1.333333333 | AE60: 0 | AF60: 0 | AH60: =cálculos1!O60 -> 4 | AI60: 0.4 | AJ60: =cálculos1!P60 -> 3 | AK60: 0.75
A61: Sul | B61: Presidente Kennedy | C61: 18 | D61: 2 | E61: 0.1111111111 | F61: 0 | G61: 0 | H61: 0 | I61: 0 | J61: 4 | K61: 0.2222222222 | L61: 11 | M61: 0.6111111111 | N61: 11 | O61: 0.6111111111 | P61: 17 | Q61: 0.9444444444 | R61: 19 | S61: 1.055555556 | T61: 17 | U61: 0.9444444444 | V61: 23 | W61: 1.277777778 | X61: 29 | Y61: 1.611111111 | Z61: 26 | AA61: 1.444444444 | AB61: 17 | AC61: 0.9444444444 | AE61: 0 | AF61: 0 | AH61: =cálculos1!O61 -> 4 | AI61: 0.4 | AJ61: =cálculos1!P61 -> 1 | AK61: 0.25
A62: Central | B62: Rio Bananal | C62: 19 | D62: 3 | E62: 0.1578947368 | F62: 0 | G62: 0 | H62: 0 | I62: 0 | J62: 2 | K62: 0.1052631579 | L62: 28 | M62: 1.473684211 | N62: 28 | O62: 1.473684211 | P62: 23 | Q62: 1.210526316 | R62: 22 | S62: 1.157894737 | T62: 17 | U62: 0.8947368421 | V62: 14 | W62: 0.7368421053 | X62: 24 | Y62: 1.263157895 | Z62: 45 | AA62: 2.368421053 | AB62: 23 | AC62: 1.210526316 | AE62: 1 | AF62: 0.05263157895 | AH62: =cálculos1!O62 -> 6 | AI62: 0.6 | AJ62: =cálculos1!P62 -> 4 | AK62: 1
A63: Sul | B63: Rio Novo do Sul | C63: 11 | D63: 4 | E63: 0.3636363636 | F63: 0 | G63: 0 | H63: 0 | I63: 0 | J63: 3 | K63: 0.2727272727 | L63: 9 | M63: 0.8181818182 | N63: 9 | O63: 0.8181818182 | P63: 8 | Q63: 0.7272727273 | R63: 7 | S63: 0.6363636364 | T63: 9 | U63: 0.8181818182 | V63: 13 | W63: 1.181818182 | X63: 16 | Y63: 1.454545455 | Z63: 15 | AA63: 1.363636364 | AB63: 10 | AC63: 0.9090909091 | AE63: 0 | AF63: 0 | AH63: =cálculos1!O63 -> 3 | AI63: 0.3 | AJ63: =cálculos1!P63 -> 1 | AK63: 0.25
A64: Metropolitana | B64: Santa Leopoldina | C64: 7 | D64: 1 | E64: 0.1428571429 | F64: 0 | G64: 0 | H64: 0 | I64: 0 | J64: 3 | K64: 0.4285714286 | L64: 5 | M64: 0.7142857143 | N64: 5 | O64: 0.7142857143 | P64: 5 | Q64: 0.7142857143 | R64: 4 | S64: 0.5714285714 | T64: 11 | U64: 1.571428571 | V64: 8 | W64: 1.142857143 | X64: 7 | Y64: 1 | Z64: 8 | AA64: 1.142857143 | AB64: 6 | AC64: 0.8571428571 | AE64: 0 | AF64: 0 | AH64: =cálculos1!O64 -> 4 | AI64: 0.4 | AJ64: =cálculos1!P64 -> 1 | AK64: 0.25
A65: Metropolitana | B65: Santa Maria de Jetibá | C65: 53 | D65: 38 | E65: 0.7169811321 | F65: 37 | G65: 0.6981132075 | H65: 36 | I65: 0.679245283 | J65: 36 | K65: 0.679245283 | L65: 70 | M65: 1.320754717 | N65: 72 | O65: 1.358490566 | P65: 65 | Q65: 1.226415094 | R65: 58 | S65: 1.094339623 | T65: 59 | U65: 1.113207547 | V65: 53 | W65: 1 | X65: 63 | Y65: 1.188679245 | Z65: 62 | AA65: 1.169811321 | AB65: 69 | AC65: 1.301886792 | AE65: 0 | AF65: 0 | AH65: =cálculos1!O65 -> 8 | AI65: 0.8 | AJ65: =cálculos1!P65 -> 4 | AK65: 1
A66: Metropolitana | B66: Santa Teresa | C66: 29 | D66: 60 | E66: 2.068965517 | F66: 58 | G66: 2 | H66: 42 | I66: 1.448275862 | J66: 61 | K66: 2.103448276 | L66: 23 | M66: 0.7931034483 | N66: 23 | O66: 0.7931034483 | P66: 26 | Q66: 0.8965517241 | R66: 18 | S66: 0.6206896552 | T66: 21 | U66: 0.724137931 | V66: 19 | W66: 0.6551724138 | X66: 23 | Y66: 0.7931034483 | Z66: 13 | AA66: 0.4482758621 | AB66: 24 | AC66: 0.8275862069 | AE66: 0 | AF66: 0 | AH66: =cálculos1!O66 -> 1 | AI66: 0.1 | AJ66: =cálculos1!P66 -> 0 | AK66: 0
A67: Central | B67: São Domingos do Norte | C67: 5 | D67: 6 | E67: 1.2 | F67: 1 | G67: 0.2 | H67: 0 | I67: 0 | J67: 5 | K67: =J67/C67 -> 1 | L67: 15 | M67: =L67/C67 -> 3 | N67: 15 | O67: =N67/C67 -> 3 | P67: 10 | Q67: =P67/C67 -> 2 | R67: 14 | S67: =R67/C67 -> 2.8 | T67: 9 | U67: =T67/C67 -> 1.8 | V67: 8 | W67: =V67/C67 -> 1.6 | X67: 7 | Y67: =X67/C67 -> 1.4 | Z67: 8 | AA67: =Z67/C67 -> 1.6 | AB67: 14 | AC67: 2.8 | AE67: 0 | AF67: =AE67/C67 -> 0 | AH67: =cálculos1!O67 -> 9 | AI67: 0.9 | AJ67: =cálculos1!P67 -> 4 | AK67: 1
A68: Central | B68: São Gabriel da Palha | C68: 35 | D68: 11 | E68: =D68/C68 -> 0.3142857143 | F68: 0 | G68: =F68/C68 -> 0 | H68: 0 | I68: =H68/C68 -> 0 | J68: 14 | K68: 0.4 | L68: 31 | M68: 0.8857142857 | N68: 29 | O68: 0.8285714286 | P68: 45 | Q68: 1.285714286 | R68: 31 | S68: 0.8857142857 | T68: 54 | U68: 1.542857143 | V68: 33 | W68: 0.9428571429 | X68: 33 | Y68: 0.9428571429 | Z68: 43 | AA68: 1.228571429 | AB68: 42 | AC68: =AB68/C68 -> 1.2 | AE68: 0 | AF68: 0 | AH68: =cálculos1!O68 -> 3 | AI68: =AH68*0.1 -> 0.3 | AJ68: =cálculos1!P68 -> 1 | AK68: =AJ68*0.25 -> 0.25
A69: Sul | B69: São José do Calçado | C69: 6 | D69: 8 | E69: 1.333333333 | F69: 0 | G69: 0 | H69: 0 | I69: 0 | J69: 10 | K69: 1.666666667 | L69: 7 | M69: 1.166666667 | N69: 7 | O69: 1.166666667 | P69: 10 | Q69: 1.666666667 | R69: 12 | S69: 2 | T69: 3 | U69: 0.5 | V69: 4 | W69: 0.6666666667 | X69: 10 | Y69: 1.666666667 | Z69: 3 | AA69: 0.5 | AB69: 10 | AC69: 1.666666667 | AE69: 2 | AF69: 0.3333333333 | AH69: =cálculos1!O69 -> 6 | AI69: 0.6 | AJ69: =cálculos1!P69 -> 4 | AK69: 1
A70: Norte | B70: São Mateus | C70: 137 | D70: 219 | E70: 1.598540146 | F70: 214 | G70: 1.562043796 | H70: 214 | I70: 1.562043796 | J70: 183 | K70: 1.335766423 | L70: 175 | M70: 1.277372263 | N70: 174 | O70: 1.270072993 | P70: 202 | Q70: 1.474452555 | R70: 189 | S70: 1.379562044 | T70: 134 | U70: 0.9781021898 | V70: 156 | W70: 1.138686131 | X70: 130 | Y70: 0.9489051095 | Z70: 140 | AA70: 1.02189781 | AB70: 201 | AC70: 1.467153285 | AE70: 1 | AF70: 0.007299270073 | AH70: =cálculos1!O70 -> 8 | AI70: 0.8 | AJ70: =cálculos1!P70 -> 3 | AK70: 0.75
A71: Central | B71: São Roque do Canaã | C71: 12 | D71: 5 | E71: 0.4166666667 | F71: 1 | G71: 0.08333333333 | H71: 0 | I71: 0 | J71: 4 | K71: 0.3333333333 | L71: 6 | M71: 0.5 | N71: 6 | O71: 0.5 | P71: 14 | Q71: 1.166666667 | R71: 8 | S71: 0.6666666667 | T71: 14 | U71: 1.166666667 | V71: 12 | W71: 1 | X71: 13 | Y71: 1.083333333 | Z71: 13 | AA71: 1.083333333 | AB71: 15 | AC71: 1.25 | AE71: 0 | AF71: 0 | AH71: =cálculos1!O71 -> 5 | AI71: 0.5 | AJ71: =cálculos1!P71 -> 2 | AK71: 0.5
A72: Metropolitana | B72: Serra | C72: 631 | D72: 754 | E72: 1.194928685 | F72: 642 | G72: 1.017432647 | H72: 451 | I72: 0.7147385103 | J72: 727 | K72: 1.152139461 | L72: 641 | M72: 1.015847861 | N72: 633 | O72: 1.003169572 | P72: 610 | Q72: 0.9667194929 | R72: 614 | S72: 0.9730586371 | T72: 488 | U72: 0.7733755943 | V72: 620 | W72: 0.9825673534 | X72: 593 | Y72: 0.93977813 | Z72: 562 | AA72: 0.8906497623 | AB72: 646 | AC72: 1.023771791 | AE72: 13 | AF72: 0.0206022187 | AH72: =cálculos1!O72 -> 6 | AI72: 0.6 | AJ72: =cálculos1!P72 -> 3 | AK72: 0.75
A73: Central | B73: Sooretama | C73: 21 | D73: 3 | E73: 0.1428571429 | F73: 0 | G73: 0 | H73: 0 | I73: 0 | J73: 0 | K73: 0 | L73: 44 | M73: 2.095238095 | N73: 41 | O73: 1.952380952 | P73: 32 | Q73: 1.523809524 | R73: 30 | S73: 1.428571429 | T73: 36 | U73: 1.714285714 | V73: 33 | W73: 1.571428571 | X73: 36 | Y73: 1.714285714 | Z73: 19 | AA73: 0.9047619048 | AB73: 31 | AC73: 1.476190476 | AE73: 0 | AF73: 0 | AH73: =cálculos1!O73 -> 7 | AI73: 0.7 | AJ73: =cálculos1!P73 -> 4 | AK73: 1
A74: Sul | B74: Vargem Alta | C74: 22 | D74: 4 | E74: 0.1818181818 | F74: 0 | G74: 0 | H74: 0 | I74: 0 | J74: 4 | K74: 0.1818181818 | L74: 22 | M74: 1 | N74: 22 | O74: 1 | P74: 17 | Q74: 0.7727272727 | R74: 25 | S74: 1.136363636 | T74: 27 | U74: 1.227272727 | V74: 27 | W74: 1.227272727 | X74: 26 | Y74: 1.181818182 | Z74: 29 | AA74: 1.318181818 | AB74: 17 | AC74: 0.7727272727 | AE74: 0 | AF74: 0 | AH74: =cálculos1!O74 -> 7 | AI74: 0.7 | AJ74: =cálculos1!P74 -> 3 | AK74: 0.75
A75: Metropolitana | B75: Venda Nova do Imigrante | C75: 24 | D75: 57 | E75: 2.375 | F75: 54 | G75: 2.25 | H75: 54 | I75: 2.25 | J75: 33 | K75: 1.375 | L75: 31 | M75: 1.291666667 | N75: 31 | O75: 1.291666667 | P75: 29 | Q75: 1.208333333 | R75: 26 | S75: 1.083333333 | T75: 20 | U75: 0.8333333333 | V75: 36 | W75: 1.5 | X75: 31 | Y75: 1.291666667 | Z75: 47 | AA75: 1.958333333 | AB75: 30 | AC75: 1.25 | AE75: 1 | AF75: 0.04166666667 | AH75: =cálculos1!O75 -> 8 | AI75: 0.8 | AJ75: =cálculos1!P75 -> 4 | AK75: 1
A76: Metropolitana | B76: Viana | C76: 66 | D76: 29 | E76: 0.4393939394 | F76: 0 | G76: 0 | H76: 0 | I76: 0 | J76: 24 | K76: 0.3636363636 | L76: 80 | M76: 1.212121212 | N76: 84 | O76: 1.272727273 | P76: 84 | Q76: 1.272727273 | R76: 84 | S76: 1.272727273 | T76: 75 | U76: 1.136363636 | V76: 68 | W76: 1.03030303 | X76: 77 | Y76: 1.166666667 | Z76: 79 | AA76: 1.196969697 | AB76: 83 | AC76: 1.257575758 | AE76: 1 | AF76: 0.01515151515 | AH76: =cálculos1!O76 -> 8 | AI76: 0.8 | AJ76: =cálculos1!P76 -> 4 | AK76: 1
A77: Norte | B77: Vila Pavão | C77: 9 | D77: 1 | E77: 0.1111111111 | F77: 0 | G77: 0 | H77: 0 | I77: 0 | J77: 5 | K77: 0.5555555556 | L77: 7 | M77: 0.7777777778 | N77: 7 | O77: 0.7777777778 | P77: 6 | Q77: 0.6666666667 | R77: 9 | S77: 1 | T77: 12 | U77: 1.333333333 | V77: 9 | W77: 1 | X77: 8 | Y77: 0.8888888889 | Z77: 19 | AA77: 2.111111111 | AB77: 7 | AC77: 0.7777777778 | AE77: 0 | AF77: 0 | AH77: =cálculos1!O77 -> 4 | AI77: 0.4 | AJ77: =cálculos1!P77 -> 0 | AK77: 0
A78: Central | B78: Vila Valério | C78: 12 | D78: 7 | E78: 0.5833333333 | F78: 0 | G78: 0 | H78: 0 | I78: 0 | J78: 7 | K78: 0.5833333333 | L78: 15 | M78: 1.25 | N78: 15 | O78: 1.25 | P78: 25 | Q78: 2.083333333 | R78: 19 | S78: 1.583333333 | T78: 22 | U78: 1.833333333 | V78: 16 | W78: 1.333333333 | X78: 11 | Y78: 0.9166666667 | Z78: 24 | AA78: 2 | AB78: 28 | AC78: 2.333333333 | AE78: 0 | AF78: 0 | AH78: =cálculos1!O78 -> 7 | AI78: 0.7 | AJ78: =cálculos1!P78 -> 3 | AK78: 0.75
A79: Metropolitana | B79: Vila Velha | C79: 476 | D79: 324 | E79: 0.6806722689 | F79: 199 | G79: 0.4180672269 | H79: 129 | I79: 0.2710084034 | J79: 304 | K79: 0.6386554622 | L79: 369 | M79: 0.775210084 | N79: 362 | O79: 0.7605042017 | P79: 450 | Q79: 0.9453781513 | R79: 434 | S79: 0.9117647059 | T79: 301 | U79: 0.6323529412 | V79: 411 | W79: 0.8634453782 | X79: 456 | Y79: 0.9579831933 | Z79: 390 | AA79: 0.8193277311 | AB79: 456 | AC79: 0.9579831933 | AE79: 18 | AF79: 0.03781512605 | AH79: =cálculos1!O79 -> 1 | AI79: 0.1 | AJ79: =cálculos1!P79 -> 1 | AK79: 0.25
A80: Metropolitana | B80: Vitória | C80: 274 | D80: 554 | E80: 2.02189781 | F80: 506 | G80: 1.846715328 | H80: 407 | I80: 1.48540146 | J80: 624 | K80: 2.277372263 | L80: 418 | M80: 1.525547445 | N80: 412 | O80: 1.503649635 | P80: 436 | Q80: 1.591240876 | R80: 425 | S80: 1.551094891 | T80: 219 | U80: 0.799270073 | V80: 405 | W80: 1.47810219 | X80: 373 | Y80: 1.361313869 | Z80: 425 | AA80: 1.551094891 | AB80: 396 | AC80: 1.445255474 | AE80: 21 | AF80: 0.07664233577 | AH80: =cálculos1!O80 -> 8 | AI80: 0.8 | AJ80: =cálculos1!P80 -> 4 | AK80: 1
B82: Total Norte | C82: =SUMIF($A$3:$A$80,"Norte",C$3:C$80) -> 466 | D82: =SUMIF($A$3:$A$80,"Norte",D$3:D$80) -> 354 | E82: =D82/C82 -> 0.7596566524 | F82: =SUMIF($A$3:$A$80,"Norte",F$3:F$80) -> 286 | G82: =F82/C82 -> 0.6137339056 | H82: =SUMIF($A$3:$A$80,"Norte",H$3:H$80) -> 283 | I82: =H82/C82 -> 0.6072961373 | J82: =SUMIF($A$3:$A$80,"Norte",J$3:J$80) -> 293 | K82: =J82/C82 -> 0.6287553648 | L82: =SUMIF($A$3:$A$80,"Norte",L$3:L$80) -> 519 | M82: =L82/C82 -> 1.113733906 | N82: =SUMIF($A$3:$A$80,"Norte",N$3:N$80) -> 506 | O82: =N82/C82 -> 1.08583691 | P82: =SUMIF($A$3:$A$80,"Norte",P$3:P$80) -> 517 | Q82: =P82/C82 -> 1.10944206 | R82: =SUMIF($A$3:$A$80,"Norte",R$3:R$80) -> 470 | S82: =R82/C82 -> 1.008583691 | T82: =SUMIF($A$3:$A$80,"Norte",T$3:T$80) -> 419 | U82: =T82/C82 -> 0.8991416309 | V82: =SUMIF($A$3:$A$80,"Norte",V$3:V$80) -> 460 | W82: =V82/C82 -> 0.9871244635 | X82: =SUMIF($A$3:$A$80,"Norte",X$3:X$80) -> 440 | Y82: =X82/C82 -> 0.9442060086 | Z82: =SUMIF($A$3:$A$80,"Norte",Z$3:Z$80) -> 457 | AA82: =Z82/C82 -> 0.9806866953 | AB82: =SUMIF($A$3:$A$80,"Norte",AB$3:AB$80) -> 530 | AC82: =AB82/C82 -> 1.137339056 | AE82: =SUMIF($A$3:$A$80,"Norte",AE$3:AE$80) -> 2 | AF82: =AE82/C82 -> 0.004291845494 | AH82: =cálculos1!O82 -> 6 | AI82: =AH82*0.1 -> 0.6 | AJ82: =cálculos1!P82 -> 3 | AK82: 0.75
B83: Total Central | C83: =SUMIF($A$3:$A$80,"Central",C$3:C$80) -> 575 | D83: =SUMIF($A$3:$A$80,"Central",D$3:D$80) -> 681 | E83: =D83/C83 -> 1.184347826 | F83: =SUMIF($A$3:$A$80,"Central",F$3:F$80) -> 439 | G83: =F83/C83 -> 0.7634782609 | H83: =SUMIF($A$3:$A$80,"Central",H$3:H$80) -> 346 | I83: =H83/C83 -> 0.6017391304 | J83: =SUMIF($A$3:$A$80,"Central",J$3:J$80) -> 670 | K83: =J83/C83 -> 1.165217391 | L83: =SUMIF($A$3:$A$80,"Central",L$3:L$80) -> 609 | M83: =L83/C83 -> 1.059130435 | N83: =SUMIF($A$3:$A$80,"Central",N$3:N$80) -> 591 | O83: =N83/C83 -> 1.027826087 | P83: =SUMIF($A$3:$A$80,"Central",P$3:P$80) -> 610 | Q83: =P83/C83 -> 1.060869565 | R83: =SUMIF($A$3:$A$80,"Central",R$3:R$80) -> 606 | S83: =R83/C83 -> 1.053913043 | T83: =SUMIF($A$3:$A$80,"Central",T$3:T$80) -> 500 | U83: =T83/C83 -> 0.8695652174 | V83: =SUMIF($A$3:$A$80,"Central",V$3:V$80) -> 534 | W83: =V83/C83 -> 0.9286956522 | X83: =SUMIF($A$3:$A$80,"Central",X$3:X$80) -> 546 | Y83: =X83/C83 -> 0.9495652174 | Z83: =SUMIF($A$3:$A$80,"Central",Z$3:Z$80) -> 597 | AA83: =Z83/C83 -> 1.03826087 | AB83: =SUMIF($A$3:$A$80,"Central",AB$3:AB$80) -> 624 | AC83: =AB83/C83 -> 1.085217391 | AE83: =SUMIF($A$3:$A$80,"Central",AE$3:AE$80) -> 15 | AF83: =AE83/C83 -> 0.02608695652 | AH83: =cálculos1!O83 -> 6 | AI83: =AH83*0.1 -> 0.6 | AJ83: =cálculos1!P83 -> 3 | AK83: 0.75
B84: Total Metropolitana | C84: =SUMIF($A$3:$A$80,"Metropolitana",C$3:C$80) -> 2438 | D84: =SUMIF($A$3:$A$80,"Metropolitana",D$3:D$80) -> 2258 | E84: =D84/C84 -> 0.926168991 | F84: =SUMIF($A$3:$A$80,"Metropolitana",F$3:F$80) -> 1641 | G84: =F84/C84 -> 0.6730926989 | H84: =SUMIF($A$3:$A$80,"Metropolitana",H$3:H$80) -> 1227 | I84: 0.5032813782 | J84: =SUMIF($A$3:$A$80,"Metropolitana",J$3:J$80) -> 2230 | K84: =J84/C84 -> 0.9146841674 | L84: =SUMIF($A$3:$A$80,"Metropolitana",L$3:L$80) -> 2471 | M84: =L84/C84 -> 1.013535685 | N84: =SUMIF($A$3:$A$80,"Metropolitana",N$3:N$80) -> 2439 | O84: =N84/C84 -> 1.000410172 | P84: =SUMIF($A$3:$A$80,"Metropolitana",P$3:P$80) -> 2489 | Q84: =P84/C84 -> 1.020918786 | R84: =SUMIF($A$3:$A$80,"Metropolitana",R$3:R$80) -> 2495 | S84: =R84/C84 -> 1.02337982 | T84: =SUMIF($A$3:$A$80,"Metropolitana",T$3:T$80) -> 1918 | U84: =T84/C84 -> 0.7867104184 | V84: =SUMIF($A$3:$A$80,"Metropolitana",V$3:V$80) -> 2480 | W84: =V84/C84 -> 1.017227235 | X84: =SUMIF($A$3:$A$80,"Metropolitana",X$3:X$80) -> 2567 | Y84: =X84/C84 -> 1.052912223 | Z84: =SUMIF($A$3:$A$80,"Metropolitana",Z$3:Z$80) -> 2434 | AA84: =Z84/C84 -> 0.9983593109 | AB84: =SUMIF($A$3:$A$80,"Metropolitana",AB$3:AB$80) -> 2531 | AC84: 1.038146021 | AE84: =SUMIF($A$3:$A$80,"Metropolitana",AE$3:AE$80) -> 79 | AF84: =AE84/C84 -> 0.03240360952 | AH84: =cálculos1!O84 -> 8 | AI84: 0.8 | AJ84: =cálculos1!P84 -> 4 | AK84: 1
B85: Total Sul | C85: =SUMIF($A$3:$A$80,"sul",C$3:C$80) -> 689 | D85: =SUMIF($A$3:$A$80,"Sul",D$3:D$80) -> 657 | E85: =D85/C85 -> 0.9535558781 | F85: =SUMIF($A$3:$A$80,"Sul",F$3:F$80) -> 479 | G85: =F85/C85 -> 0.6952104499 | H85: =SUMIF($A$3:$A$80,"Sul",H$3:H$80) -> 290 | I85: 0.4208998549 | J85: =SUMIF($A$3:$A$80,"Sul",J$3:J$80) -> 653 | K85: =J85/C85 -> 0.9477503628 | L85: =SUMIF($A$3:$A$80,"Sul",L$3:L$80) -> 711 | M85: =L85/C85 -> 1.031930334 | N85: =SUMIF($A$3:$A$80,"Sul",N$3:N$80) -> 703 | O85: =N85/C85 -> 1.020319303 | P85: =SUMIF($A$3:$A$80,"Sul",P$3:P$80) -> 675 | Q85: =P85/C85 -> 0.9796806967 | R85: =SUMIF($A$3:$A$80,"Sul",R$3:R$80) -> 721 | S85: =R85/C85 -> 1.046444122 | T85: =SUMIF($A$3:$A$80,"Sul",T$3:T$80) -> 630 | U85: =T85/C85 -> 0.9143686502 | V85: =SUMIF($A$3:$A$80,"Sul",V$3:V$80) -> 686 | W85: =V85/C85 -> 0.9956458636 | X85: =SUMIF($A$3:$A$80,"Sul",X$3:X$80) -> 665 | Y85: =X85/C85 -> 0.9651669086 | Z85: =SUMIF($A$3:$A$80,"Sul",Z$3:Z$80) -> 703 | AA85: =Z85/C85 -> 1.020319303 | AB85: =SUMIF($A$3:$A$80,"Sul",AB$3:AB$80) -> 683 | AC85: 0.9912917271 | AE85: =SUMIF($A$3:$A$80,"Sul",AE$3:AE$80) -> 23 | AF85: =AE85/C85 -> 0.03338171263 | AH85: =cálculos1!O85 -> 8 | AI85: 0.8 | AJ85: =cálculos1!P85 -> 4 | AK85: 1
B86: Total Espírito Santo | C86: =SUM(C3:C80) -> 4168 | D86: =SUM(D82:D85) -> 3950 | E86: =D86/C86 -> 0.947696737 | F86: =SUM(F82:F85) -> 2845 | G86: =F86/C86 -> 0.6825815739 | H86: =SUM(H82:H85) -> 2146 | I86: 0.5148752399 | J86: =SUM(J82:J85) -> 3846 | K86: =J86/C86 -> 0.9227447217 | L86: =SUM(L82:L85) -> 4310 | M86: =L86/C86 -> 1.034069098 | N86: =SUM(N82:N85) -> 4239 | O86: =N86/C86 -> 1.017034549 | P86: =SUM(P82:P85) -> 4291 | Q86: =P86/C86 -> 1.029510557 | R86: =SUM(R82:R85) -> 4292 | S86: =R86/C86 -> 1.02975048 | T86: =SUM(T82:T85) -> 3467 | U86: =T86/C86 -> 0.8318138196 | V86: =SUM(V82:V85) -> 4160 | W86: =V86/C86 -> 0.9980806142 | X86: =SUM(X82:X85) -> 4218 | Y86: =X86/C86 -> 1.011996161 | Z86: =SUM(Z82:Z85) -> 4191 | AA86: =Z86/C86 -> 1.005518234 | AB86: =SUM(AB82:AB85) -> 4368 | AC86: 1.047984645 | AE86: =SUM(AE82:AE85) -> 119 | AF86: =AE86/C86 -> 0.02855086372 | AH86: =cálculos1!O86 -> 8 | AI86: 0.8 | AJ86: =cálculos1!P86 -> 4 | AK86: 1
D87: =COUNTIF(E3:E80,">=0,95") -> 13 | F87: =COUNTIF(G3:G80,">=0,95") -> 8 | H87: =COUNTIF(I3:I80,">=0,95") -> 7 | J87: =COUNTIF(K3:K80,">=0,9") -> 16 | L87: =COUNTIF(M3:M80,">=0,95") -> 47 | N87: =COUNTIF(O3:O80,">=0,95") -> 44 | P87: =COUNTIF(Q3:Q80,">=0,95") -> 45 | R87: =COUNTIF(S3:S80,">=0,95") -> 43 | T87: =COUNTIF(U3:U80,">=0,95") -> 37 | V87: =COUNTIF(W3:W80,">=0,95") -> 46 | X87: =COUNTIF(Y3:Y80,">=0,95") -> 44 | Z87: =COUNTIF(AA3:AA80,">=0,95") -> 48 | AB87: =COUNTIF(AC3:AC80,">=0,9") -> 54 | AE87: =COUNTIF(AF3:AF80,">=0,9") -> 0
B88: HOMOGENEIDADE ENTRE MUNICÍPIOS | D88: =D87/78 -> 0.1666666667 | F88: =F87/78 -> 0.1025641026 | H88: =H87/78 -> 0.08974358974 | J88: =J87/78 -> 0.2051282051 | L88: =L87/78 -> 0.6025641026 | N88: =N87/78 -> 0.5641025641 | P88: =P87/78 -> 0.5769230769 | R88: =R87/78 -> 0.5512820513 | T88: =T87/78 -> 0.4743589744 | V88: =V87/78 -> 0.5897435897 | X88: =X87/78 -> 0.5641025641 | Z88: =Z87/78 -> 0.6153846154 | AB88: =AB87/78 -> 0.6923076923 | AE88: =AE87/78 -> 0
A91: Fonte: Vacina e Confia, em 25 de fevereiro de 2026.**<https://vacinaeconfia.saude.es.gov.br/>
A92: **Dados referente às doses aplicadasem janeiro de 2026
A93: Cobertura Calculada por município de procedência/ocorrência da vacinação
A94: 1 População estimada extraída do MS/SVS/DASIS - SINASC/DASIS/SVS/MS 2025 referente ao período de janeiro de 2025.
A95: Sinasc, atualizado em 06/02/2026
A96: Método de Cálculo Simples
A97: Homogeineidade: O cálculo da Homogeineidade entre vacinas é feito de acordo com a pactuação estabelecida no Plano Plurianual (PPA) vigente no período 2024-2027.
A100: Observações referente a distribuição de imunobiológicos que podem afetar a cobertura vacinal:
A102: 1. Vacinas que foram recebidas parcialmente pelo estado no mês de Janeiro/2026, sendo distribuídos em quantidades reduzidas às regionais e municípios:
A103: IMUNOGLOBULINA ANTIRRÁBICA HUMANA; SORO ANTIRRÁBICO HUMANO
A104: 2. Vacinas indisponíveis no mês de dezembro/2025, não sendo possível a distribuição às regionais e municípios:
A105: VACINA TETRA VIRAL, IMUNOGLOBULINA HUMANA ANTIVARICELA (ZOSTER) – 125UI
A106: 3. Vacinas enviadas por Pautas aguardando abastecimento do estoque estadual;
A107: VACINA COVID-19 PFIZER PEDIÁTRICA MENOR QUE 5 ANOS; VACINA COVID-19 PFIZER PEDIÁTRICA,
A109: Fonte: Informes situacionais de distribuição de imunobiológicos em https://saude.es.gov.br/GrupodeArquivos/informes-situacionais-de-distribuicao-de-imunobiologicos

Sheet CV Rotina <2A - residência
D1: AO NASCER | L1: MENOR DE 1 ANO | V1: 1 ANO | AB1: MENOR DE 2 ANOS | AE1: MENOR DE 1 ANO
A2: Regional | B2: Município | C2: ¹População < 1 ano e 1 ano | D2: Doses Aplicadas HB ≤30 dias | E2: Cobertura Vacinal HB até 30 dias | F2: Doses Aplicadas HB ≤2 dias | G2: Cobertura Vacinal HB até 2 dias | H2: Doses Aplicadas HB ≤1 dia | I2: Cobertura Vacinal HB até 1 dia | J2: Doses Aplicadas BCG | K2: Cobertura Vacinal BCG | L2: Doses Aplicadas Pentavalente | M2: Cobertura Vacinal Pentavalente | N2: Doses Aplicadas Poliomielite | O2: Cobertura Vacinal Poliomielite | P2: Doses Aplicadas Pneumo 10 | Q2: Cobertura Vacinal Pneumo 10 | R2: Doses Aplicadas Meningo C | S2: Cobertura Vacinal Meningo C | T2: Doses Aplicadas Febre Amarela | U2: Cobertura Vacinal Febre Amarela | V2: Doses Aplicadas Hepatite A | W2: Cobertura Vacinal Hepatite A | X2: Doses Aplicadas de Tríplice Viral | Y2: Cobertura Vacinal Tríplice Viral | Z2: Doses Aplicadas Varicela | AA2: Cobertura Varicela | AB2: Doses Aplicadas Rotavírus | AC2: Cobertura Vacinal Rotavírus | AE2: Doses Aplicadas COVID-19 | AF2: Cobertura Vacinal COVID-19 D1 | AH2: VACINAS QUE ATINGIRAM A META DE CV | AI2: HOMOGENEIDADE ENTRE AS 10 VACINAS | AJ2: VACINAS DO PQA-VS QUE ATINGIRAM A META DE CV | AK2: HOMOGENEIDADE ENTRE AS VACINAS DO PQA-VS
A3: Metropolitana | B3: Afonso Cláudio | C3: 31 | D3: 23 | E3: =D3/C3 -> 0.7419354839 | F3: 16 | G3: =F3/C3 -> 0.5161290323 | H3: 10 | I3: =H3/C3 -> 0.3225806452 | J3: 26 | K3: =J3/C3 -> 0.8387096774 | L3: 24 | M3: =L3/C3 -> 0.7741935484 | N3: 24 | O3: =N3/C3 -> 0.7741935484 | P3: 24 | Q3: =P3/C3 -> 0.7741935484 | R3: 22 | S3: =R3/C3 -> 0.7096774194 | T3: 37 | U3: =T3/C3 -> 1.193548387 | V3: 24 | W3: =V3/C3 -> 0.7741935484 | X3: 24 | Y3: =X3/C3 -> 0.7741935484 | Z3: 19 | AA3: =Z3/C3 -> 0.6129032258 | AB3: 26 | AC3: =AB3/C3 -> 0.8387096774 | AE3: 0 | AF3: =AE3/C3 -> 0 | AH3: =cálculos2!O3 -> 1 | AI3: =AH3*0.1 -> 0.1 | AJ3: =cálculos2!P3 -> 0 | AK3: =AJ3*0.25 -> 0 | AM3: LEGENDA / HOMOGENEIDADE PQA-VS
A4: Norte | B4: Água Doce do Norte | C4: 11 | D4: 14 | E4: =D4/C4 -> 1.272727273 | F4: 6 | G4: =F4/C4 -> 0.5454545455 | H4: 5 | I4: =H4/C4 -> 0.4545454545 | J4: 7 | K4: =J4/C4 -> 0.6363636364 | L4: 10 | M4: 0.9090909091 | N4: 10 | O4: 0.9090909091 | P4: 13 | Q4: 1.181818182 | R4: 11 | S4: 1 | T4: 7 | U4: 0.6363636364 | V4: 13 | W4: 1.181818182 | X4: 9 | Y4: 0.8181818182 | Z4: 12 | AA4: 1.090909091 | AB4: 14 | AC4: 1.272727273 | AE4: 0 | AF4: 0 | AH4: =cálculos2!O4 -> 5 | AI4: =AH4*0.1 -> 0.5 | AJ4: =cálculos2!P4 -> 1 | AK4: =AJ4*0.25 -> 0.25 | AM4: PERCENTUAL | AN4: Nº DE MUNICÍPIOS
A5: Central | B5: Águia Branca | C5: 14 | D5: 16 | E5: 1.142857143 | F5: 9 | G5: 0.6428571429 | H5: 6 | I5: 0.4285714286 | J5: 13 | K5: 0.9285714286 | L5: 17 | M5: 1.214285714 | N5: 17 | O5: 1.214285714 | P5: 17 | Q5: 1.214285714 | R5: 14 | S5: 1 | T5: 16 | U5: 1.142857143 | V5: 12 | W5: 0.8571428571 | X5: 8 | Y5: 0.5714285714 | Z5: 14 | AA5: 1 | AB5: 17 | AC5: 1.214285714 | AE5: 2 | AF5: 0.1428571429 | AH5: =cálculos2!O5 -> 8 | AI5: 0.8 | AJ5: =cálculos2!P5 -> 3 | AK5: 0.75 | AM5: 0 | AN5: =COUNTIF($AK$3:$AK$80,"=0") -> 9
A6: Sul | B6: Alegre | C6: 24 | D6: 27 | E6: 1.125 | F6: 10 | G6: 0.4166666667 | H6: 4 | I6: 0.1666666667 | J6: 26 | K6: 1.083333333 | L6: 24 | M6: 1 | N6: 23 | O6: 0.9583333333 | P6: 16 | Q6: 0.6666666667 | R6: 20 | S6: 0.8333333333 | T6: 21 | U6: 0.875 | V6: 27 | W6: 1.125 | X6: 23 | Y6: 0.9583333333 | Z6: 27 | AA6: 1.125 | AB6: 17 | AC6: 0.7083333333 | AE6: 4 | AF6: 0.1666666667 | AH6: =cálculos2!O6 -> 6 | AI6: 0.6 | AJ6: =cálculos2!P6 -> 3 | AK6: 0.75 | AM6: 0.25 | AN6: =COUNTIF($AK$3:$AK$80,"=0,25") -> 17
A7: Sul | B7: Alfredo Chaves | C7: 11 | D7: 9 | E7: 0.8181818182 | F7: 8 | G7: 0.7272727273 | H7: 6 | I7: 0.5454545455 | J7: 11 | K7: 1 | L7: 13 | M7: 1.181818182 | N7: 12 | O7: 1.090909091 | P7: 7 | Q7: 0.6363636364 | R7: 9 | S7: 0.8181818182 | T7: 11 | U7: 1 | V7: 11 | W7: 1 | X7: 12 | Y7: 1.090909091 | Z7: 14 | AA7: 1.272727273 | AB7: 6 | AC7: 0.5454545455 | AE7: 0 | AF7: 0 | AH7: =cálculos2!O7 -> 7 | AI7: 0.7 | AJ7: =cálculos2!P7 -> 3 | AK7: 0.75 | AM7: 0.5 | AN7: =COUNTIF($AK$3:$AK$80,"=0,5") -> 12
A8: Central | B8: Alto Rio Novo | C8: 7 | D8: 12 | E8: 1.714285714 | F8: 8 | G8: 1.142857143 | H8: 8 | I8: 1.142857143 | J8: 8 | K8: 1.142857143 | L8: 11 | M8: 1.571428571 | N8: 11 | O8: 1.571428571 | P8: 6 | Q8: 0.8571428571 | R8: 12 | S8: 1.714285714 | T8: 5 | U8: 0.7142857143 | V8: 6 | W8: 0.8571428571 | X8: 7 | Y8: 1 | Z8: 6 | AA8: 0.8571428571 | AB8: 6 | AC8: 0.8571428571 | AE8: 0 | AF8: 0 | AH8: =cálculos2!O8 -> 5 | AI8: 0.5 | AJ8: =cálculos2!P8 -> 3 | AK8: 0.75 | AM8: 0.75 | AN8: =COUNTIF($AK$3:$AK$80,"=0,75") -> 15
A9: Sul | B9: Anchieta | C9: 24 | D9: 31 | E9: 1.291666667 | F9: 27 | G9: 1.125 | H9: 22 | I9: 0.9166666667 | J9: 28 | K9: 1.166666667 | L9: 31 | M9: 1.291666667 | N9: 31 | O9: 1.291666667 | P9: 28 | Q9: 1.166666667 | R9: 23 | S9: 0.9583333333 | T9: 26 | U9: 1.083333333 | V9: 41 | W9: 1.708333333 | X9: 35 | Y9: 1.458333333 | Z9: 48 | AA9: 2 | AB9: 28 | AC9: 1.166666667 | AE9: 0 | AF9: 0 | AH9: =cálculos2!O9 -> 10 | AI9: 1 | AJ9: =cálculos2!P9 -> 4 | AK9: 1 | AM9: 1 | AN9: =COUNTIF($AK$3:$AK$80,"=1,0") -> 25
A10: Sul | B10: Apiacá | C10: 4 | D10: 2 | E10: 0.5 | F10: 0 | G10: 0 | H10: 0 | I10: 0 | J10: 9 | K10: 2.25 | L10: 5 | M10: 1.25 | N10: 4 | O10: 1 | P10: 4 | Q10: 1 | R10: 8 | S10: 2 | T10: 4 | U10: 1 | V10: 7 | W10: 1.75 | X10: 9 | Y10: 2.25 | Z10: 6 | AA10: 1.5 | AB10: 4 | AC10: 1 | AE10: 0 | AF10: 0 | AH10: =cálculos2!O10 -> 10 | AI10: 1 | AJ10: =cálculos2!P10 -> 4 | AK10: 1
A11: Metropolitana | B11: Aracruz | C11: 125 | D11: 116 | E11: 0.928 | F11: 33 | G11: 0.264 | H11: 13 | I11: 0.104 | J11: 119 | K11: 0.952 | L11: 125 | M11: 1 | N11: 118 | O11: 0.944 | P11: 106 | Q11: 0.848 | R11: 107 | S11: 0.856 | T11: 111 | U11: 0.888 | V11: 127 | W11: 1.016 | X11: 122 | Y11: 0.976 | Z11: 125 | AA11: 1 | AB11: 104 | AC11: 0.832 | AE11: 4 | AF11: 0.032 | AH11: =cálculos2!O11 -> 5 | AI11: 0.5 | AJ11: =cálculos2!P11 -> 2 | AK11: 0.5
A12: Sul | B12: Atilio Vivacqua | C12: 17 | D12: 13 | E12: 0.7647058824 | F12: 9 | G12: 0.5294117647 | H12: 3 | I12: 0.1764705882 | J12: 12 | K12: 0.7058823529 | L12: 12 | M12: 0.7058823529 | N12: 12 | O12: 0.7058823529 | P12: 7 | Q12: 0.4117647059 | R12: 13 | S12: 0.7647058824 | T12: 19 | U12: 1.117647059 | V12: 27 | W12: 1.588235294 | X12: 18 | Y12: 1.058823529 | Z12: 20 | AA12: 1.176470588 | AB12: 7 | AC12: 0.4117647059 | AE12: 1 | AF12: 0.05882352941 | AH12: =cálculos2!O12 -> 4 | AI12: 0.4 | AJ12: =cálculos2!P12 -> 1 | AK12: 0.25 | AM12: LEGENDA / HOMOGENEIDADE 10 VACINAS
A13: Central | B13: Baixo Guandu | C13: 32 | D13: 15 | E13: 0.46875 | F13: 11 | G13: 0.34375 | H13: 9 | I13: 0.28125 | J13: 25 | K13: 0.78125 | L13: 27 | M13: 0.84375 | N13: 26 | O13: 0.8125 | P13: 35 | Q13: 1.09375 | R13: 26 | S13: 0.8125 | T13: 33 | U13: 1.03125 | V13: 22 | W13: 0.6875 | X13: 30 | Y13: 0.9375 | Z13: 26 | AA13: 0.8125 | AB13: 36 | AC13: 1.125 | AE13: 0 | AF13: 0 | AH13: =cálculos2!O13 -> 3 | AI13: 0.3 | AJ13: =cálculos2!P13 -> 1 | AK13: 0.25 | AM13: PERCENTUAL | AN13: Nº DE MUNICÍPIOS
A14: Norte | B14: Barra de São Francisco | C14: 54 | D14: 37 | E14: 0.6851851852 | F14: 20 | G14: 0.3703703704 | H14: 16 | I14: 0.2962962963 | J14: 39 | K14: 0.7222222222 | L14: 47 | M14: 0.8703703704 | N14: 48 | O14: 0.8888888889 | P14: 47 | Q14: 0.8703703704 | R14: 39 | S14: 0.7222222222 | T14: 52 | U14: 0.962962963 | V14: 44 | W14: 0.8148148148 | X14: 50 | Y14: 0.9259259259 | Z14: 42 | AA14: 0.7777777778 | AB14: 48 | AC14: 0.8888888889 | AE14: 0 | AF14: 0 | AH14: =cálculos2!O14 -> 1 | AI14: 0.1 | AJ14: =cálculos2!P14 -> 0 | AK14: 0 | AM14: 0 | AN14: =COUNTIF($AI$3:$AI$80,"=0") -> 2
A15: Norte | B15: Boa Esperança | C15: 17 | D15: 11 | E15: 0.6470588235 | F15: 11 | G15: 0.6470588235 | H15: 11 | I15: 0.6470588235 | J15: 8 | K15: 0.4705882353 | L15: 20 | M15: 1.176470588 | N15: 18 | O15: 1.058823529 | P15: 17 | Q15: 1 | R15: 19 | S15: 1.117647059 | T15: 15 | U15: 0.8823529412 | V15: 21 | W15: 1.235294118 | X15: 13 | Y15: 0.7647058824 | Z15: 19 | AA15: 1.117647059 | AB15: 18 | AC15: 1.058823529 | AE15: 0 | AF15: 0 | AH15: =cálculos2!O15 -> 7 | AI15: 0.7 | AJ15: =cálculos2!P15 -> 3 | AK15: 0.75 | AM15: 0.1 | AN15: =COUNTIFS($AI$3:$AI$80,">=0,10",$AI$3:$AI$80,"<0,20") -> 5
A16: Sul | B16: Bom Jesus do Norte | C16: 5 | D16: 3 | E16: 0.6 | F16: 0 | G16: 0 | H16: 0 | I16: 0 | J16: 5 | K16: 1 | L16: 4 | M16: 0.8 | N16: 4 | O16: 0.8 | P16: 11 | Q16: 2.2 | R16: 10 | S16: 2 | T16: 12 | U16: 2.4 | V16: 8 | W16: 1.6 | X16: 8 | Y16: 1.6 | Z16: 4 | AA16: 0.8 | AB16: 12 | AC16: 2.4 | AE16: 1 | AF16: 0.2 | AH16: =cálculos2!O16 -> 7 | AI16: 0.7 | AJ16: =cálculos2!P16 -> 2 | AK16: 0.5 | AM16: 0.2 | AN16: =COUNTIFS($AI$3:$AI$80,">=0,20",$AI$3:$AI$80,"<0,30") -> 7
A17: Metropolitana | B17: Brejetuba | C17: 18 | D17: 18 | E17: 1 | F17: 15 | G17: 0.8333333333 | H17: 13 | I17: 0.7222222222 | J17: 11 | K17: 0.6111111111 | L17: 22 | M17: 1.222222222 | N17: 20 | O17: 1.111111111 | P17: 22 | Q17: 1.222222222 | R17: 25 | S17: 1.388888889 | T17: 17 | U17: 0.9444444444 | V17: 22 | W17: 1.222222222 | X17: 26 | Y17: 1.444444444 | Z17: 12 | AA17: 0.6666666667 | AB17: 25 | AC17: 1.388888889 | AE17: 0 | AF17: 0 | AH17: =cálculos2!O17 -> 7 | AI17: 0.7 | AJ17: =cálculos2!P17 -> 4 | AK17: 1 | AM17: 0.3 | AN17: =COUNTIFS($AI$3:$AI$80,">=0,30",$AI$3:$AI$80,"<0,40") -> 5
A18: Sul | B18: Cachoeiro de Itapemirim | C18: 204 | D18: 178 | E18: 0.8725490196 | F18: 144 | G18: 0.7058823529 | H18: 74 | I18: 0.362745098 | J18: 177 | K18: 0.8676470588 | L18: 219 | M18: 1.073529412 | N18: 216 | O18: 1.058823529 | P18: 191 | Q18: 0.9362745098 | R18: 197 | S18: 0.9656862745 | T18: 167 | U18: 0.818627451 | V18: 172 | W18: 0.8431372549 | X18: 173 | Y18: 0.8480392157 | Z18: 180 | AA18: 0.8823529412 | AB18: 197 | AC18: 0.9656862745 | AE18: 7 | AF18: 0.03431372549 | AH18: =cálculos2!O18 -> 4 | AI18: 0.4 | AJ18: =cálculos2!P18 -> 2 | AK18: 0.5 | AM18: 0.4 | AN18: =COUNTIFS($AI$3:$AI$80,">=0,40",$AI$3:$AI$80,"<0,50") -> 6
A19: Metropolitana | B19: Cariacica | C19: 408 | D19: 338 | E19: 0.8284313725 | F19: 162 | G19: 0.3970588235 | H19: 111 | I19: 0.2720588235 | J19: 348 | K19: 0.8529411765 | L19: 369 | M19: 0.9044117647 | N19: 363 | O19: 0.8897058824 | P19: 352 | Q19: 0.862745098 | R19: 399 | S19: 0.9779411765 | T19: 309 | U19: 0.7573529412 | V19: 358 | W19: 0.8774509804 | X19: 421 | Y19: 1.031862745 | Z19: 379 | AA19: 0.9289215686 | AB19: 367 | AC19: 0.8995098039 | AE19: 6 | AF19: 0.01470588235 | AH19: =cálculos2!O19 -> 2 | AI19: 0.2 | AJ19: =cálculos2!P19 -> 1 | AK19: 0.25 | AM19: 0.5 | AN19: =COUNTIFS($AI$3:$AI$80,">=0,50",$AI$3:$AI$80,"<0,60") -> 9
A20: Sul | B20: Castelo | C20: 39 | D20: 40 | E20: 1.025641026 | F20: 34 | G20: 0.8717948718 | H20: 21 | I20: 0.5384615385 | J20: 40 | K20: 1.025641026 | L20: 37 | M20: 0.9487179487 | N20: 38 | O20: 0.9743589744 | P20: 36 | Q20: 0.9230769231 | R20: 34 | S20: 0.8717948718 | T20: 34 | U20: 0.8717948718 | V20: 37 | W20: 0.9487179487 | X20: 27 | Y20: 0.6923076923 | Z20: 44 | AA20: 1.128205128 | AB20: 35 | AC20: 0.8974358974 | AE20: 0 | AF20: 0 | AH20: =cálculos2!O20 -> 3 | AI20: 0.3 | AJ20: =cálculos2!P20 -> 1 | AK20: 0.25 | AM20: 0.6 | AN20: =COUNTIFS($AI$3:$AI$80,">=0,60",$AI$3:$AI$80,"<0,70") -> 7
A21: Central | B21: Colatina | C21: 123 | D21: 144 | E21: 1.170731707 | F21: 76 | G21: 0.6178861789 | H21: 54 | I21: 0.4390243902 | J21: 140 | K21: 1.138211382 | L21: 122 | M21: 0.9918699187 | N21: 123 | O21: 1 | P21: 118 | Q21: 0.9593495935 | R21: 125 | S21: 1.016260163 | T21: 98 | U21: 0.7967479675 | V21: 127 | W21: 1.032520325 | X21: 115 | Y21: 0.9349593496 | Z21: 127 | AA21: 1.032520325 | AB21: 125 | AC21: 1.016260163 | AE21: 7 | AF21: 0.05691056911 | AH21: =cálculos2!O21 -> 8 | AI21: 0.8 | AJ21: =cálculos2!P21 -> 3 | AK21: 0.75 | AM21: 0.7 | AN21: =COUNTIFS($AI$3:$AI$80,">=0,70",$AI$3:$AI$80,"<0,80") -> 10
A22: Norte | B22: Conceição da Barra | C22: 32 | D22: 29 | E22: 0.90625 | F22: 26 | G22: 0.8125 | H22: 26 | I22: 0.8125 | J22: 28 | K22: 0.875 | L22: 28 | M22: 0.875 | N22: 28 | O22: 0.875 | P22: 32 | Q22: 1 | R22: 26 | S22: 0.8125 | T22: 26 | U22: 0.8125 | V22: 26 | W22: 0.8125 | X22: 23 | Y22: 0.71875 | Z22: 32 | AA22: 1 | AB22: 32 | AC22: 1 | AE22: 0 | AF22: 0 | AH22: =cálculos2!O22 -> 3 | AI22: 0.3 | AJ22: =cálculos2!P22 -> 1 | AK22: 0.25 | AM22: 0.8 | AN22: =COUNTIFS($AI$3:$AI$80,">=0,80",$AI$3:$AI$80,"<0,90") -> 10
A23: Metropolitana | B23: Conceição do Castelo | C23: 12 | D23: 10 | E23: 0.8333333333 | F23: 9 | G23: 0.75 | H23: 9 | I23: 0.75 | J23: 16 | K23: 1.333333333 | L23: 16 | M23: 1.333333333 | N23: 16 | O23: 1.333333333 | P23: 12 | Q23: 1 | R23: 15 | S23: 1.25 | T23: 11 | U23: 0.9166666667 | V23: 10 | W23: 0.8333333333 | X23: 15 | Y23: 1.25 | Z23: 9 | AA23: 0.75 | AB23: 13 | AC23: 1.083333333 | AE23: 0 | AF23: 0 | AH23: =cálculos2!O23 -> 7 | AI23: 0.7 | AJ23: =cálculos2!P23 -> 4 | AK23: 1 | AM23: 0.9 | AN23: =COUNTIFS($AI$3:$AI$80,">=0,90",$AI$3:$AI$80,"<1,0") -> 9
A24: Sul | B24: Divino de São Lourenço | C24: 6 | D24: 6 | E24: 1 | F24: 0 | G24: 0 | H24: 0 | I24: 0 | J24: 8 | K24: 1.333333333 | L24: 6 | M24: 1 | N24: 6 | O24: 1 | P24: 12 | Q24: 2 | R24: 4 | S24: 0.6666666667 | T24: 5 | U24: 0.8333333333 | V24: 3 | W24: 0.5 | X24: 2 | Y24: 0.3333333333 | Z24: 3 | AA24: 0.5 | AB24: 11 | AC24: 1.833333333 | AE24: 0 | AF24: 0 | AH24: =cálculos2!O24 -> 5 | AI24: 0.5 | AJ24: =cálculos2!P24 -> 3 | AK24: 0.75 | AM24: 1 | AN24: =COUNTIF($AI$3:$AI$80,">=1,0") -> 8
A25: Metropolitana | B25: Domingos Martins | C25: 36 | D25: 39 | E25: 1.083333333 | F25: 34 | G25: 0.9444444444 | H25: 31 | I25: 0.8611111111 | J25: 36 | K25: 1 | L25: 30 | M25: 0.8333333333 | N25: 29 | O25: 0.8055555556 | P25: 31 | Q25: 0.8611111111 | R25: 35 | S25: 0.9722222222 | T25: 34 | U25: 0.9444444444 | V25: 23 | W25: 0.6388888889 | X25: 22 | Y25: 0.6111111111 | Z25: 22 | AA25: 0.6111111111 | AB25: 29 | AC25: 0.8055555556 | AE25: 2 | AF25: 0.05555555556 | AH25: =cálculos2!O25 -> 2 | AI25: 0.2 | AJ25: =cálculos2!P25 -> 0 | AK25: 0
A26: Sul | B26: Dores do Rio Preto | C26: 9 | D26: 1 | E26: 0.1111111111 | F26: 1 | G26: 0.1111111111 | H26: 0 | I26: 0 | J26: 2 | K26: 0.2222222222 | L26: 7 | M26: 0.7777777778 | N26: 6 | O26: 0.6666666667 | P26: 7 | Q26: 0.7777777778 | R26: 13 | S26: 1.444444444 | T26: 8 | U26: 0.8888888889 | V26: 8 | W26: 0.8888888889 | X26: 8 | Y26: 0.8888888889 | Z26: 9 | AA26: 1 | AB26: 6 | AC26: 0.6666666667 | AE26: 1 | AF26: 0.1111111111 | AH26: =cálculos2!O26 -> 2 | AI26: 0.2 | AJ26: =cálculos2!P26 -> 0 | AK26: 0
A27: Norte | B27: Ecoporanga | C27: 18 | D27: 29 | E27: 1.611111111 | F27: 13 | G27: 0.7222222222 | H27: 9 | I27: 0.5 | J27: 21 | K27: 1.166666667 | L27: 16 | M27: 0.8888888889 | N27: 17 | O27: 0.9444444444 | P27: 21 | Q27: 1.166666667 | R27: 18 | S27: 1 | T27: 22 | U27: 1.222222222 | V27: 25 | W27: 1.388888889 | X27: 25 | Y27: 1.388888889 | Z27: 21 | AA27: 1.166666667 | AB27: 23 | AC27: 1.277777778 | AE27: 0 | AF27: 0 | AH27: =cálculos2!O27 -> 8 | AI27: 0.8 | AJ27: =cálculos2!P27 -> 2 | AK27: 0.5
A28: Metropolitana | B28: Fundão | C28: 22 | D28: 21 | E28: 0.9545454545 | F28: 15 | G28: 0.6818181818 | H28: 11 | I28: 0.5 | J28: 19 | K28: 0.8636363636 | L28: 18 | M28: 0.8181818182 | N28: 18 | O28: 0.8181818182 | P28: 17 | Q28: 0.7727272727 | R28: 15 | S28: 0.6818181818 | T28: 14 | U28: 0.6363636364 | V28: 15 | W28: 0.6818181818 | X28: 17 | Y28: 0.7727272727 | Z28: 16 | AA28: 0.7272727273 | AB28: 19 | AC28: 0.8636363636 | AE28: 4 | AF28: 0.1818181818 | AH28: =cálculos2!O28 -> 0 | AI28: 0 | AJ28: =cálculos2!P28 -> 0 | AK28: 0
A29: Central | B29: Governador Lindenberg | C29: 11 | D29: 17 | E29: 1.545454545 | F29: 10 | G29: 0.9090909091 | H29: 7 | I29: 0.6363636364 | J29: 17 | K29: 1.545454545 | L29: 8 | M29: 0.7272727273 | N29: 8 | O29: 0.7272727273 | P29: 12 | Q29: 1.090909091 | R29: 16 | S29: 1.454545455 | T29: 4 | U29: 0.3636363636 | V29: 6 | W29: 0.5454545455 | X29: 9 | Y29: 0.8181818182 | Z29: 5 | AA29: 0.4545454545 | AB29: 12 | AC29: 1.090909091 | AE29: 0 | AF29: 0 | AH29: =cálculos2!O29 -> 4 | AI29: 0.4 | AJ29: =cálculos2!P29 -> 1 | AK29: 0.25
A30: Sul | B30: Guaçuí | C30: 25 | D30: 29 | E30: 1.16 | F30: 9 | G30: 0.36 | H30: 4 | I30: 0.16 | J30: 28 | K30: 1.12 | L30: 30 | M30: 1.2 | N30: 30 | O30: 1.2 | P30: 44 | Q30: 1.76 | R30: 42 | S30: 1.68 | T30: 26 | U30: 1.04 | V30: 23 | W30: 0.92 | X30: 29 | Y30: 1.16 | Z30: 33 | AA30: 1.32 | AB30: 43 | AC30: 1.72 | AE30: 0 | AF30: 0 | AH30: =cálculos2!O30 -> 9 | AI30: 0.9 | AJ30: =cálculos2!P30 -> 4 | AK30: 1
A31: Metropolitana | B31: Guarapari | C31: 129 | D31: 135 | E31: 1.046511628 | F31: 119 | G31: 0.9224806202 | H31: 101 | I31: 0.7829457364 | J31: 84 | K31: 0.6511627907 | L31: 140 | M31: 1.085271318 | N31: 139 | O31: 1.07751938 | P31: 126 | Q31: 0.976744186 | R31: 144 | S31: 1.11627907 | T31: 96 | U31: 0.7441860465 | V31: 123 | W31: 0.9534883721 | X31: 155 | Y31: 1.201550388 | Z31: 105 | AA31: 0.8139534884 | AB31: 130 | AC31: 1.007751938 | AE31: 3 | AF31: 0.02325581395 | AH31: =cálculos2!O31 -> 7 | AI31: 0.7 | AJ31: =cálculos2!P31 -> 4 | AK31: 1
A32: Metropolitana | B32: Ibatiba | C32: 30 | D32: 26 | E32: 0.8666666667 | F32: 6 | G32: 0.2 | H32: 5 | I32: 0.1666666667 | J32: 26 | K32: 0.8666666667 | L32: 40 | M32: 1.333333333 | N32: 39 | O32: 1.3 | P32: 38 | Q32: 1.266666667 | R32: 40 | S32: 1.333333333 | T32: 19 | U32: 0.6333333333 | V32: 29 | W32: 0.9666666667 | X32: 32 | Y32: 1.066666667 | Z32: 49 | AA32: 1.633333333 | AB32: 37 | AC32: 1.233333333 | AE32: 0 | AF32: 0 | AH32: =cálculos2!O32 -> 8 | AI32: 0.8 | AJ32: =cálculos2!P32 -> 4 | AK32: 1
A33: Metropolitana | B33: Ibiraçu | C33: 8 | D33: 6 | E33: 0.75 | F33: 2 | G33: 0.25 | H33: 0 | I33: 0 | J33: 8 | K33: 1 | L33: 10 | M33: 1.25 | N33: 10 | O33: 1.25 | P33: 14 | Q33: 1.75 | R33: 9 | S33: 1.125 | T33: 11 | U33: 1.375 | V33: 15 | W33: 1.875 | X33: 6 | Y33: 0.75 | Z33: 18 | AA33: 2.25 | AB33: 14 | AC33: 1.75 | AE33: 0 | AF33: 0 | AH33: =cálculos2!O33 -> 9 | AI33: 0.9 | AJ33: =cálculos2!P33 -> 3 | AK33: 0.75
A34: Sul | B34: Ibitirama | C34: 10 | D34: 11 | E34: 1.1 | F34: 3 | G34: 0.3 | H34: 1 | I34: 0.1 | J34: 13 | K34: 1.3 | L34: 13 | M34: 1.3 | N34: 13 | O34: 1.3 | P34: 15 | Q34: 1.5 | R34: 6 | S34: 0.6 | T34: 11 | U34: 1.1 | V34: 20 | W34: 2 | X34: 17 | Y34: 1.7 | Z34: 19 | AA34: 1.9 | AB34: 14 | AC34: 1.4 | AE34: 1 | AF34: 0.1 | AH34: =cálculos2!O34 -> 9 | AI34: 0.9 | AJ34: =cálculos2!P34 -> 4 | AK34: 1
A35: Sul | B35: Iconha | C35: 10 | D35: 6 | E35: 0.6 | F35: 4 | G35: 0.4 | H35: 4 | I35: 0.4 | J35: 7 | K35: 0.7 | L35: 10 | M35: =L35/C35 -> 1 | N35: 10 | O35: =N35/C35 -> 1 | P35: 12 | Q35: =P35/C35 -> 1.2 | R35: 14 | S35: =R35/C35 -> 1.4 | T35: 9 | U35: =T35/C35 -> 0.9 | V35: 13 | W35: =V35/C35 -> 1.3 | X35: 10 | Y35: =X35/C35 -> 1 | Z35: 13 | AA35: =Z35/C35 -> 1.3 | AB35: 12 | AC35: =AB35/C35 -> 1.2 | AE35: 0 | AF35: =AE35/C35 -> 0 | AH35: =cálculos2!O35 -> 8 | AI35: 0.8 | AJ35: =cálculos2!P35 -> 4 | AK35: 1
A36: Sul | B36: Irupi | C36: 18 | D36: 14 | E36: 0.7777777778 | F36: 5 | G36: 0.2777777778 | H36: 5 | I36: 0.2777777778 | J36: 14 | K36: 0.7777777778 | L36: 18 | M36: 1 | N36: 18 | O36: 1 | P36: 26 | Q36: 1.444444444 | R36: 22 | S36: 1.222222222 | T36: 20 | U36: 1.111111111 | V36: 14 | W36: 0.7777777778 | X36: 15 | Y36: 0.8333333333 | Z36: 14 | AA36: 0.7777777778 | AB36: 26 | AC36: 1.444444444 | AE36: 1 | AF36: 0.05555555556 | AH36: =cálculos2!O36 -> 6 | AI36: 0.6 | AJ36: =cálculos2!P36 -> 3 | AK36: 0.75
A37: Metropolitana | B37: Itaguaçu | C37: 13 | D37: 6 | E37: 0.4615384615 | F37: 5 | G37: 0.3846153846 | H37: 2 | I37: 0.1538461538 | J37: 6 | K37: 0.4615384615 | L37: 7 | M37: 0.5384615385 | N37: 7 | O37: 0.5384615385 | P37: 14 | Q37: 1.076923077 | R37: 5 | S37: 0.3846153846 | T37: 8 | U37: 0.6153846154 | V37: 12 | W37: 0.9230769231 | X37: 8 | Y37: 0.6153846154 | Z37: 12 | AA37: 0.9230769231 | AB37: 14 | AC37: 1.076923077 | AE37: 0 | AF37: 0 | AH37: =cálculos2!O37 -> 2 | AI37: 0.2 | AJ37: =cálculos2!P37 -> 1 | AK37: 0.25
A38: Sul | B38: Itapemirim | C38: 53 | D38: 59 | E38: 1.113207547 | F38: 57 | G38: 1.075471698 | H38: 43 | I38: 0.8113207547 | J38: 47 | K38: 0.8867924528 | L38: 49 | M38: 0.9245283019 | N38: 45 | O38: 0.8490566038 | P38: 40 | Q38: 0.7547169811 | R38: 52 | S38: 0.9811320755 | T38: 32 | U38: 0.6037735849 | V38: 49 | W38: 0.9245283019 | X38: 31 | Y38: 0.5849056604 | Z38: 22 | AA38: 0.4150943396 | AB38: 43 | AC38: 0.8113207547 | AE38: 0 | AF38: 0 | AH38: =cálculos2!O38 -> 1 | AI38: 0.1 | AJ38: =cálculos2!P38 -> 0 | AK38: 0
A39: Metropolitana | B39: Itarana | C39: 8 | D39: 11 | E39: 1.375 | F39: 8 | G39: 1 | H39: 5 | I39: 0.625 | J39: 11 | K39: 1.375 | L39: 4 | M39: 0.5 | N39: 4 | O39: 0.5 | P39: 13 | Q39: 1.625 | R39: 11 | S39: 1.375 | T39: 11 | U39: 1.375 | V39: 11 | W39: 1.375 | X39: 5 | Y39: 0.625 | Z39: 13 | AA39: 1.625 | AB39: 11 | AC39: 1.375 | AE39: 0 | AF39: 0 | AH39: =cálculos2!O39 -> 7 | AI39: 0.7 | AJ39: =cálculos2!P39 -> 1 | AK39: 0.25
A40: Sul | B40: Iúna | C40: 34 | D40: 19 | E40: 0.5588235294 | F40: 4 | G40: 0.1176470588 | H40: 1 | I40: 0.02941176471 | J40: 24 | K40: 0.7058823529 | L40: 28 | M40: 0.8235294118 | N40: 27 | O40: 0.7941176471 | P40: 29 | Q40: 0.8529411765 | R40: 41 | S40: 1.205882353 | T40: 45 | U40: 1.323529412 | V40: 30 | W40: 0.8823529412 | X40: 36 | Y40: 1.058823529 | Z40: 27 | AA40: 0.7941176471 | AB40: 32 | AC40: 0.9411764706 | AE40: 0 | AF40: 0 | AH40: =cálculos2!O40 -> 4 | AI40: 0.4 | AJ40: =cálculos2!P40 -> 1 | AK40: 0.25
A41: Norte | B41: Jaguaré | C41: 46 | D41: 50 | E41: 1.086956522 | F41: 42 | G41: 0.9130434783 | H41: 41 | I41: 0.8913043478 | J41: 45 | K41: 0.9782608696 | L41: 47 | M41: 1.02173913 | N41: 48 | O41: 1.043478261 | P41: 39 | Q41: 0.847826087 | R41: 33 | S41: 0.7173913043 | T41: 32 | U41: 0.6956521739 | V41: 32 | W41: 0.6956521739 | X41: 37 | Y41: 0.8043478261 | Z41: 36 | AA41: 0.7826086957 | AB41: 40 | AC41: 0.8695652174 | AE41: 0 | AF41: 0 | AH41: =cálculos2!O41 -> 3 | AI41: 0.3 | AJ41: =cálculos2!P41 -> 2 | AK41: 0.5
A42: Sul | B42: Jerônimo Monteiro | C42: 12 | D42: 17 | E42: 1.416666667 | F42: 14 | G42: 1.166666667 | H42: 7 | I42: 0.5833333333 | J42: 16 | K42: 1.333333333 | L42: 12 | M42: 1 | N42: 12 | O42: 1 | P42: 11 | Q42: 0.9166666667 | R42: 8 | S42: 0.6666666667 | T42: 7 | U42: 0.5833333333 | V42: 13 | W42: 1.083333333 | X42: 7 | Y42: 0.5833333333 | Z42: 13 | AA42: 1.083333333 | AB42: 11 | AC42: 0.9166666667 | AE42: 1 | AF42: 0.08333333333 | AH42: =cálculos2!O42 -> 6 | AI42: 0.6 | AJ42: =cálculos2!P42 -> 2 | AK42: 0.5
A43: Metropolitana | B43: João Neiva | C43: 5 | D43: 12 | E43: 2.4 | F43: 5 | G43: 1 | H43: 4 | I43: 0.8 | J43: 11 | K43: 2.2 | L43: 16 | M43: 3.2 | N43: 16 | O43: 3.2 | P43: 10 | Q43: 2 | R43: 11 | S43: 2.2 | T43: 13 | U43: 2.6 | V43: 13 | W43: 2.6 | X43: 8 | Y43: 1.6 | Z43: 11 | AA43: 2.2 | AB43: 11 | AC43: 2.2 | AE43: 0 | AF43: 0 | AH43: =cálculos2!O43 -> 10 | AI43: 1 | AJ43: =cálculos2!P43 -> 4 | AK43: 1
A44: Metropolitana | B44: Laranja da Terra | C44: 9 | D44: 9 | E44: 1 | F44: 9 | G44: 1 | H44: 7 | I44: 0.7777777778 | J44: 8 | K44: 0.8888888889 | L44: 12 | M44: 1.333333333 | N44: 12 | O44: 1.333333333 | P44: 8 | Q44: 0.8888888889 | R44: 3 | S44: 0.3333333333 | T44: 10 | U44: 1.111111111 | V44: 15 | W44: 1.666666667 | X44: 8 | Y44: 0.8888888889 | Z44: 15 | AA44: 1.666666667 | AB44: 9 | AC44: 1 | AE44: 1 | AF44: 0.1111111111 | AH44: =cálculos2!O44 -> 6 | AI44: 0.6 | AJ44: =cálculos2!P44 -> 2 | AK44: 0.5
A45: Central | B45: Linhares | C45: 237 | D45: 250 | E45: 1.054852321 | F45: 160 | G45: 0.6751054852 | H45: 133 | I45: 0.5611814346 | J45: 248 | K45: 1.046413502 | L45: 231 | M45: 0.9746835443 | N45: 218 | O45: 0.9198312236 | P45: 224 | Q45: 0.9451476793 | R45: 238 | S45: 1.004219409 | T45: 136 | U45: 0.5738396624 | V45: 219 | W45: 0.9240506329 | X45: 207 | Y45: 0.8734177215 | Z45: 243 | AA45: 1.025316456 | AB45: 232 | AC45: 0.9789029536 | AE45: 2 | AF45: 0.008438818565 | AH45: =cálculos2!O45 -> 5 | AI45: 0.5 | AJ45: =cálculos2!P45 -> 1 | AK45: 0.25
A46: Central | B46: Mantenópolis | C46: 14 | D46: 13 | E46: 0.9285714286 | F46: 7 | G46: 0.5 | H46: 5 | I46: 0.3571428571 | J46: 11 | K46: 0.7857142857 | L46: 9 | M46: 0.6428571429 | N46: 9 | O46: 0.6428571429 | P46: 14 | Q46: 1 | R46: 13 | S46: 0.9285714286 | T46: 13 | U46: 0.9285714286 | V46: 9 | W46: 0.6428571429 | X46: 8 | Y46: 0.5714285714 | Z46: 7 | AA46: 0.5 | AB46: 14 | AC46: 1 | AE46: 0 | AF46: 0 | AH46: =cálculos2!O46 -> 2 | AI46: 0.2 | AJ46: =cálculos2!P46 -> 1 | AK46: 0.25
A47: Sul | B47: Marataízes | C47: 45 | D47: 57 | E47: 1.266666667 | F47: 52 | G47: 1.155555556 | H47: 44 | I47: 0.9777777778 | J47: 51 | K47: 1.133333333 | L47: 38 | M47: 0.8444444444 | N47: 41 | O47: 0.9111111111 | P47: 55 | Q47: 1.222222222 | R47: 50 | S47: 1.111111111 | T47: 20 | U47: 0.4444444444 | V47: 44 | W47: 0.9777777778 | X47: 25 | Y47: 0.5555555556 | Z47: 43 | AA47: 0.9555555556 | AB47: 55 | AC47: 1.222222222 | AE47: 0 | AF47: 0 | AH47: =cálculos2!O47 -> 6 | AI47: 0.6 | AJ47: =cálculos2!P47 -> 1 | AK47: 0.25
A48: Metropolitana | B48: Marechal Floriano | C48: 24 | D48: 6 | E48: 0.25 | F48: 5 | G48: 0.2083333333 | H48: 3 | I48: 0.125 | J48: 4 | K48: 0.1666666667 | L48: 15 | M48: 0.625 | N48: 13 | O48: 0.5416666667 | P48: 15 | Q48: 0.625 | R48: 17 | S48: 0.7083333333 | T48: 18 | U48: 0.75 | V48: 9 | W48: 0.375 | X48: 14 | Y48: 0.5833333333 | Z48: 10 | AA48: 0.4166666667 | AB48: 13 | AC48: 0.5416666667 | AE48: 1 | AF48: 0.04166666667 | AH48: =cálculos2!O48 -> 0 | AI48: 0 | AJ48: =cálculos2!P48 -> 0 | AK48: 0
A49: Central | B49: Marilândia | C49: 13 | D49: 8 | E49: 0.6153846154 | F49: 6 | G49: 0.4615384615 | H49: 4 | I49: 0.3076923077 | J49: 8 | K49: 0.6153846154 | L49: 7 | M49: 0.5384615385 | N49: 8 | O49: 0.6153846154 | P49: 12 | Q49: 0.9230769231 | R49: 15 | S49: 1.153846154 | T49: 16 | U49: 1.230769231 | V49: 13 | W49: 1 | X49: 11 | Y49: 0.8461538462 | Z49: 12 | AA49: 0.9230769231 | AB49: 12 | AC49: 0.9230769231 | AE49: 3 | AF49: 0.2307692308 | AH49: =cálculos2!O49 -> 4 | AI49: 0.4 | AJ49: =cálculos2!P49 -> 0 | AK49: 0
A50: Sul | B50: Mimoso do Sul | C50: 25 | D50: 21 | E50: 0.84 | F50: 17 | G50: 0.68 | H50: 13 | I50: 0.52 | J50: 19 | K50: 0.76 | L50: 24 | M50: 0.96 | N50: 25 | O50: 1 | P50: 15 | Q50: 0.6 | R50: 24 | S50: 0.96 | T50: 35 | U50: 1.4 | V50: 22 | W50: 0.88 | X50: 27 | Y50: 1.08 | Z50: 20 | AA50: 0.8 | AB50: 14 | AC50: 0.56 | AE50: 0 | AF50: 0 | AH50: =cálculos2!O50 -> 5 | AI50: 0.5 | AJ50: =cálculos2!P50 -> 3 | AK50: 0.75
A51: Norte | B51: Montanha | C51: 21 | D51: 11 | E51: 0.5238095238 | F51: 6 | G51: 0.2857142857 | H51: 6 | I51: 0.2857142857 | J51: 10 | K51: 0.4761904762 | L51: 27 | M51: 1.285714286 | N51: 27 | O51: 1.285714286 | P51: 24 | Q51: 1.142857143 | R51: 15 | S51: 0.7142857143 | T51: 22 | U51: 1.047619048 | V51: 22 | W51: 1.047619048 | X51: 24 | Y51: 1.142857143 | Z51: 25 | AA51: 1.19047619 | AB51: 25 | AC51: 1.19047619 | AE51: 0 | AF51: 0 | AH51: =cálculos2!O51 -> 8 | AI51: 0.8 | AJ51: =cálculos2!P51 -> 4 | AK51: 1
A52: Norte | B52: Mucurici | C52: 4 | D52: 5 | E52: 1.25 | F52: 5 | G52: 1.25 | H52: 4 | I52: 1 | J52: 4 | K52: 1 | L52: 4 | M52: 1 | N52: 3 | O52: 0.75 | P52: 4 | Q52: 1 | R52: 3 | S52: 0.75 | T52: 7 | U52: 1.75 | V52: 7 | W52: 1.75 | X52: 2 | Y52: 0.5 | Z52: 7 | AA52: 1.75 | AB52: 4 | AC52: 1 | AE52: 0 | AF52: 0 | AH52: =cálculos2!O52 -> 7 | AI52: 0.7 | AJ52: =cálculos2!P52 -> 2 | AK52: 0.5
A53: Sul | B53: Muniz Freire | C53: 19 | D53: 21 | E53: 1.105263158 | F53: 15 | G53: 0.7894736842 | H53: 8 | I53: 0.4210526316 | J53: 24 | K53: 1.263157895 | L53: 33 | M53: 1.736842105 | N53: 33 | O53: 1.736842105 | P53: 30 | Q53: 1.578947368 | R53: 30 | S53: 1.578947368 | T53: 17 | U53: 0.8947368421 | V53: 21 | W53: 1.105263158 | X53: 19 | Y53: 1 | Z53: 35 | AA53: 1.842105263 | AB53: 30 | AC53: 1.578947368 | AE53: 0 | AF53: 0 | AH53: =cálculos2!O53 -> 9 | AI53: 0.9 | AJ53: =cálculos2!P53 -> 4 | AK53: 1
A54: Sul | B54: Muqui | C54: 9 | D54: 13 | E54: 1.444444444 | F54: 11 | G54: 1.222222222 | H54: 2 | I54: 0.2222222222 | J54: 13 | K54: 1.444444444 | L54: 15 | M54: 1.666666667 | N54: 15 | O54: 1.666666667 | P54: 9 | Q54: 1 | R54: 11 | S54: 1.222222222 | T54: 18 | U54: 2 | V54: 11 | W54: 1.222222222 | X54: 12 | Y54: 1.333333333 | Z54: 10 | AA54: 1.111111111 | AB54: 9 | AC54: 1 | AE54: 1 | AF54: 0.1111111111 | AH54: =cálculos2!O54 -> 10 | AI54: 1 | AJ54: =cálculos2!P54 -> 4 | AK54: 1
A55: Norte | B55: Nova Venécia | C55: 55 | D55: 73 | E55: 1.327272727 | F55: 58 | G55: 1.054545455 | H55: 55 | I55: 1 | J55: 59 | K55: 1.072727273 | L55: 61 | M55: 1.109090909 | N55: 61 | O55: 1.109090909 | P55: 66 | Q55: 1.2 | R55: 60 | S55: 1.090909091 | T55: 51 | U55: 0.9272727273 | V55: 59 | W55: 1.072727273 | X55: 77 | Y55: 1.4 | Z55: 62 | AA55: 1.127272727 | AB55: 66 | AC55: 1.2 | AE55: 0 | AF55: 0 | AH55: =cálculos2!O55 -> 9 | AI55: 0.9 | AJ55: =cálculos2!P55 -> 4 | AK55: 1
A56: Central | B56: Pancas | C56: 20 | D56: 12 | E56: 0.6 | F56: 8 | G56: 0.4 | H56: 4 | I56: 0.2 | J56: 11 | K56: 0.55 | L56: 19 | M56: 0.95 | N56: 19 | O56: 0.95 | P56: 21 | Q56: 1.05 | R56: 14 | S56: 0.7 | T56: 26 | U56: 1.3 | V56: 14 | W56: 0.7 | X56: 15 | Y56: 0.75 | Z56: 15 | AA56: 0.75 | AB56: 21 | AC56: 1.05 | AE56: 1 | AF56: 0.05 | AH56: =cálculos2!O56 -> 5 | AI56: 0.5 | AJ56: =cálculos2!P56 -> 3 | AK56: 0.75
A57: Norte | B57: Pedro Canário | C57: 30 | D57: 20 | E57: 0.6666666667 | F57: 19 | G57: 0.6333333333 | H57: 17 | I57: 0.5666666667 | J57: 16 | K57: 0.5333333333 | L57: 41 | M57: 1.366666667 | N57: 34 | O57: 1.133333333 | P57: 26 | Q57: 0.8666666667 | R57: 25 | S57: 0.8333333333 | T57: 17 | U57: 0.5666666667 | V57: 18 | W57: 0.6 | X57: 22 | Y57: 0.7333333333 | Z57: 24 | AA57: 0.8 | AB57: 26 | AC57: 0.8666666667 | AE57: 0 | AF57: 0 | AH57: =cálculos2!O57 -> 2 | AI57: 0.2 | AJ57: =cálculos2!P57 -> 2 | AK57: 0.5
A58: Norte | B58: Pinheiros | C58: 26 | D58: 17 | E58: 0.6538461538 | F58: 17 | G58: 0.6538461538 | H58: 17 | I58: 0.6538461538 | J58: 12 | K58: 0.4615384615 | L58: 37 | M58: 1.423076923 | N58: 34 | O58: 1.307692308 | P58: 28 | Q58: 1.076923077 | R58: 37 | S58: 1.423076923 | T58: 18 | U58: 0.6923076923 | V58: 23 | W58: 0.8846153846 | X58: 16 | Y58: 0.6153846154 | Z58: 19 | AA58: 0.7307692308 | AB58: 30 | AC58: 1.153846154 | AE58: 1 | AF58: 0.03846153846 | AH58: =cálculos2!O58 -> 5 | AI58: 0.5 | AJ58: =cálculos2!P58 -> 3 | AK58: 0.75
A59: Sul | B59: Piúma | C59: 29 | D59: 24 | E59: 0.8275862069 | F59: 20 | G59: 0.6896551724 | H59: 14 | I59: 0.4827586207 | J59: 19 | K59: 0.6551724138 | L59: 22 | M59: 0.7586206897 | N59: 22 | O59: 0.7586206897 | P59: 21 | Q59: 0.724137931 | R59: 27 | S59: 0.9310344828 | T59: 21 | U59: 0.724137931 | V59: 26 | W59: 0.8965517241 | X59: 29 | Y59: 1 | Z59: 28 | AA59: 0.9655172414 | AB59: 18 | AC59: 0.6206896552 | AE59: 6 | AF59: 0.2068965517 | AH59: =cálculos2!O59 -> 2 | AI59: 0.2 | AJ59: =cálculos2!P59 -> 1 | AK59: 0.25
A60: Norte | B60: Ponto Belo | C60: 6 | D60: 4 | E60: 0.6666666667 | F60: 2 | G60: 0.3333333333 | H60: 2 | I60: 0.3333333333 | J60: 3 | K60: 0.5 | L60: 7 | M60: 1.166666667 | N60: 7 | O60: 1.166666667 | P60: 7 | Q60: 1.166666667 | R60: 4 | S60: 0.6666666667 | T60: 4 | U60: 0.6666666667 | V60: 9 | W60: 1.5 | X60: 3 | Y60: 0.5 | Z60: 3 | AA60: 0.5 | AB60: 7 | AC60: 1.166666667 | AE60: 0 | AF60: 0 | AH60: =cálculos2!O60 -> 5 | AI60: 0.5 | AJ60: =cálculos2!P60 -> 3 | AK60: 0.75
A61: Sul | B61: Presidente Kennedy | C61: 18 | D61: 19 | E61: 1.055555556 | F61: 16 | G61: 0.8888888889 | H61: 11 | I61: 0.6111111111 | J61: 19 | K61: 1.055555556 | L61: 12 | M61: 0.6666666667 | N61: 12 | O61: 0.6666666667 | P61: 18 | Q61: 1 | R61: 21 | S61: 1.166666667 | T61: 18 | U61: 1 | V61: 23 | W61: 1.277777778 | X61: 28 | Y61: 1.555555556 | Z61: 28 | AA61: 1.555555556 | AB61: 18 | AC61: 1 | AE61: 0 | AF61: 0 | AH61: =cálculos2!O61 -> 8 | AI61: 0.8 | AJ61: =cálculos2!P61 -> 2 | AK61: 0.5
A62: Central | B62: Rio Bananal | C62: 19 | D62: 20 | E62: 1.052631579 | F62: 16 | G62: 0.8421052632 | H62: 14 | I62: 0.7368421053 | J62: 20 | K62: 1.052631579 | L62: 32 | M62: 1.684210526 | N62: 32 | O62: 1.684210526 | P62: 24 | Q62: 1.263157895 | R62: 23 | S62: 1.210526316 | T62: 18 | U62: 0.9473684211 | V62: 16 | W62: 0.8421052632 | X62: 26 | Y62: 1.368421053 | Z62: 47 | AA62: 2.473684211 | AB62: 23 | AC62: 1.210526316 | AE62: 1 | AF62: 0.05263157895 | AH62: =cálculos2!O62 -> 8 | AI62: 0.8 | AJ62: =cálculos2!P62 -> 4 | AK62: 1
A63: Sul | B63: Rio Novo do Sul | C63: 11 | D63: 12 | E63: 1.090909091 | F63: 7 | G63: 0.6363636364 | H63: 3 | I63: 0.2727272727 | J63: 7 | K63: 0.6363636364 | L63: 7 | M63: 0.6363636364 | N63: 7 | O63: 0.6363636364 | P63: 7 | Q63: 0.6363636364 | R63: 6 | S63: 0.5454545455 | T63: 7 | U63: 0.6363636364 | V63: 11 | W63: 1 | X63: 14 | Y63: 1.272727273 | Z63: 14 | AA63: 1.272727273 | AB63: 8 | AC63: 0.7272727273 | AE63: 0 | AF63: 0 | AH63: =cálculos2!O63 -> 3 | AI63: 0.3 | AJ63: =cálculos2!P63 -> 1 | AK63: 0.25
A64: Metropolitana | B64: Santa Leopoldina | C64: 7 | D64: 11 | E64: 1.571428571 | F64: 10 | G64: 1.428571429 | H64: 9 | I64: 1.285714286 | J64: 12 | K64: 1.714285714 | L64: 9 | M64: 1.285714286 | N64: 9 | O64: 1.285714286 | P64: 9 | Q64: 1.285714286 | R64: 8 | S64: 1.142857143 | T64: 14 | U64: 2 | V64: 13 | W64: 1.857142857 | X64: 9 | Y64: 1.285714286 | Z64: 12 | AA64: 1.714285714 | AB64: 10 | AC64: 1.428571429 | AE64: 0 | AF64: 0 | AH64: =cálculos2!O64 -> 10 | AI64: 1 | AJ64: =cálculos2!P64 -> 4 | AK64: 1
A65: Metropolitana | B65: Santa Maria de Jetibá | C65: 53 | D65: 54 | E65: 1.018867925 | F65: 53 | G65: 1 | H65: 47 | I65: 0.8867924528 | J65: 54 | K65: 1.018867925 | L65: 68 | M65: 1.283018868 | N65: 70 | O65: 1.320754717 | P65: 59 | Q65: 1.113207547 | R65: 54 | S65: 1.018867925 | T65: 53 | U65: 1 | V65: 56 | W65: 1.056603774 | X65: 65 | Y65: 1.226415094 | Z65: 63 | AA65: 1.188679245 | AB65: 63 | AC65: 1.188679245 | AE65: 0 | AF65: 0 | AH65: =cálculos2!O65 -> 10 | AI65: 1 | AJ65: =cálculos2!P65 -> 4 | AK65: 1
A66: Metropolitana | B66: Santa Teresa | C66: 29 | D66: 26 | E66: 0.8965517241 | F66: 23 | G66: 0.7931034483 | H66: 18 | I66: 0.6206896552 | J66: 25 | K66: 0.8620689655 | L66: 22 | M66: 0.7586206897 | N66: 22 | O66: 0.7586206897 | P66: 22 | Q66: 0.7586206897 | R66: 20 | S66: 0.6896551724 | T66: 20 | U66: 0.6896551724 | V66: 21 | W66: 0.724137931 | X66: 28 | Y66: 0.9655172414 | Z66: 16 | AA66: 0.5517241379 | AB66: 22 | AC66: 0.7586206897 | AE66: 0 | AF66: 0 | AH66: =cálculos2!O66 -> 1 | AI66: 0.1 | AJ66: =cálculos2!P66 -> 1 | AK66: 0.25
A67: Central | B67: São Domingos do Norte | C67: 5 | D67: 13 | E67: 2.6 | F67: 9 | G67: 1.8 | H67: 8 | I67: 1.6 | J67: 12 | K67: 2.4 | L67: 15 | M67: =L67/C67 -> 3 | N67: 15 | O67: =N67/C67 -> 3 | P67: 13 | Q67: =P67/C67 -> 2.6 | R67: 17 | S67: =R67/C67 -> 3.4 | T67: 8 | U67: =T67/C67 -> 1.6 | V67: 13 | W67: =V67/C67 -> 2.6 | X67: 10 | Y67: =X67/C67 -> 2 | Z67: 13 | AA67: =Z67/C67 -> 2.6 | AB67: 14 | AC67: =AB67/C67 -> 2.8 | AE67: 0 | AF67: =AE67/C67 -> 0 | AH67: =cálculos2!O67 -> 10 | AI67: 1 | AJ67: =cálculos2!P67 -> 4 | AK67: 1
A68: Central | B68: São Gabriel da Palha | C68: 35 | D68: 28 | E68: =D68/C68 -> 0.8 | F68: 16 | G68: =F68/C68 -> 0.4571428571 | H68: 13 | I68: =H68/C68 -> 0.3714285714 | J68: 33 | K68: =J68/C68 -> 0.9428571429 | L68: 35 | M68: 1 | N68: 33 | O68: 0.9428571429 | P68: 40 | Q68: 1.142857143 | R68: 29 | S68: 0.8285714286 | T68: 51 | U68: 1.457142857 | V68: 29 | W68: 0.8285714286 | X68: 28 | Y68: 0.8 | Z68: 39 | AA68: 1.114285714 | AB68: 40 | AC68: 1.142857143 | AE68: 0 | AF68: 0 | AH68: =cálculos2!O68 -> 6 | AI68: =AH68*0.1 -> 0.6 | AJ68: =cálculos2!P68 -> 2 | AK68: =AJ68*0.25 -> 0.5
A69: Sul | B69: São José do Calçado | C69: 6 | D69: 13 | E69: 2.166666667 | F69: 5 | G69: 0.8333333333 | H69: 1 | I69: 0.1666666667 | J69: 15 | K69: 2.5 | L69: 8 | M69: 1.333333333 | N69: 8 | O69: 1.333333333 | P69: 11 | Q69: 1.833333333 | R69: 11 | S69: 1.833333333 | T69: 3 | U69: 0.5 | V69: 3 | W69: 0.5 | X69: 9 | Y69: 1.5 | Z69: 3 | AA69: 0.5 | AB69: 11 | AC69: 1.833333333 | AE69: 0 | AF69: 0 | AH69: =cálculos2!O69 -> 7 | AI69: 0.7 | AJ69: =cálculos2!P69 -> 4 | AK69: 1
A70: Norte | B70: São Mateus | C70: 137 | D70: 126 | E70: 0.9197080292 | F70: 120 | G70: 0.8759124088 | H70: 120 | I70: 0.8759124088 | J70: 107 | K70: 0.7810218978 | L70: 152 | M70: 1.109489051 | N70: 152 | O70: 1.109489051 | P70: 180 | Q70: 1.313868613 | R70: 169 | S70: 1.233576642 | T70: 132 | U70: 0.9635036496 | V70: 143 | W70: 1.04379562 | X70: 133 | Y70: 0.9708029197 | Z70: 130 | AA70: 0.9489051095 | AB70: 183 | AC70: 1.335766423 | AE70: 0 | AF70: 0 | AH70: =cálculos2!O70 -> 8 | AI70: 0.8 | AJ70: =cálculos2!P70 -> 4 | AK70: 1
A71: Central | B71: São Roque do Canaã | C71: 12 | D71: 9 | E71: 0.75 | F71: 4 | G71: 0.3333333333 | H71: 3 | I71: 0.25 | J71: 9 | K71: 0.75 | L71: 7 | M71: 0.5833333333 | N71: 7 | O71: 0.5833333333 | P71: 15 | Q71: 1.25 | R71: 12 | S71: 1 | T71: 16 | U71: 1.333333333 | V71: 12 | W71: 1 | X71: 11 | Y71: 0.9166666667 | Z71: 12 | AA71: 1 | AB71: 14 | AC71: 1.166666667 | AE71: 0 | AF71: 0 | AH71: =cálculos2!O71 -> 6 | AI71: 0.6 | AJ71: =cálculos2!P71 -> 1 | AK71: 0.25
A72: Metropolitana | B72: Serra | C72: 631 | D72: 569 | E72: 0.9017432647 | F72: 489 | G72: 0.7749603803 | H72: 363 | I72: 0.5752773376 | J72: 567 | K72: 0.8985736926 | L72: 645 | M72: 1.022187005 | N72: 636 | O72: 1.00792393 | P72: 618 | Q72: 0.9793977813 | R72: 654 | S72: 1.036450079 | T72: 477 | U72: 0.7559429477 | V72: 627 | W72: 0.9936608558 | X72: 604 | Y72: 0.9572107765 | Z72: 564 | AA72: 0.8938193344 | AB72: 638 | AC72: 1.011093502 | AE72: 12 | AF72: 0.01901743265 | AH72: =cálculos2!O72 -> 7 | AI72: 0.7 | AJ72: =cálculos2!P72 -> 4 | AK72: 1
A73: Central | B73: Sooretama | C73: 21 | D73: 13 | E73: 0.619047619 | F73: 9 | G73: 0.4285714286 | H73: 7 | I73: 0.3333333333 | J73: 11 | K73: 0.5238095238 | L73: 43 | M73: 2.047619048 | N73: 42 | O73: 2 | P73: 31 | Q73: 1.476190476 | R73: 30 | S73: 1.428571429 | T73: 33 | U73: 1.571428571 | V73: 31 | W73: 1.476190476 | X73: 33 | Y73: 1.571428571 | Z73: 20 | AA73: 0.9523809524 | AB73: 30 | AC73: 1.428571429 | AE73: 0 | AF73: 0 | AH73: =cálculos2!O73 -> 9 | AI73: 0.9 | AJ73: =cálculos2!P73 -> 4 | AK73: 1
A74: Sul | B74: Vargem Alta | C74: 22 | D74: 22 | E74: 1 | F74: 18 | G74: 0.8181818182 | H74: 11 | I74: 0.5 | J74: 22 | K74: 1 | L74: 23 | M74: 1.045454545 | N74: 23 | O74: 1.045454545 | P74: 19 | Q74: 0.8636363636 | R74: 22 | S74: 1 | T74: 29 | U74: 1.318181818 | V74: 26 | W74: 1.181818182 | X74: 25 | Y74: 1.136363636 | Z74: 28 | AA74: 1.272727273 | AB74: 19 | AC74: 0.8636363636 | AE74: 0 | AF74: 0 | AH74: =cálculos2!O74 -> 8 | AI74: 0.8 | AJ74: =cálculos2!P74 -> 3 | AK74: 0.75
A75: Metropolitana | B75: Venda Nova do Imigrante | C75: 24 | D75: 22 | E75: 0.9166666667 | F75: 19 | G75: 0.7916666667 | H75: 18 | I75: 0.75 | J75: 29 | K75: 1.208333333 | L75: 36 | M75: 1.5 | N75: 36 | O75: 1.5 | P75: 28 | Q75: 1.166666667 | R75: 26 | S75: 1.083333333 | T75: 21 | U75: 0.875 | V75: 37 | W75: 1.541666667 | X75: 32 | Y75: 1.333333333 | Z75: 46 | AA75: 1.916666667 | AB75: 30 | AC75: 1.25 | AE75: 1 | AF75: 0.04166666667 | AH75: =cálculos2!O75 -> 9 | AI75: 0.9 | AJ75: =cálculos2!P75 -> 4 | AK75: 1
A76: Metropolitana | B76: Viana | C76: 66 | D76: 77 | E76: 1.166666667 | F76: 42 | G76: 0.6363636364 | H76: 30 | I76: 0.4545454545 | J76: 74 | K76: 1.121212121 | L76: 77 | M76: 1.166666667 | N76: 80 | O76: 1.212121212 | P76: 83 | Q76: 1.257575758 | R76: 76 | S76: 1.151515152 | T76: 65 | U76: 0.9848484848 | V76: 67 | W76: 1.015151515 | X76: 72 | Y76: 1.090909091 | Z76: 78 | AA76: 1.181818182 | AB76: 81 | AC76: 1.227272727 | AE76: 1 | AF76: 0.01515151515 | AH76: =cálculos2!O76 -> 10 | AI76: 1 | AJ76: =cálculos2!P76 -> 4 | AK76: 1
A77: Norte | B77: Vila Pavão | C77: 9 | D77: 10 | E77: 1.111111111 | F77: 9 | G77: 1 | H77: 8 | I77: 0.8888888889 | J77: 13 | K77: 1.444444444 | L77: 10 | M77: 1.111111111 | N77: 10 | O77: 1.111111111 | P77: 6 | Q77: 0.6666666667 | R77: 8 | S77: 0.8888888889 | T77: 7 | U77: 0.7777777778 | V77: 8 | W77: 0.8888888889 | X77: 8 | Y77: 0.8888888889 | Z77: 18 | AA77: 2 | AB77: 7 | AC77: 0.7777777778 | AE77: 0 | AF77: 0 | AH77: =cálculos2!O77 -> 4 | AI77: 0.4 | AJ77: =cálculos2!P77 -> 2 | AK77: 0.5
A78: Central | B78: Vila Valério | C78: 12 | D78: 23 | E78: 1.916666667 | F78: 15 | G78: 1.25 | H78: 13 | I78: 1.083333333 | J78: 19 | K78: 1.583333333 | L78: 19 | M78: 1.583333333 | N78: 19 | O78: 1.583333333 | P78: 26 | Q78: 2.166666667 | R78: 20 | S78: 1.666666667 | T78: 23 | U78: 1.916666667 | V78: 17 | W78: 1.416666667 | X78: 10 | Y78: 0.8333333333 | Z78: 24 | AA78: 2 | AB78: 26 | AC78: 2.166666667 | AE78: 0 | AF78: 0 | AH78: =cálculos2!O78 -> 9 | AI78: 0.9 | AJ78: =cálculos2!P78 -> 3 | AK78: 0.75
A79: Metropolitana | B79: Vila Velha | C79: 476 | D79: 416 | E79: 0.8739495798 | F79: 299 | G79: 0.6281512605 | H79: 200 | I79: 0.4201680672 | J79: 408 | K79: 0.8571428571 | L79: 361 | M79: 0.7584033613 | N79: 354 | O79: 0.743697479 | P79: 431 | Q79: 0.9054621849 | R79: 420 | S79: 0.8823529412 | T79: 294 | U79: 0.6176470588 | V79: 387 | W79: 0.8130252101 | X79: 443 | Y79: 0.9306722689 | Z79: 364 | AA79: 0.7647058824 | AB79: 436 | AC79: 0.9159663866 | AE79: 19 | AF79: 0.03991596639 | AH79: =cálculos2!O79 -> 1 | AI79: 0.1 | AJ79: =cálculos2!P79 -> 0 | AK79: 0
A80: Metropolitana | B80: Vitória | C80: 274 | D80: 284 | E80: 1.03649635 | F80: 245 | G80: 0.8941605839 | H80: 197 | I80: 0.7189781022 | J80: 308 | K80: 1.124087591 | L80: 386 | M80: 1.408759124 | N80: 381 | O80: 1.390510949 | P80: 388 | Q80: 1.416058394 | R80: 350 | S80: 1.277372263 | T80: 224 | U80: 0.8175182482 | V80: 413 | W80: 1.50729927 | X80: 411 | Y80: 1.5 | Z80: 423 | AA80: 1.54379562 | AB80: 379 | AC80: 1.383211679 | AE80: 24 | AF80: 0.08759124088 | AH80: =cálculos2!O80 -> 9 | AI80: 0.9 | AJ80: =cálculos2!P80 -> 4 | AK80: 1
B82: Total Norte | C82: =SUMIF($A$3:$A$80,"Norte",C$3:C$80) -> 466 | D82: =SUMIF($A$3:$A$80,"Norte",D$3:D$80) -> 436 | E82: =D82/C82 -> 0.9356223176 | F82: =SUMIF($A$3:$A$80,"Norte",F$3:F$80) -> 354 | G82: =F82/C82 -> 0.7596566524 | H82: =SUMIF($A$3:$A$80,"Norte",H$3:H$80) -> 337 | I82: =H82/C82 -> 0.7231759657 | J82: =SUMIF($A$3:$A$80,"Norte",J$3:J$80) -> 372 | K82: =J82/C82 -> 0.7982832618 | L82: =SUMIF($A$3:$A$80,"Norte",L$3:L$80) -> 507 | M82: =L82/C82 -> 1.087982833 | N82: =SUMIF($A$3:$A$80,"Norte",N$3:N$80) -> 497 | O82: =N82/C82 -> 1.066523605 | P82: =SUMIF($A$3:$A$80,"Norte",P$3:P$80) -> 510 | Q82: =P82/C82 -> 1.094420601 | R82: =SUMIF($A$3:$A$80,"Norte",R$3:R$80) -> 467 | S82: =R82/C82 -> 1.002145923 | T82: =SUMIF($A$3:$A$80,"Norte",T$3:T$80) -> 412 | U82: =T82/C82 -> 0.8841201717 | V82: =SUMIF($A$3:$A$80,"Norte",V$3:V$80) -> 450 | W82: =V82/C82 -> 0.9656652361 | X82: =SUMIF($A$3:$A$80,"Norte",X$3:X$80) -> 442 | Y82: =X82/C82 -> 0.9484978541 | Z82: =SUMIF($A$3:$A$80,"Norte",Z$3:Z$80) -> 450 | AA82: =Z82/C82 -> 0.9656652361 | AB82: =SUMIF($A$3:$A$80,"Norte",AB$3:AB$80) -> 523 | AC82: =AB82/C82 -> 1.122317597 | AE82: =SUMIF($A$3:$A$80,"Norte",AE$3:AE$80) -> 1 | AF82: =AE82/C82 -> 0.002145922747 | AH82: =cálculos2!O82 -> 7 | AI82: =AH82*0.1 -> 0.7 | AJ82: =cálculos2!P82 -> 3 | AK82: 0.75
B83: Total Central | C83: =SUMIF($A$3:$A$80,"Central",C$3:C$80) -> 575 | D83: =SUMIF($A$3:$A$80,"Central",D$3:D$80) -> 593 | E83: =D83/C83 -> 1.031304348 | F83: =SUMIF($A$3:$A$80,"Central",F$3:F$80) -> 364 | G83: =F83/C83 -> 0.6330434783 | H83: =SUMIF($A$3:$A$80,"Central",H$3:H$80) -> 288 | I83: =H83/C83 -> 0.5008695652 | J83: =SUMIF($A$3:$A$80,"Central",J$3:J$80) -> 585 | K83: =J83/C83 -> 1.017391304 | L83: =SUMIF($A$3:$A$80,"Central",L$3:L$80) -> 602 | M83: =L83/C83 -> 1.046956522 | N83: =SUMIF($A$3:$A$80,"Central",N$3:N$80) -> 587 | O83: =N83/C83 -> 1.020869565 | P83: =SUMIF($A$3:$A$80,"Central",P$3:P$80) -> 608 | Q83: =P83/C83 -> 1.057391304 | R83: =SUMIF($A$3:$A$80,"Central",R$3:R$80) -> 604 | S83: =R83/C83 -> 1.050434783 | T83: =SUMIF($A$3:$A$80,"Central",T$3:T$80) -> 496 | U83: =T83/C83 -> 0.8626086957 | V83: =SUMIF($A$3:$A$80,"Central",V$3:V$80) -> 546 | W83: =V83/C83 -> 0.9495652174 | X83: =SUMIF($A$3:$A$80,"Central",X$3:X$80) -> 528 | Y83: =X83/C83 -> 0.9182608696 | Z83: =SUMIF($A$3:$A$80,"Central",Z$3:Z$80) -> 610 | AA83: =Z83/C83 -> 1.060869565 | AB83: =SUMIF($A$3:$A$80,"Central",AB$3:AB$80) -> 622 | AC83: =AB83/C83 -> 1.08173913 | AE83: =SUMIF($A$3:$A$80,"Central",AE$3:AE$80) -> 16 | AF83: =AE83/C83 -> 0.02782608696 | AH83: =cálculos2!O83 -> 7 | AI83: =AH83*0.1 -> 0.7 | AJ83: =cálculos2!P83 -> 3 | AK83: 0.75
B84: Total Metropolitana | C84: =SUMIF($A$3:$A$80,"Metropolitana",C$3:C$80) -> 2438 | D84: =SUMIF($A$3:$A$80,"Metropolitana",D$3:D$80) -> 2235 | E84: =D84/C84 -> 0.9167350287 | F84: =SUMIF($A$3:$A$80,"Metropolitana",F$3:F$80) -> 1623 | G84: =F84/C84 -> 0.665709598 | H84: =SUMIF($A$3:$A$80,"Metropolitana",H$3:H$80) -> 1207 | I84: 0.4950779327 | J84: =SUMIF($A$3:$A$80,"Metropolitana",J$3:J$80) -> 2210 | K84: =J84/C84 -> 0.9064807219 | L84: =SUMIF($A$3:$A$80,"Metropolitana",L$3:L$80) -> 2452 | M84: =L84/C84 -> 1.005742412 | N84: =SUMIF($A$3:$A$80,"Metropolitana",N$3:N$80) -> 2416 | O84: =N84/C84 -> 0.99097621 | P84: =SUMIF($A$3:$A$80,"Metropolitana",P$3:P$80) -> 2440 | Q84: =P84/C84 -> 1.000820345 | R84: =SUMIF($A$3:$A$80,"Metropolitana",R$3:R$80) -> 2466 | S84: =R84/C84 -> 1.011484824 | T84: =SUMIF($A$3:$A$80,"Metropolitana",T$3:T$80) -> 1887 | U84: =T84/C84 -> 0.7739950779 | V84: =SUMIF($A$3:$A$80,"Metropolitana",V$3:V$80) -> 2427 | W84: =V84/C84 -> 0.995488105 | X84: =SUMIF($A$3:$A$80,"Metropolitana",X$3:X$80) -> 2547 | Y84: =X84/C84 -> 1.044708778 | Z84: =SUMIF($A$3:$A$80,"Metropolitana",Z$3:Z$80) -> 2381 | AA84: =Z84/C84 -> 0.9766201805 | AB84: =SUMIF($A$3:$A$80,"Metropolitana",AB$3:AB$80) -> 2481 | AC84: =AB84/C84 -> 1.017637408 | AE84: =SUMIF($A$3:$A$80,"Metropolitana",AE$3:AE$80) -> 78 | AF84: =AE84/C84 -> 0.03199343724 | AH84: =cálculos2!O84 -> 9 | AI84: 0.9 | AJ84: =cálculos2!P84 -> 4 | AK84: 1
B85: Total Sul | C85: =SUMIF($A$3:$A$80,"sul",C$3:C$80) -> 689 | D85: =SUMIF($A$3:$A$80,"Sul",D$3:D$80) -> 667 | E85: =D85/C85 -> 0.9680696662 | F85: =SUMIF($A$3:$A$80,"Sul",F$3:F$80) -> 490 | G85: =F85/C85 -> 0.7111756168 | H85: =SUMIF($A$3:$A$80,"Sul",H$3:H$80) -> 302 | I85: 0.4383164006 | J85: =SUMIF($A$3:$A$80,"Sul",J$3:J$80) -> 656 | K85: =J85/C85 -> 0.9521044993 | L85: =SUMIF($A$3:$A$80,"Sul",L$3:L$80) -> 700 | M85: =L85/C85 -> 1.015965167 | N85: =SUMIF($A$3:$A$80,"Sul",N$3:N$80) -> 693 | O85: =N85/C85 -> 1.005805515 | P85: =SUMIF($A$3:$A$80,"Sul",P$3:P$80) -> 681 | Q85: =P85/C85 -> 0.9883889695 | R85: =SUMIF($A$3:$A$80,"Sul",R$3:R$80) -> 718 | S85: =R85/C85 -> 1.042089985 | T85: =SUMIF($A$3:$A$80,"Sul",T$3:T$80) -> 625 | U85: =T85/C85 -> 0.9071117562 | V85: =SUMIF($A$3:$A$80,"Sul",V$3:V$80) -> 690 | W85: =V85/C85 -> 1.001451379 | X85: =SUMIF($A$3:$A$80,"Sul",X$3:X$80) -> 648 | Y85: =X85/C85 -> 0.9404934688 | Z85: =SUMIF($A$3:$A$80,"Sul",Z$3:Z$80) -> 705 | AA85: =Z85/C85 -> 1.023222061 | AB85: =SUMIF($A$3:$A$80,"Sul",AB$3:AB$80) -> 686 | AC85: =AB85/C85 -> 0.9956458636 | AE85: =SUMIF($A$3:$A$80,"Sul",AE$3:AE$80) -> 24 | AF85: =AE85/C85 -> 0.03483309144 | AH85: =cálculos2!O85 -> 8 | AI85: 0.8 | AJ85: =cálculos2!P85 -> 3 | AK85: 0.75
B86: Total Espírito Santo | C86: =SUM(C3:C80) -> 4168 | D86: =SUM(D82:D85) -> 3931 | E86: =D86/C86 -> 0.9431381958 | F86: =SUM(F82:F85) -> 2831 | G86: =F86/C86 -> 0.6792226488 | H86: =SUM(H82:H85) -> 2134 | I86: 0.5119961612 | J86: =SUM(J82:J85) -> 3823 | K86: =J86/C86 -> 0.9172264875 | L86: =SUM(L82:L85) -> 4261 | M86: =L86/C86 -> 1.02231286 | N86: =SUM(N82:N85) -> 4193 | O86: =N86/C86 -> 1.005998081 | P86: =SUM(P82:P85) -> 4239 | Q86: =P86/C86 -> 1.017034549 | R86: =SUM(R82:R85) -> 4255 | S86: =R86/C86 -> 1.020873321 | T86: =SUM(T82:T85) -> 3420 | U86: =T86/C86 -> 0.820537428 | V86: =SUM(V82:V85) -> 4113 | W86: =V86/C86 -> 0.9868042226 | X86: =SUM(X82:X85) -> 4165 | Y86: =X86/C86 -> 0.9992802303 | Z86: =SUM(Z82:Z85) -> 4146 | AA86: =Z86/C86 -> 0.9947216891 | AB86: =SUM(AB82:AB85) -> 4312 | AC86: =AB86/C86 -> 1.034548944 | AE86: =SUM(AE82:AE85) -> 119 | AF86: =AE86/C86 -> 0.02855086372 | AH86: =cálculos2!O86 -> 9 | AI86: 0.9 | AJ86: =cálculos2!P86 -> 4 | AK86: 1
D87: =COUNTIF(E3:E80,">=0,95") -> 40 | F87: =COUNTIF(G3:G80,">=0,95") -> 16 | H87: =COUNTIF(I3:I80,">=0,95") -> 7 | J87: =COUNTIF(K3:K80,">=0,9") -> 41 | L87: =COUNTIF(M3:M80,">=0,95") -> 50 | N87: =COUNTIF(O3:O80,">=0,95") -> 47 | P87: =COUNTIF(Q3:Q80,">=0,95") -> 49 | R87: =COUNTIF(S3:S80,">=0,95") -> 49 | T87: =COUNTIF(U3:U80,">=0,95") -> 35 | V87: =COUNTIF(W3:W80,">=0,95") -> 43 | X87: =COUNTIF(Y3:Y80,">=0,95") -> 40 | Z87: =COUNTIF(AA3:AA80,">=0,95") -> 46 | AB87: =COUNTIF(AC3:AC80,">=0,9") -> 56 | AE87: =COUNTIF(AF3:AF80,">=0,9") -> 0
B88: HOMOGENEIDADE ENTRE MUNICÍPIOS | D88: =D87/78 -> 0.5128205128 | F88: =F87/78 -> 0.2051282051 | H88: =H87/78 -> 0.08974358974 | J88: =J87/78 -> 0.5256410256 | L88: =L87/78 -> 0.641025641 | N88: =N87/78 -> 0.6025641026 | P88: =P87/78 -> 0.6282051282 | R88: =R87/78 -> 0.6282051282 | T88: =T87/78 -> 0.4487179487 | V88: =V87/78 -> 0.5512820513 | X88: =X87/78 -> 0.5128205128 | Z88: =Z87/78 -> 0.5897435897 | AB88: =AB87/78 -> 0.7179487179 | AE88: =AE87/78 -> 0
A91: Fonte: Vacina e Confia, em 25 de janeiro de 2026.**<https://vacinaeconfia.saude.es.gov.br/>
A92: **Dados referente às doses aplicadas no período de janeiro de 2026
A93: Cobertura Calculada por município de residência do vacinado
A94: 1 População estimada extraída do MS/SVS/DASIS - SINASC/DASIS/SVS/MS 2025 referente ao período de janeiro de 2025.
A95: Sinasc, atualizado em 06/02/2026
A96: Método de Cálculo Simples
A97: Homogeineidade: O cálculo da Homogeineidade entre vacinas é feito de acordo com a pactuação estabelecida no Plano Plurianual (PPA) vigente no período 2024-2027.
A100: Observações referente a distribuição de imunobiológicos que podem afetar a cobertura vacinal:
A102: 1. Vacinas que foram recebidas parcialmente pelo estado no mês de Janeiro/2026, sendo distribuídos em quantidades reduzidas às regionais e municípios:
A103: IMUNOGLOBULINA ANTIRRÁBICA HUMANA; SORO ANTIRRÁBICO HUMANO
A104: 2. Vacinas indisponíveis no mês de dezembro/2025, não sendo possível a distribuição às regionais e municípios:
A105: VACINA TETRA VIRAL, IMUNOGLOBULINA HUMANA ANTIVARICELA (ZOSTER) – 125UI
A106: 3. Vacinas enviadas por Pautas aguardando abastecimento do estoque estadual;
A107: VACINA COVID-19 PFIZER PEDIÁTRICA MENOR QUE 5 ANOS; VACINA COVID-19 PFIZER PEDIÁTRICA,
A109: Fonte: Informes situacionais de distribuição de imunobiológicos em https://saude.es.gov.br/GrupodeArquivos/informes-situacionais-de-distribuicao-de-imunobiologicos

Sheet CV REF 1A e 4A - procedência
E1: D2 | I1: REFORÇOS 1 ANO | Q1: REFORÇOS 4 ANOS
A2: Regional | B2: Município | C2: ¹População 1 ano | D2: ²População 4 anos | E2: DOSES APLICADAS D2 TRÍPLICE VIRAL | F2: COBERTURA D2 TRÍPLICE VIRAL | G2: DOSES APLICADAS D2 VARICELA | H2: COBERTURA D2 VARICELA | I2: DOSES APLICADAS REF PNEUMO | J2: COBERTURA REF PNEUMO | K2: DOSES APLICADAS REF MENINGO | L2: COBERTURA REF MENINGO | M2: DOSES APLICADAS REF POLIO | N2: COBERTURA REF POLIO | O2: DOSES APLICADAS R1 TRÍPLICE BACTERIANA | P2: COBERTURA R1 TRÍPLICE BACTERIANA | Q2: DOSES APLICADAS REF FEBRE AMARELA | R2: COBERTURA REF FEBRE AMARELA | S2: DOSES APLICADAS R2 TRÍPLICE BACTERIANA | T2: COBERTURA R2 TRÍPLICE BACTERIANA
A3: Metropolitana | B3: Afonso Cláudio | C3: 31 | D3: 416 | E3: 21 | F3: =E3/C3 -> 0.6774193548 | G3: 391 | H3: =G3/D3 -> 0.9399038462 | I3: 21 | J3: =I3/C3 -> 0.6774193548 | K3: 21 | L3: =K3/C3 -> 0.6774193548 | M3: 24 | N3: =M3/C3 -> 0.7741935484 | O3: 24 | P3: =O3/C3 -> 0.7741935484 | Q3: 363 | R3: =Q3/D3 -> 0.8725961538 | S3: 360 | T3: =S3/D3 -> 0.8653846154
A4: Norte | B4: Água Doce do Norte | C4: 11 | D4: 151 | E4: 13 | F4: 1.181818182 | G4: 84 | H4: 0.5562913907 | I4: 10 | J4: 0.9090909091 | K4: 11 | L4: 1 | M4: 12 | N4: 1.090909091 | O4: 18 | P4: 1.636363636 | Q4: 113 | R4: 0.7483443709 | S4: 125 | T4: 0.8278145695
A5: Central | B5: Águia Branca | C5: 14 | D5: 129 | E5: 10 | F5: 0.7142857143 | G5: 129 | H5: 1 | I5: 9 | J5: 0.6428571429 | K5: 10 | L5: 0.7142857143 | M5: 9 | N5: 0.6428571429 | O5: 9 | P5: 0.6428571429 | Q5: 118 | R5: 0.9147286822 | S5: 119 | T5: 0.9224806202
A6: Sul | B6: Alegre | C6: 24 | D6: 372 | E6: 26 | F6: 1.083333333 | G6: 334 | H6: 0.8978494624 | I6: 26 | J6: 1.083333333 | K6: 23 | L6: 0.9583333333 | M6: 25 | N6: 1.041666667 | O6: 25 | P6: 1.041666667 | Q6: 296 | R6: 0.7956989247 | S6: 311 | T6: 0.8360215054
A7: Sul | B7: Alfredo Chaves | C7: 11 | D7: 138 | E7: 13 | F7: 1.181818182 | G7: 156 | H7: 1.130434783 | I7: 10 | J7: 0.9090909091 | K7: 13 | L7: 1.181818182 | M7: 14 | N7: 1.272727273 | O7: 14 | P7: 1.272727273 | Q7: 123 | R7: 0.8913043478 | S7: 129 | T7: 0.9347826087
A8: Central | B8: Alto Rio Novo | C8: 7 | D8: 102 | E8: 8 | F8: 1.142857143 | G8: 156 | H8: 1.529411765 | I8: 5 | J8: 0.7142857143 | K8: 5 | L8: 0.7142857143 | M8: 6 | N8: 0.8571428571 | O8: 6 | P8: 0.8571428571 | Q8: 110 | R8: 1.078431373 | S8: 111 | T8: 1.088235294
A9: Sul | B9: Anchieta | C9: 24 | D9: 390 | E9: 42 | F9: 1.75 | G9: 411 | H9: 1.053846154 | I9: 30 | J9: 1.25 | K9: 29 | L9: 1.208333333 | M9: 38 | N9: 1.583333333 | O9: 39 | P9: 1.625 | Q9: 368 | R9: 0.9435897436 | S9: 382 | T9: 0.9794871795
A10: Sul | B10: Apiacá | C10: 4 | D10: 90 | E10: 7 | F10: 1.75 | G10: 104 | H10: 1.155555556 | I10: 9 | J10: 2.25 | K10: 9 | L10: 2.25 | M10: 6 | N10: 1.5 | O10: 5 | P10: 1.25 | Q10: 26 | R10: 0.2888888889 | S10: 82 | T10: 0.9111111111
A11: Metropolitana | B11: Aracruz | C11: 125 | D11: 1420 | E11: 124 | F11: 0.992 | G11: 1572 | H11: 1.107042254 | I11: 112 | J11: 0.896 | K11: 118 | L11: 0.944 | M11: 122 | N11: 0.976 | O11: 116 | P11: 0.928 | Q11: 1225 | R11: 0.8626760563 | S11: 1350 | T11: 0.9507042254
A12: Sul | B12: Atilio Vivacqua | C12: 17 | D12: 138 | E12: 23 | F12: 1.352941176 | G12: 203 | H12: 1.471014493 | I12: 17 | J12: 1 | K12: 9 | L12: 0.5294117647 | M12: 21 | N12: 1.235294118 | O12: 20 | P12: 1.176470588 | Q12: 150 | R12: 1.086956522 | S12: 155 | T12: 1.123188406
A13: Central | B13: Baixo Guandu | C13: 32 | D13: 427 | E13: 21 | F13: 0.65625 | G13: 447 | H13: 1.046838407 | I13: 37 | J13: 1.15625 | K13: 36 | L13: 1.125 | M13: 23 | N13: 0.71875 | O13: 24 | P13: 0.75 | Q13: 378 | R13: 0.8852459016 | S13: 401 | T13: 0.9391100703
A14: Norte | B14: Barra de São Francisco | C14: 54 | D14: 589 | E14: 44 | F14: 0.8148148148 | G14: 551 | H14: 0.935483871 | I14: 54 | J14: 1 | K14: 55 | L14: 1.018518519 | M14: 45 | N14: 0.8333333333 | O14: 32 | P14: 0.5925925926 | Q14: 448 | R14: 0.7606112054 | S14: 464 | T14: 0.7877758913
A15: Norte | B15: Boa Esperança | C15: 17 | D15: 200 | E15: 21 | F15: 1.235294118 | G15: 186 | H15: 0.93 | I15: 14 | J15: 0.8235294118 | K15: 13 | L15: 0.7647058824 | M15: 20 | N15: 1.176470588 | O15: 19 | P15: 1.117647059 | Q15: 104 | R15: 0.52 | S15: 142 | T15: 0.71
A16: Sul | B16: Bom Jesus do Norte | C16: 5 | D16: 146 | E16: 5 | F16: 1 | G16: 191 | H16: 1.308219178 | I16: 10 | J16: 2 | K16: 10 | L16: 2 | M16: 9 | N16: 1.8 | O16: 8 | P16: 1.6 | Q16: 109 | R16: 0.7465753425 | S16: 145 | T16: 0.9931506849
A17: Metropolitana | B17: Brejetuba | C17: 18 | D17: 169 | E17: 25 | F17: 1.388888889 | G17: 334 | H17: 1.976331361 | I17: 23 | J17: 1.277777778 | K17: 24 | L17: 1.333333333 | M17: 24 | N17: 1.333333333 | O17: 24 | P17: 1.333333333 | Q17: 207 | R17: 1.224852071 | S17: 203 | T17: 1.201183432
A18: Sul | B18: Cachoeiro de Itapemirim | C18: 204 | D18: 2417 | E18: 196 | F18: 0.9607843137 | G18: 2115 | H18: 0.875051717 | I18: 176 | J18: 0.862745098 | K18: 148 | L18: 0.7254901961 | M18: 173 | N18: 0.8480392157 | O18: 177 | P18: 0.8676470588 | Q18: 1829 | R18: 0.7567232106 | S18: 2202 | T18: 0.9110467522
A19: Metropolitana | B19: Cariacica | C19: 408 | D19: 5005 | E19: 362 | F19: 0.887254902 | G19: 3501 | H19: 0.6995004995 | I19: 446 | J19: 1.093137255 | K19: 456 | L19: 1.117647059 | M19: 361 | N19: 0.8848039216 | O19: 373 | P19: 0.9142156863 | Q19: 3328 | R19: 0.6649350649 | S19: 4081 | T19: 0.8153846154
A20: Sul | B20: Castelo | C20: 39 | D20: 399 | E20: 38 | F20: 0.9743589744 | G20: 458 | H20: 1.147869674 | I20: 36 | J20: 0.9230769231 | K20: 33 | L20: 0.8461538462 | M20: 37 | N20: 0.9487179487 | O20: 39 | P20: 1 | Q20: 343 | R20: 0.8596491228 | S20: 371 | T20: 0.9298245614
A21: Central | B21: Colatina | C21: 123 | D21: 1561 | E21: 130 | F21: 1.056910569 | G21: 1218 | H21: 0.7802690583 | I21: 112 | J21: 0.9105691057 | K21: 118 | L21: 0.9593495935 | M21: 111 | N21: 0.9024390244 | O21: 110 | P21: 0.8943089431 | Q21: 991 | R21: 0.6348494555 | S21: 1083 | T21: 0.6937860346
A22: Norte | B22: Conceição da Barra | C22: 32 | D22: 391 | E22: 30 | F22: 0.9375 | G22: 483 | H22: 1.235294118 | I22: 23 | J22: 0.71875 | K22: 24 | L22: 0.75 | M22: 24 | N22: 0.75 | O22: 20 | P22: 0.625 | Q22: 422 | R22: 1.079283887 | S22: 401 | T22: 1.025575448
A23: Metropolitana | B23: Conceição do Castelo | C23: 12 | D23: 144 | E23: 9 | F23: 0.75 | G23: 271 | H23: 1.881944444 | I23: 12 | J23: 1 | K23: 8 | L23: 0.6666666667 | M23: 9 | N23: 0.75 | O23: 10 | P23: 0.8333333333 | Q23: 160 | R23: 1.111111111 | S23: 149 | T23: 1.034722222
A24: Sul | B24: Divino de São Lourenço | C24: 6 | D24: 68 | E24: 2 | F24: 0.3333333333 | G24: 170 | H24: 2.5 | I24: 4 | J24: 0.6666666667 | K24: 4 | L24: 0.6666666667 | M24: 2 | N24: 0.3333333333 | O24: 2 | P24: 0.3333333333 | Q24: 57 | R24: 0.8382352941 | S24: 59 | T24: 0.8676470588
A25: Metropolitana | B25: Domingos Martins | C25: 36 | D25: 411 | E25: 25 | F25: 0.6944444444 | G25: 543 | H25: 1.321167883 | I25: 19 | J25: 0.5277777778 | K25: 24 | L25: 0.6666666667 | M25: 24 | N25: 0.6666666667 | O25: 24 | P25: 0.6666666667 | Q25: 348 | R25: 0.8467153285 | S25: 389 | T25: 0.9464720195
A26: Sul | B26: Dores do Rio Preto | C26: 9 | D26: 92 | E26: 9 | F26: 1 | G26: 187 | H26: 2.032608696 | I26: 8 | J26: 0.8888888889 | K26: 8 | L26: 0.8888888889 | M26: 8 | N26: 0.8888888889 | O26: 8 | P26: 0.8888888889 | Q26: 78 | R26: 0.847826087 | S26: 87 | T26: 0.9456521739
A27: Norte | B27: Ecoporanga | C27: 18 | D27: 283 | E27: 22 | F27: 1.222222222 | G27: 369 | H27: 1.303886926 | I27: 17 | J27: 0.9444444444 | K27: 17 | L27: 0.9444444444 | M27: 23 | N27: 1.277777778 | O27: 25 | P27: 1.388888889 | Q27: 218 | R27: 0.7703180212 | S27: 243 | T27: 0.8586572438
A28: Metropolitana | B28: Fundão | C28: 22 | D28: 218 | E28: 21 | F28: 0.9545454545 | G28: 325 | H28: 1.490825688 | I28: 22 | J28: 1 | K28: 18 | L28: 0.8181818182 | M28: 19 | N28: 0.8636363636 | O28: 19 | P28: 0.8636363636 | Q28: 188 | R28: 0.8623853211 | S28: 219 | T28: 1.004587156
A29: Central | B29: Governador Lindenberg | C29: 11 | D29: 142 | E29: 5 | F29: 0.4545454545 | G29: 260 | H29: 1.830985915 | I29: 8 | J29: 0.7272727273 | K29: 9 | L29: 0.8181818182 | M29: 7 | N29: 0.6363636364 | O29: 7 | P29: 0.6363636364 | Q29: 158 | R29: 1.112676056 | S29: 153 | T29: 1.077464789
A30: Sul | B30: Guaçuí | C30: 25 | D30: 407 | E30: 23 | F30: 0.92 | G30: 465 | H30: 1.142506143 | I30: 31 | J30: 1.24 | K30: 33 | L30: 1.32 | M30: 19 | N30: 0.76 | O30: 20 | P30: 0.8 | Q30: 376 | R30: 0.9238329238 | S30: 359 | T30: 0.8820638821
A31: Metropolitana | B31: Guarapari | C31: 129 | D31: 1557 | E31: 102 | F31: 0.7906976744 | G31: 1583 | H31: 1.01669878 | I31: 147 | J31: 1.139534884 | K31: 135 | L31: 1.046511628 | M31: 126 | N31: 0.976744186 | O31: 127 | P31: 0.984496124 | Q31: 1128 | R31: 0.7244701349 | S31: 1432 | T31: 0.9197174053
A32: Metropolitana | B32: Ibatiba | C32: 30 | D32: 354 | E32: 38 | F32: 1.266666667 | G32: 411 | H32: 1.161016949 | I32: 40 | J32: 1.333333333 | K32: 34 | L32: 1.133333333 | M32: 34 | N32: 1.133333333 | O32: 35 | P32: 1.166666667 | Q32: 340 | R32: 0.9604519774 | S32: 376 | T32: 1.062146893
A33: Metropolitana | B33: Ibiraçu | C33: 8 | D33: 160 | E33: 20 | F33: 2.5 | G33: 290 | H33: 1.8125 | I33: 4 | J33: 0.5 | K33: 5 | L33: 0.625 | M33: 18 | N33: 2.25 | O33: 19 | P33: 2.375 | Q33: 132 | R33: 0.825 | S33: 135 | T33: 0.84375
A34: Sul | B34: Ibitirama | C34: 10 | D34: 148 | E34: 15 | F34: 1.5 | G34: 271 | H34: 1.831081081 | I34: 14 | J34: 1.4 | K34: 14 | L34: 1.4 | M34: 17 | N34: 1.7 | O34: 18 | P34: 1.8 | Q34: 139 | R34: 0.9391891892 | S34: 132 | T34: 0.8918918919
A35: Sul | B35: Iconha | C35: 10 | D35: 156 | E35: 12 | F35: =E35/C35 -> 1.2 | G35: 315 | H35: =G35/D35 -> 2.019230769 | I35: 10 | J35: =I35/C35 -> 1 | K35: 9 | L35: =K35/C35 -> 0.9 | M35: 11 | N35: =M35/C35 -> 1.1 | O35: 11 | P35: =O35/C35 -> 1.1 | Q35: 126 | R35: =Q35/D35 -> 0.8076923077 | S35: 127 | T35: =S35/D35 -> 0.8141025641
A36: Sul | B36: Irupi | C36: 18 | D36: 200 | E36: 11 | F36: 0.6111111111 | G36: 303 | H36: 1.515 | I36: 13 | J36: 0.7222222222 | K36: 8 | L36: 0.4444444444 | M36: 11 | N36: 0.6111111111 | O36: 11 | P36: 0.6111111111 | Q36: 176 | R36: 0.88 | S36: 173 | T36: 0.865
A37: Metropolitana | B37: Itaguaçu | C37: 13 | D37: 154 | E37: 16 | F37: 1.230769231 | G37: 308 | H37: 2 | I37: 8 | J37: 0.6153846154 | K37: 8 | L37: 0.6153846154 | M37: 13 | N37: 1 | O37: 13 | P37: 1 | Q37: 137 | R37: 0.8896103896 | S37: 136 | T37: 0.8831168831
A38: Sul | B38: Itapemirim | C38: 53 | D38: 556 | E38: 21 | F38: 0.3962264151 | G38: 554 | H38: 0.9964028777 | I38: 44 | J38: 0.8301886792 | K38: 39 | L38: 0.7358490566 | M38: 35 | N38: 0.6603773585 | O38: 41 | P38: 0.7735849057 | Q38: 316 | R38: 0.5683453237 | S38: 465 | T38: 0.8363309353
A39: Metropolitana | B39: Itarana | C39: 8 | D39: 128 | E39: 12 | F39: 1.5 | G39: 268 | H39: 2.09375 | I39: 5 | J39: 0.625 | K39: 6 | L39: 0.75 | M39: 13 | N39: 1.625 | O39: 11 | P39: 1.375 | Q39: 103 | R39: 0.8046875 | S39: 100 | T39: 0.78125
A40: Sul | B40: Iúna | C40: 34 | D40: 410 | E40: 30 | F40: 0.8823529412 | G40: 495 | H40: 1.207317073 | I40: 35 | J40: 1.029411765 | K40: 38 | L40: 1.117647059 | M40: 26 | N40: 0.7647058824 | O40: 28 | P40: 0.8235294118 | Q40: 352 | R40: 0.8585365854 | S40: 389 | T40: 0.9487804878
A41: Norte | B41: Jaguaré | C41: 46 | D41: 445 | E41: 37 | F41: 0.8043478261 | G41: 537 | H41: 1.206741573 | I41: 32 | J41: 0.6956521739 | K41: 40 | L41: 0.8695652174 | M41: 32 | N41: 0.6956521739 | O41: 33 | P41: 0.7173913043 | Q41: 361 | R41: 0.8112359551 | S41: 433 | T41: 0.9730337079
A42: Sul | B42: Jerônimo Monteiro | C42: 12 | D42: 157 | E42: 13 | F42: 1.083333333 | G42: 301 | H42: 1.917197452 | I42: 9 | J42: 0.75 | K42: 8 | L42: 0.6666666667 | M42: 14 | N42: 1.166666667 | O42: 14 | P42: 1.166666667 | Q42: 95 | R42: 0.6050955414 | S42: 140 | T42: 0.8917197452
A43: Metropolitana | B43: João Neiva | C43: 5 | D43: 142 | E43: 14 | F43: 2.8 | G43: 323 | H43: 2.274647887 | I43: 9 | J43: 1.8 | K43: 10 | L43: 2 | M43: 11 | N43: 2.2 | O43: 12 | P43: 2.4 | Q43: 121 | R43: 0.8521126761 | S43: 143 | T43: 1.007042254
A44: Metropolitana | B44: Laranja da Terra | C44: 9 | D44: 133 | E44: 15 | F44: 1.666666667 | G44: 300 | H44: 2.255639098 | I44: 10 | J44: 1.111111111 | K44: 9 | L44: 1 | M44: 15 | N44: 1.666666667 | O44: 15 | P44: 1.666666667 | Q44: 95 | R44: 0.7142857143 | S44: 108 | T44: 0.8120300752
A45: Central | B45: Linhares | C45: 237 | D45: 2452 | E45: 196 | F45: 0.8270042194 | G45: 2111 | H45: 0.8609298532 | I45: 184 | J45: 0.776371308 | K45: 199 | L45: 0.8396624473 | M45: 190 | N45: 0.8016877637 | O45: 211 | P45: 0.8902953586 | Q45: 1688 | R45: 0.6884176183 | S45: 2137 | T45: 0.8715334421
A46: Central | B46: Mantenópolis | C46: 14 | D46: 166 | E46: 8 | F46: 0.5714285714 | G46: 327 | H46: 1.969879518 | I46: 8 | J46: 0.5714285714 | K46: 8 | L46: 0.5714285714 | M46: 9 | N46: 0.6428571429 | O46: 9 | P46: 0.6428571429 | Q46: 184 | R46: 1.108433735 | S46: 191 | T46: 1.15060241
A47: Sul | B47: Marataízes | C47: 45 | D47: 579 | E47: 46 | F47: 1.022222222 | G47: 806 | H47: 1.392055268 | I47: 25 | J47: 0.5555555556 | K47: 26 | L47: 0.5777777778 | M47: 43 | N47: 0.9555555556 | O47: 43 | P47: 0.9555555556 | Q47: 397 | R47: 0.6856649396 | S47: 594 | T47: 1.025906736
A48: Metropolitana | B48: Marechal Floriano | C48: 24 | D48: 236 | E48: 9 | F48: 0.375 | G48: 433 | H48: 1.834745763 | I48: 18 | J48: 0.75 | K48: 17 | L48: 0.7083333333 | M48: 9 | N48: 0.375 | O48: 9 | P48: 0.375 | Q48: 204 | R48: 0.8644067797 | S48: 248 | T48: 1.050847458
A49: Central | B49: Marilândia | C49: 13 | D49: 164 | E49: 11 | F49: 0.8461538462 | G49: 371 | H49: 2.262195122 | I49: 9 | J49: 0.6923076923 | K49: 12 | L49: 0.9230769231 | M49: 11 | N49: 0.8461538462 | O49: 11 | P49: 0.8461538462 | Q49: 154 | R49: 0.9390243902 | S49: 144 | T49: 0.8780487805
A50: Sul | B50: Mimoso do Sul | C50: 25 | D50: 276 | E50: 22 | F50: 0.88 | G50: 380 | H50: 1.376811594 | I50: 28 | J50: 1.12 | K50: 22 | L50: 0.88 | M50: 23 | N50: 0.92 | O50: 19 | P50: 0.76 | Q50: 193 | R50: 0.6992753623 | S50: 209 | T50: 0.7572463768
A51: Norte | B51: Montanha | C51: 21 | D51: 278 | E51: 24 | F51: 1.142857143 | G51: 471 | H51: 1.694244604 | I51: 28 | J51: 1.333333333 | K51: 21 | L51: 1 | M51: 25 | N51: 1.19047619 | O51: 26 | P51: 1.238095238 | Q51: 202 | R51: 0.726618705 | S51: 215 | T51: 0.773381295
A52: Norte | B52: Mucurici | C52: 4 | D52: 97 | E52: 11 | F52: 2.75 | G52: 261 | H52: 2.690721649 | I52: 0 | J52: 0 | K52: 2 | L52: 0.5 | M52: 9 | N52: 2.25 | O52: 8 | P52: 2 | Q52: 63 | R52: 0.6494845361 | S52: 60 | T52: 0.618556701
A53: Sul | B53: Muniz Freire | C53: 19 | D53: 275 | E53: 19 | F53: 1 | G53: 338 | H53: 1.229090909 | I53: 15 | J53: 0.7894736842 | K53: 18 | L53: 0.9473684211 | M53: 18 | N53: 0.9473684211 | O53: 19 | P53: 1 | Q53: 223 | R53: 0.8109090909 | S53: 237 | T53: 0.8618181818
A54: Sul | B54: Muqui | C54: 9 | D54: 152 | E54: 9 | F54: 1 | G54: 386 | H54: 2.539473684 | I54: 9 | J54: 1 | K54: 10 | L54: 1.111111111 | M54: 9 | N54: 1 | O54: 9 | P54: 1 | Q54: 164 | R54: 1.078947368 | S54: 166 | T54: 1.092105263
A55: Norte | B55: Nova Venécia | C55: 55 | D55: 656 | E55: 57 | F55: 1.036363636 | G55: 841 | H55: 1.282012195 | I55: 59 | J55: 1.072727273 | K55: 68 | L55: 1.236363636 | M55: 52 | N55: 0.9454545455 | O55: 56 | P55: 1.018181818 | Q55: 486 | R55: 0.7408536585 | S55: 598 | T55: 0.9115853659
A56: Central | B56: Pancas | C56: 20 | D56: 244 | E56: 15 | F56: 0.75 | G56: 468 | H56: 1.918032787 | I56: 13 | J56: 0.65 | K56: 14 | L56: 0.7 | M56: 15 | N56: 0.75 | O56: 14 | P56: 0.7 | Q56: 151 | R56: 0.618852459 | S56: 204 | T56: 0.8360655738
A57: Norte | B57: Pedro Canário | C57: 30 | D57: 338 | E57: 24 | F57: 0.8 | G57: 574 | H57: 1.698224852 | I57: 22 | J57: 0.7333333333 | K57: 25 | L57: 0.8333333333 | M57: 23 | N57: 0.7666666667 | O57: 20 | P57: 0.6666666667 | Q57: 286 | R57: 0.8461538462 | S57: 321 | T57: 0.949704142
A58: Norte | B58: Pinheiros | C58: 26 | D58: 383 | E58: 22 | F58: 0.8461538462 | G58: 501 | H58: 1.308093995 | I58: 15 | J58: 0.5769230769 | K58: 15 | L58: 0.5769230769 | M58: 23 | N58: 0.8846153846 | O58: 22 | P58: 0.8461538462 | Q58: 234 | R58: 0.6109660574 | S58: 277 | T58: 0.7232375979
A59: Sul | B59: Piúma | C59: 29 | D59: 311 | E59: 27 | F59: 0.9310344828 | G59: 482 | H59: 1.549839228 | I59: 28 | J59: 0.9655172414 | K59: 14 | L59: 0.4827586207 | M59: 26 | N59: 0.8965517241 | O59: 28 | P59: 0.9655172414 | Q59: 238 | R59: 0.7652733119 | S59: 273 | T59: 0.8778135048
A60: Norte | B60: Ponto Belo | C60: 6 | D60: 85 | E60: 8 | F60: 1.333333333 | G60: 343 | H60: 4.035294118 | I60: 4 | J60: 0.6666666667 | K60: 4 | L60: 0.6666666667 | M60: 7 | N60: 1.166666667 | O60: 7 | P60: 1.166666667 | Q60: 101 | R60: 1.188235294 | S60: 103 | T60: 1.211764706
A61: Sul | B61: Presidente Kennedy | C61: 18 | D61: 239 | E61: 24 | F61: 1.333333333 | G61: 428 | H61: 1.790794979 | I61: 27 | J61: 1.5 | K61: 29 | L61: 1.611111111 | M61: 21 | N61: 1.166666667 | O61: 20 | P61: 1.111111111 | Q61: 190 | R61: 0.7949790795 | S61: 191 | T61: 0.7991631799
A62: Central | B62: Rio Bananal | C62: 19 | D62: 229 | E62: 17 | F62: 0.8947368421 | G62: 478 | H62: 2.087336245 | I62: 22 | J62: 1.157894737 | K62: 24 | L62: 1.263157895 | M62: 15 | N62: 0.7894736842 | O62: 15 | P62: 0.7894736842 | Q62: 277 | R62: 1.209606987 | S62: 280 | T62: 1.222707424
A63: Sul | B63: Rio Novo do Sul | C63: 11 | D63: 144 | E63: 17 | F63: 1.545454545 | G63: 361 | H63: 2.506944444 | I63: 15 | J63: 1.363636364 | K63: 12 | L63: 1.090909091 | M63: 13 | N63: 1.181818182 | O63: 15 | P63: 1.363636364 | Q63: 79 | R63: 0.5486111111 | S63: 95 | T63: 0.6597222222
A64: Metropolitana | B64: Santa Leopoldina | C64: 7 | D64: 155 | E64: 7 | F64: 1 | G64: 365 | H64: 2.35483871 | I64: 8 | J64: 1.142857143 | K64: 10 | L64: 1.428571429 | M64: 7 | N64: 1 | O64: 9 | P64: 1.285714286 | Q64: 115 | R64: 0.7419354839 | S64: 107 | T64: 0.6903225806
A65: Metropolitana | B65: Santa Maria de Jetibá | C65: 53 | D65: 685 | E65: 54 | F65: 1.018867925 | G65: 757 | H65: 1.105109489 | I65: 62 | J65: 1.169811321 | K65: 60 | L65: 1.132075472 | M65: 53 | N65: 1 | O65: 51 | P65: 0.9622641509 | Q65: 509 | R65: 0.7430656934 | S65: 617 | T65: 0.900729927
A66: Metropolitana | B66: Santa Teresa | C66: 29 | D66: 260 | E66: 19 | F66: 0.6551724138 | G66: 582 | H66: 2.238461538 | I66: 20 | J66: 0.6896551724 | K66: 18 | L66: 0.6206896552 | M66: 25 | N66: 0.8620689655 | O66: 19 | P66: 0.6551724138 | Q66: 249 | R66: 0.9576923077 | S66: 264 | T66: 1.015384615
A67: Central | B67: São Domingos do Norte | C67: 5 | D67: 117 | E67: 8 | F67: =E67/C67 -> 1.6 | G67: 364 | H67: =G67/D67 -> 3.111111111 | I67: 5 | J67: =I67/C67 -> 1 | K67: 7 | L67: =K67/C67 -> 1.4 | M67: 9 | N67: =M67/C67 -> 1.8 | O67: 8 | P67: =O67/C67 -> 1.6 | Q67: 96 | R67: =Q67/D67 -> 0.8205128205 | S67: 98 | T67: =S67/D67 -> 0.8376068376
A68: Central | B68: São Gabriel da Palha | C68: 35 | D68: 426 | E68: 32 | F68: 0.9142857143 | G68: 659 | H68: 1.546948357 | I68: 32 | J68: 0.9142857143 | K68: 29 | L68: 0.8285714286 | M68: 30 | N68: 0.8571428571 | O68: 33 | P68: 0.9428571429 | Q68: 353 | R68: 0.8286384977 | S68: 377 | T68: 0.8849765258
A69: Sul | B69: São José do Calçado | C69: 6 | D69: 150 | E69: 3 | F69: 0.5 | G69: 374 | H69: 2.493333333 | I69: 10 | J69: 1.666666667 | K69: 10 | L69: 1.666666667 | M69: 3 | N69: 0.5 | O69: 3 | P69: 0.5 | Q69: 91 | R69: 0.6066666667 | S69: 116 | T69: 0.7733333333
A70: Norte | B70: São Mateus | C70: 137 | D70: 1766 | E70: 139 | F70: 1.01459854 | G70: 1651 | H70: 0.9348810872 | I70: 133 | J70: 0.9708029197 | K70: 129 | L70: 0.9416058394 | M70: 153 | N70: 1.116788321 | O70: 147 | P70: 1.072992701 | Q70: 1269 | R70: 0.7185730464 | S70: 1476 | T70: 0.8357870895
A71: Central | B71: São Roque do Canaã | C71: 12 | D71: 100 | E71: 13 | F71: 1.083333333 | G71: 394 | H71: 3.94 | I71: 11 | J71: 0.9166666667 | K71: 12 | L71: 1 | M71: 10 | N71: 0.8333333333 | O71: 10 | P71: 0.8333333333 | Q71: 94 | R71: 0.94 | S71: 108 | T71: 1.08
A72: Metropolitana | B72: Serra | C72: 631 | D72: 7550 | E72: 554 | F72: 0.8779714739 | G72: 5215 | H72: 0.6907284768 | I72: 547 | J72: 0.8668779715 | K72: 523 | L72: 0.8288431062 | M72: 584 | N72: 0.9255150555 | O72: 569 | P72: 0.9017432647 | Q72: 4759 | R72: 0.6303311258 | S72: 5521 | T72: 0.7312582781
A73: Central | B73: Sooretama | C73: 21 | D73: 415 | E73: 20 | F73: 0.9523809524 | G73: 674 | H73: 1.624096386 | I73: 36 | J73: 1.714285714 | K73: 27 | L73: 1.285714286 | M73: 29 | N73: 1.380952381 | O73: 33 | P73: 1.571428571 | Q73: 333 | R73: 0.8024096386 | S73: 407 | T73: 0.9807228916
A74: Sul | B74: Vargem Alta | C74: 22 | D74: 278 | E74: 31 | F74: 1.409090909 | G74: 527 | H74: 1.895683453 | I74: 24 | J74: 1.090909091 | K74: 27 | L74: 1.227272727 | M74: 22 | N74: 1 | O74: 22 | P74: 1 | Q74: 151 | R74: 0.5431654676 | S74: 228 | T74: 0.8201438849
A75: Metropolitana | B75: Venda Nova do Imigrante | C75: 24 | D75: 328 | E75: 41 | F75: 1.708333333 | G75: 540 | H75: 1.646341463 | I75: 30 | J75: 1.25 | K75: 29 | L75: 1.208333333 | M75: 35 | N75: 1.458333333 | O75: 36 | P75: 1.5 | Q75: 310 | R75: 0.9451219512 | S75: 335 | T75: 1.021341463
A76: Metropolitana | B76: Viana | C76: 66 | D76: 1064 | E76: 82 | F76: 1.242424242 | G76: 1030 | H76: 0.9680451128 | I76: 77 | J76: 1.166666667 | K76: 79 | L76: 1.196969697 | M76: 69 | N76: 1.045454545 | O76: 69 | P76: 1.045454545 | Q76: 729 | R76: 0.6851503759 | S76: 998 | T76: 0.9379699248
A77: Norte | B77: Vila Pavão | C77: 9 | D77: 127 | E77: 19 | F77: 2.111111111 | G77: 381 | H77: 3 | I77: 6 | J77: 0.6666666667 | K77: 7 | L77: 0.7777777778 | M77: 9 | N77: 1 | O77: 8 | P77: 0.8888888889 | Q77: 104 | R77: 0.8188976378 | S77: 113 | T77: 0.8897637795
A78: Central | B78: Vila Valério | C78: 12 | D78: 169 | E78: 18 | F78: 1.5 | G78: 540 | H78: 3.195266272 | I78: 7 | J78: 0.5833333333 | K78: 11 | L78: 0.9166666667 | M78: 12 | N78: 1 | O78: 13 | P78: 1.083333333 | Q78: 225 | R78: 1.331360947 | S78: 229 | T78: 1.355029586
A79: Metropolitana | B79: Vila Velha | C79: 476 | D79: 5675 | E79: 355 | F79: 0.7457983193 | G79: 5054 | H79: 0.8905726872 | I79: 424 | J79: 0.8907563025 | K79: 428 | L79: 0.8991596639 | M79: 397 | N79: 0.8340336134 | O79: 415 | P79: 0.8718487395 | Q79: 3905 | R79: 0.6881057269 | S79: 4346 | T79: 0.765814978
A80: Metropolitana | B80: Vitória | C80: 274 | D80: 3833 | E80: 362 | F80: 1.321167883 | G80: 3024 | H80: 0.7889381685 | I80: 363 | J80: 1.324817518 | K80: 332 | L80: 1.211678832 | M80: 348 | N80: 1.270072993 | O80: 359 | P80: 1.310218978 | Q80: 2189 | R80: 0.5710931385 | S80: 2883 | T80: 0.7521523611
B82: Total Norte | C82: =SUMIF($A$3:$A$80,"Norte",C$3:C$80) -> 466 | D82: =SUMIF($A$3:$A$80,"Norte",D$3:D$80) -> 5789 | E82: =SUMIF($A$3:$A$80,"Norte",E$3:E$80) -> 471 | F82: =E82/C82 -> 1.010729614 | G82: =SUMIF($A$3:$A$80,"Norte",G$3:G$80) -> 7233 | H82: =G82/D82 -> 1.24943859 | I82: =SUMIF($A$3:$A$80,"Norte",I$3:I$80) -> 417 | J82: =I82/C82 -> 0.8948497854 | K82: =SUMIF($A$3:$A$80,"Norte",K$3:K$80) -> 431 | L82: =K82/C82 -> 0.9248927039 | M82: =SUMIF($A$3:$A$80,"Norte",M$3:M$80) -> 457 | N82: =M82/C82 -> 0.9806866953 | O82: =SUMIF($A$3:$A$80,"Norte",O$3:O$80) -> 441 | P82: =O82/C82 -> 0.9463519313 | Q82: =SUMIF($A$3:$A$80,"Norte",Q$3:Q$80) -> 4411 | R82: =Q82/D82 -> 0.7619623424 | S82: =SUMIF($A$3:$A$80,"Norte",S$3:S$80) -> 4971 | T82: =S82/D82 -> 0.8586975298
B83: Total Central | C83: =SUMIF($A$3:$A$80,"Central",C$3:C$80) -> 575 | D83: =SUMIF($A$3:$A$80,"Central",D$3:D$80) -> 6843 | E83: =SUMIF($A$3:$A$80,"Central",E$3:E$80) -> 512 | F83: =E83/C83 -> 0.8904347826 | G83: =SUMIF($A$3:$A$80,"Central",G$3:G$80) -> 8596 | H83: =G83/D83 -> 1.256174193 | I83: =SUMIF($A$3:$A$80,"Central",I$3:I$80) -> 498 | J83: =I83/C83 -> 0.8660869565 | K83: =SUMIF($A$3:$A$80,"Central",K$3:K$80) -> 521 | L83: =K83/C83 -> 0.9060869565 | M83: =SUMIF($A$3:$A$80,"Central",M$3:M$80) -> 486 | N83: =M83/C83 -> 0.8452173913 | O83: =SUMIF($A$3:$A$80,"Central",O$3:O$80) -> 513 | P83: =O83/C83 -> 0.892173913 | Q83: =SUMIF($A$3:$A$80,"Central",Q$3:Q$80) -> 5310 | R83: =Q83/D83 -> 0.7759754494 | S83: =SUMIF($A$3:$A$80,"Central",S$3:S$80) -> 6042 | T83: =S83/D83 -> 0.8829460763
B84: Total Metropolitana | C84: =SUMIF($A$3:$A$80,"Metropolitana",C$3:C$80) -> 2438 | D84: =SUMIF($A$3:$A$80,"Metropolitana",D$3:D$80) -> 30197 | E84: =SUMIF($A$3:$A$80,"Metropolitana",E$3:E$80) -> 2287 | F84: =E84/C84 -> 0.9380639869 | G84: =SUMIF($A$3:$A$80,"Metropolitana",G$3:G$80) -> 27420 | H84: =G84/D84 -> 0.9080372222 | I84: =SUMIF($A$3:$A$80,"Metropolitana",I$3:I$80) -> 2427 | J84: =I84/C84 -> 0.995488105 | K84: =SUMIF($A$3:$A$80,"Metropolitana",K$3:K$80) -> 2372 | L84: =K84/C84 -> 0.97292863 | M84: =SUMIF($A$3:$A$80,"Metropolitana",M$3:M$80) -> 2340 | N84: =M84/C84 -> 0.9598031173 | O84: =SUMIF($A$3:$A$80,"Metropolitana",O$3:O$80) -> 2358 | P84: =O84/C84 -> 0.9671862182 | Q84: =SUMIF($A$3:$A$80,"Metropolitana",Q$3:Q$80) -> 20844 | R84: =Q84/D84 -> 0.6902672451 | S84: =SUMIF($A$3:$A$80,"Metropolitana",S$3:S$80) -> 24500 | T84: =S84/D84 -> 0.8113388747
B85: Total Sul | C85: =SUMIF($A$3:$A$80,"sul",C$3:C$80) -> 689 | D85: =SUMIF($A$3:$A$80,"sul",D$3:D$80) -> 8688 | E85: =SUMIF($A$3:$A$80,"sul",E$3:E$80) -> 684 | F85: =E85/C85 -> 0.992743106 | G85: =SUMIF($A$3:$A$80,"sul",G$3:G$80) -> 11115 | H85: =G85/D85 -> 1.279350829 | I85: =SUMIF($A$3:$A$80,"Sul",I$3:I$80) -> 663 | J85: =I85/C85 -> 0.9622641509 | K85: =SUMIF($A$3:$A$80,"Sul",K$3:K$80) -> 603 | L85: =K85/C85 -> 0.8751814224 | M85: =SUMIF($A$3:$A$80,"Sul",M$3:M$80) -> 644 | N85: =M85/C85 -> 0.9346879536 | O85: =SUMIF($A$3:$A$80,"Sul",O$3:O$80) -> 658 | P85: =O85/C85 -> 0.9550072569 | Q85: =SUMIF($A$3:$A$80,"Sul",Q$3:Q$80) -> 6685 | R85: =Q85/D85 -> 0.7694521179 | S85: =SUMIF($A$3:$A$80,"Sul",S$3:S$80) -> 7817 | T85: =S85/D85 -> 0.8997467772
B86: Total Espírito Santo | C86: =SUM(C3:C80) -> 4168 | D86: =SUM(D3:D80) -> 51517 | E86: =SUM(E3:E80) -> 3954 | F86: =E86/C86 -> 0.9486564299 | G86: =SUM(G3:G80) -> 54364 | H86: =G86/D86 -> 1.055263311 | I86: =SUM(I3:I80) -> 4005 | J86: =I86/C86 -> 0.9608925144 | K86: =SUM(K3:K80) -> 3927 | L86: =K86/C86 -> 0.9421785029 | M86: =SUM(M3:M80) -> 3927 | N86: =M86/C86 -> 0.9421785029 | O86: =SUM(O3:O80) -> 3970 | P86: =O86/C86 -> 0.9524952015 | Q86: =SUM(Q3:Q80) -> 37250 | R86: =Q86/D86 -> 0.7230622901 | S86: =SUM(S3:S80) -> 43330 | T86: =S86/D86 -> 0.8410815847
A91: Fonte: Vacina e Confia, em 25 de fevereiro de 2026.**<https://vacinaeconfia.saude.es.gov.br/>
A92: **Dados referente às doses aplicadasem janeiro de 2026
A93: Cobertura Calculada por município de procedência/ocorrência da vacinação
A94: 1 População estimada extraída do MS/SVS/DASIS - SINASC/DASIS/SVS/MS 2025 referente ao período de janeiro de 2025.
A95: Sinasc, atualizado em 06/02/2026
A96: ²População estimada extraída do Censo IBGE 2022.
A97: Método de Cálculo Simples
A98: Homogeineidade: O cálculo da Homogeineidade entre vacinas é feito de acordo com a pactuação estabelecida no Plano Plurianual (PPA) vigente no período 2024-2027.
A101: Observações referente a distribuição de imunobiológicos que podem afetar a cobertura vacinal:
A103: 1. Vacinas que foram recebidas parcialmente pelo estado no mês de Janeiro/2026, sendo distribuídos em quantidades reduzidas às regionais e municípios:
A104: IMUNOGLOBULINA ANTIRRÁBICA HUMANA; SORO ANTIRRÁBICO HUMANO
A105: 2. Vacinas indisponíveis no mês de dezembro/2025, não sendo possível a distribuição às regionais e municípios:
A106: VACINA TETRA VIRAL, IMUNOGLOBULINA HUMANA ANTIVARICELA (ZOSTER) – 125UI
A107: 3. Vacinas enviadas por Pautas aguardando abastecimento do estoque estadual;
A108: VACINA COVID-19 PFIZER PEDIÁTRICA MENOR QUE 5 ANOS; VACINA COVID-19 PFIZER PEDIÁTRICA,
A110: Fonte: Informes situacionais de distribuição de imunobiológicos em https://saude.es.gov.br/GrupodeArquivos/informes-situacionais-de-distribuicao-de-imunobiologicos

Sheet CV REF 1A e 4A - residência
E1: D2 | I1: REFORÇOS 1 ANO | Q1: REFORÇOS 4 ANOS
A2: Regional | B2: Município | C2: ¹População 1 ano proporcional | D2: ²População 4 anos proporcional | E2: DOSES APLICADAS D2 TRÍPLICE VIRAL | F2: COBERTURA D2 TRÍPLICE VIRAL | G2: DOSES APLICADAS D2 VARICELA | H2: COBERTURA D2 VARICELA | I2: DOSES APLICADAS REF PNEUMO | J2: COBERTURA REF PNEUMO | K2: DOSES APLICADAS REF MENINGO | L2: COBERTURA REF MENINGO | M2: DOSES APLICADAS REF POLIO | N2: COBERTURA REF POLIO | O2: DOSES APLICADAS R1 TRÍPLICE BACTERIANA | P2: COBERTURA R1 TRÍPLICE BACTERIANA | Q2: DOSES APLICADAS REF FEBRE AMARELA | R2: COBERTURA REF FEBRE AMARELA | S2: DOSES APLICADAS R2 TRÍPLICE BACTERIANA | T2: COBERTURA R2 TRÍPLICE BACTERIANA
A3: Metropolitana | B3: Afonso Cláudio | C3: 31 | D3: 416 | E3: 23 | F3: =E3/C3 -> 0.7419354839 | G3: 410 | H3: =G3/D3 -> 0.9855769231 | I3: 23 | J3: =I3/C3 -> 0.7419354839 | K3: 24 | L3: =K3/C3 -> 0.7741935484 | M3: 22 | N3: =M3/C3 -> 0.7096774194 | O3: 22 | P3: =O3/C3 -> 0.7096774194 | Q3: 378 | R3: =Q3/D3 -> 0.9086538462 | S3: 392 | T3: =S3/D3 -> 0.9423076923
A4: Norte | B4: Água Doce do Norte | C4: 11 | D4: 151 | E4: 12 | F4: 1.090909091 | G4: 86 | H4: 0.5695364238 | I4: 8 | J4: 0.7272727273 | K4: 8 | L4: 0.7272727273 | M4: 13 | N4: 1.181818182 | O4: 18 | P4: 1.636363636 | Q4: 113 | R4: 0.7483443709 | S4: 121 | T4: 0.8013245033
A5: Central | B5: Águia Branca | C5: 14 | D5: 129 | E5: 13 | F5: 0.9285714286 | G5: 106 | H5: 0.8217054264 | I5: 7 | J5: 0.5 | K5: 8 | L5: 0.5714285714 | M5: 12 | N5: 0.8571428571 | O5: 12 | P5: 0.8571428571 | Q5: 102 | R5: 0.7906976744 | S5: 107 | T5: 0.8294573643
A6: Sul | B6: Alegre | C6: 24 | D6: 372 | E6: 27 | F6: 1.125 | G6: 311 | H6: 0.8360215054 | I6: 27 | J6: 1.125 | K6: 24 | L6: 1 | M6: 25 | N6: 1.041666667 | O6: 25 | P6: 1.041666667 | Q6: 287 | R6: 0.7715053763 | S6: 315 | T6: 0.8467741935
A7: Sul | B7: Alfredo Chaves | C7: 11 | D7: 138 | E7: 12 | F7: 1.090909091 | G7: 132 | H7: 0.9565217391 | I7: 11 | J7: 1 | K7: 10 | L7: 0.9090909091 | M7: 11 | N7: 1 | O7: 11 | P7: 1 | Q7: 115 | R7: 0.8333333333 | S7: 118 | T7: 0.8550724638
A8: Central | B8: Alto Rio Novo | C8: 7 | D8: 102 | E8: 6 | F8: 0.8571428571 | G8: 112 | H8: 1.098039216 | I8: 6 | J8: 0.8571428571 | K8: 7 | L8: 1 | M8: 6 | N8: 0.8571428571 | O8: 6 | P8: 0.8571428571 | Q8: 98 | R8: 0.9607843137 | S8: 94 | T8: 0.9215686275
A9: Sul | B9: Anchieta | C9: 24 | D9: 390 | E9: 44 | F9: 1.833333333 | G9: 417 | H9: 1.069230769 | I9: 34 | J9: 1.416666667 | K9: 30 | L9: 1.25 | M9: 41 | N9: 1.708333333 | O9: 42 | P9: 1.75 | Q9: 387 | R9: 0.9923076923 | S9: 413 | T9: 1.058974359
A10: Sul | B10: Apiacá | C10: 4 | D10: 90 | E10: 6 | F10: 1.5 | G10: 72 | H10: 0.8 | I10: 9 | J10: 2.25 | K10: 9 | L10: 2.25 | M10: 5 | N10: 1.25 | O10: 4 | P10: 1 | Q10: 28 | R10: 0.3111111111 | S10: 70 | T10: 0.7777777778
A11: Metropolitana | B11: Aracruz | C11: 125 | D11: 1420 | E11: 122 | F11: 0.976 | G11: 1485 | H11: 1.045774648 | I11: 107 | J11: 0.856 | K11: 112 | L11: 0.896 | M11: 120 | N11: 0.96 | O11: 114 | P11: 0.912 | Q11: 1189 | R11: 0.8373239437 | S11: 1330 | T11: 0.9366197183
A12: Sul | B12: Atilio Vivacqua | C12: 17 | D12: 138 | E12: 25 | F12: 1.470588235 | G12: 187 | H12: 1.355072464 | I12: 18 | J12: 1.058823529 | K12: 11 | L12: 0.6470588235 | M12: 23 | N12: 1.352941176 | O12: 22 | P12: 1.294117647 | Q12: 168 | R12: 1.217391304 | S12: 181 | T12: 1.311594203
A13: Central | B13: Baixo Guandu | C13: 32 | D13: 427 | E13: 22 | F13: 0.6875 | G13: 380 | H13: 0.8899297424 | I13: 34 | J13: 1.0625 | K13: 33 | L13: 1.03125 | M13: 21 | N13: 0.65625 | O13: 22 | P13: 0.6875 | Q13: 344 | R13: 0.8056206089 | S13: 371 | T13: 0.868852459
A14: Norte | B14: Barra de São Francisco | C14: 54 | D14: 589 | E14: 44 | F14: 0.8148148148 | G14: 502 | H14: 0.8522920204 | I14: 51 | J14: 0.9444444444 | K14: 53 | L14: 0.9814814815 | M14: 46 | N14: 0.8518518519 | O14: 33 | P14: 0.6111111111 | Q14: 437 | R14: 0.7419354839 | S14: 468 | T14: 0.7945670628
A15: Norte | B15: Boa Esperança | C15: 17 | D15: 200 | E15: 20 | F15: 1.176470588 | G15: 129 | H15: 0.645 | I15: 14 | J15: 0.8235294118 | K15: 12 | L15: 0.7058823529 | M15: 19 | N15: 1.117647059 | O15: 20 | P15: 1.176470588 | Q15: 100 | R15: 0.5 | S15: 126 | T15: 0.63
A16: Sul | B16: Bom Jesus do Norte | C16: 5 | D16: 146 | E16: 5 | F16: 1 | G16: 132 | H16: 0.904109589 | I16: 9 | J16: 1.8 | K16: 9 | L16: 1.8 | M16: 8 | N16: 1.6 | O16: 7 | P16: 1.4 | Q16: 97 | R16: 0.6643835616 | S16: 130 | T16: 0.8904109589
A17: Metropolitana | B17: Brejetuba | C17: 18 | D17: 169 | E17: 20 | F17: 1.111111111 | G17: 254 | H17: 1.50295858 | I17: 23 | J17: 1.277777778 | K17: 24 | L17: 1.333333333 | M17: 19 | N17: 1.055555556 | O17: 19 | P17: 1.055555556 | Q17: 191 | R17: 1.130177515 | S17: 192 | T17: 1.136094675
A18: Sul | B18: Cachoeiro de Itapemirim | C18: 204 | D18: 2417 | E18: 185 | F18: 0.9068627451 | G18: 2060 | H18: 0.852296235 | I18: 167 | J18: 0.818627451 | K18: 146 | L18: 0.7156862745 | M18: 168 | N18: 0.8235294118 | O18: 168 | P18: 0.8235294118 | Q18: 1835 | R18: 0.7592056268 | S18: 2199 | T18: 0.9098055441
A19: Metropolitana | B19: Cariacica | C19: 408 | D19: 5005 | E19: 350 | F19: 0.8578431373 | G19: 3500 | H19: 0.6993006993 | I19: 427 | J19: 1.046568627 | K19: 415 | L19: 1.017156863 | M19: 350 | N19: 0.8578431373 | O19: 359 | P19: 0.8799019608 | Q19: 3303 | R19: 0.6599400599 | S19: 4093 | T19: 0.8177822178
A20: Sul | B20: Castelo | C20: 39 | D20: 399 | E20: 36 | F20: 0.9230769231 | G20: 377 | H20: 0.9448621554 | I20: 31 | J20: 0.7948717949 | K20: 30 | L20: 0.7692307692 | M20: 34 | N20: 0.8717948718 | O20: 34 | P20: 0.8717948718 | Q20: 322 | R20: 0.8070175439 | S20: 354 | T20: 0.8872180451
A21: Central | B21: Colatina | C21: 123 | D21: 1561 | E21: 131 | F21: 1.06504065 | G21: 1177 | H21: 0.7540038437 | I21: 105 | J21: 0.8536585366 | K21: 114 | L21: 0.9268292683 | M21: 112 | N21: 0.9105691057 | O21: 111 | P21: 0.9024390244 | Q21: 1019 | R21: 0.6527866752 | S21: 1120 | T21: 0.7174887892
A22: Norte | B22: Conceição da Barra | C22: 32 | D22: 391 | E22: 30 | F22: 0.9375 | G22: 433 | H22: 1.10741688 | I22: 24 | J22: 0.75 | K22: 25 | L22: 0.78125 | M22: 25 | N22: 0.78125 | O22: 21 | P22: 0.65625 | Q22: 435 | R22: 1.112531969 | S22: 419 | T22: 1.071611253
A23: Metropolitana | B23: Conceição do Castelo | C23: 12 | D23: 144 | E23: 9 | F23: 0.75 | G23: 186 | H23: 1.291666667 | I23: 14 | J23: 1.166666667 | K23: 9 | L23: 0.75 | M23: 9 | N23: 0.75 | O23: 11 | P23: 0.9166666667 | Q23: 154 | R23: 1.069444444 | S23: 143 | T23: 0.9930555556
A24: Sul | B24: Divino de São Lourenço | C24: 6 | D24: 68 | E24: 3 | F24: 0.5 | G24: 76 | H24: 1.117647059 | I24: 2 | J24: 0.3333333333 | K24: 2 | L24: 0.3333333333 | M24: 2 | N24: 0.3333333333 | O24: 3 | P24: 0.5 | Q24: 51 | R24: 0.75 | S24: 57 | T24: 0.8382352941
A25: Metropolitana | B25: Domingos Martins | C25: 36 | D25: 411 | E25: 21 | F25: 0.5833333333 | G25: 445 | H25: 1.082725061 | I25: 18 | J25: 0.5 | K25: 21 | L25: 0.5833333333 | M25: 20 | N25: 0.5555555556 | O25: 20 | P25: 0.5555555556 | Q25: 351 | R25: 0.8540145985 | S25: 378 | T25: 0.9197080292
A26: Sul | B26: Dores do Rio Preto | C26: 9 | D26: 92 | E26: 9 | F26: 1 | G26: 71 | H26: 0.7717391304 | I26: 7 | J26: 0.7777777778 | K26: 7 | L26: 0.7777777778 | M26: 8 | N26: 0.8888888889 | O26: 8 | P26: 0.8888888889 | Q26: 63 | R26: 0.6847826087 | S26: 69 | T26: 0.75
A27: Norte | B27: Ecoporanga | C27: 18 | D27: 283 | E27: 23 | F27: 1.277777778 | G27: 275 | H27: 0.9717314488 | I27: 24 | J27: 1.333333333 | K27: 24 | L27: 1.333333333 | M27: 24 | N27: 1.333333333 | O27: 27 | P27: 1.5 | Q27: 215 | R27: 0.7597173145 | S27: 244 | T27: 0.8621908127
A28: Metropolitana | B28: Fundão | C28: 22 | D28: 218 | E28: 17 | F28: 0.7727272727 | G28: 201 | H28: 0.9220183486 | I28: 19 | J28: 0.8636363636 | K28: 17 | L28: 0.7727272727 | M28: 13 | N28: 0.5909090909 | O28: 14 | P28: 0.6363636364 | Q28: 179 | R28: 0.8211009174 | S28: 197 | T28: 0.9036697248
A29: Central | B29: Governador Lindenberg | C29: 11 | D29: 142 | E29: 5 | F29: 0.4545454545 | G29: 151 | H29: 1.063380282 | I29: 10 | J29: 0.9090909091 | K29: 9 | L29: 0.8181818182 | M29: 7 | N29: 0.6363636364 | O29: 7 | P29: 0.6363636364 | Q29: 147 | R29: 1.035211268 | S29: 143 | T29: 1.007042254
A30: Sul | B30: Guaçuí | C30: 25 | D30: 407 | E30: 24 | F30: 0.96 | G30: 362 | H30: 0.8894348894 | I30: 31 | J30: 1.24 | K30: 33 | L30: 1.32 | M30: 21 | N30: 0.84 | O30: 22 | P30: 0.88 | Q30: 375 | R30: 0.9213759214 | S30: 364 | T30: 0.8943488943
A31: Metropolitana | B31: Guarapari | C31: 129 | D31: 1557 | E31: 99 | F31: 0.7674418605 | G31: 1412 | H31: 0.9068721901 | I31: 143 | J31: 1.108527132 | K31: 135 | L31: 1.046511628 | M31: 122 | N31: 0.9457364341 | O31: 123 | P31: 0.9534883721 | Q31: 1117 | R31: 0.7174052665 | S31: 1416 | T31: 0.9094412331
A32: Metropolitana | B32: Ibatiba | C32: 30 | D32: 354 | E32: 34 | F32: 1.133333333 | G32: 284 | H32: 0.802259887 | I32: 32 | J32: 1.066666667 | K32: 29 | L32: 0.9666666667 | M32: 30 | N32: 1 | O32: 31 | P32: 1.033333333 | Q32: 339 | R32: 0.9576271186 | S32: 369 | T32: 1.042372881
A33: Metropolitana | B33: Ibiraçu | C33: 8 | D33: 160 | E33: 17 | F33: 2.125 | G33: 159 | H33: 0.99375 | I33: 4 | J33: 0.5 | K33: 5 | L33: 0.625 | M33: 14 | N33: 1.75 | O33: 15 | P33: 1.875 | Q33: 122 | R33: 0.7625 | S33: 128 | T33: 0.8
A34: Sul | B34: Ibitirama | C34: 10 | D34: 148 | E34: 15 | F34: 1.5 | G34: 169 | H34: 1.141891892 | I34: 16 | J34: 1.6 | K34: 16 | L34: 1.6 | M34: 17 | N34: 1.7 | O34: 18 | P34: 1.8 | Q34: 164 | R34: 1.108108108 | S34: 157 | T34: 1.060810811
A35: Sul | B35: Iconha | C35: 10 | D35: 156 | E35: 14 | F35: =E35/C35 -> 1.4 | G35: 182 | H35: =G35/D35 -> 1.166666667 | I35: 9 | J35: =I35/C35 -> 0.9 | K35: 9 | L35: =K35/C35 -> 0.9 | M35: 13 | N35: =M35/C35 -> 1.3 | O35: 13 | P35: =O35/C35 -> 1.3 | Q35: 118 | R35: =Q35/D35 -> 0.7564102564 | S35: 125 | T35: =S35/D35 -> 0.8012820513
A36: Sul | B36: Irupi | C36: 18 | D36: 200 | E36: 14 | F36: 0.7777777778 | G36: 170 | H36: 0.85 | I36: 13 | J36: 0.7222222222 | K36: 8 | L36: 0.4444444444 | M36: 12 | N36: 0.6666666667 | O36: 13 | P36: 0.7222222222 | Q36: 161 | R36: 0.805 | S36: 164 | T36: 0.82
A37: Metropolitana | B37: Itaguaçu | C37: 13 | D37: 154 | E37: 12 | F37: 0.9230769231 | G37: 161 | H37: 1.045454545 | I37: 9 | J37: 0.6923076923 | K37: 8 | L37: 0.6153846154 | M37: 10 | N37: 0.7692307692 | O37: 10 | P37: 0.7692307692 | Q37: 129 | R37: 0.8376623377 | S37: 124 | T37: 0.8051948052
A38: Sul | B38: Itapemirim | C38: 53 | D38: 556 | E38: 25 | F38: 0.4716981132 | G38: 404 | H38: 0.726618705 | I38: 38 | J38: 0.7169811321 | K38: 33 | L38: 0.6226415094 | M38: 36 | N38: 0.679245283 | O38: 43 | P38: 0.8113207547 | Q38: 321 | R38: 0.5773381295 | S38: 448 | T38: 0.8057553957
A39: Metropolitana | B39: Itarana | C39: 8 | D39: 128 | E39: 13 | F39: 1.625 | G39: 129 | H39: 1.0078125 | I39: 6 | J39: 0.75 | K39: 7 | L39: 0.875 | M39: 14 | N39: 1.75 | O39: 12 | P39: 1.5 | Q39: 103 | R39: 0.8046875 | S39: 109 | T39: 0.8515625
A40: Sul | B40: Iúna | C40: 34 | D40: 410 | E40: 32 | F40: 0.9411764706 | G40: 316 | H40: 0.7707317073 | I40: 36 | J40: 1.058823529 | K40: 37 | L40: 1.088235294 | M40: 28 | N40: 0.8235294118 | O40: 29 | P40: 0.8529411765 | Q40: 324 | R40: 0.7902439024 | S40: 359 | T40: 0.8756097561
A41: Norte | B41: Jaguaré | C41: 46 | D41: 445 | E41: 35 | F41: 0.7608695652 | G41: 372 | H41: 0.8359550562 | I41: 35 | J41: 0.7608695652 | K41: 41 | L41: 0.8913043478 | M41: 31 | N41: 0.6739130435 | O41: 31 | P41: 0.6739130435 | Q41: 349 | R41: 0.7842696629 | S41: 418 | T41: 0.9393258427
A42: Sul | B42: Jerônimo Monteiro | C42: 12 | D42: 157 | E42: 13 | F42: 1.083333333 | G42: 131 | H42: 0.8343949045 | I42: 11 | J42: 0.9166666667 | K42: 8 | L42: 0.6666666667 | M42: 14 | N42: 1.166666667 | O42: 14 | P42: 1.166666667 | Q42: 98 | R42: 0.6242038217 | S42: 136 | T42: 0.8662420382
A43: Metropolitana | B43: João Neiva | C43: 5 | D43: 142 | E43: 13 | F43: 2.6 | G43: 157 | H43: 1.105633803 | I43: 8 | J43: 1.6 | K43: 9 | L43: 1.8 | M43: 13 | N43: 2.6 | O43: 14 | P43: 2.8 | Q43: 118 | R43: 0.8309859155 | S43: 140 | T43: 0.985915493
A44: Metropolitana | B44: Laranja da Terra | C44: 9 | D44: 133 | E44: 16 | F44: 1.777777778 | G44: 126 | H44: 0.9473684211 | I44: 10 | J44: 1.111111111 | K44: 8 | L44: 0.8888888889 | M44: 18 | N44: 2 | O44: 18 | P44: 2 | Q44: 88 | R44: 0.6616541353 | S44: 99 | T44: 0.7443609023
A45: Central | B45: Linhares | C45: 237 | D45: 2452 | E45: 197 | F45: 0.8312236287 | G45: 1979 | H45: 0.807096248 | I45: 184 | J45: 0.776371308 | K45: 193 | L45: 0.8143459916 | M45: 195 | N45: 0.8227848101 | O45: 213 | P45: 0.8987341772 | Q45: 1754 | R45: 0.7153344209 | S45: 2180 | T45: 0.8890701468
A46: Central | B46: Mantenópolis | C46: 14 | D46: 166 | E46: 9 | F46: 0.6428571429 | G46: 142 | H46: 0.8554216867 | I46: 8 | J46: 0.5714285714 | K46: 8 | L46: 0.5714285714 | M46: 9 | N46: 0.6428571429 | O46: 9 | P46: 0.6428571429 | Q46: 172 | R46: 1.036144578 | S46: 178 | T46: 1.072289157
A47: Sul | B47: Marataízes | C47: 45 | D47: 579 | E47: 43 | F47: 0.9555555556 | G47: 615 | H47: 1.062176166 | I47: 26 | J47: 0.5777777778 | K47: 27 | L47: 0.6 | M47: 43 | N47: 0.9555555556 | O47: 44 | P47: 0.9777777778 | Q47: 390 | R47: 0.6735751295 | S47: 582 | T47: 1.005181347
A48: Metropolitana | B48: Marechal Floriano | C48: 24 | D48: 236 | E48: 10 | F48: 0.4166666667 | G48: 235 | H48: 0.9957627119 | I48: 17 | J48: 0.7083333333 | K48: 14 | L48: 0.5833333333 | M48: 11 | N48: 0.4583333333 | O48: 11 | P48: 0.4583333333 | Q48: 192 | R48: 0.813559322 | S48: 224 | T48: 0.9491525424
A49: Central | B49: Marilândia | C49: 13 | D49: 164 | E49: 12 | F49: 0.9230769231 | G49: 180 | H49: 1.097560976 | I49: 10 | J49: 0.7692307692 | K49: 11 | L49: 0.8461538462 | M49: 9 | N49: 0.6923076923 | O49: 9 | P49: 0.6923076923 | Q49: 147 | R49: 0.8963414634 | S49: 140 | T49: 0.8536585366
A50: Sul | B50: Mimoso do Sul | C50: 25 | D50: 276 | E50: 22 | F50: 0.88 | G50: 201 | H50: 0.7282608696 | I50: 28 | J50: 1.12 | K50: 22 | L50: 0.88 | M50: 23 | N50: 0.92 | O50: 20 | P50: 0.8 | Q50: 201 | R50: 0.7282608696 | S50: 221 | T50: 0.8007246377
A51: Norte | B51: Montanha | C51: 21 | D51: 278 | E51: 24 | F51: 1.142857143 | G51: 290 | H51: 1.043165468 | I51: 25 | J51: 1.19047619 | K51: 22 | L51: 1.047619048 | M51: 23 | N51: 1.095238095 | O51: 24 | P51: 1.142857143 | Q51: 211 | R51: 0.7589928058 | S51: 231 | T51: 0.8309352518
A52: Norte | B52: Mucurici | C52: 4 | D52: 97 | E52: 10 | F52: 2.5 | G52: 64 | H52: 0.6597938144 | I52: 0 | J52: 0 | K52: 2 | L52: 0.5 | M52: 8 | N52: 2 | O52: 7 | P52: 1.75 | Q52: 61 | R52: 0.6288659794 | S52: 59 | T52: 0.6082474227
A53: Sul | B53: Muniz Freire | C53: 19 | D53: 275 | E53: 20 | F53: 1.052631579 | G53: 131 | H53: 0.4763636364 | I53: 14 | J53: 0.7368421053 | K53: 17 | L53: 0.8947368421 | M53: 19 | N53: 1 | O53: 21 | P53: 1.105263158 | Q53: 194 | R53: 0.7054545455 | S53: 215 | T53: 0.7818181818
A54: Sul | B54: Muqui | C54: 9 | D54: 152 | E54: 10 | F54: 1.111111111 | G54: 177 | H54: 1.164473684 | I54: 12 | J54: 1.333333333 | K54: 11 | L54: 1.222222222 | M54: 11 | N54: 1.222222222 | O54: 11 | P54: 1.222222222 | Q54: 152 | R54: 1 | S54: 159 | T54: 1.046052632
A55: Norte | B55: Nova Venécia | C55: 55 | D55: 656 | E55: 59 | F55: 1.072727273 | G55: 620 | H55: 0.9451219512 | I55: 66 | J55: 1.2 | K55: 66 | L55: 1.2 | M55: 58 | N55: 1.054545455 | O55: 59 | P55: 1.072727273 | Q55: 481 | R55: 0.7332317073 | S55: 589 | T55: 0.8978658537
A56: Central | B56: Pancas | C56: 20 | D56: 244 | E56: 15 | F56: 0.75 | G56: 242 | H56: 0.9918032787 | I56: 13 | J56: 0.65 | K56: 13 | L56: 0.65 | M56: 15 | N56: 0.75 | O56: 14 | P56: 0.7 | Q56: 157 | R56: 0.643442623 | S56: 199 | T56: 0.8155737705
A57: Norte | B57: Pedro Canário | C57: 30 | D57: 338 | E57: 23 | F57: 0.7666666667 | G57: 351 | H57: 1.038461538 | I57: 19 | J57: 0.6333333333 | K57: 21 | L57: 0.7 | M57: 22 | N57: 0.7333333333 | O57: 19 | P57: 0.6333333333 | Q57: 286 | R57: 0.8461538462 | S57: 316 | T57: 0.9349112426
A58: Norte | B58: Pinheiros | C58: 26 | D58: 383 | E58: 23 | F58: 0.8846153846 | G58: 318 | H58: 0.8302872063 | I58: 18 | J58: 0.6923076923 | K58: 17 | L58: 0.6538461538 | M58: 26 | N58: 1 | O58: 25 | P58: 0.9615384615 | Q58: 269 | R58: 0.7023498695 | S58: 318 | T58: 0.8302872063
A59: Sul | B59: Piúma | C59: 29 | D59: 311 | E59: 26 | F59: 0.8965517241 | G59: 236 | H59: 0.7588424437 | I59: 30 | J59: 1.034482759 | K59: 16 | L59: 0.5517241379 | M59: 26 | N59: 0.8965517241 | O59: 27 | P59: 0.9310344828 | Q59: 208 | R59: 0.6688102894 | S59: 246 | T59: 0.7909967846
A60: Norte | B60: Ponto Belo | C60: 6 | D60: 85 | E60: 8 | F60: 1.333333333 | G60: 113 | H60: 1.329411765 | I60: 6 | J60: 1 | K60: 4 | L60: 0.6666666667 | M60: 9 | N60: 1.5 | O60: 8 | P60: 1.333333333 | Q60: 97 | R60: 1.141176471 | S60: 97 | T60: 1.141176471
A61: Sul | B61: Presidente Kennedy | C61: 18 | D61: 239 | E61: 25 | F61: 1.388888889 | G61: 199 | H61: 0.8326359833 | I61: 26 | J61: 1.444444444 | K61: 27 | L61: 1.5 | M61: 23 | N61: 1.277777778 | O61: 22 | P61: 1.222222222 | Q61: 192 | R61: 0.8033472803 | S61: 197 | T61: 0.8242677824
A62: Central | B62: Rio Bananal | C62: 19 | D62: 229 | E62: 21 | F62: 1.105263158 | G62: 265 | H62: 1.15720524 | I62: 22 | J62: 1.157894737 | K62: 26 | L62: 1.368421053 | M62: 18 | N62: 0.9473684211 | O62: 18 | P62: 0.9473684211 | Q62: 288 | R62: 1.257641921 | S62: 297 | T62: 1.296943231
A63: Sul | B63: Rio Novo do Sul | C63: 11 | D63: 144 | E63: 17 | F63: 1.545454545 | G63: 111 | H63: 0.7708333333 | I63: 14 | J63: 1.272727273 | K63: 11 | L63: 1 | M63: 11 | N63: 1 | O63: 13 | P63: 1.181818182 | Q63: 80 | R63: 0.5555555556 | S63: 96 | T63: 0.6666666667
A64: Metropolitana | B64: Santa Leopoldina | C64: 7 | D64: 155 | E64: 11 | F64: 1.571428571 | G64: 150 | H64: 0.9677419355 | I64: 10 | J64: 1.428571429 | K64: 12 | L64: 1.714285714 | M64: 11 | N64: 1.571428571 | O64: 13 | P64: 1.857142857 | Q64: 140 | R64: 0.9032258065 | S64: 143 | T64: 0.9225806452
A65: Metropolitana | B65: Santa Maria de Jetibá | C65: 53 | D65: 685 | E65: 58 | F65: 1.094339623 | G65: 510 | H65: 0.7445255474 | I65: 65 | J65: 1.226415094 | K65: 64 | L65: 1.20754717 | M65: 58 | N65: 1.094339623 | O65: 56 | P65: 1.056603774 | Q65: 485 | R65: 0.7080291971 | S65: 587 | T65: 0.8569343066
A66: Metropolitana | B66: Santa Teresa | C66: 29 | D66: 260 | E66: 19 | F66: 0.6551724138 | G66: 336 | H66: 1.292307692 | I66: 24 | J66: 0.8275862069 | K66: 20 | L66: 0.6896551724 | M66: 26 | N66: 0.8965517241 | O66: 20 | P66: 0.6896551724 | Q66: 261 | R66: 1.003846154 | S66: 283 | T66: 1.088461538
A67: Central | B67: São Domingos do Norte | C67: 5 | D67: 117 | E67: 13 | F67: =E67/C67 -> 2.6 | G67: 119 | H67: =G67/D67 -> 1.017094017 | I67: 8 | J67: =I67/C67 -> 1.6 | K67: 9 | L67: =K67/C67 -> 1.8 | M67: 13 | N67: =M67/C67 -> 2.6 | O67: 12 | P67: =O67/C67 -> 2.4 | Q67: 100 | R67: =Q67/D67 -> 0.8547008547 | S67: 104 | T67: =S67/D67 -> 0.8888888889
A68: Central | B68: São Gabriel da Palha | C68: 35 | D68: 426 | E68: 28 | F68: 0.8 | G68: 365 | H68: 0.8568075117 | I68: 26 | J68: 0.7428571429 | K68: 26 | L68: 0.7428571429 | M68: 25 | N68: 0.7142857143 | O68: 29 | P68: 0.8285714286 | Q68: 320 | R68: 0.7511737089 | S68: 350 | T68: 0.8215962441
A69: Sul | B69: São José do Calçado | C69: 6 | D69: 150 | E69: 3 | F69: 0.5 | G69: 99 | H69: 0.66 | I69: 9 | J69: 1.5 | K69: 9 | L69: 1.5 | M69: 3 | N69: 0.5 | O69: 3 | P69: 0.5 | Q69: 77 | R69: 0.5133333333 | S69: 107 | T69: 0.7133333333
A70: Norte | B70: São Mateus | C70: 137 | D70: 1766 | E70: 129 | F70: 0.9416058394 | G70: 1315 | H70: 0.7446206116 | I70: 130 | J70: 0.9489051095 | K70: 131 | L70: 0.9562043796 | M70: 139 | N70: 1.01459854 | O70: 138 | P70: 1.00729927 | Q70: 1213 | R70: 0.6868629672 | S70: 1427 | T70: 0.8080407701
A71: Central | B71: São Roque do Canaã | C71: 12 | D71: 100 | E71: 12 | F71: 1 | G71: 124 | H71: 1.24 | I71: 9 | J71: 0.75 | K71: 11 | L71: 0.9166666667 | M71: 9 | N71: 0.75 | O71: 9 | P71: 0.75 | Q71: 102 | R71: 1.02 | S71: 111 | T71: 1.11
A72: Metropolitana | B72: Serra | C72: 631 | D72: 7550 | E72: 553 | F72: 0.8763866878 | G72: 5040 | H72: 0.6675496689 | I72: 560 | J72: 0.8874801902 | K72: 522 | L72: 0.8272583201 | M72: 590 | N72: 0.9350237718 | O72: 580 | P72: 0.9191759113 | Q72: 4755 | R72: 0.6298013245 | S72: 5649 | T72: 0.7482119205
A73: Central | B73: Sooretama | C73: 21 | D73: 415 | E73: 20 | F73: 0.9523809524 | G73: 392 | H73: 0.9445783133 | I73: 35 | J73: 1.666666667 | K73: 27 | L73: 1.285714286 | M73: 31 | N73: 1.476190476 | O73: 35 | P73: 1.666666667 | Q73: 319 | R73: 0.7686746988 | S73: 394 | T73: 0.9493975904
A74: Sul | B74: Vargem Alta | C74: 22 | D74: 278 | E74: 30 | F74: 1.363636364 | G74: 242 | H74: 0.8705035971 | I74: 24 | J74: 1.090909091 | K74: 26 | L74: 1.181818182 | M74: 23 | N74: 1.045454545 | O74: 23 | P74: 1.045454545 | Q74: 156 | R74: 0.5611510791 | S74: 230 | T74: 0.8273381295
A75: Metropolitana | B75: Venda Nova do Imigrante | C75: 24 | D75: 328 | E75: 42 | F75: 1.75 | G75: 282 | H75: 0.8597560976 | I75: 30 | J75: 1.25 | K75: 29 | L75: 1.208333333 | M75: 35 | N75: 1.458333333 | O75: 37 | P75: 1.541666667 | Q75: 319 | R75: 0.9725609756 | S75: 350 | T75: 1.067073171
A76: Metropolitana | B76: Viana | C76: 66 | D76: 1064 | E76: 80 | F76: 1.212121212 | G76: 735 | H76: 0.6907894737 | I76: 70 | J76: 1.060606061 | K76: 73 | L76: 1.106060606 | M76: 69 | N76: 1.045454545 | O76: 68 | P76: 1.03030303 | Q76: 711 | R76: 0.6682330827 | S76: 961 | T76: 0.9031954887
A77: Norte | B77: Vila Pavão | C77: 9 | D77: 127 | E77: 18 | F77: 2 | G77: 89 | H77: 0.7007874016 | I77: 6 | J77: 0.6666666667 | K77: 7 | L77: 0.7777777778 | M77: 8 | N77: 0.8888888889 | O77: 7 | P77: 0.7777777778 | Q77: 107 | R77: 0.842519685 | S77: 113 | T77: 0.8897637795
A78: Central | B78: Vila Valério | C78: 12 | D78: 169 | E78: 20 | F78: 1.666666667 | G78: 230 | H78: 1.360946746 | I78: 9 | J78: 0.75 | K78: 11 | L78: 0.9166666667 | M78: 14 | N78: 1.166666667 | O78: 14 | P78: 1.166666667 | Q78: 211 | R78: 1.24852071 | S78: 214 | T78: 1.266272189
A79: Metropolitana | B79: Vila Velha | C79: 476 | D79: 5675 | E79: 339 | F79: 0.7121848739 | G79: 4616 | H79: 0.8133920705 | I79: 411 | J79: 0.8634453782 | K79: 415 | L79: 0.8718487395 | M79: 381 | N79: 0.8004201681 | O79: 397 | P79: 0.8340336134 | Q79: 3805 | R79: 0.6704845815 | S79: 4431 | T79: 0.7807929515
A80: Metropolitana | B80: Vitória | C80: 274 | D80: 3833 | E80: 370 | F80: 1.350364964 | G80: 2457 | H80: 0.6410122619 | I80: 358 | J80: 1.306569343 | K80: 375 | L80: 1.368613139 | M80: 337 | N80: 1.229927007 | O80: 341 | P80: 1.244525547 | Q80: 2103 | R80: 0.5486564049 | S80: 2701 | T80: 0.7046699713
B82: Total Norte | C82: =SUMIF($A$3:$A$80,"Norte",C$3:C$80) -> 466 | D82: =SUMIF($A$3:$A$80,"Norte",D$3:D$80) -> 5789 | E82: =SUMIF($A$3:$A$80,"Norte",E$3:E$80) -> 458 | F82: =E82/C82 -> 0.982832618 | G82: =SUMIF($A$3:$A$80,"Norte",G$3:G$80) -> 4957 | H82: =G82/D82 -> 0.8562791501 | I82: =SUMIF($A$3:$A$80,"Norte",I$3:I$80) -> 426 | J82: =I82/C82 -> 0.9141630901 | K82: =SUMIF($A$3:$A$80,"Norte",K$3:K$80) -> 433 | L82: =K82/C82 -> 0.9291845494 | M82: =SUMIF($A$3:$A$80,"Norte",M$3:M$80) -> 451 | N82: =M82/C82 -> 0.9678111588 | O82: =SUMIF($A$3:$A$80,"Norte",O$3:O$80) -> 437 | P82: =O82/C82 -> 0.9377682403 | Q82: =SUMIF($A$3:$A$80,"Norte",Q$3:Q$80) -> 4374 | R82: =Q82/D82 -> 0.7555709103 | S82: =SUMIF($A$3:$A$80,"Norte",S$3:S$80) -> 4946 | T82: =S82/D82 -> 0.8543789946
B83: Total Central | C83: =SUMIF($A$3:$A$80,"Central",C$3:C$80) -> 575 | D83: =SUMIF($A$3:$A$80,"Central",D$3:D$80) -> 6843 | E83: =SUMIF($A$3:$A$80,"Central",E$3:E$80) -> 524 | F83: =E83/C83 -> 0.9113043478 | G83: =SUMIF($A$3:$A$80,"Central",G$3:G$80) -> 5964 | H83: =G83/D83 -> 0.8715475669 | I83: =SUMIF($A$3:$A$80,"Central",I$3:I$80) -> 486 | J83: =I83/C83 -> 0.8452173913 | K83: =SUMIF($A$3:$A$80,"Central",K$3:K$80) -> 506 | L83: =K83/C83 -> 0.88 | M83: =SUMIF($A$3:$A$80,"Central",M$3:M$80) -> 496 | N83: =M83/C83 -> 0.8626086957 | O83: =SUMIF($A$3:$A$80,"Central",O$3:O$80) -> 520 | P83: =O83/C83 -> 0.9043478261 | Q83: =SUMIF($A$3:$A$80,"Central",Q$3:Q$80) -> 5280 | R83: =Q83/D83 -> 0.7715914073 | S83: =SUMIF($A$3:$A$80,"Central",S$3:S$80) -> 6002 | T83: =S83/D83 -> 0.8771006868
B84: Total Metropolitana | C84: =SUMIF($A$3:$A$80,"Metropolitana",C$3:C$80) -> 2438 | D84: =SUMIF($A$3:$A$80,"Metropolitana",D$3:D$80) -> 30197 | E84: =SUMIF($A$3:$A$80,"Metropolitana",E$3:E$80) -> 2248 | F84: =E84/C84 -> 0.9220672683 | G84: =SUMIF($A$3:$A$80,"Metropolitana",G$3:G$80) -> 23270 | H84: =G84/D84 -> 0.7706063516 | I84: =SUMIF($A$3:$A$80,"Metropolitana",I$3:I$80) -> 2388 | J84: =I84/C84 -> 0.9794913864 | K84: =SUMIF($A$3:$A$80,"Metropolitana",K$3:K$80) -> 2347 | L84: =K84/C84 -> 0.9626743232 | M84: =SUMIF($A$3:$A$80,"Metropolitana",M$3:M$80) -> 2292 | N84: =M84/C84 -> 0.9401148482 | O84: =SUMIF($A$3:$A$80,"Metropolitana",O$3:O$80) -> 2305 | P84: =O84/C84 -> 0.9454470878 | Q84: =SUMIF($A$3:$A$80,"Metropolitana",Q$3:Q$80) -> 20532 | R84: =Q84/D84 -> 0.6799350929 | S84: =SUMIF($A$3:$A$80,"Metropolitana",S$3:S$80) -> 24439 | T84: =S84/D84 -> 0.8093188065
B85: Total Sul | C85: =SUMIF($A$3:$A$80,"sul",C$3:C$80) -> 689 | D85: =SUMIF($A$3:$A$80,"sul",D$3:D$80) -> 8688 | E85: =SUMIF($A$3:$A$80,"sul",E$3:E$80) -> 685 | F85: =E85/C85 -> 0.9941944848 | G85: =SUMIF($A$3:$A$80,"sul",G$3:G$80) -> 7580 | H85: =G85/D85 -> 0.8724677716 | I85: =SUMIF($A$3:$A$80,"sul",I$3:I$80) -> 652 | J85: =I85/C85 -> 0.946298984 | K85: =SUMIF($A$3:$A$80,"sul",K$3:K$80) -> 588 | L85: =K85/C85 -> 0.8534107402 | M85: =SUMIF($A$3:$A$80,"sul",M$3:M$80) -> 648 | N85: =M85/C85 -> 0.9404934688 | O85: =SUMIF($A$3:$A$80,"sul",O$3:O$80) -> 660 | P85: =O85/C85 -> 0.9579100145 | Q85: =SUMIF($A$3:$A$80,"sul",Q$3:Q$80) -> 6564 | R85: =Q85/D85 -> 0.7555248619 | S85: =SUMIF($A$3:$A$80,"sul",S$3:S$80) -> 7712 | T85: =S85/D85 -> 0.8876611418
B86: Total Espírito Santo | C86: =SUM(C3:C80) -> 4168 | D86: =SUM(D3:D80) -> 51517 | E86: =SUM(E3:E80) -> 3915 | F86: =E86/C86 -> 0.9392994242 | G86: =SUM(G3:G80) -> 41771 | H86: =G86/D86 -> 0.8108197294 | I86: =SUM(I3:I80) -> 3952 | J86: =I86/C86 -> 0.9481765835 | K86: =SUM(K3:K80) -> 3874 | L86: =K86/C86 -> 0.929462572 | M86: =SUM(M3:M80) -> 3887 | N86: =M86/C86 -> 0.9325815739 | O86: =SUM(O3:O80) -> 3922 | P86: =O86/C86 -> 0.9409788868 | Q86: =SUM(Q3:Q80) -> 36750 | R86: =Q86/D86 -> 0.713356756 | S86: =SUM(S3:S80) -> 43099 | T86: =S86/D86 -> 0.836597628
A91: Fonte: Vacina e Confia, em 25 de janeiro de 2026.**<https://vacinaeconfia.saude.es.gov.br/>
A92: **Dados referente às doses aplicadas no período de janeiro de 2026
A93: Cobertura Calculada por município de residência do vacinado
A94: 1 População estimada extraída do MS/SVS/DASIS - SINASC/DASIS/SVS/MS 2025 referente ao período de janeiro de 2025.
A95: Sinasc, atualizado em 06/02/2026
A96: ²População estimada extraída do Censo IBGE 2022.
A97: Método de Cálculo Simples
A98: Homogeineidade: O cálculo da Homogeineidade entre vacinas é feito de acordo com a pactuação estabelecida no Plano Plurianual (PPA) vigente no período 2024-2027.
A100: Observações referente a distribuição de imunobiológicos que podem afetar a cobertura vacinal:
A102: 1. Vacinas que foram recebidas parcialmente pelo estado no mês de Janeiro/2026, sendo distribuídos em quantidades reduzidas às regionais e municípios:
A103: IMUNOGLOBULINA ANTIRRÁBICA HUMANA; SORO ANTIRRÁBICO HUMANO
A104: 2. Vacinas indisponíveis no mês de dezembro/2025, não sendo possível a distribuição às regionais e municípios:
A105: VACINA TETRA VIRAL, IMUNOGLOBULINA HUMANA ANTIVARICELA (ZOSTER) – 125UI
A106: 3. Vacinas enviadas por Pautas aguardando abastecimento do estoque estadual;
A107: VACINA COVID-19 PFIZER PEDIÁTRICA MENOR QUE 5 ANOS; VACINA COVID-19 PFIZER PEDIÁTRICA,
A109: Fonte: Informes situacionais de distribuição de imunobiológicos em https://saude.es.gov.br/GrupodeArquivos/informes-situacionais-de-distribuicao-de-imunobiologicos

Sheet Cobert. COVID-19 Menores 4 anos (hidden)
A1: Regional | B1: Município | C1: Série Histórica
A2: Região Metropolitana | B2: Afonso Cláudio
A3: Região Norte | B3: Água Doce do Norte
A4: Região Central | B4: Águia Branca
A5: Região Sul | B5: Alegre
A6: Região Sul | B6: Alfredo Chaves
A7: Região Central | B7: Alto Rio Novo
A8: Região Sul | B8: Anchieta
A9: Região Sul | B9: Apiacá
A10: Região Metropolitana | B10: Aracruz
A11: Região Sul | B11: Atilio Vivacqua
A12: Região Central | B12: Baixo Guandu
A13: Região Norte | B13: Barra de São Francisco
A14: Região Norte | B14: Boa Esperança
A15: Região Sul | B15: Bom Jesus do Norte
A16: Região Metropolitana | B16: Brejetuba
A17: Região Sul | B17: Cachoeiro de Itapemirim
A18: Região Metropolitana | B18: Cariacica
A19: Região Sul | B19: Castelo
A20: Região Central | B20: Colatina
A21: Região Norte | B21: Conceição da Barra
A22: Região Metropolitana | B22: Conceição do Castelo
A23: Região Sul | B23: Divino de São Lourenço
A24: Região Metropolitana | B24: Domingos Martins
A25: Região Sul | B25: Dores do Rio Preto
A26: Região Norte | B26: Ecoporanga
A27: Região Metropolitana | B27: Fundão
A28: Região Central | B28: Governador Lindenberg
A29: Região Sul | B29: Guaçuí
A30: Região Metropolitana | B30: Guarapari
A31: Região Metropolitana | B31: Ibatiba
A32: Região Metropolitana | B32: Ibiraçu
A33: Região Sul | B33: Ibitirama
A34: Região Sul | B34: Iconha
A35: Região Sul | B35: Irupi
A36: Região Metropolitana | B36: Itaguaçu
A37: Região Sul | B37: Itapemirim
A38: Região Metropolitana | B38: Itarana
A39: Região Sul | B39: Iúna
A40: Região Norte | B40: Jaguaré
A41: Região Sul | B41: Jerônimo Monteiro
A42: Região Metropolitana | B42: João Neiva
A43: Região Metropolitana | B43: Laranja da Terra
A44: Região Central | B44: Linhares
A45: Região Central | B45: Mantenópolis
A46: Região Sul | B46: Marataízes
A47: Região Metropolitana | B47: Marechal Floriano
A48: Região Central | B48: Marilândia
A49: Região Sul | B49: Mimoso do Sul
A50: Região Norte | B50: Montanha
A51: Região Norte | B51: Mucurici
A52: Região Sul | B52: Muniz Freire
A53: Região Sul | B53: Muqui
A54: Região Norte | B54: Nova Venécia
A55: Região Central | B55: Pancas
A56: Região Norte | B56: Pedro Canário
A57: Região Norte | B57: Pinheiros
A58: Região Sul | B58: Piúma
A59: Região Norte | B59: Ponto Belo
A60: Região Sul | B60: Presidente Kennedy
A61: Região Central | B61: Rio Bananal
A62: Região Sul | B62: Rio Novo do Sul
A63: Região Metropolitana | B63: Santa Leopoldina
A64: Região Metropolitana | B64: Santa Maria de Jetibá
A65: Região Metropolitana | B65: Santa Teresa
A66: Região Central | B66: São Domingos do Norte
A67: Região Central | B67: São Gabriel da Palha
A68: Região Sul | B68: São José do Calçado
A69: Região Norte | B69: São Mateus
A70: Região Central | B70: São Roque do Canaã
A71: Região Metropolitana | B71: Serra
A72: Região Central | B72: Sooretama
A73: Região Sul | B73: Vargem Alta
A74: Região Metropolitana | B74: Venda Nova do Imigrante
A75: Região Metropolitana | B75: Viana
A76: Região Norte | B76: Vila Pavão
A77: Região Central | B77: Vila Valério
A78: Região Metropolitana | B78: Vila Velha
A79: Região Metropolitana | B79: Vitória
B81: Espírito Santo
B82: Região Norte
B83: Região Central
B84: Região Metropolitana
B85: Região Sul
A87: Pfizer Pediátrica Menor de 5 anos e Coronavac
A88: Período avaliado: 2021-2024
A89: Fonte: https://www.vacinaeconfia.es.gov.br
A90: *Dados de janeiro/2024 extraídos do Vacina e Confia em 04/01/2024
A91: População proporcional extraída do SINASC 2022 (menores de 1 ano) e Censo IBGE 2022 (demais idades)
A92: Cobertura Calculada por município de procedência da vacinação

Sheet dTpa gestantes - procedência
A1: Regional | B1: Município | C1: ¹População | D1: Doses Aplicadas | E1: Cobertura Vacinal %
A2: Metropolitana | B2: Afonso Cláudio | C2: 31 | D2: 34 | E2: =D2/C2 -> 1.096774194
A3: Norte | B3: Água Doce do Norte | C3: 11 | D3: 9 | E3: =D3/C3 -> 0.8181818182
A4: Central | B4: Águia Branca | C4: 14 | D4: 18 | E4: 1.285714286
A5: Sul | B5: Alegre | C5: 24 | D5: 31 | E5: 1.291666667
A6: Sul | B6: Alfredo Chaves | C6: 11 | D6: 15 | E6: 1.363636364
A7: Central | B7: Alto Rio Novo | C7: 7 | D7: 9 | E7: 1.285714286
A8: Sul | B8: Anchieta | C8: 24 | D8: 44 | E8: 1.833333333
A9: Sul | B9: Apiacá | C9: 4 | D9: 2 | E9: 0.5
A10: Metropolitana | B10: Aracruz | C10: 125 | D10: 173 | E10: 1.384
A11: Sul | B11: Atilio Vivacqua | C11: 17 | D11: 13 | E11: 0.7647058824
A12: Central | B12: Baixo Guandu | C12: 32 | D12: 37 | E12: 1.15625
A13: Norte | B13: Barra de São Francisco | C13: 54 | D13: 50 | E13: 0.9259259259
A14: Norte | B14: Boa Esperança | C14: 17 | D14: 16 | E14: 0.9411764706
A15: Sul | B15: Bom Jesus do Norte | C15: 5 | D15: 7 | E15: 1.4
A16: Metropolitana | B16: Brejetuba | C16: 18 | D16: 34 | E16: 1.888888889
A17: Sul | B17: Cachoeiro de Itapemirim | C17: 204 | D17: 230 | E17: 1.12745098
A18: Metropolitana | B18: Cariacica | C18: 408 | D18: 410 | E18: 1.004901961
A19: Sul | B19: Castelo | C19: 39 | D19: 41 | E19: 1.051282051
A20: Central | B20: Colatina | C20: 123 | D20: 132 | E20: 1.073170732
A21: Norte | B21: Conceição da Barra | C21: 32 | D21: 38 | E21: 1.1875
A22: Metropolitana | B22: Conceição do Castelo | C22: 12 | D22: 16 | E22: 1.333333333
A23: Sul | B23: Divino de São Lourenço | C23: 6 | D23: 6 | E23: 1
A24: Metropolitana | B24: Domingos Martins | C24: 36 | D24: 49 | E24: 1.361111111
A25: Sul | B25: Dores do Rio Preto | C25: 9 | D25: 10 | E25: 1.111111111
A26: Norte | B26: Ecoporanga | C26: 18 | D26: 19 | E26: 1.055555556
A27: Metropolitana | B27: Fundão | C27: 22 | D27: 27 | E27: 1.227272727
A28: Central | B28: Governador Lindenberg | C28: 11 | D28: 15 | E28: 1.363636364
A29: Sul | B29: Guaçuí | C29: 25 | D29: 44 | E29: 1.76
A30: Metropolitana | B30: Guarapari | C30: 129 | D30: 146 | E30: 1.131782946
A31: Metropolitana | B31: Ibatiba | C31: 30 | D31: 53 | E31: 1.766666667
A32: Metropolitana | B32: Ibiraçu | C32: 8 | D32: 15 | E32: 1.875
A33: Sul | B33: Ibitirama | C33: 10 | D33: 15 | E33: 1.5
A34: Sul | B34: Iconha | C34: 10 | D34: 12 | E34: 1.2
A35: Sul | B35: Irupi | C35: 18 | D35: 25 | E35: 1.388888889
A36: Metropolitana | B36: Itaguaçu | C36: 13 | D36: 14 | E36: 1.076923077
A37: Sul | B37: Itapemirim | C37: 53 | D37: 43 | E37: 0.8113207547
A38: Metropolitana | B38: Itarana | C38: 8 | D38: 16 | E38: 2
A39: Sul | B39: Iúna | C39: 34 | D39: 34 | E39: 1
A40: Norte | B40: Jaguaré | C40: 46 | D40: 55 | E40: 1.195652174
A41: Sul | B41: Jerônimo Monteiro | C41: 12 | D41: 11 | E41: 0.9166666667
A42: Metropolitana | B42: João Neiva | C42: 5 | D42: 19 | E42: 3.8
A43: Metropolitana | B43: Laranja da Terra | C43: 9 | D43: 7 | E43: 0.7777777778
A44: Central | B44: Linhares | C44: 237 | D44: 207 | E44: 0.8734177215
A45: Central | B45: Mantenópolis | C45: 14 | D45: 10 | E45: 0.7142857143
A46: Sul | B46: Marataízes | C46: 45 | D46: 44 | E46: 0.9777777778
A47: Metropolitana | B47: Marechal Floriano | C47: 24 | D47: 17 | E47: 0.7083333333
A48: Central | B48: Marilândia | C48: 13 | D48: 22 | E48: 1.692307692
A49: Sul | B49: Mimoso do Sul | C49: 25 | D49: 20 | E49: 0.8
A50: Norte | B50: Montanha | C50: 21 | D50: 26 | E50: 1.238095238
A51: Norte | B51: Mucurici | C51: 4 | D51: 11 | E51: 2.75
A52: Sul | B52: Muniz Freire | C52: 19 | D52: 19 | E52: 1
A53: Sul | B53: Muqui | C53: 9 | D53: 17 | E53: 1.888888889
A54: Norte | B54: Nova Venécia | C54: 55 | D54: 71 | E54: 1.290909091
A55: Central | B55: Pancas | C55: 20 | D55: 32 | E55: 1.6
A56: Norte | B56: Pedro Canário | C56: 30 | D56: 28 | E56: 0.9333333333
A57: Norte | B57: Pinheiros | C57: 26 | D57: 25 | E57: 0.9615384615
A58: Sul | B58: Piúma | C58: 29 | D58: 27 | E58: 0.9310344828
A59: Norte | B59: Ponto Belo | C59: 6 | D59: 6 | E59: 1
A60: Sul | B60: Presidente Kennedy | C60: 18 | D60: 19 | E60: 1.055555556
A61: Central | B61: Rio Bananal | C61: 19 | D61: 31 | E61: 1.631578947
A62: Sul | B62: Rio Novo do Sul | C62: 11 | D62: 14 | E62: 1.272727273
A63: Metropolitana | B63: Santa Leopoldina | C63: 7 | D63: 13 | E63: 1.857142857
A64: Metropolitana | B64: Santa Maria de Jetibá | C64: 53 | D64: 59 | E64: 1.113207547
A65: Metropolitana | B65: Santa Teresa | C65: 29 | D65: 19 | E65: 0.6551724138
A66: Central | B66: São Domingos do Norte | C66: 5 | D66: 19 | E66: 3.8
A67: Central | B67: São Gabriel da Palha | C67: 35 | D67: 50 | E67: =D67/C67 -> 1.428571429
A68: Sul | B68: São José do Calçado | C68: 6 | D68: 11 | E68: 1.833333333
A69: Norte | B69: São Mateus | C69: 137 | D69: 197 | E69: 1.437956204
A70: Central | B70: São Roque do Canaã | C70: 12 | D70: 6 | E70: 0.5
A71: Metropolitana | B71: Serra | C71: 631 | D71: 658 | E71: 1.042789223
A72: Central | B72: Sooretama | C72: 21 | D72: 49 | E72: 2.333333333
A73: Sul | B73: Vargem Alta | C73: 22 | D73: 28 | E73: 1.272727273
A74: Metropolitana | B74: Venda Nova do Imigrante | C74: 24 | D74: 34 | E74: 1.416666667
A75: Metropolitana | B75: Viana | C75: 66 | D75: 103 | E75: 1.560606061
A76: Norte | B76: Vila Pavão | C76: 9 | D76: 12 | E76: 1.333333333
A77: Central | B77: Vila Valério | C77: 12 | D77: 20 | E77: 1.666666667
A78: Metropolitana | B78: Vila Velha | C78: 476 | D78: 522 | E78: 1.096638655
A79: Metropolitana | B79: Vitória | C79: 274 | D79: 319 | E79: 1.164233577
B81: Total Norte | C81: =SUMIF($A$2:$A$79,"Norte",C$2:C$79) -> 466 | D81: =SUMIF($A$2:$A$79,"Norte",D$2:D$79) -> 563 | E81: 1.208154506
B82: Total Central | C82: =SUMIF($A$2:$A$79,"CENTRAL",C$2:C$79) -> 575 | D82: =SUMIF($A$2:$A$79,"CENTRAL",D$2:D$79) -> 657 | E82: 1.142608696
B83: Total Metropolitana | C83: =SUMIF($A$2:$A$79,"METROPOLITANA",C$2:C$79) -> 2438 | D83: =SUMIF($A$2:$A$79,"METROPOLITANA",D$2:D$79) -> 2757 | E83: 1.130844955
B84: Total Sul | C84: =SUMIF($A$2:$A$79,"SUL",C$2:C$79) -> 689 | D84: =SUMIF($A$2:$A$79,"SUL",D$2:D$79) -> 782 | E84: 1.134978229
B85: TOTAL ES | C85: =SUM(C2:C79) -> 4168 | D85: =SUM(D2:D79) -> 4759 | E85: 1.141794626
B86: HOMOGENEIDADE ENTRE MUNICÍPIOS | E86: =COUNTIF(E2:E79,">=0,95")/78 -> 0.7948717949
A91: Fonte: Vacina e Confia, em 25 de fevereiro de 2026.**<https://vacinaeconfia.saude.es.gov.br/>
A92: **Dados referente às doses aplicadasem janeiro de 2026
A93: Cobertura Calculada por município de procedência/ocorrência da vacinação
A94: 1 População estimada extraída do MS/SVS/DASIS - SINASC/DASIS/SVS/MS 2025 referente ao período de janeiro de 2025.
A95: Sinasc, atualizado em 06/02/2026
A96: Método de Cálculo Simples
A97: Homogeineidade: O cálculo da Homogeineidade entre vacinas é feito de acordo com a pactuação estabelecida no Plano Plurianual (PPA) vigente no período 2024-2027.
A100: Observações referente a distribuição de imunobiológicos que podem afetar a cobertura vacinal:
A102: 1. Vacinas que foram recebidas parcialmente pelo estado no mês de Janeiro/2026, sendo distribuídos em quantidades reduzidas às regionais e municípios:
A103: IMUNOGLOBULINA ANTIRRÁBICA HUMANA; SORO ANTIRRÁBICO HUMANO
A104: 2. Vacinas indisponíveis no mês de dezembro/2025, não sendo possível a distribuição às regionais e municípios:
A105: VACINA TETRA VIRAL, IMUNOGLOBULINA HUMANA ANTIVARICELA (ZOSTER) – 125UI
A106: 3. Vacinas enviadas por Pautas aguardando abastecimento do estoque estadual;
A107: VACINA COVID-19 PFIZER PEDIÁTRICA MENOR QUE 5 ANOS; VACINA COVID-19 PFIZER PEDIÁTRICA,
A109: Fonte: Informes situacionais de distribuição de imunobiológicos em https://saude.es.gov.br/GrupodeArquivos/informes-situacionais-de-distribuicao-de-imunobiologicos

Sheet dTpa gestantes - residência
A1: Regional | B1: Município | C1: ¹População | D1: Total de Doses Aplicadas | E1: Cobertura Vacinal %
A2: Metropolitana | B2: Afonso Cláudio | C2: 31 | D2: 40 | E2: =D2/C2 -> 1.290322581
A3: Norte | B3: Água Doce do Norte | C3: 11 | D3: 10 | E3: =D3/C3 -> 0.9090909091
A4: Central | B4: Águia Branca | C4: 14 | D4: 14 | E4: 1
A5: Sul | B5: Alegre | C5: 24 | D5: 32 | E5: 1.333333333
A6: Sul | B6: Alfredo Chaves | C6: 11 | D6: 11 | E6: 1
A7: Central | B7: Alto Rio Novo | C7: 7 | D7: 9 | E7: 1.285714286
A8: Sul | B8: Anchieta | C8: 24 | D8: 48 | E8: 2
A9: Sul | B9: Apiacá | C9: 4 | D9: 3 | E9: 0.75
A10: Metropolitana | B10: Aracruz | C10: 125 | D10: 160 | E10: 1.28
A11: Sul | B11: Atilio Vivacqua | C11: 17 | D11: 11 | E11: 0.6470588235
A12: Central | B12: Baixo Guandu | C12: 32 | D12: 34 | E12: 1.0625
A13: Norte | B13: Barra de São Francisco | C13: 54 | D13: 47 | E13: 0.8703703704
A14: Norte | B14: Boa Esperança | C14: 17 | D14: 14 | E14: 0.8235294118
A15: Sul | B15: Bom Jesus do Norte | C15: 5 | D15: 5 | E15: 1
A16: Metropolitana | B16: Brejetuba | C16: 18 | D16: 30 | E16: 1.666666667
A17: Sul | B17: Cachoeiro de Itapemirim | C17: 204 | D17: 226 | E17: 1.107843137
A18: Metropolitana | B18: Cariacica | C18: 408 | D18: 463 | E18: 1.134803922
A19: Sul | B19: Castelo | C19: 39 | D19: 44 | E19: 1.128205128
A20: Central | B20: Colatina | C20: 123 | D20: 133 | E20: 1.081300813
A21: Norte | B21: Conceição da Barra | C21: 32 | D21: 44 | E21: 1.375
A22: Metropolitana | B22: Conceição do Castelo | C22: 12 | D22: 17 | E22: 1.416666667
A23: Sul | B23: Divino de São Lourenço | C23: 6 | D23: 7 | E23: 1.166666667
A24: Metropolitana | B24: Domingos Martins | C24: 36 | D24: 43 | E24: 1.194444444
A25: Sul | B25: Dores do Rio Preto | C25: 9 | D25: 6 | E25: 0.6666666667
A26: Norte | B26: Ecoporanga | C26: 18 | D26: 29 | E26: 1.611111111
A27: Metropolitana | B27: Fundão | C27: 22 | D27: 19 | E27: 0.8636363636
A28: Central | B28: Governador Lindenberg | C28: 11 | D28: 16 | E28: 1.454545455
A29: Sul | B29: Guaçuí | C29: 25 | D29: 41 | E29: 1.64
A30: Metropolitana | B30: Guarapari | C30: 129 | D30: 127 | E30: 0.984496124
A31: Metropolitana | B31: Ibatiba | C31: 30 | D31: 52 | E31: 1.733333333
A32: Metropolitana | B32: Ibiraçu | C32: 8 | D32: 19 | E32: 2.375
A33: Sul | B33: Ibitirama | C33: 10 | D33: 18 | E33: 1.8
A34: Sul | B34: Iconha | C34: 10 | D34: 18 | E34: 1.8
A35: Sul | B35: Irupi | C35: 18 | D35: 18 | E35: 1
A36: Metropolitana | B36: Itaguaçu | C36: 13 | D36: 13 | E36: 1
A37: Sul | B37: Itapemirim | C37: 53 | D37: 47 | E37: 0.8867924528
A38: Metropolitana | B38: Itarana | C38: 8 | D38: 12 | E38: 1.5
A39: Sul | B39: Iúna | C39: 34 | D39: 32 | E39: 0.9411764706
A40: Norte | B40: Jaguaré | C40: 46 | D40: 52 | E40: 1.130434783
A41: Sul | B41: Jerônimo Monteiro | C41: 12 | D41: 11 | E41: 0.9166666667
A42: Metropolitana | B42: João Neiva | C42: 5 | D42: 20 | E42: 4
A43: Metropolitana | B43: Laranja da Terra | C43: 9 | D43: 8 | E43: 0.8888888889
A44: Central | B44: Linhares | C44: 237 | D44: 208 | E44: 0.8776371308
A45: Central | B45: Mantenópolis | C45: 14 | D45: 10 | E45: 0.7142857143
A46: Sul | B46: Marataízes | C46: 45 | D46: 38 | E46: 0.8444444444
A47: Metropolitana | B47: Marechal Floriano | C47: 24 | D47: 25 | E47: 1.041666667
A48: Central | B48: Marilândia | C48: 13 | D48: 15 | E48: 1.153846154
A49: Sul | B49: Mimoso do Sul | C49: 25 | D49: 23 | E49: 0.92
A50: Norte | B50: Montanha | C50: 21 | D50: 31 | E50: 1.476190476
A51: Norte | B51: Mucurici | C51: 4 | D51: 9 | E51: 2.25
A52: Sul | B52: Muniz Freire | C52: 19 | D52: 18 | E52: 0.9473684211
A53: Sul | B53: Muqui | C53: 9 | D53: 15 | E53: 1.666666667
A54: Norte | B54: Nova Venécia | C54: 55 | D54: 74 | E54: 1.345454545
A55: Central | B55: Pancas | C55: 20 | D55: 39 | E55: 1.95
A56: Norte | B56: Pedro Canário | C56: 30 | D56: 23 | E56: 0.7666666667
A57: Norte | B57: Pinheiros | C57: 26 | D57: 29 | E57: 1.115384615
A58: Sul | B58: Piúma | C58: 29 | D58: 22 | E58: 0.7586206897
A59: Norte | B59: Ponto Belo | C59: 6 | D59: 7 | E59: 1.166666667
A60: Sul | B60: Presidente Kennedy | C60: 18 | D60: 13 | E60: 0.7222222222
A61: Central | B61: Rio Bananal | C61: 19 | D61: 34 | E61: 1.789473684
A62: Sul | B62: Rio Novo do Sul | C62: 11 | D62: 11 | E62: 1
A63: Metropolitana | B63: Santa Leopoldina | C63: 7 | D63: 12 | E63: 1.714285714
A64: Metropolitana | B64: Santa Maria de Jetibá | C64: 53 | D64: 52 | E64: 0.9811320755
A65: Metropolitana | B65: Santa Teresa | C65: 29 | D65: 22 | E65: 0.7586206897
A66: Central | B66: São Domingos do Norte | C66: 5 | D66: 15 | E66: 3
A67: Central | B67: São Gabriel da Palha | C67: 35 | D67: 46 | E67: =D67/C67 -> 1.314285714
A68: Sul | B68: São José do Calçado | C68: 6 | D68: 12 | E68: 2
A69: Norte | B69: São Mateus | C69: 137 | D69: 162 | E69: 1.182481752
A70: Central | B70: São Roque do Canaã | C70: 12 | D70: 9 | E70: 0.75
A71: Metropolitana | B71: Serra | C71: 631 | D71: 599 | E71: 0.9492868463
A72: Central | B72: Sooretama | C72: 21 | D72: 51 | E72: 2.428571429
A73: Sul | B73: Vargem Alta | C73: 22 | D73: 31 | E73: 1.409090909
A74: Metropolitana | B74: Venda Nova do Imigrante | C74: 24 | D74: 29 | E74: 1.208333333
A75: Metropolitana | B75: Viana | C75: 66 | D75: 92 | E75: 1.393939394
A76: Norte | B76: Vila Pavão | C76: 9 | D76: 15 | E76: 1.666666667
A77: Central | B77: Vila Valério | C77: 12 | D77: 18 | E77: 1.5
A78: Metropolitana | B78: Vila Velha | C78: 476 | D78: 444 | E78: 0.9327731092
A79: Metropolitana | B79: Vitória | C79: 274 | D79: 276 | E79: 1.00729927
B81: Total Norte | C81: =SUMIF($A$2:$A$79,"Norte",C$2:C$79) -> 466 | D81: =SUMIF($A$2:$A$79,"Norte",D$2:D$79) -> 546 | E81: 1.17167382
B82: Total Central | C82: =SUMIF($A$2:$A$79,"CENTRAL",C$2:C$79) -> 575 | D82: =SUMIF($A$2:$A$79,"CENTRAL",D$2:D$79) -> 651 | E82: 1.132173913
B83: Total Metropolitana | C83: =SUMIF($A$2:$A$79,"METROPOLITANA",C$2:C$79) -> 2438 | D83: =SUMIF($A$2:$A$79,"METROPOLITANA",D$2:D$79) -> 2574 | E83: 1.055783429
B84: Total Sul | C84: =SUMIF($A$2:$A$79,"SUL",C$2:C$79) -> 689 | D84: =SUMIF($A$2:$A$79,"SUL",D$2:D$79) -> 761 | E84: 1.104499274
B85: TOTAL ES | C85: =SUM(C2:C79) -> 4168 | D85: =SUM(D2:D79) -> 4532 | E85: 1.087332054
B86: HOMOGENEIDADE ENTRE MUNICÍPIOS | D86: =COUNTIF(E2:E79,">=0,95") -> 55 | E86: =COUNTIF(E2:E79,">=0,95")/78 -> 0.7051282051
A91: Fonte: Vacina e Confia, em 25 de janeiro de 2026.**<https://vacinaeconfia.saude.es.gov.br/>
A92: **Dados referente às doses aplicadas no período de janeiro de 2026
A93: Cobertura Calculada por município de residência do vacinado
A94: 1 População estimada extraída do MS/SVS/DASIS - SINASC/DASIS/SVS/MS 2025 referente ao período de janeiro de 2025.
A95: Sinasc, atualizado em 06/02/2026
A96: Método de Cálculo Simples
A97: Homogeineidade: O cálculo da Homogeineidade entre vacinas é feito de acordo com a pactuação estabelecida no Plano Plurianual (PPA) vigente no período 2024-2027.
A100: Observações referente a distribuição de imunobiológicos que podem afetar a cobertura vacinal:
A102: 1. Vacinas que foram recebidas parcialmente pelo estado no mês de Janeiro/2026, sendo distribuídos em quantidades reduzidas às regionais e municípios:
A103: IMUNOGLOBULINA ANTIRRÁBICA HUMANA; SORO ANTIRRÁBICO HUMANO
A104: 2. Vacinas indisponíveis no mês de dezembro/2025, não sendo possível a distribuição às regionais e municípios:
A105: VACINA TETRA VIRAL, IMUNOGLOBULINA HUMANA ANTIVARICELA (ZOSTER) – 125UI
A106: 3. Vacinas enviadas por Pautas aguardando abastecimento do estoque estadual;
A107: VACINA COVID-19 PFIZER PEDIÁTRICA MENOR QUE 5 ANOS; VACINA COVID-19 PFIZER PEDIÁTRICA,
A109: Fonte: Informes situacionais de distribuição de imunobiológicos em https://saude.es.gov.br/GrupodeArquivos/informes-situacionais-de-distribuicao-de-imunobiologicos

Sheet VSR gestante - Procedência
A1: Regional | B1: Município | C1: ¹População | D1: Doses Aplicadas | E1: Cobertura Vacinal %
A2: Metropolitana | B2: Afonso Cláudio | C2: 31 | D2: 27 | E2: =D2/C2 -> 0.8709677419
A3: Norte | B3: Água Doce do Norte | C3: 11 | D3: 6 | E3: =D3/C3 -> 0.5454545455
A4: Central | B4: Águia Branca | C4: 14 | D4: 15 | E4: 1.071428571
A5: Sul | B5: Alegre | C5: 24 | D5: 20 | E5: 0.8333333333
A6: Sul | B6: Alfredo Chaves | C6: 11 | D6: 14 | E6: 1.272727273
A7: Central | B7: Alto Rio Novo | C7: 7 | D7: 9 | E7: 1.285714286
A8: Sul | B8: Anchieta | C8: 24 | D8: 46 | E8: 1.916666667
A9: Sul | B9: Apiacá | C9: 4 | D9: 3 | E9: 0.75
A10: Metropolitana | B10: Aracruz | C10: 125 | D10: 131 | E10: 1.048
A11: Sul | B11: Atilio Vivacqua | C11: 17 | D11: 17 | E11: 1
A12: Central | B12: Baixo Guandu | C12: 32 | D12: 19 | E12: 0.59375
A13: Norte | B13: Barra de São Francisco | C13: 54 | D13: 55 | E13: 1.018518519
A14: Norte | B14: Boa Esperança | C14: 17 | D14: 18 | E14: 1.058823529
A15: Sul | B15: Bom Jesus do Norte | C15: 5 | D15: 0 | E15: 0
A16: Metropolitana | B16: Brejetuba | C16: 18 | D16: 23 | E16: 1.277777778
A17: Sul | B17: Cachoeiro de Itapemirim | C17: 204 | D17: 223 | E17: 1.093137255
A18: Metropolitana | B18: Cariacica | C18: 408 | D18: 374 | E18: 0.9166666667
A19: Sul | B19: Castelo | C19: 39 | D19: 40 | E19: 1.025641026
A20: Central | B20: Colatina | C20: 123 | D20: 124 | E20: 1.008130081
A21: Norte | B21: Conceição da Barra | C21: 32 | D21: 40 | E21: 1.25
A22: Metropolitana | B22: Conceição do Castelo | C22: 12 | D22: 9 | E22: 0.75
A23: Sul | B23: Divino de São Lourenço | C23: 6 | D23: 4 | E23: 0.6666666667
A24: Metropolitana | B24: Domingos Martins | C24: 36 | D24: 32 | E24: 0.8888888889
A25: Sul | B25: Dores do Rio Preto | C25: 9 | D25: 8 | E25: 0.8888888889
A26: Norte | B26: Ecoporanga | C26: 18 | D26: 19 | E26: 1.055555556
A27: Metropolitana | B27: Fundão | C27: 22 | D27: 16 | E27: 0.7272727273
A28: Central | B28: Governador Lindenberg | C28: 11 | D28: 17 | E28: 1.545454545
A29: Sul | B29: Guaçuí | C29: 25 | D29: 25 | E29: 1
A30: Metropolitana | B30: Guarapari | C30: 129 | D30: 136 | E30: 1.054263566
A31: Metropolitana | B31: Ibatiba | C31: 30 | D31: 41 | E31: 1.366666667
A32: Metropolitana | B32: Ibiraçu | C32: 8 | D32: 7 | E32: 0.875
A33: Sul | B33: Ibitirama | C33: 10 | D33: 18 | E33: 1.8
A34: Sul | B34: Iconha | C34: 10 | D34: 7 | E34: 0.7
A35: Sul | B35: Irupi | C35: 18 | D35: 12 | E35: 0.6666666667
A36: Metropolitana | B36: Itaguaçu | C36: 13 | D36: 14 | E36: 1.076923077
A37: Sul | B37: Itapemirim | C37: 53 | D37: 39 | E37: 0.7358490566
A38: Metropolitana | B38: Itarana | C38: 8 | D38: 17 | E38: 2.125
A39: Sul | B39: Iúna | C39: 34 | D39: 34 | E39: 1
A40: Norte | B40: Jaguaré | C40: 46 | D40: 56 | E40: 1.217391304
A41: Sul | B41: Jerônimo Monteiro | C41: 12 | D41: 17 | E41: 1.416666667
A42: Metropolitana | B42: João Neiva | C42: 5 | D42: 20 | E42: 4
A43: Metropolitana | B43: Laranja da Terra | C43: 9 | D43: 8 | E43: 0.8888888889
A44: Central | B44: Linhares | C44: 237 | D44: 230 | E44: 0.970464135
A45: Central | B45: Mantenópolis | C45: 14 | D45: 12 | E45: 0.8571428571
A46: Sul | B46: Marataízes | C46: 45 | D46: 29 | E46: 0.6444444444
A47: Metropolitana | B47: Marechal Floriano | C47: 24 | D47: 13 | E47: 0.5416666667
A48: Central | B48: Marilândia | C48: 13 | D48: 10 | E48: 0.7692307692
A49: Sul | B49: Mimoso do Sul | C49: 25 | D49: 22 | E49: 0.88
A50: Norte | B50: Montanha | C50: 21 | D50: 31 | E50: 1.476190476
A51: Norte | B51: Mucurici | C51: 4 | D51: 5 | E51: 1.25
A52: Sul | B52: Muniz Freire | C52: 19 | D52: 19 | E52: 1
A53: Sul | B53: Muqui | C53: 9 | D53: 9 | E53: 1
A54: Norte | B54: Nova Venécia | C54: 55 | D54: 52 | E54: 0.9454545455
A55: Central | B55: Pancas | C55: 20 | D55: 19 | E55: 0.95
A56: Norte | B56: Pedro Canário | C56: 30 | D56: 33 | E56: 1.1
A57: Norte | B57: Pinheiros | C57: 26 | D57: 23 | E57: 0.8846153846
A58: Sul | B58: Piúma | C58: 29 | D58: 23 | E58: 0.7931034483
A59: Norte | B59: Ponto Belo | C59: 6 | D59: 7 | E59: 1.166666667
A60: Sul | B60: Presidente Kennedy | C60: 18 | D60: 22 | E60: 1.222222222
A61: Central | B61: Rio Bananal | C61: 19 | D61: 27 | E61: 1.421052632
A62: Sul | B62: Rio Novo do Sul | C62: 11 | D62: 12 | E62: 1.090909091
A63: Metropolitana | B63: Santa Leopoldina | C63: 7 | D63: 9 | E63: 1.285714286
A64: Metropolitana | B64: Santa Maria de Jetibá | C64: 53 | D64: 44 | E64: 0.8301886792
A65: Metropolitana | B65: Santa Teresa | C65: 29 | D65: 18 | E65: 0.6206896552
A66: Central | B66: São Domingos do Norte | C66: 5 | D66: 5 | E66: 1
A67: Central | B67: São Gabriel da Palha | C67: 35 | D67: 57 | E67: =D67/C67 -> 1.628571429
A68: Sul | B68: São José do Calçado | C68: 6 | D68: 14 | E68: 2.333333333
A69: Norte | B69: São Mateus | C69: 137 | D69: 169 | E69: 1.233576642
A70: Central | B70: São Roque do Canaã | C70: 12 | D70: 7 | E70: 0.5833333333
A71: Metropolitana | B71: Serra | C71: 631 | D71: 620 | E71: 0.9825673534
A72: Central | B72: Sooretama | C72: 21 | D72: 46 | E72: 2.19047619
A73: Sul | B73: Vargem Alta | C73: 22 | D73: 22 | E73: 1
A74: Metropolitana | B74: Venda Nova do Imigrante | C74: 24 | D74: 31 | E74: 1.291666667
A75: Metropolitana | B75: Viana | C75: 66 | D75: 87 | E75: 1.318181818
A76: Norte | B76: Vila Pavão | C76: 9 | D76: 5 | E76: 0.5555555556
A77: Central | B77: Vila Valério | C77: 12 | D77: 27 | E77: 2.25
A78: Metropolitana | B78: Vila Velha | C78: 476 | D78: 502 | E78: 1.054621849
A79: Metropolitana | B79: Vitória | C79: 274 | D79: 358 | E79: 1.306569343
B81: Total Norte | C81: =SUMIF($A$2:$A$79,"Norte",C$2:C$79) -> 466 | D81: =SUMIF($A$2:$A$79,"Norte",D$2:D$79) -> 519 | E81: =D81/C81 -> 1.113733906
B82: Total Central | C82: =SUMIF($A$2:$A$79,"CENTRAL",C$2:C$79) -> 575 | D82: =SUMIF($A$2:$A$79,"CENTRAL",D$2:D$79) -> 624 | E82: =D82/C82 -> 1.085217391
B83: Total Metropolitana | C83: =SUMIF($A$2:$A$79,"METROPOLITANA",C$2:C$79) -> 2438 | D83: =SUMIF($A$2:$A$79,"METROPOLITANA",D$2:D$79) -> 2537 | E83: 1.040607055
B84: Total Sul | C84: =SUMIF($A$2:$A$79,"SUL",C$2:C$79) -> 689 | D84: =SUMIF($A$2:$A$79,"SUL",D$2:D$79) -> 699 | E84: 1.014513788
B85: TOTAL ES | C85: =SUM(C2:C79) -> 4168 | D85: =SUM(D2:D79) -> 4379 | E85: 1.0506238
B86: HOMOGENEIDADE ENTRE MUNICÍPIOS | E86: =COUNTIF(E2:E79,">=0,95")/78 -> 0.6282051282
A91: Fonte: Vacina e Confia, em 25 de fevereiro de 2026.**<https://vacinaeconfia.saude.es.gov.br/>
A92: **Dados referente às doses aplicadasem janeiro de 2026
A93: Cobertura Calculada por município de procedência/ocorrência da vacinação
A94: 1 População estimada extraída do MS/SVS/DASIS - SINASC/DASIS/SVS/MS 2025 referente ao período de janeiro de 2025.
A95: Sinasc, atualizado em 06/02/2026
A96: Método de Cálculo Simples
A97: Homogeineidade: O cálculo da Homogeineidade entre vacinas é feito de acordo com a pactuação estabelecida no Plano Plurianual (PPA) vigente no período 2024-2027.
A100: Observações referente a distribuição de imunobiológicos que podem afetar a cobertura vacinal:
A102: 1. Vacinas que foram recebidas parcialmente pelo estado no mês de Janeiro/2026, sendo distribuídos em quantidades reduzidas às regionais e municípios:
A103: IMUNOGLOBULINA ANTIRRÁBICA HUMANA; SORO ANTIRRÁBICO HUMANO
A104: 2. Vacinas indisponíveis no mês de dezembro/2025, não sendo possível a distribuição às regionais e municípios:
A105: VACINA TETRA VIRAL, IMUNOGLOBULINA HUMANA ANTIVARICELA (ZOSTER) – 125UI
A106: 3. Vacinas enviadas por Pautas aguardando abastecimento do estoque estadual;
A107: VACINA COVID-19 PFIZER PEDIÁTRICA MENOR QUE 5 ANOS; VACINA COVID-19 PFIZER PEDIÁTRICA,
A109: Fonte: Informes situacionais de distribuição de imunobiológicos em https://saude.es.gov.br/GrupodeArquivos/informes-situacionais-de-distribuicao-de-imunobiologicos

Sheet VSR gestante - residência
A1: Regional | B1: Município | C1: ¹População | D1: Doses Aplicadas | E1: Cobertura Vacinal %
A2: Metropolitana | B2: Afonso Cláudio | C2: 31 | D2: 25 | E2: =D2/C2 -> 0.8064516129
A3: Norte | B3: Água Doce do Norte | C3: 11 | D3: 9 | E3: =D3/C3 -> 0.8181818182
A4: Central | B4: Águia Branca | C4: 14 | D4: 9 | E4: 0.6428571429
A5: Sul | B5: Alegre | C5: 24 | D5: 24 | E5: 1
A6: Sul | B6: Alfredo Chaves | C6: 11 | D6: 17 | E6: 1.545454545
A7: Central | B7: Alto Rio Novo | C7: 7 | D7: 9 | E7: 1.285714286
A8: Sul | B8: Anchieta | C8: 24 | D8: 43 | E8: 1.791666667
A9: Sul | B9: Apiacá | C9: 4 | D9: 4 | E9: 1
A10: Metropolitana | B10: Aracruz | C10: 125 | D10: 120 | E10: 0.96
A11: Sul | B11: Atilio Vivacqua | C11: 17 | D11: 19 | E11: 1.117647059
A12: Central | B12: Baixo Guandu | C12: 32 | D12: 18 | E12: 0.5625
A13: Norte | B13: Barra de São Francisco | C13: 54 | D13: 53 | E13: 0.9814814815
A14: Norte | B14: Boa Esperança | C14: 17 | D14: 15 | E14: 0.8823529412
A15: Sul | B15: Bom Jesus do Norte | C15: 5 | D15: 1 | E15: 0.2
A16: Metropolitana | B16: Brejetuba | C16: 18 | D16: 21 | E16: 1.166666667
A17: Sul | B17: Cachoeiro de Itapemirim | C17: 204 | D17: 212 | E17: 1.039215686
A18: Metropolitana | B18: Cariacica | C18: 408 | D18: 416 | E18: 1.019607843
A19: Sul | B19: Castelo | C19: 39 | D19: 46 | E19: 1.179487179
A20: Central | B20: Colatina | C20: 123 | D20: 128 | E20: 1.040650407
A21: Norte | B21: Conceição da Barra | C21: 32 | D21: 42 | E21: 1.3125
A22: Metropolitana | B22: Conceição do Castelo | C22: 12 | D22: 9 | E22: 0.75
A23: Sul | B23: Divino de São Lourenço | C23: 6 | D23: 2 | E23: 0.3333333333
A24: Metropolitana | B24: Domingos Martins | C24: 36 | D24: 34 | E24: 0.9444444444
A25: Sul | B25: Dores do Rio Preto | C25: 9 | D25: 8 | E25: 0.8888888889
A26: Norte | B26: Ecoporanga | C26: 18 | D26: 26 | E26: 1.444444444
A27: Metropolitana | B27: Fundão | C27: 22 | D27: 19 | E27: 0.8636363636
A28: Central | B28: Governador Lindenberg | C28: 11 | D28: 15 | E28: 1.363636364
A29: Sul | B29: Guaçuí | C29: 25 | D29: 29 | E29: 1.16
A30: Metropolitana | B30: Guarapari | C30: 129 | D30: 124 | E30: 0.9612403101
A31: Metropolitana | B31: Ibatiba | C31: 30 | D31: 36 | E31: 1.2
A32: Metropolitana | B32: Ibiraçu | C32: 8 | D32: 12 | E32: 1.5
A33: Sul | B33: Ibitirama | C33: 10 | D33: 19 | E33: 1.9
A34: Sul | B34: Iconha | C34: 10 | D34: 7 | E34: 0.7
A35: Sul | B35: Irupi | C35: 18 | D35: 10 | E35: 0.5555555556
A36: Metropolitana | B36: Itaguaçu | C36: 13 | D36: 14 | E36: 1.076923077
A37: Sul | B37: Itapemirim | C37: 53 | D37: 38 | E37: 0.7169811321
A38: Metropolitana | B38: Itarana | C38: 8 | D38: 13 | E38: 1.625
A39: Sul | B39: Iúna | C39: 34 | D39: 34 | E39: 1
A40: Norte | B40: Jaguaré | C40: 46 | D40: 43 | E40: 0.9347826087
A41: Sul | B41: Jerônimo Monteiro | C41: 12 | D41: 18 | E41: 1.5
A42: Metropolitana | B42: João Neiva | C42: 5 | D42: 17 | E42: 3.4
A43: Metropolitana | B43: Laranja da Terra | C43: 9 | D43: 10 | E43: 1.111111111
A44: Central | B44: Linhares | C44: 237 | D44: 229 | E44: 0.9662447257
A45: Central | B45: Mantenópolis | C45: 14 | D45: 15 | E45: 1.071428571
A46: Sul | B46: Marataízes | C46: 45 | D46: 29 | E46: 0.6444444444
A47: Metropolitana | B47: Marechal Floriano | C47: 24 | D47: 10 | E47: 0.4166666667
A48: Central | B48: Marilândia | C48: 13 | D48: 13 | E48: 1
A49: Sul | B49: Mimoso do Sul | C49: 25 | D49: 18 | E49: 0.72
A50: Norte | B50: Montanha | C50: 21 | D50: 33 | E50: 1.571428571
A51: Norte | B51: Mucurici | C51: 4 | D51: 4 | E51: 1
A52: Sul | B52: Muniz Freire | C52: 19 | D52: 15 | E52: 0.7894736842
A53: Sul | B53: Muqui | C53: 9 | D53: 12 | E53: 1.333333333
A54: Norte | B54: Nova Venécia | C54: 55 | D54: 57 | E54: 1.036363636
A55: Central | B55: Pancas | C55: 20 | D55: 22 | E55: 1.1
A56: Norte | B56: Pedro Canário | C56: 30 | D56: 33 | E56: 1.1
A57: Norte | B57: Pinheiros | C57: 26 | D57: 31 | E57: 1.192307692
A58: Sul | B58: Piúma | C58: 29 | D58: 17 | E58: 0.5862068966
A59: Norte | B59: Ponto Belo | C59: 6 | D59: 5 | E59: 0.8333333333
A60: Sul | B60: Presidente Kennedy | C60: 18 | D60: 21 | E60: 1.166666667
A61: Central | B61: Rio Bananal | C61: 19 | D61: 34 | E61: 1.789473684
A62: Sul | B62: Rio Novo do Sul | C62: 11 | D62: 13 | E62: 1.181818182
A63: Metropolitana | B63: Santa Leopoldina | C63: 7 | D63: 11 | E63: 1.571428571
A64: Metropolitana | B64: Santa Maria de Jetibá | C64: 53 | D64: 36 | E64: 0.679245283
A65: Metropolitana | B65: Santa Teresa | C65: 29 | D65: 26 | E65: 0.8965517241
A66: Central | B66: São Domingos do Norte | C66: 5 | D66: 7 | E66: 1.4
A67: Central | B67: São Gabriel da Palha | C67: 35 | D67: 52 | E67: =D67/C67 -> 1.485714286
A68: Sul | B68: São José do Calçado | C68: 6 | D68: 14 | E68: 2.333333333
A69: Norte | B69: São Mateus | C69: 137 | D69: 137 | E69: 1
A70: Central | B70: São Roque do Canaã | C70: 12 | D70: 11 | E70: 0.9166666667
A71: Metropolitana | B71: Serra | C71: 631 | D71: 597 | E71: 0.9461172742
A72: Central | B72: Sooretama | C72: 21 | D72: 49 | E72: 2.333333333
A73: Sul | B73: Vargem Alta | C73: 22 | D73: 22 | E73: 1
A74: Metropolitana | B74: Venda Nova do Imigrante | C74: 24 | D74: 36 | E74: 1.5
A75: Metropolitana | B75: Viana | C75: 66 | D75: 87 | E75: 1.318181818
A76: Norte | B76: Vila Pavão | C76: 9 | D76: 9 | E76: 1
A77: Central | B77: Vila Valério | C77: 12 | D77: 17 | E77: 1.416666667
A78: Metropolitana | B78: Vila Velha | C78: 476 | D78: 431 | E78: 0.9054621849
A79: Metropolitana | B79: Vitória | C79: 274 | D79: 281 | E79: 1.025547445
B81: Total Norte | C81: =SUMIF($A$2:$A$79,"Norte",C$2:C$79) -> 466 | D81: =SUMIF($A$2:$A$79,"Norte",D$2:D$79) -> 497 | E81: =D81/C81 -> 1.066523605
B82: Total Central | C82: =SUMIF($A$2:$A$79,"CENTRAL",C$2:C$79) -> 575 | D82: =SUMIF($A$2:$A$79,"CENTRAL",D$2:D$79) -> 628 | E82: =D82/C82 -> 1.092173913
B83: Total Metropolitana | C83: =SUMIF($A$2:$A$79,"METROPOLITANA",C$2:C$79) -> 2438 | D83: =SUMIF($A$2:$A$79,"METROPOLITANA",D$2:D$79) -> 2385 | E83: 0.9782608696
B84: Total Sul | C84: =SUMIF($A$2:$A$79,"SUL",C$2:C$79) -> 689 | D84: =SUMIF($A$2:$A$79,"SUL",D$2:D$79) -> 692 | E84: 1.004354136
B85: TOTAL ES | C85: =SUM(C2:C79) -> 4168 | D85: =SUM(D2:D79) -> 4202 | E85: 1.00815739
B86: HOMOGENEIDADE ENTRE MUNICÍPIOS | E86: =COUNTIF(E2:E79,">=0,95")/78 -> 0.6666666667
A91: Fonte: Vacina e Confia, em 25 de janeiro de 2026.**<https://vacinaeconfia.saude.es.gov.br/>
A92: **Dados referente às doses aplicadas no período de janeiro de 2026
A93: Cobertura Calculada por município de residência do vacinado
A94: 1 População estimada extraída do MS/SVS/DASIS - SINASC/DASIS/SVS/MS 2025 referente ao período de janeiro de 2025.
A95: Sinasc, atualizado em 06/02/2026
A96: Método de Cálculo Simples
A97: Homogeineidade: O cálculo da Homogeineidade entre vacinas é feito de acordo com a pactuação estabelecida no Plano Plurianual (PPA) vigente no período 2024-2027.
A100: Observações referente a distribuição de imunobiológicos que podem afetar a cobertura vacinal:
A102: 1. Vacinas que foram recebidas parcialmente pelo estado no mês de Janeiro/2026, sendo distribuídos em quantidades reduzidas às regionais e municípios:
A103: IMUNOGLOBULINA ANTIRRÁBICA HUMANA; SORO ANTIRRÁBICO HUMANO
A104: 2. Vacinas indisponíveis no mês de dezembro/2025, não sendo possível a distribuição às regionais e municípios:
A105: VACINA TETRA VIRAL, IMUNOGLOBULINA HUMANA ANTIVARICELA (ZOSTER) – 125UI
A106: 3. Vacinas enviadas por Pautas aguardando abastecimento do estoque estadual;
A107: VACINA COVID-19 PFIZER PEDIÁTRICA MENOR QUE 5 ANOS; VACINA COVID-19 PFIZER PEDIÁTRICA,
A109: Fonte: Informes situacionais de distribuição de imunobiológicos em https://saude.es.gov.br/GrupodeArquivos/informes-situacionais-de-distribuicao-de-imunobiologicos

Sheet COVID-19 gestantes -Procedência
A1: Regional | B1: Município | C1: ¹População | D1: Doses Aplicadas | E1: Cobertura Vacinal %
A2: Metropolitana | B2: Afonso Cláudio | C2: 31 | D2: 0 | E2: =D2/C2 -> 0
A3: Norte | B3: Água Doce do Norte | C3: 11 | D3: 0 | E3: =D3/C3 -> 0
A4: Central | B4: Águia Branca | C4: 14 | D4: 0 | E4: 0
A5: Sul | B5: Alegre | C5: 24 | D5: 3 | E5: 0.125
A6: Sul | B6: Alfredo Chaves | C6: 11 | D6: 0 | E6: 0
A7: Central | B7: Alto Rio Novo | C7: 7 | D7: 0 | E7: 0
A8: Sul | B8: Anchieta | C8: 24 | D8: 2 | E8: 0.08333333333
A9: Sul | B9: Apiacá | C9: 4 | D9: 0 | E9: 0
A10: Metropolitana | B10: Aracruz | C10: 125 | D10: 18 | E10: 0.144
A11: Sul | B11: Atilio Vivacqua | C11: 17 | D11: 0 | E11: 0
A12: Central | B12: Baixo Guandu | C12: 32 | D12: 0 | E12: 0
A13: Norte | B13: Barra de São Francisco | C13: 54 | D13: 0 | E13: 0
A14: Norte | B14: Boa Esperança | C14: 17 | D14: 0 | E14: 0
A15: Sul | B15: Bom Jesus do Norte | C15: 5 | D15: 0 | E15: 0
A16: Metropolitana | B16: Brejetuba | C16: 18 | D16: 0 | E16: 0
A17: Sul | B17: Cachoeiro de Itapemirim | C17: 204 | D17: 8 | E17: 0.03921568627
A18: Metropolitana | B18: Cariacica | C18: 408 | D18: 125 | E18: 0.306372549
A19: Sul | B19: Castelo | C19: 39 | D19: 0 | E19: 0
A20: Central | B20: Colatina | C20: 123 | D20: 17 | E20: 0.1382113821
A21: Norte | B21: Conceição da Barra | C21: 32 | D21: 0 | E21: 0
A22: Metropolitana | B22: Conceição do Castelo | C22: 12 | D22: 2 | E22: 0.1666666667
A23: Sul | B23: Divino de São Lourenço | C23: 6 | D23: 3 | E23: 0.5
A24: Metropolitana | B24: Domingos Martins | C24: 36 | D24: 6 | E24: 0.1666666667
A25: Sul | B25: Dores do Rio Preto | C25: 9 | D25: 1 | E25: 0.1111111111
A26: Norte | B26: Ecoporanga | C26: 18 | D26: 10 | E26: 0.5555555556
A27: Metropolitana | B27: Fundão | C27: 22 | D27: 0 | E27: 0
A28: Central | B28: Governador Lindenberg | C28: 11 | D28: 0 | E28: 0
A29: Sul | B29: Guaçuí | C29: 25 | D29: 0 | E29: 0
A30: Metropolitana | B30: Guarapari | C30: 129 | D30: 13 | E30: 0.1007751938
A31: Metropolitana | B31: Ibatiba | C31: 30 | D31: 0 | E31: 0
A32: Metropolitana | B32: Ibiraçu | C32: 8 | D32: 0 | E32: 0
A33: Sul | B33: Ibitirama | C33: 10 | D33: 5 | E33: 0.5
A34: Sul | B34: Iconha | C34: 10 | D34: 0 | E34: 0
A35: Sul | B35: Irupi | C35: 18 | D35: 6 | E35: 0.3333333333
A36: Metropolitana | B36: Itaguaçu | C36: 13 | D36: 0 | E36: 0
A37: Sul | B37: Itapemirim | C37: 53 | D37: 0 | E37: 0
A38: Metropolitana | B38: Itarana | C38: 8 | D38: 0 | E38: 0
A39: Sul | B39: Iúna | C39: 34 | D39: 0 | E39: 0
A40: Norte | B40: Jaguaré | C40: 46 | D40: 0 | E40: 0
A41: Sul | B41: Jerônimo Monteiro | C41: 12 | D41: 2 | E41: 0.1666666667
A42: Metropolitana | B42: João Neiva | C42: 5 | D42: 0 | E42: 0
A43: Metropolitana | B43: Laranja da Terra | C43: 9 | D43: 0 | E43: 0
A44: Central | B44: Linhares | C44: 237 | D44: 15 | E44: 0.06329113924
A45: Central | B45: Mantenópolis | C45: 14 | D45: 0 | E45: 0
A46: Sul | B46: Marataízes | C46: 45 | D46: 0 | E46: 0
A47: Metropolitana | B47: Marechal Floriano | C47: 24 | D47: 0 | E47: 0
A48: Central | B48: Marilândia | C48: 13 | D48: 0 | E48: 0
A49: Sul | B49: Mimoso do Sul | C49: 25 | D49: 0 | E49: 0
A50: Norte | B50: Montanha | C50: 21 | D50: 13 | E50: 0.619047619
A51: Norte | B51: Mucurici | C51: 4 | D51: 0 | E51: 0
A52: Sul | B52: Muniz Freire | C52: 19 | D52: 3 | E52: 0.1578947368
A53: Sul | B53: Muqui | C53: 9 | D53: 0 | E53: 0
A54: Norte | B54: Nova Venécia | C54: 55 | D54: 1 | E54: 0.01818181818
A55: Central | B55: Pancas | C55: 20 | D55: 0 | E55: 0
A56: Norte | B56: Pedro Canário | C56: 30 | D56: 5 | E56: 0.1666666667
A57: Norte | B57: Pinheiros | C57: 26 | D57: 4 | E57: 0.1538461538
A58: Sul | B58: Piúma | C58: 29 | D58: 1 | E58: 0.03448275862
A59: Norte | B59: Ponto Belo | C59: 6 | D59: 0 | E59: 0
A60: Sul | B60: Presidente Kennedy | C60: 18 | D60: 0 | E60: 0
A61: Central | B61: Rio Bananal | C61: 19 | D61: 0 | E61: 0
A62: Sul | B62: Rio Novo do Sul | C62: 11 | D62: 0 | E62: 0
A63: Metropolitana | B63: Santa Leopoldina | C63: 7 | D63: 0 | E63: 0
A64: Metropolitana | B64: Santa Maria de Jetibá | C64: 53 | D64: 1 | E64: 0.01886792453
A65: Metropolitana | B65: Santa Teresa | C65: 29 | D65: 0 | E65: 0
A66: Central | B66: São Domingos do Norte | C66: 5 | D66: 0 | E66: 0
A67: Central | B67: São Gabriel da Palha | C67: 35 | D67: 0 | E67: =D67/C67 -> 0
A68: Sul | B68: São José do Calçado | C68: 6 | D68: 1 | E68: 0.1666666667
A69: Norte | B69: São Mateus | C69: 137 | D69: 14 | E69: 0.102189781
A70: Central | B70: São Roque do Canaã | C70: 12 | D70: 0 | E70: 0
A71: Metropolitana | B71: Serra | C71: 631 | D71: 163 | E71: 0.2583201268
A72: Central | B72: Sooretama | C72: 21 | D72: 1 | E72: 0.04761904762
A73: Sul | B73: Vargem Alta | C73: 22 | D73: 8 | E73: 0.3636363636
A74: Metropolitana | B74: Venda Nova do Imigrante | C74: 24 | D74: 3 | E74: 0.125
A75: Metropolitana | B75: Viana | C75: 66 | D75: 8 | E75: 0.1212121212
A76: Norte | B76: Vila Pavão | C76: 9 | D76: 0 | E76: 0
A77: Central | B77: Vila Valério | C77: 12 | D77: 0 | E77: 0
A78: Metropolitana | B78: Vila Velha | C78: 476 | D78: 127 | E78: 0.2668067227
A79: Metropolitana | B79: Vitória | C79: 274 | D79: 70 | E79: 0.2554744526
B81: Total Norte | C81: =SUMIF($A$2:$A$79,"Norte",C$2:C$79) -> 466 | D81: =SUMIF($A$2:$A$79,"Norte",D$2:D$79) -> 47 | E81: =D81/C81 -> 0.1008583691
B82: Total Central | C82: =SUMIF($A$2:$A$79,"CENTRAL",C$2:C$79) -> 575 | D82: =SUMIF($A$2:$A$79,"cENTRAL",D$2:D$79) -> 33 | E82: 0.05739130435
B83: Total Metropolitana | C83: =SUMIF($A$2:$A$79,"METROPOLITANA",C$2:C$79) -> 2438 | D83: =SUMIF($A$2:$A$79,"Metropolitana",D$2:D$79) -> 536 | E83: 0.219852338
B84: Total Sul | C84: =SUMIF($A$2:$A$79,"SUL",C$2:C$79) -> 689 | D84: =SUMIF($A$2:$A$79,"sul",D$2:D$79) -> 43 | E84: 0.06240928882
B85: TOTAL ES | C85: =SUM(C2:C79) -> 4168 | D85: =SUM(D2:D79) -> 659 | E85: 0.158109405
B86: HOMOGENEIDADE ENTRE MUNICÍPIOS | E86: =COUNTIF(E2:E79,">=0,90")/78 -> 0
A91: Fonte: Vacina e Confia, em 25 de fevereiro de 2026.**<https://vacinaeconfia.saude.es.gov.br/>
A92: **Dados referente às doses aplicadasem janeiro de 2026
A93: Cobertura Calculada por município de procedência/ocorrência da vacinação
A94: 1 População estimada extraída do MS/SVS/DASIS - SINASC/DASIS/SVS/MS 2025 referente ao período de janeiro de 2025.
A95: Sinasc, atualizado em 06/02/2026
A96: Método de Cálculo Simples
A97: Homogeineidade: O cálculo da Homogeineidade entre vacinas é feito de acordo com a pactuação estabelecida no Plano Plurianual (PPA) vigente no período 2024-2027.
A100: Observações referente a distribuição de imunobiológicos que podem afetar a cobertura vacinal:
A102: 1. Vacinas que foram recebidas parcialmente pelo estado no mês de Janeiro/2026, sendo distribuídos em quantidades reduzidas às regionais e municípios:
A103: IMUNOGLOBULINA ANTIRRÁBICA HUMANA; SORO ANTIRRÁBICO HUMANO
A104: 2. Vacinas indisponíveis no mês de dezembro/2025, não sendo possível a distribuição às regionais e municípios:
A105: VACINA TETRA VIRAL, IMUNOGLOBULINA HUMANA ANTIVARICELA (ZOSTER) – 125UI
A106: 3. Vacinas enviadas por Pautas aguardando abastecimento do estoque estadual;
A107: VACINA COVID-19 PFIZER PEDIÁTRICA MENOR QUE 5 ANOS; VACINA COVID-19 PFIZER PEDIÁTRICA,
A109: Fonte: Informes situacionais de distribuição de imunobiológicos em https://saude.es.gov.br/GrupodeArquivos/informes-situacionais-de-distribuicao-de-imunobiologicos

Sheet COVID-19 gestantes -Residência
A1: Regional | B1: Município | C1: ¹População | D1: Doses Aplicadas | E1: Cobertura Vacinal %
A2: Metropolitana | B2: Afonso Cláudio | C2: 31 | D2: 0 | E2: =D2/C2 -> 0
A3: Norte | B3: Água Doce do Norte | C3: 11 | D3: 0 | E3: =D3/C3 -> 0
A4: Central | B4: Águia Branca | C4: 14 | D4: 0 | E4: 0
A5: Sul | B5: Alegre | C5: 24 | D5: 3 | E5: 0.125
A6: Sul | B6: Alfredo Chaves | C6: 11 | D6: 0 | E6: 0
A7: Central | B7: Alto Rio Novo | C7: 7 | D7: 0 | E7: 0
A8: Sul | B8: Anchieta | C8: 24 | D8: 4 | E8: 0.1666666667
A9: Sul | B9: Apiacá | C9: 4 | D9: 0 | E9: 0
A10: Metropolitana | B10: Aracruz | C10: 125 | D10: 21 | E10: 0.168
A11: Sul | B11: Atilio Vivacqua | C11: 17 | D11: 0 | E11: 0
A12: Central | B12: Baixo Guandu | C12: 32 | D12: 1 | E12: 0.03125
A13: Norte | B13: Barra de São Francisco | C13: 54 | D13: 2 | E13: 0.03703703704
A14: Norte | B14: Boa Esperança | C14: 17 | D14: 0 | E14: 0
A15: Sul | B15: Bom Jesus do Norte | C15: 5 | D15: 0 | E15: 0
A16: Metropolitana | B16: Brejetuba | C16: 18 | D16: 0 | E16: 0
A17: Sul | B17: Cachoeiro de Itapemirim | C17: 204 | D17: 9 | E17: 0.04411764706
A18: Metropolitana | B18: Cariacica | C18: 408 | D18: 128 | E18: 0.3137254902
A19: Sul | B19: Castelo | C19: 39 | D19: 1 | E19: 0.02564102564
A20: Central | B20: Colatina | C20: 123 | D20: 18 | E20: 0.1463414634
A21: Norte | B21: Conceição da Barra | C21: 32 | D21: 1 | E21: 0.03125
A22: Metropolitana | B22: Conceição do Castelo | C22: 12 | D22: 2 | E22: 0.1666666667
A23: Sul | B23: Divino de São Lourenço | C23: 6 | D23: 2 | E23: 0.3333333333
A24: Metropolitana | B24: Domingos Martins | C24: 36 | D24: 4 | E24: 0.1111111111
A25: Sul | B25: Dores do Rio Preto | C25: 9 | D25: 1 | E25: 0.1111111111
A26: Norte | B26: Ecoporanga | C26: 18 | D26: 10 | E26: 0.5555555556
A27: Metropolitana | B27: Fundão | C27: 22 | D27: 1 | E27: 0.04545454545
A28: Central | B28: Governador Lindenberg | C28: 11 | D28: 1 | E28: 0.09090909091
A29: Sul | B29: Guaçuí | C29: 25 | D29: 0 | E29: 0
A30: Metropolitana | B30: Guarapari | C30: 129 | D30: 12 | E30: 0.09302325581
A31: Metropolitana | B31: Ibatiba | C31: 30 | D31: 0 | E31: 0
A32: Metropolitana | B32: Ibiraçu | C32: 8 | D32: 1 | E32: 0.125
A33: Sul | B33: Ibitirama | C33: 10 | D33: 5 | E33: 0.5
A34: Sul | B34: Iconha | C34: 10 | D34: 0 | E34: 0
A35: Sul | B35: Irupi | C35: 18 | D35: 5 | E35: 0.2777777778
A36: Metropolitana | B36: Itaguaçu | C36: 13 | D36: 0 | E36: 0
A37: Sul | B37: Itapemirim | C37: 53 | D37: 0 | E37: 0
A38: Metropolitana | B38: Itarana | C38: 8 | D38: 0 | E38: 0
A39: Sul | B39: Iúna | C39: 34 | D39: 2 | E39: 0.05882352941
A40: Norte | B40: Jaguaré | C40: 46 | D40: 0 | E40: 0
A41: Sul | B41: Jerônimo Monteiro | C41: 12 | D41: 2 | E41: 0.1666666667
A42: Metropolitana | B42: João Neiva | C42: 5 | D42: 0 | E42: 0
A43: Metropolitana | B43: Laranja da Terra | C43: 9 | D43: 0 | E43: 0
A44: Central | B44: Linhares | C44: 237 | D44: 15 | E44: 0.06329113924
A45: Central | B45: Mantenópolis | C45: 14 | D45: 0 | E45: 0
A46: Sul | B46: Marataízes | C46: 45 | D46: 1 | E46: 0.02222222222
A47: Metropolitana | B47: Marechal Floriano | C47: 24 | D47: 0 | E47: 0
A48: Central | B48: Marilândia | C48: 13 | D48: 0 | E48: 0
A49: Sul | B49: Mimoso do Sul | C49: 25 | D49: 0 | E49: 0
A50: Norte | B50: Montanha | C50: 21 | D50: 14 | E50: 0.6666666667
A51: Norte | B51: Mucurici | C51: 4 | D51: 0 | E51: 0
A52: Sul | B52: Muniz Freire | C52: 19 | D52: 3 | E52: 0.1578947368
A53: Sul | B53: Muqui | C53: 9 | D53: 0 | E53: 0
A54: Norte | B54: Nova Venécia | C54: 55 | D54: 2 | E54: 0.03636363636
A55: Central | B55: Pancas | C55: 20 | D55: 0 | E55: 0
A56: Norte | B56: Pedro Canário | C56: 30 | D56: 5 | E56: 0.1666666667
A57: Norte | B57: Pinheiros | C57: 26 | D57: 4 | E57: 0.1538461538
A58: Sul | B58: Piúma | C58: 29 | D58: 0 | E58: 0
A59: Norte | B59: Ponto Belo | C59: 6 | D59: 2 | E59: 0.3333333333
A60: Sul | B60: Presidente Kennedy | C60: 18 | D60: 0 | E60: 0
A61: Central | B61: Rio Bananal | C61: 19 | D61: 1 | E61: 0.05263157895
A62: Sul | B62: Rio Novo do Sul | C62: 11 | D62: 0 | E62: 0
A63: Metropolitana | B63: Santa Leopoldina | C63: 7 | D63: 0 | E63: 0
A64: Metropolitana | B64: Santa Maria de Jetibá | C64: 53 | D64: 1 | E64: 0.01886792453
A65: Metropolitana | B65: Santa Teresa | C65: 29 | D65: 0 | E65: 0
A66: Central | B66: São Domingos do Norte | C66: 5 | D66: 0 | E66: 0
A67: Central | B67: São Gabriel da Palha | C67: 35 | D67: 1 | E67: =D67/C67 -> 0.02857142857
A68: Sul | B68: São José do Calçado | C68: 6 | D68: 1 | E68: 0.1666666667
A69: Norte | B69: São Mateus | C69: 137 | D69: 10 | E69: 0.07299270073
A70: Central | B70: São Roque do Canaã | C70: 12 | D70: 0 | E70: 0
A71: Metropolitana | B71: Serra | C71: 631 | D71: 140 | E71: 0.2218700475
A72: Central | B72: Sooretama | C72: 21 | D72: 3 | E72: 0.1428571429
A73: Sul | B73: Vargem Alta | C73: 22 | D73: 7 | E73: 0.3181818182
A74: Metropolitana | B74: Venda Nova do Imigrante | C74: 24 | D74: 3 | E74: 0.125
A75: Metropolitana | B75: Viana | C75: 66 | D75: 15 | E75: 0.2272727273
A76: Norte | B76: Vila Pavão | C76: 9 | D76: 0 | E76: 0
A77: Central | B77: Vila Valério | C77: 12 | D77: 0 | E77: 0
A78: Metropolitana | B78: Vila Velha | C78: 476 | D78: 100 | E78: 0.2100840336
A79: Metropolitana | B79: Vitória | C79: 274 | D79: 61 | E79: 0.2226277372
B81: Total Norte | C81: =SUMIF($A$2:$A$79,"Norte",C$2:C$79) -> 466 | D81: =SUMIF($A$2:$A$79,"Norte",D$2:D$79) -> 50 | E81: =D81/C81 -> 0.1072961373
B82: Total Central | C82: =SUMIF($A$2:$A$79,"CENTRAL",C$2:C$79) -> 575 | D82: =SUMIF($A$2:$A$79,"CENTRAL",D$2:D$79) -> 40 | E82: 0.06956521739
B83: Total Metropolitana | C83: =SUMIF($A$2:$A$79,"METROPOLITANA",C$2:C$79) -> 2438 | D83: =SUMIF($A$2:$A$79,"METROPOLITANA",D$2:D$79) -> 489 | E83: 0.2005742412
B84: Total Sul | C84: =SUMIF($A$2:$A$79,"SUL",C$2:C$79) -> 689 | D84: =SUMIF($A$2:$A$79,"SUL",D$2:D$79) -> 46 | E84: 0.06676342525
B85: TOTAL ES | C85: =SUM(C2:C79) -> 4168 | D85: =SUM(D2:D79) -> 625 | E85: 0.1499520154
B86: HOMOGENEIDADE ENTRE MUNICÍPIOS | D86: =COUNTIF(E2:E79,">=0,95") -> 0 | E86: =COUNTIF(E2:E79,">=0,90")/78 -> 0
A91: Fonte: Vacina e Confia, em 25 de janeiro de 2026.**<https://vacinaeconfia.saude.es.gov.br/>
A92: **Dados referente às doses aplicadas no período de janeiro de 2026
A93: Cobertura Calculada por município de residência do vacinado
A94: 1 População estimada extraída do MS/SVS/DASIS - SINASC/DASIS/SVS/MS 2025 referente ao período de janeiro de 2025.
A95: Sinasc, atualizado em 06/02/2026
A96: Método de Cálculo Simples
A97: Homogeineidade: O cálculo da Homogeineidade entre vacinas é feito de acordo com a pactuação estabelecida no Plano Plurianual (PPA) vigente no período 2024-2027.
A100: Observações referente a distribuição de imunobiológicos que podem afetar a cobertura vacinal:
A102: 1. Vacinas que foram recebidas parcialmente pelo estado no mês de Janeiro/2026, sendo distribuídos em quantidades reduzidas às regionais e municípios:
A103: IMUNOGLOBULINA ANTIRRÁBICA HUMANA; SORO ANTIRRÁBICO HUMANO
A104: 2. Vacinas indisponíveis no mês de dezembro/2025, não sendo possível a distribuição às regionais e municípios:
A105: VACINA TETRA VIRAL, IMUNOGLOBULINA HUMANA ANTIVARICELA (ZOSTER) – 125UI
A106: 3. Vacinas enviadas por Pautas aguardando abastecimento do estoque estadual;
A107: VACINA COVID-19 PFIZER PEDIÁTRICA MENOR QUE 5 ANOS; VACINA COVID-19 PFIZER PEDIÁTRICA,
A109: Fonte: Informes situacionais de distribuição de imunobiológicos em https://saude.es.gov.br/GrupodeArquivos/informes-situacionais-de-distribuicao-de-imunobiologicos

Sheet COVID-19 idoso -Procêdencia
A1: Regional | B1: Município | C1: População 60 anos + | D1: Doses Aplicadas | E1: Cobertura %
A2: Metropolitana | B2: Afonso Cláudio | C2: 5905 | D2: 8 | E2: =(D2/C2) -> 0.001354784081
A3: Norte | B3: Água Doce do Norte | C3: 2357 | D3: 3 | E3: =(D3/C3) -> 0.001272804412
A4: Central | B4: Águia Branca | C4: 1775 | D4: 22 | E4: 0.0123943662
A5: Sul | B5: Alegre | C5: 5949 | D5: 155 | E5: 0.02605479913
A6: Sul | B6: Alfredo Chaves | C6: 3040 | D6: 35 | E6: 0.01151315789
A7: Central | B7: Alto Rio Novo | C7: 1417 | D7: 3 | E7: 0.002117148906
A8: Sul | B8: Anchieta | C8: 5080 | D8: 255 | E8: 0.05019685039
A9: Sul | B9: Apiacá | C9: 1536 | D9: 5 | E9: 0.003255208333
A10: Metropolitana | B10: Aracruz | C10: 13047 | D10: 820 | E10: 0.06284969725
A11: Sul | B11: Atilio Vivacqua | C11: 1843 | D11: 8 | E11: 0.004340748779
A12: Central | B12: Baixo Guandu | C12: 5706 | D12: 20 | E12: 0.003505082369
A13: Norte | B13: Barra de São Francisco | C13: 7226 | D13: 91 | E13: 0.01259341268
A14: Norte | B14: Boa Esperança | C14: 2317 | D14: 21 | E14: 0.009063444109
A15: Sul | B15: Bom Jesus do Norte | C15: 1991 | D15: 95 | E15: 0.04771471622
A16: Metropolitana | B16: Brejetuba | C16: 1637 | D16: 0 | E16: 0
A17: Sul | B17: Cachoeiro de Itapemirim | C17: 32906 | D17: 1017 | E17: 0.03090621771
A18: Metropolitana | B18: Cariacica | C18: 54005 | D18: 4114 | E18: 0.07617813165
A19: Sul | B19: Castelo | C19: 7171 | D19: 141 | E19: 0.01966252963
A20: Central | B20: Colatina | C20: 21491 | D20: 1079 | E20: 0.05020706342
A21: Norte | B21: Conceição da Barra | C21: 4468 | D21: 59 | E21: 0.01320501343
A22: Metropolitana | B22: Conceição do Castelo | C22: 2176 | D22: 53 | E22: 0.02435661765
A23: Sul | B23: Divino de São Lourenço | C23: 847 | D23: 12 | E23: 0.01416765053
A24: Metropolitana | B24: Domingos Martins | C24: 6358 | D24: 345 | E24: 0.05426234665
A25: Sul | B25: Dores do Rio Preto | C25: 1145 | D25: 41 | E25: 0.03580786026
A26: Norte | B26: Ecoporanga | C26: 4274 | D26: 73 | E26: 0.01708001872
A27: Metropolitana | B27: Fundão | C27: 3432 | D27: 182 | E27: 0.05303030303
A28: Central | B28: Governador Lindenberg | C28: 1987 | D28: 30 | E28: 0.0150981379
A29: Sul | B29: Guaçuí | C29: 5504 | D29: 141 | E29: 0.02561773256
A30: Metropolitana | B30: Guarapari | C30: 21755 | D30: 668 | E30: 0.03070558492
A31: Metropolitana | B31: Ibatiba | C31: 3852 | D31: 69 | E31: 0.01791277259
A32: Metropolitana | B32: Ibiraçu | C32: 2121 | D32: 49 | E32: 0.02310231023
A33: Sul | B33: Ibitirama | C33: 1400 | D33: 28 | E33: 0.02
A34: Sul | B34: Iconha | C34: 2560 | D34: 125 | E34: 0.048828125
A35: Sul | B35: Irupi | C35: 2006 | D35: 37 | E35: 0.018444666
A36: Metropolitana | B36: Itaguaçu | C36: 3214 | D36: 65 | E36: 0.02022401991
A37: Sul | B37: Itapemirim | C37: 6549 | D37: 81 | E37: 0.0123683005
A38: Metropolitana | B38: Itarana | C38: 2389 | D38: 29 | E38: 0.01213897028
A39: Sul | B39: Iúna | C39: 4417 | D39: 0 | E39: 0
A40: Norte | B40: Jaguaré | C40: 3734 | D40: 105 | E40: 0.02811997858
A41: Sul | B41: Jerônimo Monteiro | C41: 2356 | D41: 108 | E41: 0.04584040747
A42: Metropolitana | B42: João Neiva | C42: 3012 | D42: 42 | E42: 0.01394422311
A43: Metropolitana | B43: Laranja da Terra | C43: 2471 | D43: 9 | E43: 0.003642250101
A44: Central | B44: Linhares | C44: 21740 | D44: 357 | E44: 0.01642134315
A45: Central | B45: Mantenópolis | C45: 2524 | D45: 0 | E45: 0
A46: Sul | B46: Marataízes | C46: 7611 | D46: 184 | E46: 0.02417553541
A47: Metropolitana | B47: Marechal Floriano | C47: 2879 | D47: 93 | E47: 0.03230288295
A48: Central | B48: Marilândia | C48: 2476 | D48: 48 | E48: 0.01938610662
A49: Sul | B49: Mimoso do Sul | C49: 5077 | D49: 37 | E49: 0.007287768367
A50: Norte | B50: Montanha | C50: 3304 | D50: 309 | E50: 0.09352300242
A51: Norte | B51: Mucurici | C51: 1090 | D51: 3 | E51: 0.002752293578
A52: Sul | B52: Muniz Freire | C52: 3309 | D52: 81 | E52: 0.02447869447
A53: Sul | B53: Muqui | C53: 2780 | D53: 67 | E53: 0.02410071942
A54: Norte | B54: Nova Venécia | C54: 8352 | D54: 86 | E54: 0.01029693487
A55: Central | B55: Pancas | C55: 3687 | D55: 43 | E55: 0.01166259832
A56: Norte | B56: Pedro Canário | C56: 3253 | D56: 48 | E56: 0.01475561021
A57: Norte | B57: Pinheiros | C57: 3762 | D57: 170 | E57: 0.0451887294
A58: Sul | B58: Piúma | C58: 3886 | D58: 141 | E58: 0.03628409676
A59: Norte | B59: Ponto Belo | C59: 1330 | D59: 26 | E59: 0.01954887218
A60: Sul | B60: Presidente Kennedy | C60: 2214 | D60: 5 | E60: 0.002258355917
A61: Central | B61: Rio Bananal | C61: 3071 | D61: 46 | E61: 0.01497883426
A62: Sul | B62: Rio Novo do Sul | C62: 2232 | D62: 25 | E62: 0.01120071685
A63: Metropolitana | B63: Santa Leopoldina | C63: 2634 | D63: 5 | E63: 0.001898253607
A64: Metropolitana | B64: Santa Maria de Jetibá | C64: 5552 | D64: 49 | E64: 0.008825648415
A65: Metropolitana | B65: Santa Teresa | C65: 4767 | D65: 83 | E65: 0.01741136983
A66: Central | B66: São Domingos do Norte | C66: 1520 | D66: 14 | E66: 0.009210526316
A67: Central | B67: São Gabriel da Palha | C67: 5456 | D67: 13 | E67: =(D67/C67) -> 0.002382697947
A68: Sul | B68: São José do Calçado | C68: 2456 | D68: 41 | E68: 0.01669381107
A69: Norte | B69: São Mateus | C69: 17649 | D69: 1139 | E69: 0.06453623435
A70: Central | B70: São Roque do Canaã | C70: 2370 | D70: 6 | E70: 0.00253164557
A71: Metropolitana | B71: Serra | C71: 66481 | D71: 3972 | E71: 0.05974639371
A72: Central | B72: Sooretama | C72: 3097 | D72: 93 | E72: 0.03002906038
A73: Sul | B73: Vargem Alta | C73: 3365 | D73: 72 | E73: 0.02139673105
A74: Metropolitana | B74: Venda Nova do Imigrante | C74: 3766 | D74: 126 | E74: 0.03345724907
A75: Metropolitana | B75: Viana | C75: 9758 | D75: 445 | E75: 0.0456036073
A76: Norte | B76: Vila Pavão | C76: 1510 | D76: 54 | E76: 0.0357615894
A77: Central | B77: Vila Valério | C77: 2160 | D77: 12 | E77: 0.005555555556
A78: Metropolitana | B78: Vila Velha | C78: 81049 | D78: 4096 | E78: 0.05053732927
A79: Metropolitana | B79: Vitória | C79: 64805 | D79: 4275 | E79: 0.06596713217
B81: Total Norte | C81: =SUMIF($A$2:$A$79,"Norte",C$2:C$79) -> 64626 | D81: =SUMIF($A$2:$A$79,"Norte",D$2:D$79) -> 2187 | E81: =D81/C81 -> 0.033840869
B82: Total Central | C82: =SUMIF($A$2:$A$79,"Central",C$2:C$79) -> 80477 | D82: =SUMIF($A$2:$A$79,"Central",D$2:D$79) -> 1786 | E82: =D82/C82 -> 0.02219267617
B83: Total Metropolitana | C83: =SUMIF($A$2:$A$79,"Metropolitana",C$2:C$79) -> 367065 | D83: =SUMIF($A$2:$A$79,"Metropolitana",D$2:D$79) -> 19597 | E83: 0.05338836446
B84: Total Sul | C84: =SUMIF($A$2:$A$79,"sul",C$2:C$79) -> 119230 | D84: =SUMIF($A$2:$A$79,"sul",D$2:D$79) -> 2937 | E84: 0.02463306215
B85: Total Espírito Santo | C85: =SUM(C2:C79) -> 631398 | D85: =SUM(D2:D79) -> 26507 | E85: 0.04198144435
B86: HOMOGENEIDADE ENTRE MUNICÍPIOS | E86: =COUNTIF(E2:E79,">=0,90")/78 -> 0
A91: Cobertura Vacinal Covid-19 dos Idosos
A92: Vacina Covid-19-Recombinante, Serum/Zalika>, Vacina Covid-19-RNAm, Moderna (Spikevax), Vacina Covid-19-RNAm, Pfizer (Comirnaty)
A93: Período analisado: últimos 6 meses
A94: Fonte: Vacina e Confia, em 24 de janeiro 2026.**<https://vacinaeconfia.saude.es.gov.br/>
A95: Faixa Etária: 60+. População estimada extraída do Censo IBGE 2022.
A96: Cobertura Calculada por município de procedência/ocorrência da vacinação
A97: Método de Cálculo Simples
A98: Homogeineidade: O cálculo da Homogeineidade entre vacinas é feito de acordo com a pactuação estabelecida no Plano Plurianual (PPA) vigente no período 2024-2027.
A100: Observações referente a distribuição de imunobiológicos que podem afetar a cobertura vacinal:
A102: 1. Vacinas que foram recebidas parcialmente pelo estado no mês de Janeiro/2026, sendo distribuídos em quantidades reduzidas às regionais e municípios:
A103: IMUNOGLOBULINA ANTIRRÁBICA HUMANA; SORO ANTIRRÁBICO HUMANO
A104: 2. Vacinas indisponíveis no mês de dezembro/2025, não sendo possível a distribuição às regionais e municípios:
A105: VACINA TETRA VIRAL, IMUNOGLOBULINA HUMANA ANTIVARICELA (ZOSTER) – 125UI
A106: 3. Vacinas enviadas por Pautas aguardando abastecimento do estoque estadual;
A107: VACINA COVID-19 PFIZER PEDIÁTRICA MENOR QUE 5 ANOS; VACINA COVID-19 PFIZER PEDIÁTRICA.
A109: Fonte: Informes situacionais de distribuição de imunobiológicos em https://saude.es.gov.br/GrupodeArquivos/informes-situacionais-de-distribuicao-de-imunobiologicos

Sheet COVID-19 idoso -Residência
A1: Regional | B1: Município | C1: População 60 anos + | D1: Doses Aplicadas | E1: Cobertura %
A2: Metropolitana | B2: Afonso Cláudio | C2: 5905 | D2: 18 | E2: =(D2/C2) -> 0.003048264183
A3: Norte | B3: Água Doce do Norte | C3: 2357 | D3: 9 | E3: =(D3/C3) -> 0.003818413237
A4: Central | B4: Águia Branca | C4: 1775 | D4: 20 | E4: 0.01126760563
A5: Sul | B5: Alegre | C5: 5949 | D5: 150 | E5: 0.02521432173
A6: Sul | B6: Alfredo Chaves | C6: 3040 | D6: 41 | E6: 0.01348684211
A7: Central | B7: Alto Rio Novo | C7: 1417 | D7: 4 | E7: 0.002822865208
A8: Sul | B8: Anchieta | C8: 5080 | D8: 234 | E8: 0.04606299213
A9: Sul | B9: Apiacá | C9: 1536 | D9: 6 | E9: 0.00390625
A10: Metropolitana | B10: Aracruz | C10: 13047 | D10: 750 | E10: 0.05748447919
A11: Sul | B11: Atilio Vivacqua | C11: 1843 | D11: 15 | E11: 0.008138903961
A12: Central | B12: Baixo Guandu | C12: 5706 | D12: 21 | E12: 0.003680336488
A13: Norte | B13: Barra de São Francisco | C13: 7226 | D13: 108 | E13: 0.01494602823
A14: Norte | B14: Boa Esperança | C14: 2317 | D14: 22 | E14: 0.009495036685
A15: Sul | B15: Bom Jesus do Norte | C15: 1991 | D15: 87 | E15: 0.04369663486
A16: Metropolitana | B16: Brejetuba | C16: 1637 | D16: 8 | E16: 0.004886988393
A17: Sul | B17: Cachoeiro de Itapemirim | C17: 32906 | D17: 1018 | E17: 0.03093660731
A18: Metropolitana | B18: Cariacica | C18: 54005 | D18: 3956 | E18: 0.07325247662
A19: Sul | B19: Castelo | C19: 7171 | D19: 156 | E19: 0.0217542881
A20: Central | B20: Colatina | C20: 21491 | D20: 1100 | E20: 0.05118421665
A21: Norte | B21: Conceição da Barra | C21: 4468 | D21: 69 | E21: 0.0154431513
A22: Metropolitana | B22: Conceição do Castelo | C22: 2176 | D22: 50 | E22: 0.02297794118
A23: Sul | B23: Divino de São Lourenço | C23: 847 | D23: 11 | E23: 0.01298701299
A24: Metropolitana | B24: Domingos Martins | C24: 6358 | D24: 310 | E24: 0.0487574709
A25: Sul | B25: Dores do Rio Preto | C25: 1145 | D25: 33 | E25: 0.0288209607
A26: Norte | B26: Ecoporanga | C26: 4274 | D26: 74 | E26: 0.01731399158
A27: Metropolitana | B27: Fundão | C27: 3432 | D27: 128 | E27: 0.0372960373
A28: Central | B28: Governador Lindenberg | C28: 1987 | D28: 36 | E28: 0.01811776548
A29: Sul | B29: Guaçuí | C29: 5504 | D29: 145 | E29: 0.02634447674
A30: Metropolitana | B30: Guarapari | C30: 21755 | D30: 578 | E30: 0.02656860492
A31: Metropolitana | B31: Ibatiba | C31: 3852 | D31: 58 | E31: 0.01505711319
A32: Metropolitana | B32: Ibiraçu | C32: 2121 | D32: 53 | E32: 0.02498821311
A33: Sul | B33: Ibitirama | C33: 1400 | D33: 32 | E33: 0.02285714286
A34: Sul | B34: Iconha | C34: 2560 | D34: 121 | E34: 0.047265625
A35: Sul | B35: Irupi | C35: 2006 | D35: 28 | E35: 0.01395812562
A36: Metropolitana | B36: Itaguaçu | C36: 3214 | D36: 61 | E36: 0.01897946484
A37: Sul | B37: Itapemirim | C37: 6549 | D37: 84 | E37: 0.01282638571
A38: Metropolitana | B38: Itarana | C38: 2389 | D38: 31 | E38: 0.01297614064
A39: Sul | B39: Iúna | C39: 4417 | D39: 19 | E39: 0.004301562146
A40: Norte | B40: Jaguaré | C40: 3734 | D40: 116 | E40: 0.03106588109
A41: Sul | B41: Jerônimo Monteiro | C41: 2356 | D41: 96 | E41: 0.04074702886
A42: Metropolitana | B42: João Neiva | C42: 3012 | D42: 54 | E42: 0.01792828685
A43: Metropolitana | B43: Laranja da Terra | C43: 2471 | D43: 18 | E43: 0.007284500202
A44: Central | B44: Linhares | C44: 21740 | D44: 374 | E44: 0.01720331187
A45: Central | B45: Mantenópolis | C45: 2524 | D45: 3 | E45: 0.00118858954
A46: Sul | B46: Marataízes | C46: 7611 | D46: 154 | E46: 0.02023387203
A47: Metropolitana | B47: Marechal Floriano | C47: 2879 | D47: 98 | E47: 0.03403959708
A48: Central | B48: Marilândia | C48: 2476 | D48: 39 | E48: 0.01575121163
A49: Sul | B49: Mimoso do Sul | C49: 5077 | D49: 48 | E49: 0.009454402206
A50: Norte | B50: Montanha | C50: 3304 | D50: 309 | E50: 0.09352300242
A51: Norte | B51: Mucurici | C51: 1090 | D51: 6 | E51: 0.005504587156
A52: Sul | B52: Muniz Freire | C52: 3309 | D52: 72 | E52: 0.02175883953
A53: Sul | B53: Muqui | C53: 2780 | D53: 53 | E53: 0.0190647482
A54: Norte | B54: Nova Venécia | C54: 8352 | D54: 113 | E54: 0.01352969349
A55: Central | B55: Pancas | C55: 3687 | D55: 45 | E55: 0.01220504475
A56: Norte | B56: Pedro Canário | C56: 3253 | D56: 53 | E56: 0.01629265294
A57: Norte | B57: Pinheiros | C57: 3762 | D57: 186 | E57: 0.04944178628
A58: Sul | B58: Piúma | C58: 3886 | D58: 125 | E58: 0.03216675244
A59: Norte | B59: Ponto Belo | C59: 1330 | D59: 31 | E59: 0.02330827068
A60: Sul | B60: Presidente Kennedy | C60: 2214 | D60: 14 | E60: 0.006323396567
A61: Central | B61: Rio Bananal | C61: 3071 | D61: 50 | E61: 0.01628134158
A62: Sul | B62: Rio Novo do Sul | C62: 2232 | D62: 34 | E62: 0.01523297491
A63: Metropolitana | B63: Santa Leopoldina | C63: 2634 | D63: 25 | E63: 0.009491268033
A64: Metropolitana | B64: Santa Maria de Jetibá | C64: 5552 | D64: 57 | E64: 0.01026657061
A65: Metropolitana | B65: Santa Teresa | C65: 4767 | D65: 96 | E65: 0.02013845186
A66: Central | B66: São Domingos do Norte | C66: 1520 | D66: 11 | E66: 0.007236842105
A67: Central | B67: São Gabriel da Palha | C67: 5456 | D67: 26 | E67: =(D67/C67) -> 0.004765395894
A68: Sul | B68: São José do Calçado | C68: 2456 | D68: 34 | E68: 0.01384364821
A69: Norte | B69: São Mateus | C69: 17649 | D69: 951 | E69: 0.05388407275
A70: Central | B70: São Roque do Canaã | C70: 2370 | D70: 8 | E70: 0.003375527426
A71: Metropolitana | B71: Serra | C71: 66481 | D71: 3839 | E71: 0.05774582211
A72: Central | B72: Sooretama | C72: 3097 | D72: 91 | E72: 0.02938327414
A73: Sul | B73: Vargem Alta | C73: 3365 | D73: 71 | E73: 0.02109955423
A74: Metropolitana | B74: Venda Nova do Imigrante | C74: 3766 | D74: 130 | E74: 0.03451938396
A75: Metropolitana | B75: Viana | C75: 9758 | D75: 429 | E75: 0.04396392703
A76: Norte | B76: Vila Pavão | C76: 1510 | D76: 46 | E76: 0.03046357616
A77: Central | B77: Vila Valério | C77: 2160 | D77: 13 | E77: 0.006018518519
A78: Metropolitana | B78: Vila Velha | C78: 81049 | D78: 3860 | E78: 0.04762551049
A79: Metropolitana | B79: Vitória | C79: 64805 | D79: 4291 | E79: 0.0662140267
B81: Total Norte | C81: =SUMIF($A$2:$A$79,"Norte",C$2:C$79) -> 64626 | D81: =SUMIF($A$2:$A$79,"Norte",D$2:D$79) -> 2093 | E81: =D81/C81 -> 0.03238634605
B82: Total Central | C82: =SUMIF($A$2:$A$79,"Central",C$2:C$79) -> 80477 | D82: =SUMIF($A$2:$A$79,"Central",D$2:D$79) -> 1841 | E82: =D82/C82 -> 0.02287610125
B83: Total Metropolitana | C83: =SUMIF($A$2:$A$79,"Metropolitana",C$2:C$79) -> 367065 | D83: =SUMIF($A$2:$A$79,"Metropolitana",D$2:D$79) -> 18898 | E83: 0.05148406958
B84: Total Sul | C84: =SUMIF($A$2:$A$79,"sul",C$2:C$79) -> 119230 | D84: =SUMIF($A$2:$A$79,"Sul",D$2:D$79) -> 2881 | E84: 0.0241633817
B85: Total Espírito Santo | C85: =SUM(C2:C79) -> 631398 | D85: =SUM(D81:D84) -> 25713 | E85: 0.0407239174
B86: HOMOGENEIDADE ENTRE MUNICÍPIOS | E86: =COUNTIF(E2:E79,">=0,90")/78 -> 0
A91: Cobertura Vacinal Covid-19 dos Idosos
A92: Vacina Covid-19-Recombinante, Serum/Zalika>, Vacina Covid-19-RNAm, Moderna (Spikevax), Vacina Covid-19-RNAm, Pfizer (Comirnaty)
A93: Período analisado: últimos 6 meses
A94: Fonte: Vacina e Confia, em 24 de janeiro de 2026.**<https://vacinaeconfia.saude.es.gov.br/>
A95: Faixa Etária: 60+. População estimada extraída do Censo IBGE 2022.
A96: Cobertura Calculada por município de residência do vacinado
A97: Método de Cálculo Simples
A98: Homogeineidade: O cálculo da Homogeineidade entre vacinas é feito de acordo com a pactuação estabelecida no Plano Plurianual (PPA) vigente no período 2024-2027.
A100: Observações referente a distribuição de imunobiológicos que podem afetar a cobertura vacinal:
A102: 1. Vacinas que foram recebidas parcialmente pelo estado no mês de Janeiro/2026, sendo distribuídos em quantidades reduzidas às regionais e municípios:
A103: IMUNOGLOBULINA ANTIRRÁBICA HUMANA; SORO ANTIRRÁBICO HUMANO
A104: 2. Vacinas indisponíveis no mês de dezembro/2025, não sendo possível a distribuição às regionais e municípios:
A105: VACINA TETRA VIRAL, IMUNOGLOBULINA HUMANA ANTIVARICELA (ZOSTER) – 125UI
A106: 3. Vacinas enviadas por Pautas aguardando abastecimento do estoque estadual;
A107: VACINA COVID-19 PFIZER PEDIÁTRICA MENOR QUE 5 ANOS; VACINA COVID-19 PFIZER PEDIÁTRICA.
A109: Fonte: Informes situacionais de distribuição de imunobiológicos em https://saude.es.gov.br/GrupodeArquivos/informes-situacionais-de-distribuicao-de-imunobiologicos

Sheet Cobert. Meningo C Adolescentes
A1: Regional | B1: Município | C1: População 11 a 14 anos | D1: Doses Acumuladas | E1: Série Histórica %
A2: Metropolitana | B2: Afonso Cláudio | C2: 1627 | D2: 567 | E2: 44.85759494
A3: Norte | B3: Água Doce do Norte | C3: 664 | D3: 406 | E3: 77.65380937
A4: Central | B4: Águia Branca | C4: 504 | D4: 316 | E4: 76.46702964
A5: Sul | B5: Alegre | C5: 1351 | D5: 875 | E5: 85.47008547
A6: Sul | B6: Alfredo Chaves | C6: 632 | D6: 333 | E6: 66.72232426
A7: Central | B7: Alto Rio Novo | C7: 412 | D7: 311 | E7: 94.91353001
A8: Sul | B8: Anchieta | C8: 1512 | D8: 1069 | E8: 92.52073567
A9: Sul | B9: Apiacá | C9: 364 | D9: 127 | E9: 43.69266055
A10: Metropolitana | B10: Aracruz | C10: 5398 | D10: 4042 | E10: 97.00217987
A11: Sul | B11: Atilio Vivacqua | C11: 512 | D11: 399 | E11: 100.167364
A12: Central | B12: Baixo Guandu | C12: 1522 | D12: 939 | E12: 79.81865836
A13: Norte | B13: Barra de São Francisco | C13: 2306 | D13: 1353 | E13: 75.62884293
A14: Norte | B14: Boa Esperança | C14: 713 | D14: 370 | E14: 68.08771661
A15: Sul | B15: Bom Jesus do Norte | C15: 521 | D15: 353 | E15: 84.38247012
A16: Metropolitana | B16: Brejetuba | C16: 753 | D16: 582 | E16: 101.1880614
A17: Sul | B17: Cachoeiro de Itapemirim | C17: 9041 | D17: 5615 | E17: 81.12208042
A18: Metropolitana | B18: Cariacica | C18: 19769 | D18: 12893 | E18: 84.45888037
A19: Sul | B19: Castelo | C19: 1588 | D19: 1079 | E19: 88.41242745
A20: Central | B20: Colatina | C20: 5562 | D20: 3395 | E20: 79.82600517
A21: Norte | B21: Conceição da Barra | C21: 1742 | D21: 891 | E21: 66.46773592
A22: Metropolitana | B22: Conceição do Castelo | C22: 592 | D22: 423 | E22: 92.32448163
A23: Sul | B23: Divino de São Lourenço | C23: 272 | D23: 159 | E23: 75.83465819
A24: Metropolitana | B24: Domingos Martins | C24: 1722 | D24: 1161 | E24: 88.22747134
A25: Sul | B25: Dores do Rio Preto | C25: 381 | D25: 232 | E25: 80.43917943
A26: Norte | B26: Ecoporanga | C26: 1137 | D26: 585 | E26: 64.89784598
A27: Metropolitana | B27: Fundão | C27: 954 | D27: 745 | E27: 101.2457531
A28: Central | B28: Governador Lindenberg | C28: 550 | D28: 362 | E28: 83.49029406
A29: Sul | B29: Guaçuí | C29: 1508 | D29: 955 | E29: 83.80868802
A30: Metropolitana | B30: Guarapari | C30: 6549 | D30: 4454 | E30: 87.63691218
A31: Metropolitana | B31: Ibatiba | C31: 1388 | D31: 729 | E31: 68.01959412
A32: Metropolitana | B32: Ibiraçu | C32: 574 | D32: 427 | E32: 99.92199688
A33: Sul | B33: Ibitirama | C33: 573 | D33: 457 | E33: 105.8278657
A34: Sul | B34: Iconha | C34: 508 | D34: 380 | E34: 94.60580913
A35: Sul | B35: Irupi | C35: 753 | D35: 483 | E35: 82.14285714
A36: Metropolitana | B36: Itaguaçu | C36: 616 | D36: 311 | E36: 67.31601732
A37: Sul | B37: Itapemirim | C37: 2337 | D37: 1434 | E37: 81.07802488
A38: Metropolitana | B38: Itarana | C38: 428 | D38: 249 | E38: 75.47360445
A39: Sul | B39: Iúna | C39: 1564 | D39: 860 | E39: 70.31888798
A40: Norte | B40: Jaguaré | C40: 1794 | D40: 1115 | E40: 79.39239305
A41: Sul | B41: Jerônimo Monteiro | C41: 563 | D41: 413 | E41: 94.81538167
A42: Metropolitana | B42: João Neiva | C42: 659 | D42: 410 | E42: 82.08208208
A43: Metropolitana | B43: Laranja da Terra | C43: 488 | D43: 263 | E43: 73.68666822
A44: Central | B44: Linhares | C44: 9326 | D44: 6512 | E44: 90.53351098
A45: Central | B45: Mantenópolis | C45: 710 | D45: 535 | E45: 98.83004926
A46: Sul | B46: Marataízes | C46: 2239 | D46: 1668 | E46: 95.59195759
A47: Metropolitana | B47: Marechal Floriano | C47: 922 | D47: 660 | E47: 91.27578656
A48: Central | B48: Marilândia | C48: 550 | D48: 369 | E48: 84.39108062
A49: Sul | B49: Mimoso do Sul | C49: 1159 | D49: 656 | E49: 73.37123683
A50: Norte | B50: Montanha | C50: 1050 | D50: 661 | E50: 83.127227
A51: Norte | B51: Mucurici | C51: 253 | D51: 151 | E51: 76.97536109
A52: Sul | B52: Muniz Freire | C52: 924 | D52: 590 | E52: 80.45454545
A53: Sul | B53: Muqui | C53: 662 | D53: 397 | E53: 77.450821
A54: Norte | B54: Nova Venécia | C54: 2425 | D54: 1853 | E54: 97.02417314
A55: Central | B55: Pancas | C55: 946 | D55: 552 | E55: 74.89823609
A56: Norte | B56: Pedro Canário | C56: 1253 | D56: 853 | E56: 88.71554862
A57: Norte | B57: Pinheiros | C57: 1417 | D57: 773 | E57: 71.71795268
A58: Sul | B58: Piúma | C58: 1086 | D58: 712 | E58: 83.81400824
A59: Norte | B59: Ponto Belo | C59: 396 | D59: 232 | E59: 76.4625103
A60: Sul | B60: Presidente Kennedy | C60: 730 | D60: 562 | E60: 100.1187648
A61: Central | B61: Rio Bananal | C61: 990 | D61: 657 | E61: 87.72671637
A62: Sul | B62: Rio Novo do Sul | C62: 522 | D62: 319 | E62: 79.73338888
A63: Metropolitana | B63: Santa Leopoldina | C63: 635 | D63: 236 | E63: 46.8331404
A64: Metropolitana | B64: Santa Maria de Jetibá | C64: 2131 | D64: 1387 | E64: 87.83113456
A65: Metropolitana | B65: Santa Teresa | C65: 1054 | D65: 651 | E65: 80.71915685
A66: Central | B66: São Domingos do Norte | C66: 410 | D66: 243 | E66: 77.22457627
A67: Central | B67: São Gabriel da Palha | C67: 1616 | D67: 942 | E67: 74.20244191
A68: Sul | B68: São José do Calçado | C68: 552 | D68: 344 | E68: 78.31531019
A69: Norte | B69: São Mateus | C69: 6608 | D69: 4203 | E69: 82.3808046
A70: Central | B70: São Roque do Canaã | C70: 465 | D70: 316 | E70: 85.48241659
A71: Metropolitana | B71: Serra | C71: 29073 | D71: 16527 | E71: 74.36359887
A72: Central | B72: Sooretama | C72: 1715 | D72: 1228 | E72: 91.76162899
A73: Sul | B73: Vargem Alta | C73: 1036 | D73: 622 | E73: 76.31121562
A74: Metropolitana | B74: Venda Nova do Imigrante | C74: 1122 | D74: 741 | E74: 86.36363636
A75: Metropolitana | B75: Viana | C75: 3978 | D75: 2860 | E75: 94.04285636
A76: Norte | B76: Vila Pavão | C76: 458 | D76: 355 | E76: 102.8240406
A77: Central | B77: Vila Valério | C77: 678 | D77: 585 | E77: 108.6014851
A78: Metropolitana | B78: Vila Velha | C78: 22007 | D78: 13919 | E78: 82.16364057
A79: Metropolitana | B79: Vitória | C79: 14287 | D79: 8674 | E79: 79.09963447
B81: Total Central | D81: 17262 | E81: 85.91443562
B82: Total Norte | D82: 13801 | E82: 80.27259684
B83: Total Metropolitana | D83: 72911 | E83: 81.32479558
B84: Total Sul | D84: 21093 | E84: 83.16062687
B85: Total Espírito Santo | D85: 125067 | E85: 82.11722684
A90: Meningocócica Conjudada C e Meningocócica ACWY
A91: Método de Cálculo por COORTE
A92: Período avaliado: 2016-2026
A93: Faixa Etária: 11 a 14 anos. População estimada extraída do Censo IBGE 2022.
A94: Fonte: http://tabnet.datasus.gov.br/ e https://www.vacinaeconfia.es.gov.br
A95: *Dados parciais:
A96: Dados de janeiro/2022 a abril/2022 extraídos do TABNET em 26/02/2026
A97: Dados de Maio/2022 a Janeiro/2026 extraídos do Vacina e Confia em 24/02/2026
A98: Cobertura Calculada por município de procedência da vacinação
A100: Observações referente a distribuição de imunobiológicos que podem afetar a cobertura vacinal:
A102: 1. Vacinas que foram recebidas parcialmente pelo estado no mês de Janeiro/2026, sendo distribuídos em quantidades reduzidas às regionais e municípios:
A103: IMUNOGLOBULINA ANTIRRÁBICA HUMANA; SORO ANTIRRÁBICO HUMANO
A104: 2. Vacinas indisponíveis no mês de dezembro/2025, não sendo possível a distribuição às regionais e municípios:
A105: VACINA TETRA VIRAL, IMUNOGLOBULINA HUMANA ANTIVARICELA (ZOSTER) – 125UI
A106: 3. Vacinas enviadas por Pautas aguardando abastecimento do estoque estadual;
A107: VACINA COVID-19 PFIZER PEDIÁTRICA MENOR QUE 5 ANOS; VACINA COVID-19 PFIZER PEDIÁTRICA.
A109: Fonte: Informes situacionais de distribuição de imunobiológicos em https://saude.es.gov.br/GrupodeArquivos/informes-situacionais-de-distribuicao-de-imunobiologicos

Sheet Cobert. HPV
A1: Regional | B1: Município | C1: População Feminina 9 a 14 anos | D1: População Masculina 9 a 14 anos | E1: Doses Acumuladas Feminino | F1: HPV Feminino % | G1: Doses Acumuladas Masculino | H1: HPV Masculino %
A2: Metropolitana | B2: Afonso Cláudio | C2: 15277 | D2: 15407 | E2: 889 | F2: 76.30901288 | G2: 950 | H2: 77.74140753
A3: Norte | B3: Água Doce do Norte | C3: 4781 | D3: 4930 | E3: 369 | F3: 92.00083108 | G3: 426 | H3: 99.43590741
A4: Central | B4: Águia Branca | C4: 5990 | D4: 6052 | E4: 280 | F4: 93.72384937 | G4: 314 | H4: 98.04839969
A5: Sul | B5: Alegre | C5: 14870 | D5: 14307 | E5: 766 | F5: 88.95770831 | G5: 753 | H5: 86.25429553
A6: Sul | B6: Alfredo Chaves | C6: 6823 | D6: 7013 | E6: 313 | F6: 81.31630223 | G6: 295 | H6: 71.68894289
A7: Central | B7: Alto Rio Novo | C7: 3733 | D7: 3701 | E7: 267 | F7: 105.9874297 | G7: 287 | H7: 110.6328301
A8: Sul | B8: Anchieta | C8: 15163 | D8: 14821 | E8: 1008 | F8: 105.1917558 | G8: 1021 | H8: 107.1072646
A9: Sul | B9: Apiacá | C9: 3725 | D9: 3498 | E9: 187 | F9: 81.6891154 | G9: 167 | H9: 72.6613488
A10: Metropolitana | B10: Aracruz | C10: 47872 | D10: 46893 | E10: 3798 | F10: 96.00606673 | G10: 3806 | H10: 90.10416667
A11: Sul | B11: Atílio Vivácqua | C11: 5285 | D11: 5255 | E11: 415 | F11: 127.9876638 | G11: 381 | H11: 113.986537
A12: Central | B12: Baixo Guandu | C12: 15696 | D12: 14978 | E12: 908 | F12: 92.03480024 | G12: 974 | H12: 101.3703382
A13: Norte | B13: Barra de São Francisco | C13: 21504 | D13: 20994 | E13: 1328 | F13: 92.11560694 | G13: 1300 | H13: 86.29750512
A14: Norte | B14: Boa Esperança | C14: 6846 | D14: 6762 | E14: 420 | F14: 92.3584387 | G14: 310 | H14: 70.26822818
A15: Sul | B15: Bom Jesus do Norte | C15: 5417 | D15: 4837 | E15: 338 | F15: 94.96605011 | G15: 290 | H15: 95.70957096
A16: Metropolitana | B16: Brejetuba | C16: 6331 | D16: 6654 | E16: 499 | F16: 87.08551483 | G16: 561 | H16: 98.5940246
A17: Sul | B17: Cachoeiro de Itapemirim | C17: 95939 | D17: 89847 | E17: 5733 | F17: 101.1557124 | G17: 5859 | H17: 99.56242831
A18: Metropolitana | B18: Cariacica | C18: 183096 | D18: 170395 | E18: 12237 | F18: 84.16093535 | G18: 11956 | H18: 77.8588174
A19: Sul | B19: Castelo | C19: 18706 | D19: 18224 | E19: 1014 | F19: 99.98356615 | G19: 1055 | H19: 105.4736316
A20: Central | B20: Colatina | C20: 61911 | D20: 58122 | E20: 2844 | F20: 83.05266232 | G20: 3050 | H20: 84.22118416
A21: Norte | B21: Conceição da Barra | C21: 14062 | D21: 13396 | E21: 977 | F21: 90.30270354 | G21: 1019 | H21: 93.42909535
A22: Metropolitana | B22: Conceição do Castelo | C22: 5964 | D22: 5973 | E22: 403 | F22: 89.75501114 | G22: 449 | H22: 96.76724138
A23: Sul | B23: Divino de São Lourenço | C23: 2463 | D23: 2620 | E23: 144 | F23: 92.6541555 | G23: 171 | H23: 94.47513812
A24: Metropolitana | B24: Domingos Martins | C24: 17546 | D24: 17870 | E24: 1189 | F24: 94.74103586 | G24: 1169 | H24: 86.84992571
A25: Sul | B25: Dores do Rio Preto | C25: 3288 | D25: 3308 | E25: 244 | F25: 113.9299611 | G25: 218 | H25: 84.96265021
A26: Norte | B26: Ecoporanga | C26: 11077 | D26: 10915 | E26: 633 | F26: 93.97500928 | G26: 627 | H26: 85.49028519
A27: Metropolitana | B27: Fundão | C27: 9113 | D27: 8901 | E27: 596 | F27: 80.86838535 | G27: 699 | H27: 101.3043478
A28: Central | B28: Governador Lindenberg | C28: 5347 | D28: 5662 | E28: 350 | F28: 110.3520757 | G28: 371 | H28: 101.2278308
A29: Sul | B29: Guaçuí | C29: 15088 | D29: 14270 | E29: 936 | F29: 100.8077544 | G29: 887 | H29: 89.4528952
A30: Metropolitana | B30: Guarapari | C30: 63971 | D30: 60685 | E30: 3898 | F30: 80.83782663 | G30: 4090 | H30: 82.31032401
A31: Metropolitana | B31: Ibatiba | C31: 12686 | D31: 12694 | E31: 852 | F31: 90.9284952 | G31: 930 | H31: 83.85933273
A32: Metropolitana | B32: Ibiraçu | C32: 5916 | D32: 5807 | E32: 381 | F32: 87.3853211 | G32: 391 | H32: 86.31346578
A33: Sul | B33: Ibitirama | C33: 4693 | D33: 4827 | E33: 262 | F33: 74.92850334 | G33: 355 | H33: 97.86354238
A34: Sul | B34: Iconha | C34: 6183 | D34: 6143 | E34: 368 | F34: 116.67107 | G34: 344 | H34: 101.2509198
A35: Sul | B35: Irupi | C35: 6771 | D35: 6939 | E35: 411 | F35: 87.43130651 | G35: 502 | H35: 104.8016701
A36: Metropolitana | B36: Itaguaçu | C36: 6840 | D36: 6749 | E36: 375 | F36: 85.03401361 | G36: 298 | H36: 67.26862302
A37: Sul | B37: Itapemirim | C37: 20328 | D37: 19504 | E37: 1238 | F37: 86.58856443 | G37: 1348 | H37: 88.93287152
A38: Metropolitana | B38: Itarana | C38: 5336 | D38: 5261 | E38: 277 | F38: 94.53924915 | G38: 282 | H38: 80.34188034
A39: Sul | B39: Iúna | C39: 14480 | D39: 14110 | E39: 956 | F39: 97.50127486 | G39: 1012 | H39: 104.3030147
A40: Norte | B40: Jaguaré | C40: 14495 | D40: 14436 | E40: 1222 | F40: 110.2805144 | G40: 1192 | H40: 102.2590792
A41: Sul | B41: Jerônimo Monteiro | C41: 5904 | D41: 5671 | E41: 352 | F41: 95.82577132 | G41: 373 | H41: 108.2466747
A42: Metropolitana | B42: João Neiva | C42: 7265 | D42: 6814 | E42: 452 | F42: 89.15187377 | G42: 469 | H42: 102.6258206
A43: Metropolitana | B43: Laranja da Terra | C43: 5493 | D43: 5601 | E43: 296 | F43: 87.83382789 | G43: 292 | H43: 72.09876543
A44: Central | B44: Linhares | C44: 84307 | D44: 82479 | E44: 5822 | F44: 99.00238068 | G44: 6194 | H44: 104.3742013
A45: Central | B45: Mantenópolis | C45: 6477 | D45: 6293 | E45: 414 | F45: 88.0538816 | G45: 384 | H45: 90.72652097
A46: Sul | B46: Marataízes | C46: 21396 | D46: 20533 | E46: 1571 | F46: 115.9766226 | G46: 1631 | H46: 110.7013575
A47: Metropolitana | B47: Marechal Floriano | C47: 8846 | D47: 8795 | E47: 598 | F47: 93.14641745 | G47: 624 | H47: 89.3982808
A48: Central | B48: Marilândia | C48: 6263 | D48: 6124 | E48: 375 | F48: 104.0221914 | G48: 443 | H48: 137.0456303
A49: Sul | B49: Mimoso do Sul | C49: 12165 | D49: 12310 | E49: 578 | F49: 80.32426173 | G49: 557 | H49: 79.23186344
A50: Norte | B50: Montanha | C50: 9553 | D50: 9347 | E50: 685 | F50: 104.6334012 | G50: 695 | H50: 101.9310682
A51: Norte | B51: Mucurici | C51: 2718 | D51: 2748 | E51: 170 | F51: 118.2608696 | G51: 163 | H51: 94.72154964
A52: Sul | B52: Muniz Freire | C52: 8942 | D52: 9211 | E52: 610 | F52: 109.4497608 | G52: 641 | H52: 106.4194798
A53: Sul | B53: Muqui | C53: 6890 | D53: 6855 | E53: 402 | F53: 92.53788605 | G53: 421 | H53: 99.66462813
A54: Norte | B54: Nova Venécia | C54: 24772 | D54: 24293 | E54: 1559 | F54: 107.4554854 | G54: 1673 | H54: 101.7794677
A55: Central | B55: Pancas | C55: 9385 | D55: 9508 | E55: 582 | F55: 101.1294526 | G55: 613 | H55: 97.12173224
A56: Norte | B56: Pedro Canário | C56: 10884 | D56: 10638 | E56: 811 | F56: 106.0015249 | G56: 782 | H56: 96.96218227
A57: Norte | B57: Pinheiros | C57: 11985 | D57: 11930 | E57: 777 | F57: 89.36170213 | G57: 769 | H57: 83.94432821
A58: Sul | B58: Piúma | C58: 11401 | D58: 10899 | E58: 665 | F58: 98.56719368 | G58: 619 | H58: 83.91323995
A59: Norte | B59: Ponto Belo | C59: 3351 | D59: 3146 | E59: 251 | F59: 98.17470665 | G59: 253 | H59: 110.8838568
A60: Sul | B60: Presidente Kennedy | C60: 6865 | D60: 6831 | E60: 464 | F60: 101.7729848 | G60: 530 | H60: 105.7180851
A61: Central | B61: Rio Bananal | C61: 9408 | D61: 9866 | E61: 736 | F61: 118.1222415 | G61: 825 | H61: 127.8739344
A62: Sul | B62: Rio Novo do Sul | C62: 5467 | D62: 5602 | E62: 285 | F62: 90.76433121 | G62: 355 | H62: 102.973169
A63: Metropolitana | B63: Santa Leopoldina | C63: 6229 | D63: 6877 | E63: 290 | F63: 64.58797327 | G63: 289 | H63: 58.26612903
A64: Metropolitana | B64: Santa Maria de Jetibá | C64: 20534 | D64: 21102 | E64: 1344 | F64: 88.24688116 | G64: 1393 | H64: 83.61344538
A65: Metropolitana | B65: Santa Teresa | C65: 11475 | D65: 11333 | E65: 669 | F65: 90.40540541 | G65: 670 | H65: 85.78745198
A66: Central | B66: São Domingos do Norte | C66: 4092 | D66: 4497 | E66: 275 | F66: 105.6676273 | G66: 315 | H66: 119.6960101
A67: Central | B67: São Gabriel da Palha | C67: 16365 | D67: 15887 | E67: 968 | F67: 94.93298464 | G67: 1013 | H67: 102.3490781
A68: Sul | B68: São José do Calçado | C68: 5498 | D68: 5380 | E68: 331 | F68: 95.2746462 | G68: 345 | H68: 97.34305196
A69: Norte | B69: São Mateus | C69: 62665 | D69: 61087 | E69: 4000 | F69: 97.67810993 | G69: 3994 | H69: 92.3913253
A70: Central | B70: São Roque do Canaã | C70: 5368 | D70: 5518 | E70: 320 | F70: 101.7218543 | G70: 309 | H70: 105.4307649
A71: Metropolitana | B71: Serra | C71: 269243 | D71: 251410 | E71: 16932 | F71: 78.17535436 | G71: 15397 | H71: 68.51637593
A72: Central | B72: Sooretama | C72: 13209 | D72: 13293 | E72: 1105 | F72: 101.3916501 | G72: 1134 | H72: 104.6045046
A73: Sul | B73: Vargem Alta | C73: 9623 | D73: 9940 | E73: 591 | F73: 97.52650177 | G73: 667 | H73: 97.52650177
A74: Metropolitana | B74: Venda Nova do Imigrante | C74: 12129 | D74: 11702 | E74: 783 | F74: 100.1278772 | G74: 798 | H74: 94.66192171
A75: Metropolitana | B75: Viana | C75: 36243 | D75: 37180 | E75: 2744 | F75: 96.31449631 | G75: 2803 | H75: 90.44853178
A76: Norte | B76: Vila Pavão | C76: 4415 | D76: 4496 | E76: 292 | F76: 101.6241299 | G76: 291 | H76: 100.5760369
A77: Central | B77: Vila Valério | C77: 6650 | D77: 7078 | E77: 531 | F77: 141.1295681 | G77: 517 | H77: 113.2943755
A78: Metropolitana | B78: Vila Velha | C78: 242147 | D78: 225575 | E78: 14141 | F78: 87.32785772 | G78: 14028 | H78: 82.62943983
A79: Metropolitana | B79: Vitória | C79: 173415 | D79: 149454 | E79: 9612 | F79: 92.44085401 | G79: 9461 | H79: 85.82184325
B81: Total Central | E81: 15777 | F81: 95.32786514 | G81: 16743 | H81: 101.0313529
B82: Total Norte | E82: 13494 | F82: 98.61872396 | G82: 13494 | H82: 93.53674105
B83: Total Metropolitana | E83: 73255 | F83: 101.4190779 | G83: 71805 | H83: 94.48699743
B84: Total Sul | E84: 20178 | F84: 98.67756672 | G84: 20807 | H84: 97.89571497
B85: Total Espírito Santo | D85: 191099 | E85: 122704 | F85: 100.0761217 | G85: 122849 | H85: 95.79068571
A90: Vacina HPV Quadrivalente, Bivalente e Nonavalente
A91: Método de Cálculo por COORTE
A92: Período avaliado: 2013-2026
A93: Faixa Etária: 9 a 14 anos. População estimada extraída do Censo IBGE 2022.
A94: Fonte: http://tabnet.datasus.gov.br/ e https://www.vacinaeconfia.es.gov.br
A95: *Dados parciais:
A96: Dados de janeiro/2013 a dezembro/2022 extraídos do TABNET em 23/02/2026
A97: Dados de Janeiro/2023 a Janeiro/2026 extraídos do Vacina e Confia em 20/02/2026
A98: Cobertura Calculada por município de procedência da vacinação
A100: Observações referente a distribuição de imunobiológicos que podem afetar a cobertura vacinal:
A102: 1. Vacinas que foram recebidas parcialmente pelo estado no mês de Janeiro/2026, sendo distribuídos em quantidades reduzidas às regionais e municípios:
A103: IMUNOGLOBULINA ANTIRRÁBICA HUMANA; SORO ANTIRRÁBICO HUMANO
A104: 2. Vacinas indisponíveis no mês de dezembro/2025, não sendo possível a distribuição às regionais e municípios:
A105: VACINA TETRA VIRAL, IMUNOGLOBULINA HUMANA ANTIVARICELA (ZOSTER) – 125UI
A106: 3. Vacinas enviadas por Pautas aguardando abastecimento do estoque estadual;
A107: VACINA COVID-19 PFIZER PEDIÁTRICA MENOR QUE 5 ANOS; VACINA COVID-19 PFIZER PEDIÁTRICA.
A109: Fonte: Informes situacionais de distribuição de imunobiológicos em https://saude.es.gov.br/GrupodeArquivos/informes-situacionais-de-distribuicao-de-imunobiologicos

Sheet Cobert. Dengue
A1: Regional | B1: Município | C1: População 10 a 14 anos | D1: Doses Acumuladas D1 | E1: DENGUE -D1 % | F1: Doses Acumuladas D2 | G1: DENGUE - D2 %
A2: Metropolitana | B2: Afonso Cláudio | C2: 1987 | D2: 1179 | E2: 71.15268558 | F2: 799 | G2: 48.21967411
A3: Norte | B3: Água Doce do Norte | C3: 819 | D3: 414 | E3: 50.54945055 | F3: 218 | G3: 32.20485042
A4: Central | B4: Águia Branca | C4: 605 | D4: 280 | E4: 54.64303139 | F4: 188 | G4: 36.6888925
A5: Sul | B5: Alegre | C5: 1706 | D5: 1390 | E5: 100.6820788 | F5: 417 | G5: 30.20462365
A6: Sul | B6: Alfredo Chaves | C6: 781 | D6: 245 | E6: 38.01888012 | F6: 60 | G6: 9.310746153
A7: Central | B7: Alto Rio Novo | C7: 503 | D7: 466 | E7: 111.0625621 | F7: 352 | G7: 83.89275074
A8: Sul | B8: Anchieta | C8: 1875 | D8: 1474 | E8: 95.57464743 | F8: 535 | G8: 34.68957692
A9: Sul | B9: Apiacá | C9: 452 | D9: 110 | E9: 29.62298025 | F9: 19 | G9: 5.116696589
A10: Metropolitana | B10: Aracruz | C10: 6737 | D10: 5653 | E10: 102.6030402 | F10: 3606 | G10: 65.4495954
A11: Sul | B11: Atílio Vivácqua | C11: 646 | D11: 532 | E11: 101.6884358 | F11: 130 | G11: 24.84867792
A12: Central | B12: Baixo Guandu | C12: 1916 | D12: 1160 | E12: 74.6060671 | F12: 587 | G12: 37.75324258
A13: Norte | B13: Barra de São Francisco | C13: 2900 | D13: 829 | E13: 28.5862069 | F13: 195 | G13: 8.278497134
A14: Norte | B14: Boa Esperança | C14: 882 | D14: 251 | E14: 28.45804989 | F14: 115 | G14: 15.81661891
A15: Sul | B15: Bom Jesus do Norte | C15: 649 | D15: 372 | E15: 69.96865204 | F15: 62 | G15: 11.66144201
A16: Metropolitana | B16: Brejetuba | C16: 924 | D16: 753 | E16: 98.1427175 | F16: 528 | G16: 68.8172043
A17: Sul | B17: Cachoeiro de Itapemirim | C17: 11366 | D17: 7164 | E17: 77.57654511 | F17: 1637 | G17: 17.7265221
A18: Metropolitana | B18: Cariacica | C18: 24648 | D18: 15293 | E18: 75.79954318 | F18: 8462 | G18: 41.94178607
A19: Sul | B19: Castelo | C19: 1979 | D19: 1292 | E19: 79.72437908 | F19: 328 | G19: 20.23962565
A20: Central | B20: Colatina | C20: 6926 | D20: 2888 | E20: 50.88389029 | F20: 1372 | G20: 24.1733717
A21: Norte | B21: Conceição da Barra | C21: 2137 | D21: 1321 | E21: 61.81562939 | F21: 631 | G21: 35.55096483
A22: Metropolitana | B22: Conceição do Castelo | C22: 734 | D22: 723 | E22: 119.7350262 | F22: 540 | G22: 89.42865029
A23: Sul | B23: Divino de São Lourenço | C23: 331 | D23: 160 | E23: 57.77911526 | F23: 57 | G23: 20.58380981
A24: Metropolitana | B24: Domingos Martins | C24: 2134 | D24: 1553 | E24: 88.42285064 | F24: 1090 | G24: 62.06111217
A25: Sul | B25: Dores do Rio Preto | C25: 464 | D25: 246 | E25: 63.41568206 | F25: 51 | G25: 13.1471536
A26: Norte | B26: Ecoporanga | C26: 1386 | D26: 770 | E26: 55.55555556 | F26: 313 | G26: 27.03519758
A27: Metropolitana | B27: Fundão | C27: 1188 | D27: 1018 | E27: 104.5711351 | F27: 695 | G27: 71.39188495
A28: Central | B28: Governador Lindenberg | C28: 672 | D28: 557 | E28: 99.43469206 | F28: 364 | G28: 64.98066052
A29: Sul | B29: Guaçuí | C29: 1888 | D29: 761 | E29: 49.42628275 | F29: 190 | G29: 12.34033341
A30: Metropolitana | B30: Guarapari | C30: 8184 | D30: 2485 | E30: 37.17138476 | F30: 973 | G30: 14.55442953
A31: Metropolitana | B31: Ibatiba | C31: 1738 | D31: 1421 | E31: 100.2704928 | F31: 844 | G31: 59.55545102
A32: Metropolitana | B32: Ibiraçu | C32: 735 | D32: 591 | E32: 100.6100156 | F32: 384 | G32: 65.37097461
A33: Sul | B33: Ibitirama | C33: 700 | D33: 452 | E33: 77.45252035 | F33: 118 | G33: 20.21990575
A34: Sul | B34: Iconha | C34: 644 | D34: 433 | E34: 83.37612323 | F34: 136 | G34: 26.18741977
A35: Sul | B35: Irupi | C35: 933 | D35: 622 | E35: 80.98958333 | F35: 155 | G35: 20.18229167
A36: Metropolitana | B36: Itaguaçu | C36: 763 | D36: 661 | E36: 105.212893 | F36: 523 | G36: 83.247115
A37: Sul | B37: Itapemirim | C37: 2900 | D37: 870 | E37: 36.49456427 | F37: 214 | G37: 8.976823854
A38: Metropolitana | B38: Itarana | C38: 535 | D38: 481 | E38: 110.0896433 | F38: 357 | G38: 81.70894526
A39: Sul | B39: Iúna | C39: 1916 | D39: 1182 | E39: 74.18410042 | F39: 273 | G39: 17.13389121
A40: Norte | B40: Jaguaré | C40: 2237 | D40: 590 | E40: 26.37460885 | F40: 313 | G40: 17.09526194
A41: Sul | B41: Jerônimo Monteiro | C41: 702 | D41: 448 | E41: 77.96954315 | F41: 117 | G41: 20.36258158
A42: Metropolitana | B42: João Neiva | C42: 808 | D42: 660 | E42: 98.29961524 | F42: 434 | G42: 64.63944396
A43: Metropolitana | B43: Laranja da Terra | C43: 617 | D43: 518 | E43: 103.8596491 | F43: 381 | G43: 76.39097744
A44: Central | B44: Linhares | C44: 11616 | D44: 7475 | E44: 78.54503424 | F44: 4231 | G44: 44.45806553
A45: Central | B45: Mantenópolis | C45: 880 | D45: 747 | E45: 103.1530495 | F45: 537 | G45: 74.15420023
A46: Sul | B46: Marataízes | C46: 2782 | D46: 1225 | E46: 53.62810551 | F46: 264 | G46: 11.55740396
A47: Metropolitana | B47: Marechal Floriano | C47: 1127 | D47: 962 | E47: 102.440323 | F47: 672 | G47: 71.55914456
A48: Central | B48: Marilândia | C48: 673 | D48: 548 | E48: 97.81347613 | F48: 335 | G48: 59.79473449
A49: Sul | B49: Mimoso do Sul | C49: 1399 | D49: 477 | E49: 40.45801527 | F49: 124 | G49: 10.51738762
A50: Norte | B50: Montanha | C50: 1316 | D50: 858 | E50: 65.19756839 | F50: 465 | G50: 43.3701228
A51: Norte | B51: Mucurici | C51: 312 | D51: 168 | E51: 53.84615385 | F51: 111 | G51: 43.0371567
A52: Sul | B52: Muniz Freire | C52: 1140 | D52: 714 | E52: 75.79617834 | F52: 259 | G52: 27.49469214
A53: Sul | B53: Muqui | C53: 844 | D53: 290 | E53: 42.8254984 | F53: 79 | G53: 11.66625646
A54: Norte | B54: Nova Venécia | C54: 3044 | D54: 1497 | E54: 49.17871222 | F54: 611 | G54: 24.67108584
A55: Central | B55: Pancas | C55: 1188 | D55: 881 | E55: 91.18509574 | F55: 578 | G55: 59.82404692
A56: Norte | B56: Pedro Canário | C56: 1545 | D56: 886 | E56: 57.34627832 | F56: 505 | G56: 39.53549061
A57: Norte | B57: Pinheiros | C57: 1757 | D57: 744 | E57: 42.34490609 | F57: 288 | G57: 19.92619926
A58: Sul | B58: Piúma | C58: 1385 | D58: 709 | E58: 63.8211687 | F58: 151 | G58: 13.59237867
A59: Norte | B59: Ponto Belo | C59: 476 | D59: 401 | E59: 84.24369748 | F59: 278 | G59: 69.0397351
A60: Sul | B60: Presidente Kennedy | C60: 939 | D60: 778 | E60: 104.091872 | F60: 247 | G60: 33.04716245
A61: Central | B61: Rio Bananal | C61: 1246 | D61: 994 | E61: 98.28609097 | F61: 616 | G61: 60.90969018
A62: Sul | B62: Rio Novo do Sul | C62: 647 | D62: 498 | E62: 93.5357646 | F62: 165 | G62: 30.99076538
A63: Metropolitana | B63: Santa Leopoldina | C63: 787 | D63: 508 | E63: 78.43540916 | F63: 312 | G63: 48.17292846
A64: Metropolitana | B64: Santa Maria de Jetibá | C64: 2632 | D64: 2067 | E64: 95.1328961 | F64: 1376 | G64: 63.32988149
A65: Metropolitana | B65: Santa Teresa | C65: 1292 | D65: 910 | E65: 84.74313208 | F65: 626 | G65: 58.29582493
A66: Central | B66: São Domingos do Norte | C66: 516 | D66: 318 | E66: 75.92518902 | F66: 186 | G66: 44.40907282
A67: Central | B67: São Gabriel da Palha | C67: 1977 | D67: 1663 | E67: 101.027692 | F67: 980 | G67: 59.53526047
A68: Sul | B68: São José do Calçado | C68: 691 | D68: 414 | E68: 73.45852432 | F68: 93 | G68: 16.50155257
A69: Norte | B69: São Mateus | C69: 8277 | D69: 3527 | E69: 42.61205751 | F69: 1545 | G69: 22.89878342
A70: Central | B70: São Roque do Canaã | C70: 600 | D70: 466 | E70: 97.84776903 | F70: 353 | G70: 74.12073491
A71: Metropolitana | B71: Serra | C71: 36482 | D71: 18960 | E71: 63.85898929 | F71: 9304 | G71: 31.33671078
A72: Central | B72: Sooretama | C72: 2138 | D72: 1263 | E72: 72.16111984 | F72: 703 | G72: 40.16569062
A73: Sul | B73: Vargem Alta | C73: 1247 | D73: 866 | E73: 82.1956814 | F73: 302 | G73: 28.66408289
A74: Metropolitana | B74: Venda Nova do Imigrante | C74: 1375 | D74: 976 | E74: 85.38310126 | F74: 638 | G74: 55.81395349
A75: Metropolitana | B75: Viana | C75: 4928 | D75: 4016 | E75: 98.98533459 | F75: 2359 | G75: 58.14402498
A76: Norte | B76: Vila Pavão | C76: 566 | D76: 364 | E76: 64.31095406 | F76: 242 | G76: 51.82012848
A77: Central | B77: Vila Valério | C77: 817 | D77: 685 | E77: 99.33534743 | F77: 393 | G77: 56.99093656
A78: Metropolitana | B78: Vila Velha | C78: 27506 | D78: 16112 | E78: 71.71965591 | F78: 8072 | G78: 35.93104906
A79: Metropolitana | B79: Vitória | C79: 17857 | D79: 12110 | E79: 83.03335733 | F79: 6966 | G79: 47.7630361
B81: Total Central | D81: 20391 | E81: 76.99825985 | F81: 11775 | G81: 44.46346475
B82: Total Norte | D82: 12620 | E82: 55.67033048 | F82: 5830 | G82: 25.71775172
B83: Total Metropolitana | D83: 89610 | E83: 75.21277131 | F83: 49941 | G83: 41.91720804
B84: Total Sul | D84: 23724 | E84: 70.67796105 | F84: 13377 | G84: 39.8524315
B85: Total Espírito Santo | D85: 146345 | E85: 72.49829605 | F85: 80923 | G85: 40.08869187
A90: Vacina Dengue (Atenuada)
A91: Método de Cálculo por COORTE
A92: Período avaliado: 2024-2026
A93: Faixa Etária: 10 a 14 anos. População estimada extraída do Censo IBGE 2022.
A94: Fonte: https://www.vacinaeconfia.es.gov.br
A95: *Dados parciais:
A96: Dados de Janeiro/2024 a Janeiro/2026 extraídos do Vacina e Confia em em 10/02/2026
A97: População proporcional extraída do Censo IBGE 2022
A100: Observações referente a distribuição de imunobiológicos que podem afetar a cobertura vacinal:
A102: 1. Vacinas que foram recebidas parcialmente pelo estado no mês de Janeiro/2026, sendo distribuídos em quantidades reduzidas às regionais e municípios:
A103: IMUNOGLOBULINA ANTIRRÁBICA HUMANA; SORO ANTIRRÁBICO HUMANO
A104: 2. Vacinas indisponíveis no mês de dezembro/2025, não sendo possível a distribuição às regionais e municípios:
A105: VACINA TETRA VIRAL, IMUNOGLOBULINA HUMANA ANTIVARICELA (ZOSTER) – 125UI
A106: 3. Vacinas enviadas por Pautas aguardando abastecimento do estoque estadual;
A107: VACINA COVID-19 PFIZER PEDIÁTRICA MENOR QUE 5 ANOS; VACINA COVID-19 PFIZER PEDIÁTRICA.
A109: Fonte: Informes situacionais de distribuição de imunobiológicos em https://saude.es.gov.br/GrupodeArquivos/informes-situacionais-de-distribuicao-de-imunobiologicos

Sheet cálculos1 (hidden)
C1: 0.9 | E1: 0.95
A2: Regional | B2: Município | C2: Cobertura Vacinal BCG | D2: Cobertura Vacinal Rotavírus | E2: Cobertura Vacinal Pentavalente | F2: Cobertura Vacinal Poliomielite | G2: Cobertura Vacinal Pneumo 10 | H2: Cobertura Vacinal Tríplice Viral | I2: Cobertura Vacinal Meningo C | J2: Cobertura Vacinal Febre Amarela | K2: Cobertura Vacinal Hepatite A | L2: Cobertura Varicela | M2: META 90% | N2: META 95% | O2: ATINGIRAM META | P2: PQA-VS
A3: Metropolitana | B3: Afonso Cláudio | C3: ='CV Rotina <2A - procedência'!K3 -> 0.7096774194 | D3: ='CV Rotina <2A - procedência'!#REF! ->  | E3: ='CV Rotina <2A - procedência'!M3 -> 0.7741935484 | F3: ='CV Rotina <2A - procedência'!O3 -> 0.7741935484 | G3: ='CV Rotina <2A - procedência'!Q3 -> 0.6129032258 | H3: ='CV Rotina <2A - procedência'!Y3 -> 0.6451612903 | I3: ='CV Rotina <2A - procedência'!S3 -> 0.7096774194 | J3: ='CV Rotina <2A - procedência'!U3 -> 1.193548387 | K3: ='CV Rotina <2A - procedência'!W3 -> 0.7419354839 | L3: ='CV Rotina <2A - procedência'!AA3 -> 0.5483870968 | M3: =COUNTIF(C3:D3,">=0,9") -> 0 | N3: =COUNTIFS(E3:L3,">=0,95") -> 1 | O3: =SUM(M3:N3) -> 1 | P3: =COUNTIF(E3:H3,">=0,95") -> 0
A4: Norte | B4: Água Doce do Norte | C4: ='CV Rotina <2A - procedência'!K4 -> 0 | D4: ='CV Rotina <2A - procedência'!#REF! ->  | E4: ='CV Rotina <2A - procedência'!M4 -> 1 | F4: ='CV Rotina <2A - procedência'!O4 -> 1 | G4: ='CV Rotina <2A - procedência'!Q4 -> 1.272727273 | H4: ='CV Rotina <2A - procedência'!Y4 -> 1 | I4: ='CV Rotina <2A - procedência'!S4 -> 0.8181818182 | J4: ='CV Rotina <2A - procedência'!U4 -> 0.7272727273 | K4: ='CV Rotina <2A - procedência'!W4 -> 1.090909091 | L4: ='CV Rotina <2A - procedência'!AA4 -> 1.090909091 | M4: 0 | N4: 6 | O4: =SUM(M4:N4) -> 6 | P4: =COUNTIF(E4:H4,">=0,95") -> 4
A5: Central | B5: Águia Branca | C5: ='CV Rotina <2A - procedência'!K5 -> 0.5714285714 | D5: ='CV Rotina <2A - procedência'!#REF! ->  | E5: ='CV Rotina <2A - procedência'!M5 -> 1.142857143 | F5: ='CV Rotina <2A - procedência'!O5 -> 1.142857143 | G5: ='CV Rotina <2A - procedência'!Q5 -> 1.285714286 | H5: ='CV Rotina <2A - procedência'!Y5 -> 0.7142857143 | I5: ='CV Rotina <2A - procedência'!S5 -> 1.071428571 | J5: ='CV Rotina <2A - procedência'!U5 -> 1.214285714 | K5: ='CV Rotina <2A - procedência'!W5 -> 0.6428571429 | L5: ='CV Rotina <2A - procedência'!AA5 -> 0.7857142857 | M5: 0 | N5: 5 | O5: 5 | P5: 3
A6: Sul | B6: Alegre | C6: ='CV Rotina <2A - procedência'!K6 -> 0.625 | D6: ='CV Rotina <2A - procedência'!#REF! ->  | E6: ='CV Rotina <2A - procedência'!M6 -> 0.9583333333 | F6: ='CV Rotina <2A - procedência'!O6 -> 0.9166666667 | G6: ='CV Rotina <2A - procedência'!Q6 -> 0.75 | H6: ='CV Rotina <2A - procedência'!Y6 -> 0.9166666667 | I6: ='CV Rotina <2A - procedência'!S6 -> 0.8333333333 | J6: ='CV Rotina <2A - procedência'!U6 -> 0.875 | K6: ='CV Rotina <2A - procedência'!W6 -> 1.125 | L6: ='CV Rotina <2A - procedência'!AA6 -> 1.083333333 | M6: 0 | N6: 3 | O6: 3 | P6: 1
A7: Sul | B7: Alfredo Chaves | C7: ='CV Rotina <2A - procedência'!K7 -> 0.6363636364 | D7: ='CV Rotina <2A - procedência'!#REF! ->  | E7: ='CV Rotina <2A - procedência'!M7 -> 0.9090909091 | F7: ='CV Rotina <2A - procedência'!O7 -> 0.8181818182 | G7: ='CV Rotina <2A - procedência'!Q7 -> 0.6363636364 | H7: ='CV Rotina <2A - procedência'!Y7 -> 1.272727273 | I7: ='CV Rotina <2A - procedência'!S7 -> 0.7272727273 | J7: ='CV Rotina <2A - procedência'!U7 -> 1 | K7: ='CV Rotina <2A - procedência'!W7 -> 1.090909091 | L7: ='CV Rotina <2A - procedência'!AA7 -> 1.272727273 | M7: 0 | N7: 4 | O7: 4 | P7: 1
A8: Central | B8: Alto Rio Novo | C8: ='CV Rotina <2A - procedência'!K8 -> 0 | D8: ='CV Rotina <2A - procedência'!#REF! ->  | E8: ='CV Rotina <2A - procedência'!M8 -> 1.428571429 | F8: ='CV Rotina <2A - procedência'!O8 -> 1.428571429 | G8: ='CV Rotina <2A - procedência'!Q8 -> 0.7142857143 | H8: ='CV Rotina <2A - procedência'!Y8 -> 0.7142857143 | I8: ='CV Rotina <2A - procedência'!S8 -> 1.714285714 | J8: ='CV Rotina <2A - procedência'!U8 -> 0.7142857143 | K8: ='CV Rotina <2A - procedência'!W8 -> 0.8571428571 | L8: ='CV Rotina <2A - procedência'!AA8 -> 1.142857143 | M8: 0 | N8: 4 | O8: 4 | P8: 2
A9: Sul | B9: Anchieta | C9: ='CV Rotina <2A - procedência'!K9 -> 0.5416666667 | D9: ='CV Rotina <2A - procedência'!#REF! ->  | E9: ='CV Rotina <2A - procedência'!M9 -> 1.166666667 | F9: ='CV Rotina <2A - procedência'!O9 -> 1.166666667 | G9: ='CV Rotina <2A - procedência'!Q9 -> 1.083333333 | H9: ='CV Rotina <2A - procedência'!Y9 -> 1.458333333 | I9: ='CV Rotina <2A - procedência'!S9 -> 0.875 | J9: ='CV Rotina <2A - procedência'!U9 -> 1.083333333 | K9: ='CV Rotina <2A - procedência'!W9 -> 1.708333333 | L9: ='CV Rotina <2A - procedência'!AA9 -> 2 | M9: 0 | N9: 7 | O9: 7 | P9: 4
A10: Sul | B10: Apiacá | C10: ='CV Rotina <2A - procedência'!K10 -> 1.5 | D10: ='CV Rotina <2A - procedência'!#REF! ->  | E10: ='CV Rotina <2A - procedência'!M10 -> 1.5 | F10: ='CV Rotina <2A - procedência'!O10 -> 1.25 | G10: ='CV Rotina <2A - procedência'!Q10 -> 1 | H10: ='CV Rotina <2A - procedência'!Y10 -> 2.25 | I10: ='CV Rotina <2A - procedência'!S10 -> 1.75 | J10: ='CV Rotina <2A - procedência'!U10 -> 1.5 | K10: ='CV Rotina <2A - procedência'!W10 -> 1.75 | L10: ='CV Rotina <2A - procedência'!AA10 -> 1.75 | M10: 1 | N10: 8 | O10: 9 | P10: 4
A11: Metropolitana | B11: Aracruz | C11: ='CV Rotina <2A - procedência'!K11 -> 0.832 | D11: ='CV Rotina <2A - procedência'!#REF! ->  | E11: ='CV Rotina <2A - procedência'!M11 -> 1.008 | F11: ='CV Rotina <2A - procedência'!O11 -> 0.96 | G11: ='CV Rotina <2A - procedência'!Q11 -> 0.848 | H11: ='CV Rotina <2A - procedência'!Y11 -> 1.024 | I11: ='CV Rotina <2A - procedência'!S11 -> 0.808 | J11: ='CV Rotina <2A - procedência'!U11 -> 0.912 | K11: ='CV Rotina <2A - procedência'!W11 -> 1.016 | L11: ='CV Rotina <2A - procedência'!AA11 -> 1.008 | M11: 0 | N11: 5 | O11: 5 | P11: 3
A12: Sul | B12: Atilio Vivacqua | C12: ='CV Rotina <2A - procedência'!K12 -> 0.05882352941 | D12: ='CV Rotina <2A - procedência'!#REF! ->  | E12: ='CV Rotina <2A - procedência'!M12 -> 0.8235294118 | F12: ='CV Rotina <2A - procedência'!O12 -> 0.7647058824 | G12: ='CV Rotina <2A - procedência'!Q12 -> 0.3529411765 | H12: ='CV Rotina <2A - procedência'!Y12 -> 1 | I12: ='CV Rotina <2A - procedência'!S12 -> 0.8823529412 | J12: ='CV Rotina <2A - procedência'!U12 -> 1.058823529 | K12: ='CV Rotina <2A - procedência'!W12 -> 1.411764706 | L12: ='CV Rotina <2A - procedência'!AA12 -> 1 | M12: 0 | N12: 4 | O12: 4 | P12: 1
A13: Central | B13: Baixo Guandu | C13: ='CV Rotina <2A - procedência'!K13 -> 0.40625 | D13: ='CV Rotina <2A - procedência'!#REF! ->  | E13: ='CV Rotina <2A - procedência'!M13 -> 1.0625 | F13: ='CV Rotina <2A - procedência'!O13 -> 1.03125 | G13: ='CV Rotina <2A - procedência'!Q13 -> 1.0625 | H13: ='CV Rotina <2A - procedência'!Y13 -> 1.09375 | I13: ='CV Rotina <2A - procedência'!S13 -> 1 | J13: ='CV Rotina <2A - procedência'!U13 -> 1 | K13: ='CV Rotina <2A - procedência'!W13 -> 0.65625 | L13: ='CV Rotina <2A - procedência'!AA13 -> 0.78125 | M13: 0 | N13: 6 | O13: 6 | P13: 4
A14: Norte | B14: Barra de São Francisco | C14: ='CV Rotina <2A - procedência'!K14 -> 0.4259259259 | D14: ='CV Rotina <2A - procedência'!#REF! ->  | E14: ='CV Rotina <2A - procedência'!M14 -> 0.9814814815 | F14: ='CV Rotina <2A - procedência'!O14 -> 1 | G14: ='CV Rotina <2A - procedência'!Q14 -> 0.8333333333 | H14: ='CV Rotina <2A - procedência'!Y14 -> 0.962962963 | I14: ='CV Rotina <2A - procedência'!S14 -> 0.7222222222 | J14: ='CV Rotina <2A - procedência'!U14 -> 0.962962963 | K14: ='CV Rotina <2A - procedência'!W14 -> 0.7592592593 | L14: ='CV Rotina <2A - procedência'!AA14 -> 0.8148148148 | M14: 0 | N14: 4 | O14: 4 | P14: 3
A15: Norte | B15: Boa Esperança | C15: ='CV Rotina <2A - procedência'!K15 -> 0.1764705882 | D15: ='CV Rotina <2A - procedência'!#REF! ->  | E15: ='CV Rotina <2A - procedência'!M15 -> 1.352941176 | F15: ='CV Rotina <2A - procedência'!O15 -> 1.176470588 | G15: ='CV Rotina <2A - procedência'!Q15 -> 0.9411764706 | H15: ='CV Rotina <2A - procedência'!Y15 -> 0.7647058824 | I15: ='CV Rotina <2A - procedência'!S15 -> 1.176470588 | J15: ='CV Rotina <2A - procedência'!U15 -> 0.9411764706 | K15: ='CV Rotina <2A - procedência'!W15 -> 1.294117647 | L15: ='CV Rotina <2A - procedência'!AA15 -> 1.176470588 | M15: 0 | N15: 5 | O15: 5 | P15: 2
A16: Sul | B16: Bom Jesus do Norte | C16: ='CV Rotina <2A - procedência'!K16 -> 1.6 | D16: ='CV Rotina <2A - procedência'!#REF! ->  | E16: ='CV Rotina <2A - procedência'!M16 -> 0.8 | F16: ='CV Rotina <2A - procedência'!O16 -> 0.8 | G16: ='CV Rotina <2A - procedência'!Q16 -> 2.6 | H16: ='CV Rotina <2A - procedência'!Y16 -> 1.8 | I16: ='CV Rotina <2A - procedência'!S16 -> 2.4 | J16: ='CV Rotina <2A - procedência'!U16 -> 2 | K16: ='CV Rotina <2A - procedência'!W16 -> 1.8 | L16: ='CV Rotina <2A - procedência'!AA16 -> 0.8 | M16: 1 | N16: 5 | O16: 6 | P16: 2
A17: Metropolitana | B17: Brejetuba | C17: ='CV Rotina <2A - procedência'!K17 -> 0.3888888889 | D17: ='CV Rotina <2A - procedência'!#REF! ->  | E17: ='CV Rotina <2A - procedência'!M17 -> 1.277777778 | F17: ='CV Rotina <2A - procedência'!O17 -> 1.166666667 | G17: ='CV Rotina <2A - procedência'!Q17 -> 1.388888889 | H17: ='CV Rotina <2A - procedência'!Y17 -> 1.444444444 | I17: ='CV Rotina <2A - procedência'!S17 -> 1.388888889 | J17: ='CV Rotina <2A - procedência'!U17 -> 0.9444444444 | K17: ='CV Rotina <2A - procedência'!W17 -> 1.5 | L17: ='CV Rotina <2A - procedência'!AA17 -> 0.7777777778 | M17: 0 | N17: 6 | O17: 6 | P17: 4
A18: Sul | B18: Cachoeiro de Itapemirim | C18: ='CV Rotina <2A - procedência'!K18 -> 2.004901961 | D18: ='CV Rotina <2A - procedência'!#REF! ->  | E18: ='CV Rotina <2A - procedência'!M18 -> 1.176470588 | F18: ='CV Rotina <2A - procedência'!O18 -> 1.161764706 | G18: ='CV Rotina <2A - procedência'!Q18 -> 0.9754901961 | H18: ='CV Rotina <2A - procedência'!Y18 -> 0.8725490196 | I18: ='CV Rotina <2A - procedência'!S18 -> 0.9901960784 | J18: ='CV Rotina <2A - procedência'!U18 -> 0.7990196078 | K18: ='CV Rotina <2A - procedência'!W18 -> 0.8578431373 | L18: ='CV Rotina <2A - procedência'!AA18 -> 0.9068627451 | M18: 1 | N18: 4 | O18: 5 | P18: 3
A19: Metropolitana | B19: Cariacica | C19: ='CV Rotina <2A - procedência'!K19 -> 0.3823529412 | D19: ='CV Rotina <2A - procedência'!#REF! ->  | E19: ='CV Rotina <2A - procedência'!M19 -> 0.8823529412 | F19: ='CV Rotina <2A - procedência'!O19 -> 0.8799019608 | G19: ='CV Rotina <2A - procedência'!Q19 -> 0.8431372549 | H19: ='CV Rotina <2A - procedência'!Y19 -> 1.129901961 | I19: ='CV Rotina <2A - procedência'!S19 -> 0.9264705882 | J19: ='CV Rotina <2A - procedência'!U19 -> 0.75 | K19: ='CV Rotina <2A - procedência'!W19 -> 0.9289215686 | L19: ='CV Rotina <2A - procedência'!AA19 -> 0.9607843137 | M19: 0 | N19: 2 | O19: 2 | P19: 1
A20: Sul | B20: Castelo | C20: ='CV Rotina <2A - procedência'!K20 -> 0.8205128205 | D20: ='CV Rotina <2A - procedência'!#REF! ->  | E20: ='CV Rotina <2A - procedência'!M20 -> 1 | F20: ='CV Rotina <2A - procedência'!O20 -> 1.025641026 | G20: ='CV Rotina <2A - procedência'!Q20 -> 1 | H20: ='CV Rotina <2A - procedência'!Y20 -> 0.8205128205 | I20: ='CV Rotina <2A - procedência'!S20 -> 0.9230769231 | J20: ='CV Rotina <2A - procedência'!U20 -> 0.9230769231 | K20: ='CV Rotina <2A - procedência'!W20 -> 1.076923077 | L20: ='CV Rotina <2A - procedência'!AA20 -> 1.230769231 | M20: 0 | N20: 5 | O20: 5 | P20: 3
A21: Central | B21: Colatina | C21: ='CV Rotina <2A - procedência'!K21 -> 2.658536585 | D21: ='CV Rotina <2A - procedência'!#REF! ->  | E21: ='CV Rotina <2A - procedência'!M21 -> 1.089430894 | F21: ='CV Rotina <2A - procedência'!O21 -> 1.089430894 | G21: ='CV Rotina <2A - procedência'!Q21 -> 1.073170732 | H21: ='CV Rotina <2A - procedência'!Y21 -> 0.9756097561 | I21: ='CV Rotina <2A - procedência'!S21 -> 1.081300813 | J21: ='CV Rotina <2A - procedência'!U21 -> 0.7886178862 | K21: ='CV Rotina <2A - procedência'!W21 -> 1.024390244 | L21: ='CV Rotina <2A - procedência'!AA21 -> 1.008130081 | M21: 1 | N21: 7 | O21: 8 | P21: 4
A22: Norte | B22: Conceição da Barra | C22: ='CV Rotina <2A - procedência'!K22 -> 0.125 | D22: ='CV Rotina <2A - procedência'!#REF! ->  | E22: ='CV Rotina <2A - procedência'!M22 -> 0.90625 | F22: ='CV Rotina <2A - procedência'!O22 -> 0.90625 | G22: ='CV Rotina <2A - procedência'!Q22 -> 1 | H22: ='CV Rotina <2A - procedência'!Y22 -> 0.71875 | I22: ='CV Rotina <2A - procedência'!S22 -> 0.6875 | J22: ='CV Rotina <2A - procedência'!U22 -> 0.90625 | K22: ='CV Rotina <2A - procedência'!W22 -> 0.78125 | L22: ='CV Rotina <2A - procedência'!AA22 -> 0.96875 | M22: 0 | N22: 2 | O22: 2 | P22: 1
A23: Metropolitana | B23: Conceição do Castelo | C23: ='CV Rotina <2A - procedência'!K23 -> 1.166666667 | D23: ='CV Rotina <2A - procedência'!#REF! ->  | E23: ='CV Rotina <2A - procedência'!M23 -> 1.166666667 | F23: ='CV Rotina <2A - procedência'!O23 -> 1.166666667 | G23: ='CV Rotina <2A - procedência'!Q23 -> 1 | H23: ='CV Rotina <2A - procedência'!Y23 -> 1.166666667 | I23: ='CV Rotina <2A - procedência'!S23 -> 1.25 | J23: ='CV Rotina <2A - procedência'!U23 -> 0.9166666667 | K23: ='CV Rotina <2A - procedência'!W23 -> 0.75 | L23: ='CV Rotina <2A - procedência'!AA23 -> 0.75 | M23: 1 | N23: 5 | O23: 6 | P23: 4
A24: Sul | B24: Divino de São Lourenço | C24: ='CV Rotina <2A - procedência'!K24 -> 1.333333333 | D24: ='CV Rotina <2A - procedência'!#REF! ->  | E24: ='CV Rotina <2A - procedência'!M24 -> 0.8333333333 | F24: ='CV Rotina <2A - procedência'!O24 -> 0.8333333333 | G24: ='CV Rotina <2A - procedência'!Q24 -> 2.333333333 | H24: ='CV Rotina <2A - procedência'!Y24 -> 0.6666666667 | I24: ='CV Rotina <2A - procedência'!S24 -> 0.6666666667 | J24: ='CV Rotina <2A - procedência'!U24 -> 0.8333333333 | K24: ='CV Rotina <2A - procedência'!W24 -> 0.3333333333 | L24: ='CV Rotina <2A - procedência'!AA24 -> 0.5 | M24: 1 | N24: 1 | O24: 2 | P24: 1
A25: Metropolitana | B25: Domingos Martins | C25: ='CV Rotina <2A - procedência'!K25 -> 0.1944444444 | D25: ='CV Rotina <2A - procedência'!#REF! ->  | E25: ='CV Rotina <2A - procedência'!M25 -> 0.6944444444 | F25: ='CV Rotina <2A - procedência'!O25 -> 0.6388888889 | G25: ='CV Rotina <2A - procedência'!Q25 -> 0.7777777778 | H25: ='CV Rotina <2A - procedência'!Y25 -> 0.6666666667 | I25: ='CV Rotina <2A - procedência'!S25 -> 0.7222222222 | J25: ='CV Rotina <2A - procedência'!U25 -> 0.9722222222 | K25: ='CV Rotina <2A - procedência'!W25 -> 0.8055555556 | L25: ='CV Rotina <2A - procedência'!AA25 -> 0.75 | M25: 0 | N25: 1 | O25: 1 | P25: 0
A26: Sul | B26: Dores do Rio Preto | C26: ='CV Rotina <2A - procedência'!K26 -> 0.4444444444 | D26: ='CV Rotina <2A - procedência'!#REF! ->  | E26: ='CV Rotina <2A - procedência'!M26 -> 1 | F26: ='CV Rotina <2A - procedência'!O26 -> 0.8888888889 | G26: ='CV Rotina <2A - procedência'!Q26 -> 0.8888888889 | H26: ='CV Rotina <2A - procedência'!Y26 -> 1 | I26: ='CV Rotina <2A - procedência'!S26 -> 1.555555556 | J26: ='CV Rotina <2A - procedência'!U26 -> 1 | K26: ='CV Rotina <2A - procedência'!W26 -> 0.8888888889 | L26: ='CV Rotina <2A - procedência'!AA26 -> 1 | M26: 0 | N26: 5 | O26: 5 | P26: 2
A27: Norte | B27: Ecoporanga | C27: ='CV Rotina <2A - procedência'!K27 -> 0.3888888889 | D27: ='CV Rotina <2A - procedência'!#REF! ->  | E27: ='CV Rotina <2A - procedência'!M27 -> 0.8888888889 | F27: ='CV Rotina <2A - procedência'!O27 -> 0.9444444444 | G27: ='CV Rotina <2A - procedência'!Q27 -> 1 | H27: ='CV Rotina <2A - procedência'!Y27 -> 1 | I27: ='CV Rotina <2A - procedência'!S27 -> 0.9444444444 | J27: ='CV Rotina <2A - procedência'!U27 -> 1.222222222 | K27: ='CV Rotina <2A - procedência'!W27 -> 1.388888889 | L27: ='CV Rotina <2A - procedência'!AA27 -> 1.055555556 | M27: 0 | N27: 5 | O27: 5 | P27: 2
A28: Metropolitana | B28: Fundão | C28: ='CV Rotina <2A - procedência'!K28 -> 0.09090909091 | D28: ='CV Rotina <2A - procedência'!#REF! ->  | E28: ='CV Rotina <2A - procedência'!M28 -> 0.6363636364 | F28: ='CV Rotina <2A - procedência'!O28 -> 0.5909090909 | G28: ='CV Rotina <2A - procedência'!Q28 -> 0.5909090909 | H28: ='CV Rotina <2A - procedência'!Y28 -> 0.9545454545 | I28: ='CV Rotina <2A - procedência'!S28 -> 0.9545454545 | J28: ='CV Rotina <2A - procedência'!U28 -> 0.5909090909 | K28: ='CV Rotina <2A - procedência'!W28 -> 1 | L28: ='CV Rotina <2A - procedência'!AA28 -> 0.9545454545 | M28: 0 | N28: 4 | O28: 4 | P28: 1
A29: Central | B29: Governador Lindenberg | C29: ='CV Rotina <2A - procedência'!K29 -> 0.1818181818 | D29: ='CV Rotina <2A - procedência'!#REF! ->  | E29: ='CV Rotina <2A - procedência'!M29 -> 1 | F29: ='CV Rotina <2A - procedência'!O29 -> 1 | G29: ='CV Rotina <2A - procedência'!Q29 -> 0.9090909091 | H29: ='CV Rotina <2A - procedência'!Y29 -> 0.8181818182 | I29: ='CV Rotina <2A - procedência'!S29 -> 1.545454545 | J29: ='CV Rotina <2A - procedência'!U29 -> 0.2727272727 | K29: ='CV Rotina <2A - procedência'!W29 -> 0.5454545455 | L29: ='CV Rotina <2A - procedência'!AA29 -> 0.4545454545 | M29: 0 | N29: 3 | O29: 3 | P29: 2
A30: Sul | B30: Guaçuí | C30: ='CV Rotina <2A - procedência'!K30 -> 0.88 | D30: ='CV Rotina <2A - procedência'!#REF! ->  | E30: ='CV Rotina <2A - procedência'!M30 -> 1.12 | F30: ='CV Rotina <2A - procedência'!O30 -> 1.12 | G30: ='CV Rotina <2A - procedência'!Q30 -> 1.52 | H30: ='CV Rotina <2A - procedência'!Y30 -> 1.16 | I30: ='CV Rotina <2A - procedência'!S30 -> 1.6 | J30: ='CV Rotina <2A - procedência'!U30 -> 1.04 | K30: ='CV Rotina <2A - procedência'!W30 -> 0.84 | L30: ='CV Rotina <2A - procedência'!AA30 -> 1.24 | M30: 0 | N30: 7 | O30: 7 | P30: 4
A31: Metropolitana | B31: Guarapari | C31: ='CV Rotina <2A - procedência'!K31 -> 0.511627907 | D31: ='CV Rotina <2A - procedência'!#REF! ->  | E31: ='CV Rotina <2A - procedência'!M31 -> 1.11627907 | F31: ='CV Rotina <2A - procedência'!O31 -> 1.108527132 | G31: ='CV Rotina <2A - procedência'!Q31 -> 0.976744186 | H31: ='CV Rotina <2A - procedência'!Y31 -> 1.217054264 | I31: ='CV Rotina <2A - procedência'!S31 -> 1.07751938 | J31: ='CV Rotina <2A - procedência'!U31 -> 0.7751937984 | K31: ='CV Rotina <2A - procedência'!W31 -> 1.007751938 | L31: ='CV Rotina <2A - procedência'!AA31 -> 0.8139534884 | M31: 0 | N31: 6 | O31: 6 | P31: 4
A32: Metropolitana | B32: Ibatiba | C32: ='CV Rotina <2A - procedência'!K32 -> 0.7666666667 | D32: ='CV Rotina <2A - procedência'!#REF! ->  | E32: ='CV Rotina <2A - procedência'!M32 -> 1.4 | F32: ='CV Rotina <2A - procedência'!O32 -> 1.366666667 | G32: ='CV Rotina <2A - procedência'!Q32 -> 1.533333333 | H32: ='CV Rotina <2A - procedência'!Y32 -> 1.3 | I32: ='CV Rotina <2A - procedência'!S32 -> 1.4 | J32: ='CV Rotina <2A - procedência'!U32 -> 0.7 | K32: ='CV Rotina <2A - procedência'!W32 -> 1.2 | L32: ='CV Rotina <2A - procedência'!AA32 -> 1.733333333 | M32: 0 | N32: 7 | O32: 7 | P32: 4
A33: Metropolitana | B33: Ibiraçu | C33: ='CV Rotina <2A - procedência'!K33 -> 0.5 | D33: ='CV Rotina <2A - procedência'!#REF! ->  | E33: ='CV Rotina <2A - procedência'!M33 -> 1.25 | F33: ='CV Rotina <2A - procedência'!O33 -> 1.25 | G33: ='CV Rotina <2A - procedência'!Q33 -> 1.625 | H33: ='CV Rotina <2A - procedência'!Y33 -> 0.75 | I33: ='CV Rotina <2A - procedência'!S33 -> 1.25 | J33: ='CV Rotina <2A - procedência'!U33 -> 1.625 | K33: ='CV Rotina <2A - procedência'!W33 -> 2.25 | L33: ='CV Rotina <2A - procedência'!AA33 -> 2.625 | M33: 0 | N33: 7 | O33: 7 | P33: 3
A34: Sul | B34: Ibitirama | C34: ='CV Rotina <2A - procedência'!K34 -> 1 | D34: ='CV Rotina <2A - procedência'!#REF! ->  | E34: ='CV Rotina <2A - procedência'!M34 -> 1.2 | F34: ='CV Rotina <2A - procedência'!O34 -> 1.2 | G34: ='CV Rotina <2A - procedência'!Q34 -> 1.4 | H34: ='CV Rotina <2A - procedência'!Y34 -> 1.4 | I34: ='CV Rotina <2A - procedência'!S34 -> 0.6 | J34: ='CV Rotina <2A - procedência'!U34 -> 1.1 | K34: ='CV Rotina <2A - procedência'!W34 -> 1.9 | L34: ='CV Rotina <2A - procedência'!AA34 -> 1.8 | M34: 1 | N34: 7 | O34: 8 | P34: 4
A35: Sul | B35: Iconha | C35: ='CV Rotina <2A - procedência'!K35 -> 0.4 | D35: ='CV Rotina <2A - procedência'!#REF! ->  | E35: ='CV Rotina <2A - procedência'!M35 -> 0.8 | F35: ='CV Rotina <2A - procedência'!O35 -> 0.8 | G35: ='CV Rotina <2A - procedência'!Q35 -> 1 | H35: ='CV Rotina <2A - procedência'!Y35 -> 1.1 | I35: ='CV Rotina <2A - procedência'!S35 -> 1.3 | J35: ='CV Rotina <2A - procedência'!U35 -> 1.1 | K35: ='CV Rotina <2A - procedência'!W35 -> 1.2 | L35: ='CV Rotina <2A - procedência'!AA35 -> 1.2 | M35: =COUNTIF(C35:D35,">=0,9") -> 0 | N35: =COUNTIFS(E35:L35,">=0,95") -> 6 | O35: 6 | P35: 2
A36: Sul | B36: Irupi | C36: ='CV Rotina <2A - procedência'!K36 -> 0.5555555556 | D36: ='CV Rotina <2A - procedência'!#REF! ->  | E36: ='CV Rotina <2A - procedência'!M36 -> 0.9444444444 | F36: ='CV Rotina <2A - procedência'!O36 -> 0.9444444444 | G36: ='CV Rotina <2A - procedência'!Q36 -> 1.5 | H36: ='CV Rotina <2A - procedência'!Y36 -> 0.8888888889 | I36: ='CV Rotina <2A - procedência'!S36 -> 1.111111111 | J36: ='CV Rotina <2A - procedência'!U36 -> 1.111111111 | K36: ='CV Rotina <2A - procedência'!W36 -> 0.6111111111 | L36: ='CV Rotina <2A - procedência'!AA36 -> 0.6666666667 | M36: 0 | N36: 3 | O36: 3 | P36: 1
A37: Metropolitana | B37: Itaguaçu | C37: ='CV Rotina <2A - procedência'!K37 -> 0.2307692308 | D37: ='CV Rotina <2A - procedência'!#REF! ->  | E37: ='CV Rotina <2A - procedência'!M37 -> 0.4615384615 | F37: ='CV Rotina <2A - procedência'!O37 -> 0.4615384615 | G37: ='CV Rotina <2A - procedência'!Q37 -> 1 | H37: ='CV Rotina <2A - procedência'!Y37 -> 0.6153846154 | I37: ='CV Rotina <2A - procedência'!S37 -> 0.4615384615 | J37: ='CV Rotina <2A - procedência'!U37 -> 0.6923076923 | K37: ='CV Rotina <2A - procedência'!W37 -> 1.230769231 | L37: ='CV Rotina <2A - procedência'!AA37 -> 1.230769231 | M37: 0 | N37: 3 | O37: 3 | P37: 1
A38: Sul | B38: Itapemirim | C38: ='CV Rotina <2A - procedência'!K38 -> 0.3018867925 | D38: ='CV Rotina <2A - procedência'!#REF! ->  | E38: ='CV Rotina <2A - procedência'!M38 -> 0.8113207547 | F38: ='CV Rotina <2A - procedência'!O38 -> 0.7358490566 | G38: ='CV Rotina <2A - procedência'!Q38 -> 0.6603773585 | H38: ='CV Rotina <2A - procedência'!Y38 -> 0.7169811321 | I38: ='CV Rotina <2A - procedência'!S38 -> 0.8113207547 | J38: ='CV Rotina <2A - procedência'!U38 -> 0.679245283 | K38: ='CV Rotina <2A - procedência'!W38 -> 0.9056603774 | L38: ='CV Rotina <2A - procedência'!AA38 -> 0.358490566 | M38: 0 | N38: 0 | O38: 0 | P38: 0
A39: Metropolitana | B39: Itarana | C39: ='CV Rotina <2A - procedência'!K39 -> 0.375 | D39: ='CV Rotina <2A - procedência'!#REF! ->  | E39: ='CV Rotina <2A - procedência'!M39 -> 0.375 | F39: ='CV Rotina <2A - procedência'!O39 -> 0.375 | G39: ='CV Rotina <2A - procedência'!Q39 -> 1 | H39: ='CV Rotina <2A - procedência'!Y39 -> 0.625 | I39: ='CV Rotina <2A - procedência'!S39 -> 1.375 | J39: ='CV Rotina <2A - procedência'!U39 -> 0.875 | K39: ='CV Rotina <2A - procedência'!W39 -> 1.25 | L39: ='CV Rotina <2A - procedência'!AA39 -> 1.5 | M39: 0 | N39: 4 | O39: 4 | P39: 1
A40: Sul | B40: Iúna | C40: ='CV Rotina <2A - procedência'!K40 -> 0.7058823529 | D40: ='CV Rotina <2A - procedência'!#REF! ->  | E40: ='CV Rotina <2A - procedência'!M40 -> 0.9705882353 | F40: ='CV Rotina <2A - procedência'!O40 -> 0.9705882353 | G40: ='CV Rotina <2A - procedência'!Q40 -> 0.8235294118 | H40: ='CV Rotina <2A - procedência'!Y40 -> 1.029411765 | I40: ='CV Rotina <2A - procedência'!S40 -> 1.352941176 | J40: ='CV Rotina <2A - procedência'!U40 -> 1.235294118 | K40: ='CV Rotina <2A - procedência'!W40 -> 0.8529411765 | L40: ='CV Rotina <2A - procedência'!AA40 -> 0.8235294118 | M40: 0 | N40: 5 | O40: 5 | P40: 3
A41: Norte | B41: Jaguaré | C41: ='CV Rotina <2A - procedência'!K41 -> 0.6956521739 | D41: ='CV Rotina <2A - procedência'!#REF! ->  | E41: ='CV Rotina <2A - procedência'!M41 -> 1 | F41: ='CV Rotina <2A - procedência'!O41 -> 1 | G41: ='CV Rotina <2A - procedência'!Q41 -> 0.7826086957 | H41: ='CV Rotina <2A - procedência'!Y41 -> 0.7826086957 | I41: ='CV Rotina <2A - procedência'!S41 -> 0.6086956522 | J41: ='CV Rotina <2A - procedência'!U41 -> 0.7173913043 | K41: ='CV Rotina <2A - procedência'!W41 -> 0.7826086957 | L41: ='CV Rotina <2A - procedência'!AA41 -> 0.847826087 | M41: 0 | N41: 2 | O41: 2 | P41: 2
A42: Sul | B42: Jerônimo Monteiro | C42: ='CV Rotina <2A - procedência'!K42 -> 0.25 | D42: ='CV Rotina <2A - procedência'!#REF! ->  | E42: ='CV Rotina <2A - procedência'!M42 -> 1 | F42: ='CV Rotina <2A - procedência'!O42 -> 1 | G42: ='CV Rotina <2A - procedência'!Q42 -> 0.75 | H42: ='CV Rotina <2A - procedência'!Y42 -> 0.5 | I42: ='CV Rotina <2A - procedência'!S42 -> 0.5833333333 | J42: ='CV Rotina <2A - procedência'!U42 -> 0.6666666667 | K42: ='CV Rotina <2A - procedência'!W42 -> 1 | L42: ='CV Rotina <2A - procedência'!AA42 -> 1.083333333 | M42: 0 | N42: 4 | O42: 4 | P42: 2
A43: Metropolitana | B43: João Neiva | C43: ='CV Rotina <2A - procedência'!K43 -> 1 | D43: ='CV Rotina <2A - procedência'!#REF! ->  | E43: ='CV Rotina <2A - procedência'!M43 -> 3 | F43: ='CV Rotina <2A - procedência'!O43 -> 2.8 | G43: ='CV Rotina <2A - procedência'!Q43 -> 1.8 | H43: ='CV Rotina <2A - procedência'!Y43 -> 1.8 | I43: ='CV Rotina <2A - procedência'!S43 -> 2.4 | J43: ='CV Rotina <2A - procedência'!U43 -> 2.8 | K43: ='CV Rotina <2A - procedência'!W43 -> 2.4 | L43: ='CV Rotina <2A - procedência'!AA43 -> 2.4 | M43: 1 | N43: 8 | O43: 9 | P43: 4
A44: Metropolitana | B44: Laranja da Terra | C44: ='CV Rotina <2A - procedência'!K44 -> 0.1111111111 | D44: ='CV Rotina <2A - procedência'!#REF! ->  | E44: ='CV Rotina <2A - procedência'!M44 -> 1.333333333 | F44: ='CV Rotina <2A - procedência'!O44 -> 1.333333333 | G44: ='CV Rotina <2A - procedência'!Q44 -> 0.8888888889 | H44: ='CV Rotina <2A - procedência'!Y44 -> 1.111111111 | I44: ='CV Rotina <2A - procedência'!S44 -> 0.4444444444 | J44: ='CV Rotina <2A - procedência'!U44 -> 0.8888888889 | K44: ='CV Rotina <2A - procedência'!W44 -> 1.555555556 | L44: ='CV Rotina <2A - procedência'!AA44 -> 1.555555556 | M44: 0 | N44: 5 | O44: 5 | P44: 3
A45: Central | B45: Linhares | C45: ='CV Rotina <2A - procedência'!K45 -> 1.181434599 | D45: ='CV Rotina <2A - procedência'!#REF! ->  | E45: ='CV Rotina <2A - procedência'!M45 -> 0.9746835443 | F45: ='CV Rotina <2A - procedência'!O45 -> 0.9198312236 | G45: ='CV Rotina <2A - procedência'!Q45 -> 0.94092827 | H45: ='CV Rotina <2A - procedência'!Y45 -> 0.8734177215 | I45: ='CV Rotina <2A - procedência'!S45 -> 0.9915611814 | J45: ='CV Rotina <2A - procedência'!U45 -> 0.5611814346 | K45: ='CV Rotina <2A - procedência'!W45 -> 0.9071729958 | L45: ='CV Rotina <2A - procedência'!AA45 -> 1.008438819 | M45: 1 | N45: 3 | O45: 4 | P45: 1
A46: Central | B46: Mantenópolis | C46: ='CV Rotina <2A - procedência'!K46 -> 0.1428571429 | D46: ='CV Rotina <2A - procedência'!#REF! ->  | E46: ='CV Rotina <2A - procedência'!M46 -> 0.7857142857 | F46: ='CV Rotina <2A - procedência'!O46 -> 0.7857142857 | G46: ='CV Rotina <2A - procedência'!Q46 -> 1 | H46: ='CV Rotina <2A - procedência'!Y46 -> 0.5714285714 | I46: ='CV Rotina <2A - procedência'!S46 -> 0.8571428571 | J46: ='CV Rotina <2A - procedência'!U46 -> 0.9285714286 | K46: ='CV Rotina <2A - procedência'!W46 -> 0.6428571429 | L46: ='CV Rotina <2A - procedência'!AA46 -> 0.4285714286 | M46: 0 | N46: 1 | O46: 1 | P46: 1
A47: Sul | B47: Marataízes | C47: ='CV Rotina <2A - procedência'!K47 -> 0.3777777778 | D47: ='CV Rotina <2A - procedência'!#REF! ->  | E47: ='CV Rotina <2A - procedência'!M47 -> 1 | F47: ='CV Rotina <2A - procedência'!O47 -> 1.044444444 | G47: ='CV Rotina <2A - procedência'!Q47 -> 1.244444444 | H47: ='CV Rotina <2A - procedência'!Y47 -> 0.4888888889 | I47: ='CV Rotina <2A - procedência'!S47 -> 1.177777778 | J47: ='CV Rotina <2A - procedência'!U47 -> 0.4666666667 | K47: ='CV Rotina <2A - procedência'!W47 -> 0.9555555556 | L47: ='CV Rotina <2A - procedência'!AA47 -> 1.044444444 | M47: 0 | N47: 6 | O47: 6 | P47: 3
A48: Metropolitana | B48: Marechal Floriano | C48: ='CV Rotina <2A - procedência'!K48 -> 0.04166666667 | D48: ='CV Rotina <2A - procedência'!#REF! ->  | E48: ='CV Rotina <2A - procedência'!M48 -> 0.6666666667 | F48: ='CV Rotina <2A - procedência'!O48 -> 0.5833333333 | G48: ='CV Rotina <2A - procedência'!Q48 -> 0.5833333333 | H48: ='CV Rotina <2A - procedência'!Y48 -> 0.6666666667 | I48: ='CV Rotina <2A - procedência'!S48 -> 0.8333333333 | J48: ='CV Rotina <2A - procedência'!U48 -> 0.7916666667 | K48: ='CV Rotina <2A - procedência'!W48 -> 0.3333333333 | L48: ='CV Rotina <2A - procedência'!AA48 -> 0.4166666667 | M48: 0 | N48: 0 | O48: 0 | P48: 0
A49: Central | B49: Marilândia | C49: ='CV Rotina <2A - procedência'!K49 -> 0.3076923077 | D49: ='CV Rotina <2A - procedência'!#REF! ->  | E49: ='CV Rotina <2A - procedência'!M49 -> 0.4615384615 | F49: ='CV Rotina <2A - procedência'!O49 -> 0.5384615385 | G49: ='CV Rotina <2A - procedência'!Q49 -> 0.4615384615 | H49: ='CV Rotina <2A - procedência'!Y49 -> 0.9230769231 | I49: ='CV Rotina <2A - procedência'!S49 -> 1.076923077 | J49: ='CV Rotina <2A - procedência'!U49 -> 1.307692308 | K49: ='CV Rotina <2A - procedência'!W49 -> 0.9230769231 | L49: ='CV Rotina <2A - procedência'!AA49 -> 0.8461538462 | M49: 0 | N49: 2 | O49: 2 | P49: 0
A50: Sul | B50: Mimoso do Sul | C50: ='CV Rotina <2A - procedência'!K50 -> 0.16 | D50: ='CV Rotina <2A - procedência'!#REF! ->  | E50: ='CV Rotina <2A - procedência'!M50 -> 0.72 | F50: ='CV Rotina <2A - procedência'!O50 -> 0.76 | G50: ='CV Rotina <2A - procedência'!Q50 -> 0.64 | H50: ='CV Rotina <2A - procedência'!Y50 -> 1 | I50: ='CV Rotina <2A - procedência'!S50 -> 0.92 | J50: ='CV Rotina <2A - procedência'!U50 -> 1.4 | K50: ='CV Rotina <2A - procedência'!W50 -> 0.88 | L50: ='CV Rotina <2A - procedência'!AA50 -> 0.72 | M50: 0 | N50: 2 | O50: 2 | P50: 1
A51: Norte | B51: Montanha | C51: ='CV Rotina <2A - procedência'!K51 -> 0.2380952381 | D51: ='CV Rotina <2A - procedência'!#REF! ->  | E51: ='CV Rotina <2A - procedência'!M51 -> 1.380952381 | F51: ='CV Rotina <2A - procedência'!O51 -> 1.380952381 | G51: ='CV Rotina <2A - procedência'!Q51 -> 1.380952381 | H51: ='CV Rotina <2A - procedência'!Y51 -> 1.142857143 | I51: ='CV Rotina <2A - procedência'!S51 -> 0.8095238095 | J51: ='CV Rotina <2A - procedência'!U51 -> 1.142857143 | K51: ='CV Rotina <2A - procedência'!W51 -> 1.142857143 | L51: ='CV Rotina <2A - procedência'!AA51 -> 1.238095238 | M51: 0 | N51: 7 | O51: 7 | P51: 4
A52: Norte | B52: Mucurici | C52: ='CV Rotina <2A - procedência'!K52 -> 0 | D52: ='CV Rotina <2A - procedência'!#REF! ->  | E52: ='CV Rotina <2A - procedência'!M52 -> 0.75 | F52: ='CV Rotina <2A - procedência'!O52 -> 0.75 | G52: ='CV Rotina <2A - procedência'!Q52 -> 1.25 | H52: ='CV Rotina <2A - procedência'!Y52 -> 0.5 | I52: ='CV Rotina <2A - procedência'!S52 -> 0.75 | J52: ='CV Rotina <2A - procedência'!U52 -> 1.75 | K52: ='CV Rotina <2A - procedência'!W52 -> 2 | L52: ='CV Rotina <2A - procedência'!AA52 -> 2.5 | M52: 0 | N52: 4 | O52: 4 | P52: 1
A53: Sul | B53: Muniz Freire | C53: ='CV Rotina <2A - procedência'!K53 -> 0.5263157895 | D53: ='CV Rotina <2A - procedência'!#REF! ->  | E53: ='CV Rotina <2A - procedência'!M53 -> 1.789473684 | F53: ='CV Rotina <2A - procedência'!O53 -> 1.789473684 | G53: ='CV Rotina <2A - procedência'!Q53 -> 1.578947368 | H53: ='CV Rotina <2A - procedência'!Y53 -> 1.052631579 | I53: ='CV Rotina <2A - procedência'!S53 -> 1.631578947 | J53: ='CV Rotina <2A - procedência'!U53 -> 1.052631579 | K53: ='CV Rotina <2A - procedência'!W53 -> 1 | L53: ='CV Rotina <2A - procedência'!AA53 -> 1.789473684 | M53: 0 | N53: 8 | O53: 8 | P53: 4
A54: Sul | B54: Muqui | C54: ='CV Rotina <2A - procedência'!K54 -> 0.3333333333 | D54: ='CV Rotina <2A - procedência'!#REF! ->  | E54: ='CV Rotina <2A - procedência'!M54 -> 1.555555556 | F54: ='CV Rotina <2A - procedência'!O54 -> 1.555555556 | G54: ='CV Rotina <2A - procedência'!Q54 -> 0.6666666667 | H54: ='CV Rotina <2A - procedência'!Y54 -> 1.222222222 | I54: ='CV Rotina <2A - procedência'!S54 -> 1.111111111 | J54: ='CV Rotina <2A - procedência'!U54 -> 2 | K54: ='CV Rotina <2A - procedência'!W54 -> 1.111111111 | L54: ='CV Rotina <2A - procedência'!AA54 -> 1.111111111 | M54: 0 | N54: 7 | O54: 7 | P54: 3
A55: Norte | B55: Nova Venécia | C55: ='CV Rotina <2A - procedência'!K55 -> 0.5272727273 | D55: ='CV Rotina <2A - procedência'!#REF! ->  | E55: ='CV Rotina <2A - procedência'!M55 -> 0.9454545455 | F55: ='CV Rotina <2A - procedência'!O55 -> 0.9090909091 | G55: ='CV Rotina <2A - procedência'!Q55 -> 1.090909091 | H55: ='CV Rotina <2A - procedência'!Y55 -> 1.4 | I55: ='CV Rotina <2A - procedência'!S55 -> 1.054545455 | J55: ='CV Rotina <2A - procedência'!U55 -> 0.8727272727 | K55: ='CV Rotina <2A - procedência'!W55 -> 1 | L55: ='CV Rotina <2A - procedência'!AA55 -> 1.018181818 | M55: 0 | N55: 5 | O55: 5 | P55: 2
A56: Central | B56: Pancas | C56: ='CV Rotina <2A - procedência'!K56 -> 0.1 | D56: ='CV Rotina <2A - procedência'!#REF! ->  | E56: ='CV Rotina <2A - procedência'!M56 -> 0.85 | F56: ='CV Rotina <2A - procedência'!O56 -> 0.85 | G56: ='CV Rotina <2A - procedência'!Q56 -> 0.95 | H56: ='CV Rotina <2A - procedência'!Y56 -> 0.8 | I56: ='CV Rotina <2A - procedência'!S56 -> 0.6 | J56: ='CV Rotina <2A - procedência'!U56 -> 1.55 | K56: ='CV Rotina <2A - procedência'!W56 -> 0.7 | L56: ='CV Rotina <2A - procedência'!AA56 -> 0.8 | M56: 0 | N56: 2 | O56: 2 | P56: 1
A57: Norte | B57: Pedro Canário | C57: ='CV Rotina <2A - procedência'!K57 -> 0 | D57: ='CV Rotina <2A - procedência'!#REF! ->  | E57: ='CV Rotina <2A - procedência'!M57 -> 1.2 | F57: ='CV Rotina <2A - procedência'!O57 -> 1 | G57: ='CV Rotina <2A - procedência'!Q57 -> 0.8333333333 | H57: ='CV Rotina <2A - procedência'!Y57 -> 0.9333333333 | I57: ='CV Rotina <2A - procedência'!S57 -> 0.7 | J57: ='CV Rotina <2A - procedência'!U57 -> 0.5666666667 | K57: ='CV Rotina <2A - procedência'!W57 -> 0.6333333333 | L57: ='CV Rotina <2A - procedência'!AA57 -> 0.8 | M57: 0 | N57: 2 | O57: 2 | P57: 2
A58: Norte | B58: Pinheiros | C58: ='CV Rotina <2A - procedência'!K58 -> 0 | D58: ='CV Rotina <2A - procedência'!#REF! ->  | E58: ='CV Rotina <2A - procedência'!M58 -> 1.192307692 | F58: ='CV Rotina <2A - procedência'!O58 -> 1.115384615 | G58: ='CV Rotina <2A - procedência'!Q58 -> 0.8461538462 | H58: ='CV Rotina <2A - procedência'!Y58 -> 0.5769230769 | I58: ='CV Rotina <2A - procedência'!S58 -> 1.307692308 | J58: ='CV Rotina <2A - procedência'!U58 -> 0.4615384615 | K58: ='CV Rotina <2A - procedência'!W58 -> 0.8076923077 | L58: ='CV Rotina <2A - procedência'!AA58 -> 0.6538461538 | M58: 0 | N58: 3 | O58: 3 | P58: 2
A59: Sul | B59: Piúma | C59: ='CV Rotina <2A - procedência'!K59 -> 0.2068965517 | D59: ='CV Rotina <2A - procedência'!#REF! ->  | E59: ='CV Rotina <2A - procedência'!M59 -> 0.6896551724 | F59: ='CV Rotina <2A - procedência'!O59 -> 0.6896551724 | G59: ='CV Rotina <2A - procedência'!Q59 -> 0.6896551724 | H59: ='CV Rotina <2A - procedência'!Y59 -> 0.9655172414 | I59: ='CV Rotina <2A - procedência'!S59 -> 0.9310344828 | J59: ='CV Rotina <2A - procedência'!U59 -> 0.724137931 | K59: ='CV Rotina <2A - procedência'!W59 -> 0.8965517241 | L59: ='CV Rotina <2A - procedência'!AA59 -> 0.9310344828 | M59: 0 | N59: 1 | O59: 1 | P59: 1
A60: Norte | B60: Ponto Belo | C60: ='CV Rotina <2A - procedência'!K60 -> 0.3333333333 | D60: ='CV Rotina <2A - procedência'!#REF! ->  | E60: ='CV Rotina <2A - procedência'!M60 -> 1.333333333 | F60: ='CV Rotina <2A - procedência'!O60 -> 1.166666667 | G60: ='CV Rotina <2A - procedência'!Q60 -> 1.166666667 | H60: ='CV Rotina <2A - procedência'!Y60 -> 0.5 | I60: ='CV Rotina <2A - procedência'!S60 -> 0.6666666667 | J60: ='CV Rotina <2A - procedência'!U60 -> 0.8333333333 | K60: ='CV Rotina <2A - procedência'!W60 -> 1.166666667 | L60: ='CV Rotina <2A - procedência'!AA60 -> 0 | M60: 0 | N60: 4 | O60: 4 | P60: 3
A61: Sul | B61: Presidente Kennedy | C61: ='CV Rotina <2A - procedência'!K61 -> 0.2222222222 | D61: ='CV Rotina <2A - procedência'!#REF! ->  | E61: ='CV Rotina <2A - procedência'!M61 -> 0.6111111111 | F61: ='CV Rotina <2A - procedência'!O61 -> 0.6111111111 | G61: ='CV Rotina <2A - procedência'!Q61 -> 0.9444444444 | H61: ='CV Rotina <2A - procedência'!Y61 -> 1.611111111 | I61: ='CV Rotina <2A - procedência'!S61 -> 1.055555556 | J61: ='CV Rotina <2A - procedência'!U61 -> 0.9444444444 | K61: ='CV Rotina <2A - procedência'!W61 -> 1.277777778 | L61: ='CV Rotina <2A - procedência'!AA61 -> 1.444444444 | M61: 0 | N61: 4 | O61: 4 | P61: 1
A62: Central | B62: Rio Bananal | C62: ='CV Rotina <2A - procedência'!K62 -> 0.1052631579 | D62: ='CV Rotina <2A - procedência'!#REF! ->  | E62: ='CV Rotina <2A - procedência'!M62 -> 1.473684211 | F62: ='CV Rotina <2A - procedência'!O62 -> 1.473684211 | G62: ='CV Rotina <2A - procedência'!Q62 -> 1.210526316 | H62: ='CV Rotina <2A - procedência'!Y62 -> 1.263157895 | I62: ='CV Rotina <2A - procedência'!S62 -> 1.157894737 | J62: ='CV Rotina <2A - procedência'!U62 -> 0.8947368421 | K62: ='CV Rotina <2A - procedência'!W62 -> 0.7368421053 | L62: ='CV Rotina <2A - procedência'!AA62 -> 2.368421053 | M62: 0 | N62: 6 | O62: 6 | P62: 4
A63: Sul | B63: Rio Novo do Sul | C63: ='CV Rotina <2A - procedência'!K63 -> 0.2727272727 | D63: ='CV Rotina <2A - procedência'!#REF! ->  | E63: ='CV Rotina <2A - procedência'!M63 -> 0.8181818182 | F63: ='CV Rotina <2A - procedência'!O63 -> 0.8181818182 | G63: ='CV Rotina <2A - procedência'!Q63 -> 0.7272727273 | H63: ='CV Rotina <2A - procedência'!Y63 -> 1.454545455 | I63: ='CV Rotina <2A - procedência'!S63 -> 0.6363636364 | J63: ='CV Rotina <2A - procedência'!U63 -> 0.8181818182 | K63: ='CV Rotina <2A - procedência'!W63 -> 1.181818182 | L63: ='CV Rotina <2A - procedência'!AA63 -> 1.363636364 | M63: 0 | N63: 3 | O63: 3 | P63: 1
A64: Metropolitana | B64: Santa Leopoldina | C64: ='CV Rotina <2A - procedência'!K64 -> 0.4285714286 | D64: ='CV Rotina <2A - procedência'!#REF! ->  | E64: ='CV Rotina <2A - procedência'!M64 -> 0.7142857143 | F64: ='CV Rotina <2A - procedência'!O64 -> 0.7142857143 | G64: ='CV Rotina <2A - procedência'!Q64 -> 0.7142857143 | H64: ='CV Rotina <2A - procedência'!Y64 -> 1 | I64: ='CV Rotina <2A - procedência'!S64 -> 0.5714285714 | J64: ='CV Rotina <2A - procedência'!U64 -> 1.571428571 | K64: ='CV Rotina <2A - procedência'!W64 -> 1.142857143 | L64: ='CV Rotina <2A - procedência'!AA64 -> 1.142857143 | M64: 0 | N64: 4 | O64: 4 | P64: 1
A65: Metropolitana | B65: Santa Maria de Jetibá | C65: ='CV Rotina <2A - procedência'!K65 -> 0.679245283 | D65: ='CV Rotina <2A - procedência'!#REF! ->  | E65: ='CV Rotina <2A - procedência'!M65 -> 1.320754717 | F65: ='CV Rotina <2A - procedência'!O65 -> 1.358490566 | G65: ='CV Rotina <2A - procedência'!Q65 -> 1.226415094 | H65: ='CV Rotina <2A - procedência'!Y65 -> 1.188679245 | I65: ='CV Rotina <2A - procedência'!S65 -> 1.094339623 | J65: ='CV Rotina <2A - procedência'!U65 -> 1.113207547 | K65: ='CV Rotina <2A - procedência'!W65 -> 1 | L65: ='CV Rotina <2A - procedência'!AA65 -> 1.169811321 | M65: 0 | N65: 8 | O65: 8 | P65: 4
A66: Metropolitana | B66: Santa Teresa | C66: ='CV Rotina <2A - procedência'!K66 -> 2.103448276 | D66: ='CV Rotina <2A - procedência'!#REF! ->  | E66: ='CV Rotina <2A - procedência'!M66 -> 0.7931034483 | F66: ='CV Rotina <2A - procedência'!O66 -> 0.7931034483 | G66: ='CV Rotina <2A - procedência'!Q66 -> 0.8965517241 | H66: ='CV Rotina <2A - procedência'!Y66 -> 0.7931034483 | I66: ='CV Rotina <2A - procedência'!S66 -> 0.6206896552 | J66: ='CV Rotina <2A - procedência'!U66 -> 0.724137931 | K66: ='CV Rotina <2A - procedência'!W66 -> 0.6551724138 | L66: ='CV Rotina <2A - procedência'!AA66 -> 0.4482758621 | M66: 1 | N66: 0 | O66: 1 | P66: 0
A67: Central | B67: São Domingos do Norte | C67: ='CV Rotina <2A - procedência'!K67 -> 1 | D67: ='CV Rotina <2A - procedência'!#REF! ->  | E67: ='CV Rotina <2A - procedência'!M67 -> 3 | F67: ='CV Rotina <2A - procedência'!O67 -> 3 | G67: ='CV Rotina <2A - procedência'!Q67 -> 2 | H67: ='CV Rotina <2A - procedência'!Y67 -> 1.4 | I67: ='CV Rotina <2A - procedência'!S67 -> 2.8 | J67: ='CV Rotina <2A - procedência'!U67 -> 1.8 | K67: ='CV Rotina <2A - procedência'!W67 -> 1.6 | L67: ='CV Rotina <2A - procedência'!AA67 -> 1.6 | M67: =COUNTIF(C67:D67,">=0,9") -> 1 | N67: =COUNTIFS(E67:L67,">=0,95") -> 8 | O67: 9 | P67: 4
A68: Central | B68: São Gabriel da Palha | C68: ='CV Rotina <2A - procedência'!K68 -> 0.4 | D68: ='CV Rotina <2A - procedência'!#REF! ->  | E68: ='CV Rotina <2A - procedência'!M68 -> 0.8857142857 | F68: ='CV Rotina <2A - procedência'!O68 -> 0.8285714286 | G68: ='CV Rotina <2A - procedência'!Q68 -> 1.285714286 | H68: ='CV Rotina <2A - procedência'!Y68 -> 0.9428571429 | I68: ='CV Rotina <2A - procedência'!S68 -> 0.8857142857 | J68: ='CV Rotina <2A - procedência'!U68 -> 1.542857143 | K68: ='CV Rotina <2A - procedência'!W68 -> 0.9428571429 | L68: ='CV Rotina <2A - procedência'!AA68 -> 1.228571429 | M68: 0 | N68: 3 | O68: =SUM(M68:N68) -> 3 | P68: =COUNTIF(E68:H68,">=0,95") -> 1
A69: Sul | B69: São José do Calçado | C69: ='CV Rotina <2A - procedência'!K69 -> 1.666666667 | D69: ='CV Rotina <2A - procedência'!#REF! ->  | E69: ='CV Rotina <2A - procedência'!M69 -> 1.166666667 | F69: ='CV Rotina <2A - procedência'!O69 -> 1.166666667 | G69: ='CV Rotina <2A - procedência'!Q69 -> 1.666666667 | H69: ='CV Rotina <2A - procedência'!Y69 -> 1.666666667 | I69: ='CV Rotina <2A - procedência'!S69 -> 2 | J69: ='CV Rotina <2A - procedência'!U69 -> 0.5 | K69: ='CV Rotina <2A - procedência'!W69 -> 0.6666666667 | L69: ='CV Rotina <2A - procedência'!AA69 -> 0.5 | M69: 1 | N69: 5 | O69: 6 | P69: 4
A70: Norte | B70: São Mateus | C70: ='CV Rotina <2A - procedência'!K70 -> 1.335766423 | D70: ='CV Rotina <2A - procedência'!#REF! ->  | E70: ='CV Rotina <2A - procedência'!M70 -> 1.277372263 | F70: ='CV Rotina <2A - procedência'!O70 -> 1.270072993 | G70: ='CV Rotina <2A - procedência'!Q70 -> 1.474452555 | H70: ='CV Rotina <2A - procedência'!Y70 -> 0.9489051095 | I70: ='CV Rotina <2A - procedência'!S70 -> 1.379562044 | J70: ='CV Rotina <2A - procedência'!U70 -> 0.9781021898 | K70: ='CV Rotina <2A - procedência'!W70 -> 1.138686131 | L70: ='CV Rotina <2A - procedência'!AA70 -> 1.02189781 | M70: 1 | N70: 7 | O70: 8 | P70: 3
A71: Central | B71: São Roque do Canaã | C71: ='CV Rotina <2A - procedência'!K71 -> 0.3333333333 | D71: ='CV Rotina <2A - procedência'!#REF! ->  | E71: ='CV Rotina <2A - procedência'!M71 -> 0.5 | F71: ='CV Rotina <2A - procedência'!O71 -> 0.5 | G71: ='CV Rotina <2A - procedência'!Q71 -> 1.166666667 | H71: ='CV Rotina <2A - procedência'!Y71 -> 1.083333333 | I71: ='CV Rotina <2A - procedência'!S71 -> 0.6666666667 | J71: ='CV Rotina <2A - procedência'!U71 -> 1.166666667 | K71: ='CV Rotina <2A - procedência'!W71 -> 1 | L71: ='CV Rotina <2A - procedência'!AA71 -> 1.083333333 | M71: 0 | N71: 5 | O71: 5 | P71: 2
A72: Metropolitana | B72: Serra | C72: ='CV Rotina <2A - procedência'!K72 -> 1.152139461 | D72: ='CV Rotina <2A - procedência'!#REF! ->  | E72: ='CV Rotina <2A - procedência'!M72 -> 1.015847861 | F72: ='CV Rotina <2A - procedência'!O72 -> 1.003169572 | G72: ='CV Rotina <2A - procedência'!Q72 -> 0.9667194929 | H72: ='CV Rotina <2A - procedência'!Y72 -> 0.93977813 | I72: ='CV Rotina <2A - procedência'!S72 -> 0.9730586371 | J72: ='CV Rotina <2A - procedência'!U72 -> 0.7733755943 | K72: ='CV Rotina <2A - procedência'!W72 -> 0.9825673534 | L72: ='CV Rotina <2A - procedência'!AA72 -> 0.8906497623 | M72: 1 | N72: 5 | O72: 6 | P72: 3
A73: Central | B73: Sooretama | C73: ='CV Rotina <2A - procedência'!K73 -> 0 | D73: ='CV Rotina <2A - procedência'!#REF! ->  | E73: ='CV Rotina <2A - procedência'!M73 -> 2.095238095 | F73: ='CV Rotina <2A - procedência'!O73 -> 1.952380952 | G73: ='CV Rotina <2A - procedência'!Q73 -> 1.523809524 | H73: ='CV Rotina <2A - procedência'!Y73 -> 1.714285714 | I73: ='CV Rotina <2A - procedência'!S73 -> 1.428571429 | J73: ='CV Rotina <2A - procedência'!U73 -> 1.714285714 | K73: ='CV Rotina <2A - procedência'!W73 -> 1.571428571 | L73: ='CV Rotina <2A - procedência'!AA73 -> 0.9047619048 | M73: 0 | N73: 7 | O73: 7 | P73: 4
A74: Sul | B74: Vargem Alta | C74: ='CV Rotina <2A - procedência'!K74 -> 0.1818181818 | D74: ='CV Rotina <2A - procedência'!#REF! ->  | E74: ='CV Rotina <2A - procedência'!M74 -> 1 | F74: ='CV Rotina <2A - procedência'!O74 -> 1 | G74: ='CV Rotina <2A - procedência'!Q74 -> 0.7727272727 | H74: ='CV Rotina <2A - procedência'!Y74 -> 1.181818182 | I74: ='CV Rotina <2A - procedência'!S74 -> 1.136363636 | J74: ='CV Rotina <2A - procedência'!U74 -> 1.227272727 | K74: ='CV Rotina <2A - procedência'!W74 -> 1.227272727 | L74: ='CV Rotina <2A - procedência'!AA74 -> 1.318181818 | M74: 0 | N74: 7 | O74: 7 | P74: 3
A75: Metropolitana | B75: Venda Nova do Imigrante | C75: ='CV Rotina <2A - procedência'!K75 -> 1.375 | D75: ='CV Rotina <2A - procedência'!#REF! ->  | E75: ='CV Rotina <2A - procedência'!M75 -> 1.291666667 | F75: ='CV Rotina <2A - procedência'!O75 -> 1.291666667 | G75: ='CV Rotina <2A - procedência'!Q75 -> 1.208333333 | H75: ='CV Rotina <2A - procedência'!Y75 -> 1.291666667 | I75: ='CV Rotina <2A - procedência'!S75 -> 1.083333333 | J75: ='CV Rotina <2A - procedência'!U75 -> 0.8333333333 | K75: ='CV Rotina <2A - procedência'!W75 -> 1.5 | L75: ='CV Rotina <2A - procedência'!AA75 -> 1.958333333 | M75: 1 | N75: 7 | O75: 8 | P75: 4
A76: Metropolitana | B76: Viana | C76: ='CV Rotina <2A - procedência'!K76 -> 0.3636363636 | D76: ='CV Rotina <2A - procedência'!#REF! ->  | E76: ='CV Rotina <2A - procedência'!M76 -> 1.212121212 | F76: ='CV Rotina <2A - procedência'!O76 -> 1.272727273 | G76: ='CV Rotina <2A - procedência'!Q76 -> 1.272727273 | H76: ='CV Rotina <2A - procedência'!Y76 -> 1.166666667 | I76: ='CV Rotina <2A - procedência'!S76 -> 1.272727273 | J76: ='CV Rotina <2A - procedência'!U76 -> 1.136363636 | K76: ='CV Rotina <2A - procedência'!W76 -> 1.03030303 | L76: ='CV Rotina <2A - procedência'!AA76 -> 1.196969697 | M76: 0 | N76: 8 | O76: 8 | P76: 4
A77: Norte | B77: Vila Pavão | C77: ='CV Rotina <2A - procedência'!K77 -> 0.5555555556 | D77: ='CV Rotina <2A - procedência'!#REF! ->  | E77: ='CV Rotina <2A - procedência'!M77 -> 0.7777777778 | F77: ='CV Rotina <2A - procedência'!O77 -> 0.7777777778 | G77: ='CV Rotina <2A - procedência'!Q77 -> 0.6666666667 | H77: ='CV Rotina <2A - procedência'!Y77 -> 0.8888888889 | I77: ='CV Rotina <2A - procedência'!S77 -> 1 | J77: ='CV Rotina <2A - procedência'!U77 -> 1.333333333 | K77: ='CV Rotina <2A - procedência'!W77 -> 1 | L77: ='CV Rotina <2A - procedência'!AA77 -> 2.111111111 | M77: 0 | N77: 4 | O77: 4 | P77: 0
A78: Central | B78: Vila Valério | C78: ='CV Rotina <2A - procedência'!K78 -> 0.5833333333 | D78: ='CV Rotina <2A - procedência'!#REF! ->  | E78: ='CV Rotina <2A - procedência'!M78 -> 1.25 | F78: ='CV Rotina <2A - procedência'!O78 -> 1.25 | G78: ='CV Rotina <2A - procedência'!Q78 -> 2.083333333 | H78: ='CV Rotina <2A - procedência'!Y78 -> 0.9166666667 | I78: ='CV Rotina <2A - procedência'!S78 -> 1.583333333 | J78: ='CV Rotina <2A - procedência'!U78 -> 1.833333333 | K78: ='CV Rotina <2A - procedência'!W78 -> 1.333333333 | L78: ='CV Rotina <2A - procedência'!AA78 -> 2 | M78: 0 | N78: 7 | O78: 7 | P78: 3
A79: Metropolitana | B79: Vila Velha | C79: ='CV Rotina <2A - procedência'!K79 -> 0.6386554622 | D79: ='CV Rotina <2A - procedência'!#REF! ->  | E79: ='CV Rotina <2A - procedência'!M79 -> 0.775210084 | F79: ='CV Rotina <2A - procedência'!O79 -> 0.7605042017 | G79: ='CV Rotina <2A - procedência'!Q79 -> 0.9453781513 | H79: ='CV Rotina <2A - procedência'!Y79 -> 0.9579831933 | I79: ='CV Rotina <2A - procedência'!S79 -> 0.9117647059 | J79: ='CV Rotina <2A - procedência'!U79 -> 0.6323529412 | K79: ='CV Rotina <2A - procedência'!W79 -> 0.8634453782 | L79: ='CV Rotina <2A - procedência'!AA79 -> 0.8193277311 | M79: 0 | N79: 1 | O79: 1 | P79: 1
A80: Metropolitana | B80: Vitória | C80: ='CV Rotina <2A - procedência'!K80 -> 2.277372263 | D80: ='CV Rotina <2A - procedência'!#REF! ->  | E80: ='CV Rotina <2A - procedência'!M80 -> 1.525547445 | F80: ='CV Rotina <2A - procedência'!O80 -> 1.503649635 | G80: ='CV Rotina <2A - procedência'!Q80 -> 1.591240876 | H80: ='CV Rotina <2A - procedência'!Y80 -> 1.361313869 | I80: ='CV Rotina <2A - procedência'!S80 -> 1.551094891 | J80: ='CV Rotina <2A - procedência'!U80 -> 0.799270073 | K80: ='CV Rotina <2A - procedência'!W80 -> 1.47810219 | L80: ='CV Rotina <2A - procedência'!AA80 -> 1.551094891 | M80: 1 | N80: 7 | O80: 8 | P80: 4
